Workbook

Sheet AER Change Log
B1: AER Draft Decision Change Log
B3: changes in the spreadsheet are also highlighted in green
B5: Tab | C5: Cells | D5: Description of change
B6: Input|General | C6: J9 | D6: Changed state to draft decision
B7: Input| Historiacal Inflation | C7: I52:I54 | D7: Updated historical CPI
B8: Input| Prices | C8: K21 | D8: Removed forecast inflation as replaced by historical CPI
C9: L21 | D9: Updated forecast inflation for August 2025 RBA Statement on Monetary Policy
C10: M21 | D10: Updated forecast inflation for draft decision position
C11: D39:Q42 | D11: Updated labour cost escalator for draft decision position
C12: K50:Q50 | D12: Updated labour cost escalator for draft decision position
C13: K51:Q51 | D13: Corrected non-labour cost escalator
B14: Input | Meter-Opex BST | C14: R23:V:23 | D14: Updated step changes - New meter inspection obligations
B15: Input | Meters Vols & Costs | C15: W83:W89 | D15: Updated labour time AMI inputs
C16: P309:Q310 | D16: Added meter replacement multiplier
C17: X311:AE327 | D17: Added table with proposal models inputs for AMI meter replacement
C18: Q312:U317 | D18: Updated AMI Meter Replacement
B19: Input | Coms, IT, Other | C19: M45 | D19: Updated SCS Allocation percentage
C20: G97 | D20: Updated SCS Allocation percentage
C21: M110:Q110 | D21: Updated forecast project costs
C22: M124:Q124 | D22: Updated forecast project costs
C23: I156:J159 | D23: Added multiplier table
C24: M177:Q196 | D24: Updated forecast volumn inputs
B27: AER Final Decision Change Log
B29: changes in the spreadsheet are also highlighted in green
B31: Tab | C31: Cells | D31: Description of change
B32: Input | General | C32: J9 | D32: Updated decision stage
B33: Input | Prices | C33: L21:M21 | D33: Updated CPI year on year change
C34: K39:Q40 | D34: Updated labour cost escalators
B35: Input | Meter-Opex BST | C35: R24:V24 | D35: Removed Opex for meter disposal
B36: Input | Meters Vols &Costs | C36: Q46:U46 | D36: Updated Site scoping and outage notification capex to reflect volume adjustments and labour escalation
C37: P47 | D37: Removed project capex to support legacy meter replacement
C38: K48:U48 | D38: Added project capex for meter disposals
C39: K49:U49 | D39: Added project capex for meter replacement program
C40: Q312:U317 | D40: Reinstated draft decision proactive replacement volumes
C41: P330:U337 | D41: Updated wasted visit volumes to reflects updates to proactive replacement
C42: Q352:U357 | D42: Removed actions for pannel and wire remediation
B43: Input | Comms, IT, Other | C43: M124:Q124 | D43: Removed IT capex for meter replacement program

Sheet Title Page
B6: Final Standardised Metering Capex and Opex Model
B9: Version | D9: 1.08
B10: Date | D10: 44589
B13: Status
B15: Notes:
B16: Current model version contains test data.
C18: Locked Sheets Pwd:
B24: Changelog
B26: Date | C26: Version | D26: Author | E26: Changes
B28: 44589 | C28: 1.08 | D28: AER | E28: Minor changes from further Feedback
B29: 44575 | C29: 1.07 | D29: AER | E29: Updates following consultation
B30: 44494 | C30: 1 | D30: AER | E30: Consultation version (contains anonymised input data)

Sheet Change Log
B1: AMI Expenditure Model
B2: Change Log
B4: Model change log
C6: Starting model name ----> | D6: AER – Metering expenditure model – Draft decision – Jemena distribution determination 2026–31 – September 2025
C8: Model changes to above model
C10: Model sheet | D10: Reference | E10: Cell reference | F10: Type | G10: Legend | H10: Comments
C12: =SheetName('Input|General'!A1) -> Input|General | D12: 1 | E12: =CellReference('Input|General'!J9) -> J9 | F12: Input | H12: Changed state to revised proposal
C15: Model sheet | D15: Reference | E15: Cell reference | F15: Type | G15: Legend | H15: Comments
C17: =SheetName('Input| Prices'!A1) -> Input| Prices | D17: =+D12+1 -> 2 | E17: =CellReference('Input| Prices'!M21) -> M21 | F17: Input | H17: Updated forecast inflation to align with PTRM
C18: =SheetName('Input| Prices'!A2) -> Input| Prices | D18: =+D17+1 -> 3 | E18: =CellReference('Input| Prices'!D40:Q40) -> D40:Q40 | F18: Input | H18: Updated labour cost escalator for revised proposal position
C21: Model sheet | D21: Reference | E21: Cell reference | F21: Type | G21: Legend | H21: Comments
C23: =SheetName('Input| Historical Capex'!A1) -> Input| Historical Capex | D23: =+D18+1 -> 4 | E23: =CellReference('Input| Historical Capex'!M9:M64) -> M9:M64 | F23: Input | H23: Updated historical capex to include actuals for FY25
C26: Model sheet | D26: Reference | E26: Cell reference | F26: Type | G26: Legend | H26: Comments
C28: =SheetName('Input | Meter-Opex BST'!A1) -> Input | Meter-Opex BST | D28: =+D23+1 -> 5 | E28: =CellReference('Input | Meter-Opex BST'!P9) -> P9 | F28: Input | H28: Updated base year opex to include actuals for FY25
C29: =SheetName('Input | Meter-Opex BST'!A2) -> Input | Meter-Opex BST | D29: =+D28+1 -> 6 | E29: =CellReference('Input | Meter-Opex BST'!R24:V25) -> R24:V25 | F29: Input | H29: Updated forecast costs for step changes
C30: =SheetName('Input | Meter-Opex BST'!A3) -> Input | Meter-Opex BST | D30: =+D29+1 -> 7 | E30: =CellReference('Input | Meter-Opex BST'!P31:V31) -> P31:V31 | F30: Input | H30: Updated customer numbers for revised proposal position
C33: Model sheet | D33: Reference | E33: Cell reference | F33: Type | G33: Legend | H33: Comments
C35: =SheetName('Input | Meters Vols & Costs'!A1) -> Input | Meters Vols & Costs | D35: =+D30+1 -> 8 | E35: =CellReference('Input | Meters Vols & Costs'!E37:J38) -> E37:J38 | F35: Input | H35: Included additional meter actions
C36: =SheetName('Input | Meters Vols & Costs'!A2) -> Input | Meters Vols & Costs | D36: =+D35+1 -> 9 | E36: =CellReference('Input | Meters Vols & Costs'!K46:U47) -> K46:U47 | F36: Input | H36: Updated additional projects for Meter Related Costs for FY26-FY31
C37: =SheetName('Input | Meters Vols & Costs'!A3) -> Input | Meters Vols & Costs | D37: =+D36+1 -> 10 | E37: =CellReference(ICM_Rates) -> P76 | F37: Input | H37: Updated Labour rates
C38: =SheetName('Input | Meters Vols & Costs'!A4) -> Input | Meters Vols & Costs | D38: =+D37+1 -> 11 | E38: =CellReference('Input | Meters Vols & Costs'!X83:Y93) -> X83:Y93 | F38: Input | H38: Included labour required for additional meter actions
C39: =SheetName('Input | Meters Vols & Costs'!A5) -> Input | Meters Vols & Costs | D39: 12 | E39: =CellReference('Input | Meters Vols & Costs'!P227:U227) -> P227:U227 | F39: Input | H39: Updated formulas
C40: =SheetName('Input | Meters Vols & Costs'!A5) -> Input | Meters Vols & Costs | D40: 13 | E40: =CellReference('Input | Meters Vols & Costs'!O172:U357) -> O172:U357 | F40: Input | H40: Updated meter population inputs for revised proposal position
C43: Model sheet | D43: Reference | E43: Cell reference | F43: Type | G43: Legend | H43: Comments
C45: =SheetName('Input | Comms, IT, Other'!A1) -> Input | Comms, IT, Other | D45: =D40+1 -> 14 | E45: =CellReference('Input | Comms, IT, Other'!I97:I98) -> I97:I98 | F45: Input | H45: Updated non-labour cost escalation selection
C46: =SheetName('Input | Comms, IT, Other'!A2) -> Input | Comms, IT, Other | D46: =+D45+1 -> 15 | E46: =CellReference('Input | Comms, IT, Other'!E99:I99)&", "&CellReference('Input | Comms, IT, Other'!E112:Q112) -> E99:I99, E112:Q112 | F46: Input | H46: Included new project in Project Costs-IT
C47: =SheetName('Input | Comms, IT, Other'!A4) -> Input | Comms, IT, Other | D47: =+D46+1 -> 16 | E47: =CellReference('Input | Comms, IT, Other'!E124:Q126) -> E124:Q126 | F47: Input | H47: Included new IT projects and costs
C48: =SheetName('Input | Comms, IT, Other'!A5) -> Input | Comms, IT, Other | D48: =+D47+1 -> 17 | E48: =CellReference('Input | Comms, IT, Other'!G163) -> G163 | F48: Input | H48: Updated antenna population
C49: =SheetName('Input | Comms, IT, Other'!A6) -> Input | Comms, IT, Other | D49: 18 | E49: =CellReference('Input | Comms, IT, Other'!M179:Q196) -> M179:Q196 | F49: Input | H49: Updated forecast volumes
C52: Model sheet | D52: Reference | E52: Cell reference | F52: Type | G52: Legend | H52: Comments
C54: =SheetName('Calc | Capex Meters'!A1) -> Calc | Capex Meters | D54: =D49+1 -> 19 | E54: =CellReference('Calc | Capex Meters'!P162) -> P162 | F54: Input | H54: Updated forecast capex for FY26
C57: Model sheet | D57: Reference | E57: Cell reference | F57: Type | G57: Legend | H57: Comments
C59: =SheetName('Output | RFM'!A1) -> Output | RFM | D59: =+D54+1 -> 20 | E59: =CellReference('Output | RFM'!J11:J39) -> J11:J39 | F59: Input | H59: Updated FY25 capex to refer to actual not forecast
B61: End

Sheet Input|General
B1: AER Metering Opex & Capex Forecasting Model
B2: Ver: | D2: 1.08 | H2: Key: | I2: Input | J2: External Link | L2: Internal Link | N2: JEN - RP | P2: AER Addition
B3: =MID(CELL("filename",A1),FIND("]",CELL("filename",A1))+1,255) -> Input|General
B5: Input | General inputs
E7: Inputs | G7: Source | J7: Value | N7: Note
E8: NSP name | G8: NSP | J8: JEN | V8: =IF(ISBLANK($J8),1,0) -> 0
E9: Decision stage | G9: NSP | J9: final | V9: =IF(ISBLANK($J9),1,0) -> 0
C11: Current Period
E12: Previous regulatory control period, first year | G12: NSP | J12: 2021-22 | N12: Enter either YYYY-YY (for June YE) or YYYY (for calendar year) | V12: =IF(ISBLANK($J12),1,0) -> 0
E13: Previous regulatory control period, last year | G13: NSP | J13: =(LEFT(PPFirstYear,4)+4&IF(MID(PPFirstYear,5,1)="","","-"&TEXT(MOD(MID(PPFirstYear,6,2)+4,100),"00"))) -> 2025-26 | V13: =IF(ISBLANK($J13),1,0) -> 0
E14: Year ending for current regulatory period | G14: NSP | J14: =IF(MID(PPFirstYear,5,1)="",DATE(2000,12,1),DATE(2000,6,1)) -> 2000-06-01 | V14: =IF(ISBLANK($J14),1,0) -> 0
E15: Notation Adjustment (YYYY or YYYY-YY) | J15: =IF(MID(PPFirstYear,5,1)="",0,1) -> 1
C17: Base Year | J17: End Year | L17: Base Year
E18: Opex - Forecast base year | G18: NSP | J18: 2025 | L18: =IF(MONTH('Input|General'!$J$14)=6,J18-1&"-"&RIGHT(J18,2),$J18) -> 2024-25 | V18: =IF(AND(NOT(COUNTBLANK($L18)),(IFERROR(SEARCH("-",PPFirstYear,1),-5)=IFERROR(SEARCH("-",$L18,1),-5)))/1,0,1) -> 0
E19: Capex - Forecast base year | G19: NSP | J19: 2024 | L19: =IF(MONTH('Input|General'!$J$14)=6,J19-1&"-"&RIGHT(J19,2),$J19) -> 2023-24 | V19: =IF(AND(NOT(COUNTBLANK($L19)),(IFERROR(SEARCH("-",PPFirstYear,1),-5)=IFERROR(SEARCH("-",$L19,1),-5)))/1,0,1) -> 0
C22: Forecast Regulatory Period
E23: Forecast regulatory control period, first year | G23: NSP | J23: =IF(MONTH('Input|General'!$J$14)=6,(LEFT(PPLastYear,4)+1&IF(MID(PPLastYear,5,1)="","","-"&TEXT(MOD(MID(PPLastYear,6,2)+1,100),"00"))),PPLastYear+1) -> 2026-27 | V23: =IF(ISBLANK($J23),1,0) -> 0
E24: Forecast regulatory control period, last year | G24: NSP | J24: =IF(MONTH('Input|General'!$J$14)=6,(LEFT(PPLastYear,4)+5&IF(MID(PPLastYear,5,1)="","","-"&TEXT(MOD(MID(PPLastYear,6,2)+5,100),"00"))),PPLastYear+5) -> 2030-31 | V24: =IF(ISBLANK($J24),1,0) -> 0
C27: Cost Basis | J27: $Basis, End Year | L27: $Basis
D28: Inputs
E29: Opex (Historical) | J29: nominal | L29: =IF(J29="nominal","nominal",DATE($J29,MONTH($J$14),1)) -> nominal | V29: =IF(ISBLANK($J29),1,0) -> 0
E30: Opex (Forecast) | J30: 2026 | L30: =DATE($J30,MONTH($J$14),1) -> 2026-06-01 | V30: =IF(ISBLANK($J30),1,0) -> 0
E31: Capex
F32: Input Year | J32: 2024 | V32: =IF(ISBLANK($J32),1,0) -> 0
F33: Cash Flow Timing | J33: End Year | L33: =EDATE(DATE($J32,MONTH($J$14),1),IF($J$33="Mid Year",-6,0)) -> 2024-06-01 | V33: =IF(ISBLANK($J33),1,0) -> 0
D34: Output Basis
E35: PTRM | J35: 2026 | L35: =DATE($J35,MONTH($J$14),1) -> 2026-06-01 | V35: =IF(ISBLANK($J35),1,0) -> 0
E36: RFM | J36: nominal | L36: =IF(J36="nominal","nominal",DATE($J36,MONTH($J$14),1)) -> nominal | V36: =IF(ISBLANK($J36),1,0) -> 0
C39: Validation
H40: Model | J40: =IF(SUM(J42:J45)<>0,1,0) -> 0
H42: Input|General | J42: =IF(SUM(V8:V36)<>0,1,0) -> 0
H43: Input| Prices | J43: ='Input| Prices'!A4 -> 0
H44: Input | Meter-Opex BST | J44: ='Input | Meter-Opex BST'!A5 -> 0
H45: Calc | Capex Meters | J45: ='Calc | Capex Meters'!A4 -> 0
B47: End

Sheet Input| Historical Inflation
B1: ='Input|General'!B1&" v"&'Input|General'!$D$2 -> AER Metering Opex & Capex Forecasting Model v1.08
B2: =MID(CELL("filename",B2),FIND("]",CELL("filename",B2))+1,255) -> Input| Historical Inflation | H2: Key: | I2: Input | J2: External Link | L2: Internal Link | N2: JEN - RP | P2: AER Addition
B5: Input | General inputs
D7: Added Calc | G7: Index value, new base | H7: Percentage Change from Corresponding Quarter of Previous Year | I7: Index value, new base | J7: Percentage Change from Corresponding Quarter of Previous Year
F8: Source | G8: ABS | H8: Calculated | I8: ABS | J8: Calculated
D9: Year | E9: Month | F9: Unit | G9: index | H9: Percent | I9: index2 | J9: Percent3
D10: =YEAR(F10) -> 2014 | E10: =MONTH(F10) -> 6 | F10: 2014-06-30 | I10: 105.9
D11: 2014 | E11: 9 | F11: 2014-09-30 | I11: 106.4
D12: 2014 | E12: 12 | F12: 2014-12-31 | I12: 106.6
D13: 2015 | E13: 3 | F13: 2015-03-31 | I13: 106.8
D14: 2015 | E14: 6 | F14: 2015-06-30 | I14: 107.5 | J14: =IF(ISBLANK(I14),0,I14/I10-1) -> 0.01510859301
D15: 2015 | E15: 9 | F15: 2015-09-30 | I15: 108 | J15: =IF(ISBLANK(I15),0,I15/I11-1) -> 0.01503759398
D16: 2015 | E16: 12 | F16: 2015-12-31 | I16: 108.4 | J16: 0.01688555347
D17: 2016 | E17: 3 | F17: 2016-03-31 | I17: 108.2 | J17: 0.01310861423
D18: 2016 | E18: 6 | F18: 2016-06-30 | I18: 108.6 | J18: 0.01023255814
D19: 2016 | E19: 9 | F19: 2016-09-30 | I19: 109.4 | J19: 0.01296296296
D20: 2016 | E20: 12 | F20: 2016-12-31 | I20: 110 | J20: 0.0147601476
D21: 2017 | E21: 3 | F21: 2017-03-31 | I21: 110.5 | J21: 0.02125693161
D22: 2017 | E22: 6 | F22: 2017-06-30 | I22: 110.7 | J22: 0.01933701657
D23: 2017 | E23: 9 | F23: 2017-09-30 | I23: 111.4 | J23: 0.01828153565
D24: 2017 | E24: 12 | F24: 2017-12-31 | I24: 112.1 | J24: 0.01909090909
D25: 2018 | E25: 3 | F25: 2018-03-31 | I25: 112.6 | J25: 0.01900452489
D26: 2018 | E26: 6 | F26: 2018-06-30 | I26: 113 | J26: 0.02077687444
D27: 2018 | E27: 9 | F27: 2018-09-30 | I27: 113.5 | J27: 0.01885098743
D28: 2018 | E28: 12 | F28: 2018-12-31 | I28: 114.1 | J28: 0.0178412132
D29: 2019 | E29: 3 | F29: 2019-03-31 | I29: 114.1 | J29: 0.01332149201
D30: 2019 | E30: 6 | F30: 2019-06-30 | I30: 114.8 | J30: 0.01592920354
D31: 2019 | E31: 9 | F31: 2019-09-30 | I31: 115.4 | J31: 0.01674008811
D32: 2019 | E32: 12 | F32: 2019-12-31 | I32: 116.2 | J32: 0.01840490798
D33: =YEAR(F33) -> 2020 | E33: =MONTH(F33) -> 3 | F33: 2020-03-31 | I33: 116.6 | J33: 0.02191060473
D34: 2020 | E34: 6 | F34: 2020-06-30 | I34: 114.4 | J34: -0.003484320557
D35: 2020 | E35: 9 | F35: 2020-09-30 | I35: 116.2 | J35: 0.006932409012
D36: 2020 | E36: 12 | F36: 2020-12-31 | I36: 117.2 | J36: 0.008605851979
D37: 2021 | E37: 3 | F37: 2021-03-31 | I37: 117.9 | J37: 0.01114922813
D38: 2021 | E38: 6 | F38: 2021-06-30 | I38: 118.8 | J38: 0.03846153846
D39: 2021 | E39: 9 | F39: 2021-09-30 | I39: 119.7 | J39: 0.03012048193
D40: 2021 | E40: 12 | F40: 2021-12-31 | I40: 121.3 | J40: 0.03498293515
D41: 2022 | E41: 3 | F41: 2022-03-31 | I41: 123.9 | J41: 0.05089058524
D42: 2022 | E42: 6 | F42: 2022-06-30 | I42: 126.1 | J42: 0.06144781145
D43: 2022 | E43: 9 | F43: 2022-09-30 | I43: 128.4 | J43: 0.07268170426
D44: 2022 | E44: 12 | F44: 2022-12-31 | I44: 130.8 | J44: 0.07831821929
D45: 2023 | E45: 3 | F45: 2023-03-31 | I45: 132.6 | J45: 0.07021791768
D46: 2023 | E46: 6 | F46: 2023-06-30 | I46: 133.7 | J46: 0.06026962728
D47: 2023 | E47: 9 | F47: 2023-09-30 | I47: 135.3 | J47: 0.05373831776
D48: 2023 | E48: 12 | F48: 2023-12-31 | I48: 136.1 | J48: 0.04051987768
D49: 2024 | E49: 3 | F49: 2024-03-31 | I49: 137.4 | J49: 0.03619909502
D50: 2024 | E50: 6 | F50: 2024-06-30 | I50: 138.8 | J50: 0.03814510097
D51: 2024 | E51: 9 | F51: 2024-09-30 | I51: 139.1 | J51: 0.0280857354
D52: 2024 | E52: 12 | F52: 2024-12-31 | I52: 139.4 | J52: 0.0242468773
D53: 2025 | E53: 3 | F53: 2025-03-31 | I53: 140.7 | J53: 0.02401746725
D54: 2025 | E54: 6 | F54: 2025-06-30 | I54: 141.7 | J54: 0.02089337176
D55: 2025 | E55: 9 | F55: 2025-09-30 | I55: 143.6 | J55: 0.03235082674
D56: 2025 | E56: 12 | F56: 2025-12-31 | J56: 0
D57: 2026 | E57: 3 | F57: 2026-03-31 | J57: 0
D58: 2026 | E58: 6 | F58: 2026-06-30 | J58: 0
D59: 2026 | E59: 9 | F59: 2026-09-30 | J59: 0
D60: 2026 | E60: 12 | F60: 2026-12-31 | J60: 0
D61: 2027 | E61: 3 | F61: 2027-03-31 | J61: 0
D62: 2027 | E62: 6 | F62: 2027-06-30 | J62: 0
D63: 2027 | E63: 9 | F63: 2027-09-30 | J63: 0
D64: 2027 | E64: 12 | F64: 2027-12-31 | J64: 0
D65: 2028 | E65: 3 | F65: 2028-03-31 | J65: 0
D66: 2028 | E66: 6 | F66: 2028-06-30 | J66: 0
D67: 2028 | E67: 9 | F67: 2028-09-30 | J67: 0
D68: 2028 | E68: 12 | F68: 2028-12-31 | J68: 0
D69: 2029 | E69: 3 | F69: 2029-03-31 | J69: 0
D70: 2029 | E70: 6 | F70: 2029-06-30 | J70: 0
D71: 2029 | E71: 9 | F71: 2029-09-30 | J71: 0
D72: 2029 | E72: 12 | F72: 2029-12-31 | J72: 0
D73: 2030 | E73: 3 | F73: 2030-03-31 | J73: 0
B75: End

Sheet Input| Prices
B1: ='Input|General'!B1&" v"&'Input|General'!$D$2 -> AER Metering Opex & Capex Forecasting Model v1.08
B2: =MID(CELL("filename",A1),FIND("]",CELL("filename",A1))+1,255) -> Input| Prices | H2: Key: | I2: Input | J2: External Link | L2: Internal Link | N2: JEN - RP | P2: AER Addition
A4: =IF(SUM(A6:A68)<>0,1,0) -> 0
D6: 6. Inflation table setup
D8: First year of forecast regulatory control period | J8: =FPFirstYear -> 2026-27
D9: Year End | J9: ='Input|General'!J14 -> 2000-06-01
D10: Notation Adjustment | J10: =IF(MID(PPFirstYear,5,1)="",0,1) -> 1
D12: =LEFT(D6,1)+1&". Forecast CPI, Real Labour/Non-Labour Price Growth" -> 7. Forecast CPI, Real Labour/Non-Labour Price Growth
B14: Year Series | M14: Forecast RP
D15: Dynamic Notation | I15: =(LEFT(J15,4)-1&IF(MID(J15,5,1)="","","-"&TEXT(MOD(MID(J15,6,2)-1,100),"00"))) -> 2022-23 | J15: =(LEFT(K15,4)-1&IF(MID(K15,5,1)="","","-"&TEXT(MOD(MID(K15,6,2)-1,100),"00"))) -> 2023-24 | K15: =(LEFT(L15,4)-1&IF(MID(L15,5,1)="","","-"&TEXT(MOD(MID(L15,6,2)-1,100),"00"))) -> 2024-25 | L15: =(LEFT(M15,4)-1&IF(MID(M15,5,1)="","","-"&TEXT(MOD(MID(M15,6,2)-1,100),"00"))) -> 2025-26 | M15: =FPFirstYear -> 2026-27 | N15: =(LEFT(M15,4)+1&IF(MID(M15,5,1)="","","-"&TEXT(MOD(MID(M15,6,2)+1,100),"00"))) -> 2027-28 | O15: =(LEFT(N15,4)+1&IF(MID(N15,5,1)="","","-"&TEXT(MOD(MID(N15,6,2)+1,100),"00"))) -> 2028-29 | P15: =(LEFT(O15,4)+1&IF(MID(O15,5,1)="","","-"&TEXT(MOD(MID(O15,6,2)+1,100),"00"))) -> 2029-30 | Q15: =(LEFT(P15,4)+1&IF(MID(P15,5,1)="","","-"&TEXT(MOD(MID(P15,6,2)+1,100),"00"))) -> 2030-31
D16: End Year Notation | I16: =(LEFT(I$15,4)+$J$10)/1 -> 2023 | J16: 2024 | K16: 2025 | L16: 2026 | M16: 2027 | N16: 2028 | O16: 2029 | P16: 2030 | Q16: 2031
B19: CPI | M19: Forecast RP
D20: Forecast Inflation - 6 months lagged | G20: YE Index | H20: Source | I20: =I$15 -> 2022-23 | J20: =J$15 -> 2023-24 | K20: 2024-25 | L20: 2025-26 | M20: 2026-27 | N20: 2027-28 | O20: 2028-29 | P20: 2029-30 | Q20: 2030-31
D21: CPI year on year change (NSP Forecast) | G21: =(EDATE(Basis_Ptrm,-6)) -> 2025-12-01 | H21: JEN | L21: =(100.32/96.81)-1 -> 0.03625658506 | M21: 0.02619899211
D22: CPI year on year change (ABS Data) | G22: =(EDATE(Basis_Ptrm,-6)) -> 2025-12-01 | I22: =IF(I16<=MAX(Table4[Year]),INDEX('Input| Historical Inflation'!$J$10:$J$72, MATCH(1,('Input| Historical Inflation'!$E$10:$E$72=(IF(MONTH($J$9)=6,12,6)))* ('Input| Historical Inflation'!$D$10:$D$72=I$16+IF(MONTH($J$9)=6,-1,0)),0)), 0) -> 0.07831821929 | J22: =IF(J16<=MAX(Table4[Year]),INDEX('Input| Historical Inflation'!$J$10:$J$72, MATCH(1,('Input| Historical Inflation'!$E$10:$E$72=(IF(MONTH($J$9)=6,12,6)))* ('Input| Historical Inflation'!$D$10:$D$72=J$16+IF(MONTH($J$9)=6,-1,0)),0)), 0) -> 0.04051987768 | K22: =IF(K16<=MAX(Table4[Year]),INDEX('Input| Historical Inflation'!$J$10:$J$72, MATCH(1,('Input| Historical Inflation'!$E$10:$E$72=(IF(MONTH($J$9)=6,12,6)))* ('Input| Historical Inflation'!$D$10:$D$72=K$16+IF(MONTH($J$9)=6,-1,0)),0)), 0) -> 0.0242468773 | L22: =IF(L16<=MAX(Table4[Year]),INDEX('Input| Historical Inflation'!$J$10:$J$72, MATCH(1,('Input| Historical Inflation'!$E$10:$E$72=(IF(MONTH($J$9)=6,12,6)))* ('Input| Historical Inflation'!$D$10:$D$72=L$16+IF(MONTH($J$9)=6,-1,0)),0)), 0) -> 0 | M22: =IF(M16<=MAX(Table4[Year]),INDEX('Input| Historical Inflation'!$J$10:$J$72, MATCH(1,('Input| Historical Inflation'!$E$10:$E$72=(IF(MONTH($J$9)=6,12,6)))* ('Input| Historical Inflation'!$D$10:$D$72=M$16+IF(MONTH($J$9)=6,-1,0)),0)), 0) -> 0 | N22: =IF(N16<=MAX(Table4[Year]),INDEX('Input| Historical Inflation'!$J$10:$J$72, MATCH(1,('Input| Historical Inflation'!$E$10:$E$72=(IF(MONTH($J$9)=6,12,6)))* ('Input| Historical Inflation'!$D$10:$D$72=N$16+IF(MONTH($J$9)=6,-1,0)),0)), 0) -> 0 | O22: =IF(O16<=MAX(Table4[Year]),INDEX('Input| Historical Inflation'!$J$10:$J$72, MATCH(1,('Input| Historical Inflation'!$E$10:$E$72=(IF(MONTH($J$9)=6,12,6)))* ('Input| Historical Inflation'!$D$10:$D$72=O$16+IF(MONTH($J$9)=6,-1,0)),0)), 0) -> 0 | P22: =IF(P16<=MAX(Table4[Year]),INDEX('Input| Historical Inflation'!$J$10:$J$72, MATCH(1,('Input| Historical Inflation'!$E$10:$E$72=(IF(MONTH($J$9)=6,12,6)))* ('Input| Historical Inflation'!$D$10:$D$72=P$16+IF(MONTH($J$9)=6,-1,0)),0)), 0) -> 0 | Q22: =IF(Q16<=MAX(Table4[Year]),INDEX('Input| Historical Inflation'!$J$10:$J$72, MATCH(1,('Input| Historical Inflation'!$E$10:$E$72=(IF(MONTH($J$9)=6,12,6)))* ('Input| Historical Inflation'!$D$10:$D$72=Q$16+IF(MONTH($J$9)=6,-1,0)),0)), 0) -> 0
A23: =IF(PRODUCT(1,$I$23:$Q$23<>0),0,1) -> 0 | D23: CPI Calculated YoY change (ABS data where available) | H23: Calculated | I23: =IF(I$22>0,I$22,I$21) -> 0.07831821929 | J23: =IF(J$22>0,J$22,J$21) -> 0.04051987768 | K23: =IF(K$22>0,K$22,K$21) -> 0.0242468773 | L23: =IF(L$22>0,L$22,L$21) -> 0.03625658506 | M23: =IF(M$22>0,M$22,M$21) -> 0.02619899211 | N23: =M23 -> 0.02619899211 | O23: =N23 -> 0.02619899211 | P23: =O23 -> 0.02619899211 | Q23: =P23 -> 0.02619899211
D26: Cumulative Inflation - 6 months lagged | G26: Cash Flow Timing | H26: Source | I26: =I$15 -> 2022-23 | J26: =J$15 -> 2023-24 | K26: 2024-25 | L26: 2025-26 | M26: 2026-27 | N26: 2027-28 | O26: 2028-29 | P26: 2029-30 | Q26: 2030-31
D27: Cumulative Inflation Index (Lagged) | G27: End Year | H27: Calculated | I27: 1 | J27: =I27*(1+J23) -> 1.040519878 | K27: =J27*(1+K23) -> 1.065749235 | L27: 1.104389663 | M27: 1.133323559 | N27: 1.163015494 | O27: 1.193485328 | P27: 1.224753441 | Q27: 1.256840747
D28: Cumulative Inflation Index (Lagged - Mid Year Input) | G28: Mid Year | H28: Calculated | I28: 1 | J28: =I27*((1+J23)^0.5) -> 1.020058762 | K28: =J27*((1+K23)^0.5) -> 1.053059003 | L28: 1.084897433 | M28: 1.118763078 | N28: 1.148073543 | O28: 1.178151912 | P28: 1.209018305 | Q28: 1.240693366
D31: CPI - Basis Conversion Indexes | E31: Basis In - YE | F31: Basis Out - YE | G31: Note | H31: Source | I31: =I$15 -> 2022-23 | J31: =J$15 -> 2023-24 | K31: 2024-25 | L31: 2025-26 | M31: 2026-27 | N31: 2027-28 | O31: 2028-29 | P31: 2029-30 | Q31: 2030-31
D32: Opex Hist > Opex Forecast | E32: =Basis_OpexHistEY -> nominal | F32: =Basis_OpexForecastEY -> 2026 | G32: Lagged | H32: Calculated | J32: =IF($E32="nominal", (1+J$23)^0.5*INDEX($J$27:$Q$27,MATCH($F32,$J$16:$Q$16))/J$27, INDEX($J$27:$Q$27,MATCH($F32,$J$16:$Q$16))/INDEX($J$27:$Q$27,MATCH($E32,$J$16:$Q$16))) -> 1.082672592 | K32: 1.048744334 | L32: 1.017966888 | M32: 0.9871524054 | N32: 0.9619502777 | O32: 0.9373915635 | P32: 0.9134598365 | Q32: 0.8901390895
D33: Opex Forecast -> Output | E33: =Basis_OpexForecastEY -> 2026 | F33: =Basis_PtrmEY -> 2026 | G33: Lagged | H33: Calculated | J33: =IF($E33="nominal", (1+J23)^0.5*INDEX($J$27:$Q$27,MATCH($F33,$J$16:$Q$16))/J$27, INDEX($J$27:$Q$27,MATCH($F33,$J$16:$Q$16))/INDEX($J$27:$Q$27,MATCH($E33,$J$16:$Q$16))) -> 1 | K33: 1 | L33: 1 | M33: 1 | N33: 1 | O33: 1 | P33: 1 | Q33: 1
D34: Capex -> Output | E34: =Basis_CapexEY -> 2024 | F34: =Basis_PtrmEY -> 2026 | G34: ='Input|General'!J33&" Inputs" -> End Year Inputs | H34: Calculated | J34: =IF($E34="nominal", (1+J$23)^0.5*INDEX($J$27:$Q$27,MATCH($F34,$J$16:$Q$16))/J$27, INDEX($J$27:$Q$27,MATCH($F34,$J$16:$Q$16))/INDEX(IF('Input|General'!$J$33="Mid Year",$J$28:$Q$28,$J$27:$Q$27),MATCH($E34,$J$16:$Q$16))) -> 1.061382571 | K34: =IF($E34="nominal", (1+K$23)^0.5*INDEX($J$27:$Q$27,MATCH($F34,$J$16:$Q$16))/K$27, INDEX($J$27:$Q$27,MATCH($F34,$J$16:$Q$16))/INDEX(IF('Input|General'!$J$33="Mid Year",$J$28:$Q$28,$J$27:$Q$27),MATCH($E34,$J$16:$Q$16))) -> 1.061382571 | L34: =IF($E34="nominal", (1+L$23)^0.5*INDEX($J$27:$Q$27,MATCH($F34,$J$16:$Q$16))/L$27, INDEX($J$27:$Q$27,MATCH($F34,$J$16:$Q$16))/INDEX(IF('Input|General'!$J$33="Mid Year",$J$28:$Q$28,$J$27:$Q$27),MATCH($E34,$J$16:$Q$16))) -> 1.061382571 | M34: =IF($E34="nominal", (1+M$23)^0.5*INDEX($J$27:$Q$27,MATCH($F34,$J$16:$Q$16))/M$27, INDEX($J$27:$Q$27,MATCH($F34,$J$16:$Q$16))/INDEX(IF('Input|General'!$J$33="Mid Year",$J$28:$Q$28,$J$27:$Q$27),MATCH($E34,$J$16:$Q$16))) -> 1.061382571 | N34: =IF($E34="nominal", (1+N$23)^0.5*INDEX($J$27:$Q$27,MATCH($F34,$J$16:$Q$16))/N$27, INDEX($J$27:$Q$27,MATCH($F34,$J$16:$Q$16))/INDEX(IF('Input|General'!$J$33="Mid Year",$J$28:$Q$28,$J$27:$Q$27),MATCH($E34,$J$16:$Q$16))) -> 1.061382571 | O34: =IF($E34="nominal", (1+O$23)^0.5*INDEX($J$27:$Q$27,MATCH($F34,$J$16:$Q$16))/O$27, INDEX($J$27:$Q$27,MATCH($F34,$J$16:$Q$16))/INDEX(IF('Input|General'!$J$33="Mid Year",$J$28:$Q$28,$J$27:$Q$27),MATCH($E34,$J$16:$Q$16))) -> 1.061382571 | P34: =IF($E34="nominal", (1+P$23)^0.5*INDEX($J$27:$Q$27,MATCH($F34,$J$16:$Q$16))/P$27, INDEX($J$27:$Q$27,MATCH($F34,$J$16:$Q$16))/INDEX(IF('Input|General'!$J$33="Mid Year",$J$28:$Q$28,$J$27:$Q$27),MATCH($E34,$J$16:$Q$16))) -> 1.061382571 | Q34: =IF($E34="nominal", (1+Q$23)^0.5*INDEX($J$27:$Q$27,MATCH($F34,$J$16:$Q$16))/Q$27, INDEX($J$27:$Q$27,MATCH($F34,$J$16:$Q$16))/INDEX(IF('Input|General'!$J$33="Mid Year",$J$28:$Q$28,$J$27:$Q$27),MATCH($E34,$J$16:$Q$16))) -> 1.061382571
D35: PTRM -> RFM | E35: =Basis_PtrmEY -> 2026 | F35: =Basis_RfmEY -> nominal | H35: Calculated | J35: =J27/(INDEX($J$27:$Q$27,MATCH(YEAR(Basis_Ptrm),$J$16:$Q$16,0))) -> 0.9421673457 | K35: 0.9650119617 | L35: 1 | M35: 1.026198992 | N35: 1.053084371 | O35: 1.080674121 | P35: 1.108986693 | Q35: 1.138041027
B37: Opex Price Change
D38: Forecast Price Change Component | H38: Source | I38: Weights | J38: =J$15 -> 2023-24 | K38: 2024-25 | L38: 2025-26 | M38: 2026-27 | N38: 2027-28 | O38: 2028-29 | P38: 2029-30 | Q38: 2030-31
D39: WPI - Deloitte Access Economics | H39: DAE | I39: 0.5 | K39: 0.01400021066 | L39: -0.004353547238 | M39: 0.003261106834 | N39: 0.007235595776 | O39: 0.008498763253 | P39: 0.008721106375 | Q39: 0.009141037576
D40: WPI - BIS Oxford; BIS Oxford | H40: BIS Oxford | I40: 0.5 | K40: 0.015 | L40: 0.009 | M40: 0.009567382707 | N40: 0.009911294966 | O40: 0.01155443281 | P40: 0.01387115665 | Q40: 0.01383049475
D41: Superannuation guarantee increases | I41: 1 | K41: 0.005 | L41: 0.005 | M41: 0 | N41: 0 | O41: 0 | P41: 0 | Q41: 0
D43: Forecast Weighted Real Price Change | H43: Calculated | K43: =SUMPRODUCT(K$39:K$42,$I$39:$I$42) -> 0.01950010533 | L43: =SUMPRODUCT(L$39:L$42,$I$39:$I$42) -> 0.007323226381 | M43: 0.00641424477 | N43: 0.008573445371 | O43: 0.01002659803 | P43: 0.01129613151 | Q43: 0.01148576616
A44: =I44 -> 0 | I44: =IF(SUM(I41,I42)=1,0,1) -> 0
B48: Capex Price Change
D49: Forecast Price Change Component | H49: Source | I49: Weights | J49: =J$15 -> 2023-24 | K49: 2024-25 | L49: 2025-26 | M49: 2026-27 | N49: 2027-28 | O49: 2028-29 | P49: 2029-30 | Q49: 2030-31
D50: Real Labour Price Change - Weighted average of Opex Price Change | H50: Calculated | I50: Applied Directly | K50: =K43 -> 0.01950010533 | L50: =L43 -> 0.007323226381 | M50: 0.00641424477 | N50: 0.008573445371 | O50: 0.01002659803 | P50: 0.01129613151 | Q50: 0.01148576616
D51: Real Non-Labour Price Change | I51: Applied Directly | K51: 0 | L51: 0 | M51: 0 | N51: 0 | O51: 0 | P51: 0 | Q51: 0
C53: Labour Price Change
D54: Internal Real Price index | J54: =1 -> 1 | K54: =IFERROR(J54*(1+K50),"") -> 1.019500105 | L54: =IFERROR(K54*(1+L50),"") -> 1.026966135 | M54: 1.033553348 | N54: 1.042414461 | O54: 1.052866332 | P54: 1.064759648 | Q54: 1.076989228
D55: Real Price index to input year | J55: =J$54/INDEX($J$54:$Q$54,MATCH(Basis_CapexEY,$J$16:$Q$16)) -> 1 | K55: 1.019500105 | L55: 1.026966135 | M55: 1.033553348 | N55: 1.042414461 | O55: 1.052866332 | P55: 1.064759648 | Q55: 1.076989228
C57: Non-Labour Price Change
D58: Internal Real Price index | J58: =1 -> 1 | K58: =IFERROR(J58*(1+K51),"") -> 1 | L58: =IFERROR(K58*(1+L51),"") -> 1 | M58: 1 | N58: 1 | O58: 1 | P58: 1 | Q58: 1
D59: Real Price index to input year | J59: =J$58/INDEX($J$58:$Q$58,MATCH(Basis_CapexEY,$J$16:$Q$16)) -> 1 | K59: 1 | L59: 1 | M59: 1 | N59: 1 | O59: 1 | P59: 1 | Q59: 1

Sheet Input| Historical Capex
B1: ='Input|General'!B1&" v"&'Input|General'!$D$2 -> AER Metering Opex & Capex Forecasting Model v1.08
B2: =MID(CELL("filename",A1),FIND("]",CELL("filename",A1))+1,255) -> Input| Historical Capex | F2: Jemena added sheet | H2: Key: | I2: Input | J2: External Link | L2: Internal Link | N2: JEN - RP | P2: AER Addition
B5: Historical Gross Capex (including Type 1 Contributions, excluding Type 2 Contributions) - by service
B7: Summary - by service | C7: Source | D7: Unit | E7: Basis | F7: Timing | H7: CY20 | I7: HY21 | J7: 2021-22 | K7: 2022-23 | L7: 2023-24 | M7: 2024-25 | N7: 2025-26
B9: ACS Metering | C9: JEN | D9: $dollars | E9: Nominal | F9: mid-year | H9: 2514853.64 | I9: 1655410.24 | J9: 4789956.7 | K9: 3375277.47 | L9: 3711051.57 | M9: 1611132.32
B11: Historical Gross Capex (including Type 1 Contributions, excluding Type 2 Contributions) - by RAB asset class
B13: Summary - by RAB asset class | C13: Source | D13: Unit | E13: Basis | F13: Timing | H13: =+H$7 -> CY20 | I13: =+I$7 -> HY21 | J13: 2021-22 | K13: 2022-23 | L13: 2023-24 | M13: 2024-25 | N13: 2025-26
B15: Remotely read interval meters & transformers | C15: JEN | D15: $dollars | E15: Nominal | F15: mid-year | H15: 2290791.67 | I15: 0 | J15: 2375708.12 | K15: 2552807.38 | L15: 2496941.14 | M15: 2357506.77
B16: Communications | C16: JEN | D16: $dollars | E16: Nominal | F16: mid-year | H16: 162317.43 | I16: 1213424.52 | J16: 1109575.2 | K16: 463344.29 | L16: 1214110.43 | M16: -746374.45
B17: IT | C17: JEN | D17: $dollars | E17: Nominal | F17: mid-year | H17: 61744.54 | I17: 441985.72 | J17: 611193.38 | K17: 359125.8 | L17: 0 | M17: 0
B18: Inhouse Software (SL Tax Depn) | C18: JEN | D18: $dollars | E18: Nominal | F18: mid-year | H18: 0 | I18: 0 | J18: 693480 | K18: 0 | L18: 0 | M18: 0
B19: Total | C19: JEN | D19: $dollars | E19: Nominal | F19: mid-year | H19: =SUM(H15:H18) -> 2514853.64 | I19: 1655410.24 | J19: 4789956.7 | K19: 3375277.47 | L19: 3711051.57 | M19: 1611132.32 | N19: 0
A21: =+IF(SUM(H21:N21)=0,0,1) -> 0 | B21: Check | H21: =IF(ROUND(H19-H$9,3)=0,0,1) -> 0 | I21: =IF(ROUND(I19-I$9,3)=0,0,1) -> 0 | J21: 0 | K21: 0 | L21: 0 | M21: 0 | N21: 0
B23: Immediately expensed capex for tax purposes
B25: Immediately expensed capex for tax purposes | C25: Source | D25: Unit | E25: Basis | F25: Timing | H25: =+H$7 -> CY20 | I25: =+I$7 -> HY21 | J25: 2021-22 | K25: 2022-23 | L25: 2023-24 | M25: 2024-25 | N25: 2025-26
B27: =B15 -> Remotely read interval meters & transformers | C27: JEN | D27: $dollars | E27: Nominal | F27: mid-year | H27: 0 | I27: 1187456.26 | J27: 0 | K27: 1897801.49 | L27: 0 | M27: 0
B28: =B16 -> Communications | C28: JEN | D28: $dollars | E28: Nominal | F28: mid-year | H28: 0 | I28: 0 | J28: 3414071.97 | K28: 461783.09 | L28: 0 | M28: 0
B29: =B17 -> IT | C29: JEN | D29: $dollars | E29: Nominal | F29: mid-year | H29: 0 | I29: 0 | J29: 0 | K29: 0 | L29: 0 | M29: 0
B30: =B18 -> Inhouse Software (SL Tax Depn) | C30: JEN | D30: $dollars | E30: Nominal | F30: mid-year | H30: 0 | I30: 0 | J30: 0 | K30: 0 | L30: 0 | M30: 0
B31: Total | C31: JEN | D31: $dollars | E31: Nominal | F31: mid-year | H31: =SUM(H27:H30) -> 0 | I31: 1187456.26 | J31: 3414071.97 | K31: 2359584.58 | L31: 0 | M31: 0 | N31: 0
B33: Historical Capital Contributions (Type 1 and Type 2 Contributions) - by service
B35: Summary - by service | C35: Source | D35: Unit | E35: Basis | F35: Timing | H35: =+H$7 -> CY20 | I35: =+I$7 -> HY21 | J35: 2021-22 | K35: 2022-23 | L35: 2023-24 | M35: 2024-25 | N35: 2025-26
B37: ACS Metering | C37: JEN | D37: $dollars | E37: Nominal | F37: mid-year | H37: 0 | I37: 0 | J37: 0 | K37: 0 | L37: 0 | M37: 0
B39: Historical Cash Contributions (Type 1 Contributions) - by RAB asset class
B41: Summary - by RAB asset class | C41: Source | D41: Unit | E41: Basis | F41: Timing | H41: =+H$7 -> CY20 | I41: =+I$7 -> HY21 | J41: 2021-22 | K41: 2022-23 | L41: 2023-24 | M41: 2024-25 | N41: 2025-26
B43: =B15 -> Remotely read interval meters & transformers | C43: JEN | D43: $dollars | E43: Nominal | F43: mid-year | H43: 0 | I43: 0 | J43: 0 | K43: 0 | L43: 0 | M43: 0
B44: =B16 -> Communications | C44: JEN | D44: $dollars | E44: Nominal | F44: mid-year | H44: 0 | I44: 0 | J44: 0 | K44: 0 | L44: 0 | M44: 0
B45: =B17 -> IT | C45: JEN | D45: $dollars | E45: Nominal | F45: mid-year | H45: 0 | I45: 0 | J45: 0 | K45: 0 | L45: 0 | M45: 0
B46: =B18 -> Inhouse Software (SL Tax Depn) | C46: JEN | D46: $dollars | E46: Nominal | F46: mid-year | H46: 0 | I46: 0 | J46: 0 | K46: 0 | L46: 0 | M46: 0
B47: Total | C47: JEN | D47: $dollars | E47: Nominal | F47: mid-year | H47: =SUM(H43:H46) -> 0 | I47: 0 | J47: 0 | K47: 0 | L47: 0 | M47: 0 | N47: 0
A49: =+IF(SUM(H49:N49)=0,0,1) -> 0 | B49: Check | H49: =IF(ROUND(H47-H$37,3)=0,0,1) -> 0 | I49: =IF(ROUND(I47-I$37,3)=0,0,1) -> 0 | J49: 0 | K49: 0 | L49: 0 | M49: 0 | N49: 0
B51: Historical Asset Disposals - by service
B53: Summary - by service | C53: Source | D53: Unit | E53: Basis | F53: Timing | H53: =+H$7 -> CY20 | I53: =+I$7 -> HY21 | J53: 2021-22 | K53: 2022-23 | L53: 2023-24 | M53: 2024-25 | N53: 2025-26
B55: ACS Metering | C55: JEN | D55: $dollars | E55: Nominal | F55: mid-year | H55: 0 | I55: 0 | J55: 0 | K55: 0 | L55: 0 | M55: 0
B57: Historical Asset Disposals - by RAB asset class
B59: Summary - by RAB asset class | C59: Source | D59: Unit | E59: Basis | F59: Timing | H59: =+H$7 -> CY20 | I59: =+I$7 -> HY21 | J59: 2021-22 | K59: 2022-23 | L59: 2023-24 | M59: 2024-25 | N59: 2025-26
B61: =B15 -> Remotely read interval meters & transformers | C61: JEN | D61: $dollars | E61: Nominal | F61: mid-year | H61: 0 | I61: 0 | J61: 0 | K61: 0 | L61: 0 | M61: 0
B62: =B16 -> Communications | C62: JEN | D62: $dollars | E62: Nominal | F62: mid-year | H62: 0 | I62: 0 | J62: 0 | K62: 0 | L62: 0 | M62: 0
B63: =B17 -> IT | C63: JEN | D63: $dollars | E63: Nominal | F63: mid-year | H63: 0 | I63: 0 | J63: 0 | K63: 0 | L63: 0 | M63: 0
B64: =B18 -> Inhouse Software (SL Tax Depn) | C64: JEN | D64: $dollars | E64: Nominal | F64: mid-year | H64: 0 | I64: 0 | J64: 0 | K64: 0 | L64: 0 | M64: 0
B65: Total | C65: JEN | D65: $dollars | E65: Nominal | F65: mid-year | H65: =SUM(H61:H64) -> 0 | I65: 0 | J65: 0 | K65: 0 | L65: 0 | M65: 0 | N65: 0
A67: =+IF(SUM(H67:N67)=0,0,1) -> 0 | B67: Check | H67: =IF(ROUND(H65-H$55,3)=0,0,1) -> 0 | I67: 0 | J67: 0 | K67: 0 | L67: 0 | M67: 0 | N67: 0

Sheet Opex Specific >

Sheet Input | Meter-Opex BST
B1: ='Input|General'!B1&" v"&'Input|General'!$D$2 -> AER Metering Opex & Capex Forecasting Model v1.08
B2: =MID(CELL("filename",A1),FIND("]",CELL("filename",A1))+1,255) -> Input | Meter-Opex BST | H2: Key: | I2: Input | J2: External Link | L2: Internal Link | N2: JEN - RP | P2: AER Addition
N4: =IF(N5=Opex_BaseYear,"Base Year","") ->  | O4: =IF(O5=Opex_BaseYear,"Base Year","") ->  | P4: =IF(P5=Opex_BaseYear,"Base Year","") -> Base Year | Q4: =IF(Q5=Opex_BaseYear,"Base Year","") ->  | R4: Forecast RP
A5: =IF(SUM(A7:A47)<>0,1,0) -> 0 | J5: Value | L5: =IF(MONTH('Input|General'!$J$14)=6,LEFT(M5,4)-1&"-"&TEXT(MOD(MID(M5,6,2)-1,100),"00"),M5-1) -> 2020-21 | M5: =IF(MONTH('Input|General'!$J$14)=6,LEFT(N5,4)-1&"-"&TEXT(MOD(MID(N5,6,2)-1,100),"00"),N5-1) -> 2021-22 | N5: =IF(MONTH('Input|General'!$J$14)=6,LEFT(O5,4)-1&"-"&TEXT(MOD(MID(O5,6,2)-1,100),"00"),O5-1) -> 2022-23 | O5: =IF(MONTH('Input|General'!$J$14)=6,LEFT(P5,4)-1&"-"&TEXT(MOD(MID(P5,6,2)-1,100),"00"),P5-1) -> 2023-24 | P5: =IF(MONTH('Input|General'!$J$14)=6,LEFT(Q5,4)-1&"-"&TEXT(MOD(MID(Q5,6,2)-1,100),"00"),Q5-1) -> 2024-25 | Q5: =IF(MONTH('Input|General'!$J$14)=6,LEFT(R5,4)-1&"-"&TEXT(MOD(MID(R5,6,2)-1,100),"00"),R5-1) -> 2025-26 | R5: =FPFirstYear -> 2026-27 | S5: =IF(MONTH('Input|General'!$J$14)=6,LEFT(R5,4)+1&"-"&TEXT(MOD(MID(R5,6,2)+1,100),"00"),R5+1) -> 2027-28 | T5: =IF(MONTH('Input|General'!$J$14)=6,LEFT(S5,4)+1&"-"&TEXT(MOD(MID(S5,6,2)+1,100),"00"),S5+1) -> 2028-29 | U5: =IF(MONTH('Input|General'!$J$14)=6,LEFT(T5,4)+1&"-"&TEXT(MOD(MID(T5,6,2)+1,100),"00"),T5+1) -> 2029-30 | V5: =IF(MONTH('Input|General'!$J$14)=6,LEFT(U5,4)+1&"-"&TEXT(MOD(MID(U5,6,2)+1,100),"00"),U5+1) -> 2030-31
C7: Base
D8: Historical Opex
F9: Total opex | G9: $millions | H9: =Basis_OpexHist -> nominal | L9: 7.77747293 | M9: 7.90864542 | N9: 7.98450814 | O9: 10.33145137 | P9: 10.3614806 | W9: Actuals - Annual RIN for each year and/or reset RIN.
D11: Adjustments
G12: =$G$9 -> $millions | H12: =Basis_OpexHist -> nominal | L12: 0 | M12: 0 | N12: 0 | O12: 0 | P12: 0
G13: =$G$9 -> $millions | H13: =Basis_OpexHist -> nominal | L13: 0 | M13: 0 | N13: 0 | O13: 0 | P13: 0 | Q13: 0
G14: =$G$9 -> $millions | H14: =Basis_OpexHist -> nominal | L14: 0 | M14: 0 | N14: 0 | O14: 0 | P14: 0 | Q14: 0
G15: =$G$9 -> $millions | H15: =Basis_OpexHist -> nominal | Q15: 0
F17: Base Opex (After Adjustment) | G17: =$G$9 -> $millions | H17: =Basis_OpexHist -> nominal | O17: =IF(O$5=Opex_BaseYear,(SUM(O12:O15,O9)),"") ->  | P17: =IF(P$5=Opex_BaseYear,(SUM(P12:P15,P9)),"") -> 10.3614806 | Q17: =IF(Q$5=Opex_BaseYear,(SUM(Q12:Q15,Q9)),"") -> 
A18: =IF(SUM(N18:Q18)<>0,0,1) -> 0 | F18: Base Opex (After Adjustment) | G18: =$G$9 -> $millions | H18: =Basis_OpexForecast -> 2026-06-01 | O18: =IF(O$5=Opex_BaseYear,O17*'Input| Prices'!J$32,"") ->  | P18: =IF(P$5=Opex_BaseYear,P17*'Input| Prices'!K$32,"") -> 10.86654408 | Q18: =IF(Q$5=Opex_BaseYear,Q17*'Input| Prices'!L$32,"") -> 
C20: Step
D22: Step Changes & Specific Forecasts
F23: Step Changes - New meter inspection obligations | G23: =$G$9 -> $millions | H23: =Basis_OpexForecast -> 2026-06-01 | R23: 0 | S23: 0 | T23: 0 | U23: 0 | V23: 0
F24: Meter disposals | G24: =$G$9 -> $millions | H24: =Basis_OpexForecast -> 2026-06-01
F25: IT systems capacity enhancement | G25: =$G$9 -> $millions | H25: =Basis_OpexForecast -> 2026-06-01 | R25: 0 | T25: 0.03164922851 | U25: 0.03164922851 | V25: 0.03164922851
G26: =$G$9 -> $millions | H26: =Basis_OpexForecast -> 2026-06-01
C28: Trend
D30: Forecast output change
A31: =IF(MIN(O31:V31)>0,0,1) -> 0 | E31: Outputs | F31: Customer numbers (#) | G31: No. | O31: 383818 | P31: 389181.5 | Q31: 394056.6843 | R31: 398987.8611 | S31: 403938.5714 | T31: 408903.0206 | U31: 413867.8406 | V31: 418848.4729
E32: Outputs | G32: No.
E33: Outputs | G33: No.
E34: Outputs | G34: No.
A36: =IF(SUM(J36:J39)=1,0,1) -> 0 | E36: Weights | F36: =F31 -> Customer numbers (#) | G36: % | J36: 1
E37: Weights | F37: =F32 -> 0 | G37: %
E38: Weights | F38: =F33 -> 0 | G38: % | J38: 0
E39: Weights | F39: =F34 -> 0 | G39: % | J39: 0
D41: Forecast Real Price Change
E42: Forecast price change | F42: Forecast Weighted Real Price Change | G42: % | P42: ='Input| Prices'!K43 -> 0.01950010533 | Q42: ='Input| Prices'!L43 -> 0.007323226381 | R42: ='Input| Prices'!M43 -> 0.00641424477 | S42: ='Input| Prices'!N43 -> 0.008573445371 | T42: ='Input| Prices'!O43 -> 0.01002659803 | U42: ='Input| Prices'!P43 -> 0.01129613151 | V42: ='Input| Prices'!Q43 -> 0.01148576616
D44: Forecast Productivity change
E45: Economy of Scale | F45: Economies of Scale Factor | G45: % | J45: 1
E46: Productivity | F46: Partial Factor Productivity - Annual improvement | G46: % | P46: 0 | Q46: 0 | R46: 0 | S46: 0 | T46: 0 | U46: 0 | V46: 0

Sheet Calc | Opex
B1: ='Input|General'!B1&" v"&'Input|General'!$D$2 -> AER Metering Opex & Capex Forecasting Model v1.08
B2: =MID(CELL("filename",A1),FIND("]",CELL("filename",A1))+1,255) -> Calc | Opex | H2: Key: | I2: Input | J2: External Link | L2: Internal Link | N2: JEN - RP | P2: AER Addition
J4: Value | L4: =IF(MONTH('Input|General'!$J$14)=6,LEFT(M4,4)-1&"-"&TEXT(MOD(MID(M4,6,2)-1,100),"00"),M4-1) -> 2020-21 | M4: =IF(MONTH('Input|General'!$J$14)=6,LEFT(N4,4)-1&"-"&TEXT(MOD(MID(N4,6,2)-1,100),"00"),N4-1) -> 2021-22 | N4: =IF(MONTH('Input|General'!$J$14)=6,LEFT(O4,4)-1&"-"&TEXT(MOD(MID(O4,6,2)-1,100),"00"),O4-1) -> 2022-23 | O4: =IF(MONTH('Input|General'!$J$14)=6,LEFT(P4,4)-1&"-"&TEXT(MOD(MID(P4,6,2)-1,100),"00"),P4-1) -> 2023-24 | P4: =IF(MONTH('Input|General'!$J$14)=6,LEFT(Q4,4)-1&"-"&TEXT(MOD(MID(Q4,6,2)-1,100),"00"),Q4-1) -> 2024-25 | Q4: =IF(MONTH('Input|General'!$J$14)=6,LEFT(R4,4)-1&"-"&TEXT(MOD(MID(R4,6,2)-1,100),"00"),R4-1) -> 2025-26 | R4: =FPFirstYear -> 2026-27 | S4: =IF(MONTH('Input|General'!$J$14)=6,LEFT(R4,4)+1&"-"&TEXT(MOD(MID(R4,6,2)+1,100),"00"),R4+1) -> 2027-28 | T4: =IF(MONTH('Input|General'!$J$14)=6,LEFT(S4,4)+1&"-"&TEXT(MOD(MID(S4,6,2)+1,100),"00"),S4+1) -> 2028-29 | U4: =IF(MONTH('Input|General'!$J$14)=6,LEFT(T4,4)+1&"-"&TEXT(MOD(MID(T4,6,2)+1,100),"00"),T4+1) -> 2029-30 | V4: =IF(MONTH('Input|General'!$J$14)=6,LEFT(U4,4)+1&"-"&TEXT(MOD(MID(U4,6,2)+1,100),"00"),U4+1) -> 2030-31
B6: Calcs
J8: Value | L8: =L4 -> 2020-21 | M8: =M4 -> 2021-22 | N8: 2022-23 | O8: 2023-24 | P8: 2024-25 | Q8: 2025-26 | R8: 2026-27 | S8: 2027-28 | T8: 2028-29 | U8: 2029-30 | V8: 2030-31
C10: Base
D12: Adjusted Base | F12: Total opex | G12: ='Input | Meter-Opex BST'!$G$9 -> $millions | H12: =Basis_OpexForecast -> 2026-06-01 | O12: ='Input | Meter-Opex BST'!O18 ->  | P12: ='Input | Meter-Opex BST'!P18 -> 10.86654408 | Q12: ='Input | Meter-Opex BST'!Q18 -> 
C14: Steps
D17: Steps (As Input) | F17: Total Steps | G17: ='Input | Meter-Opex BST'!$G$9 -> $millions | H17: =Basis_OpexForecast -> 2026-06-01 | P17: =SUM('Input | Meter-Opex BST'!P$23:P$26) -> 0 | Q17: =SUM('Input | Meter-Opex BST'!Q$23:Q$26) -> 0 | R17: =SUM('Input | Meter-Opex BST'!R$23:R$26) -> 0 | S17: =SUM('Input | Meter-Opex BST'!S$23:S$26) -> 0 | T17: =SUM('Input | Meter-Opex BST'!T$23:T$26) -> 0.03164922851 | U17: =SUM('Input | Meter-Opex BST'!U$23:U$26) -> 0.03164922851 | V17: =SUM('Input | Meter-Opex BST'!V$23:V$26) -> 0.03164922851
C20: Trend
D23: Forecast output change
E24: Weighted | F24: ='Input | Meter-Opex BST'!F31 -> Customer numbers (#) | G24: % | P24: =IFERROR(LN('Input | Meter-Opex BST'!P31/'Input | Meter-Opex BST'!O31)*'Input | Meter-Opex BST'!$J36,"") -> 0.01387733388 | Q24: =IFERROR(LN('Input | Meter-Opex BST'!Q31/'Input | Meter-Opex BST'!P31)*'Input | Meter-Opex BST'!$J36,"") -> 0.01244895203 | R24: =IFERROR(LN('Input | Meter-Opex BST'!R31/'Input | Meter-Opex BST'!Q31)*'Input | Meter-Opex BST'!$J36,"") -> 0.01243622532 | S24: =IFERROR(LN('Input | Meter-Opex BST'!S31/'Input | Meter-Opex BST'!R31)*'Input | Meter-Opex BST'!$J36,"") -> 0.01233182227 | T24: =IFERROR(LN('Input | Meter-Opex BST'!T31/'Input | Meter-Opex BST'!S31)*'Input | Meter-Opex BST'!$J36,"") -> 0.01221519897 | U24: =IFERROR(LN('Input | Meter-Opex BST'!U31/'Input | Meter-Opex BST'!T31)*'Input | Meter-Opex BST'!$J36,"") -> 0.0120686828 | V24: =IFERROR(LN('Input | Meter-Opex BST'!V31/'Input | Meter-Opex BST'!U31)*'Input | Meter-Opex BST'!$J36,"") -> 0.01196251738
E25: Weighted | F25: ='Input | Meter-Opex BST'!F32 -> 0 | G25: % | P25: =IFERROR(LN('Input | Meter-Opex BST'!P32/'Input | Meter-Opex BST'!O32)*'Input | Meter-Opex BST'!$J37,"") ->  | Q25: =IFERROR(LN('Input | Meter-Opex BST'!Q32/'Input | Meter-Opex BST'!P32)*'Input | Meter-Opex BST'!$J37,"") ->  | R25: =IFERROR(LN('Input | Meter-Opex BST'!R32/'Input | Meter-Opex BST'!Q32)*'Input | Meter-Opex BST'!$J37,"") ->  | S25: =IFERROR(LN('Input | Meter-Opex BST'!S32/'Input | Meter-Opex BST'!R32)*'Input | Meter-Opex BST'!$J37,"") ->  | T25: =IFERROR(LN('Input | Meter-Opex BST'!T32/'Input | Meter-Opex BST'!S32)*'Input | Meter-Opex BST'!$J37,"") ->  | U25: =IFERROR(LN('Input | Meter-Opex BST'!U32/'Input | Meter-Opex BST'!T32)*'Input | Meter-Opex BST'!$J37,"") ->  | V25: =IFERROR(LN('Input | Meter-Opex BST'!V32/'Input | Meter-Opex BST'!U32)*'Input | Meter-Opex BST'!$J37,"") -> 
E26: Weighted | F26: ='Input | Meter-Opex BST'!F33 -> 0 | G26: % | P26: =IFERROR(LN('Input | Meter-Opex BST'!P33/'Input | Meter-Opex BST'!O33)*'Input | Meter-Opex BST'!$J38,"") ->  | Q26: =IFERROR(LN('Input | Meter-Opex BST'!Q33/'Input | Meter-Opex BST'!P33)*'Input | Meter-Opex BST'!$J38,"") ->  | R26: =IFERROR(LN('Input | Meter-Opex BST'!R33/'Input | Meter-Opex BST'!Q33)*'Input | Meter-Opex BST'!$J38,"") ->  | S26: =IFERROR(LN('Input | Meter-Opex BST'!S33/'Input | Meter-Opex BST'!R33)*'Input | Meter-Opex BST'!$J38,"") ->  | T26: =IFERROR(LN('Input | Meter-Opex BST'!T33/'Input | Meter-Opex BST'!S33)*'Input | Meter-Opex BST'!$J38,"") ->  | U26: =IFERROR(LN('Input | Meter-Opex BST'!U33/'Input | Meter-Opex BST'!T33)*'Input | Meter-Opex BST'!$J38,"") ->  | V26: =IFERROR(LN('Input | Meter-Opex BST'!V33/'Input | Meter-Opex BST'!U33)*'Input | Meter-Opex BST'!$J38,"") -> 
E27: Weighted | F27: ='Input | Meter-Opex BST'!F34 -> 0 | G27: % | P27: =IFERROR(LN('Input | Meter-Opex BST'!P34/'Input | Meter-Opex BST'!O34)*'Input | Meter-Opex BST'!$J39,"") ->  | Q27: =IFERROR(LN('Input | Meter-Opex BST'!Q34/'Input | Meter-Opex BST'!P34)*'Input | Meter-Opex BST'!$J39,"") ->  | R27: =IFERROR(LN('Input | Meter-Opex BST'!R34/'Input | Meter-Opex BST'!Q34)*'Input | Meter-Opex BST'!$J39,"") ->  | S27: =IFERROR(LN('Input | Meter-Opex BST'!S34/'Input | Meter-Opex BST'!R34)*'Input | Meter-Opex BST'!$J39,"") ->  | T27: =IFERROR(LN('Input | Meter-Opex BST'!T34/'Input | Meter-Opex BST'!S34)*'Input | Meter-Opex BST'!$J39,"") ->  | U27: =IFERROR(LN('Input | Meter-Opex BST'!U34/'Input | Meter-Opex BST'!T34)*'Input | Meter-Opex BST'!$J39,"") ->  | V27: =IFERROR(LN('Input | Meter-Opex BST'!V34/'Input | Meter-Opex BST'!U34)*'Input | Meter-Opex BST'!$J39,"") -> 
E28: Weighted | F28: Average forecast output change | G28: % | P28: =SUM(P24:P27) -> 0.01387733388 | Q28: 0.01244895203 | R28: 0.01243622532 | S28: 0.01233182227 | T28: 0.01221519897 | U28: 0.0120686828 | V28: 0.01196251738
D31: Forecast Real Price Change
F32: ='Input | Meter-Opex BST'!F42 -> Forecast Weighted Real Price Change | G32: % | P32: ='Input | Meter-Opex BST'!P42 -> 0.01950010533 | Q32: ='Input | Meter-Opex BST'!Q42 -> 0.007323226381 | R32: ='Input | Meter-Opex BST'!R42 -> 0.00641424477 | S32: ='Input | Meter-Opex BST'!S42 -> 0.008573445371 | T32: ='Input | Meter-Opex BST'!T42 -> 0.01002659803 | U32: ='Input | Meter-Opex BST'!U42 -> 0.01129613151 | V32: ='Input | Meter-Opex BST'!V42 -> 0.01148576616
D34: Forecast Productivity change
F35: Economies of Scale Factor | G35: % | J35: ='Input | Meter-Opex BST'!J45 -> 1
F36: Scaled Growth Output | G36: % | P36: =P28*(1-$J$35) -> 0 | Q36: 0 | R36: 0 | S36: 0 | T36: 0 | U36: 0 | V36: 0
F37: ='Input | Meter-Opex BST'!F46 -> Partial Factor Productivity - Annual improvement | G37: % | P37: ='Input | Meter-Opex BST'!P46 -> 0 | Q37: ='Input | Meter-Opex BST'!Q46 -> 0 | R37: ='Input | Meter-Opex BST'!R46 -> 0 | S37: ='Input | Meter-Opex BST'!S46 -> 0 | T37: ='Input | Meter-Opex BST'!T46 -> 0 | U37: ='Input | Meter-Opex BST'!U46 -> 0 | V37: ='Input | Meter-Opex BST'!V46 -> 0
F38: Sum | G38: % | P38: =SUM(P36:P37) -> 0 | Q38: =SUM(Q36:Q37) -> 0 | R38: 0 | S38: 0 | T38: 0 | U38: 0 | V38: 0
D41: Forecast rate of change, year-on-year | G41: % | P41: =(1+P28)*(1+P32)*(1-P38)-1 -> 0.03364804868 | Q41: 0.01986334491 | R41: 0.01893023909 | S41: 0.02101099384 | T41: 0.02236427389 | U41: 0.02350114374 | V41: 0.02358568222
D42: Forecast rate of change, Index | G42: Index | O42: =1 -> 1 | P42: =PRODUCT(1+$P41:P41) -> 1.033648049 | Q42: =PRODUCT(1+$P41:Q41) -> 1.054179756 | R42: =PRODUCT(1+$P41:R41) -> 1.074135631 | S42: =PRODUCT(1+$P41:S41) -> 1.096704288 | T42: =PRODUCT(1+$P41:T41) -> 1.121231283 | U42: =PRODUCT(1+$P41:U41) -> 1.147581501 | V42: =PRODUCT(1+$P41:V41) -> 1.174647994
D43: Forecast rate of change, Index base year movement | G43: Index | O43: =IF('Input | Meter-Opex BST'!$O$5=Opex_BaseYear,1,"") ->  | P43: =P$42/INDEX($O$42:$V$42,MATCH(Opex_BaseYear,$O$4:$V$4,0)) -> 1 | Q43: 1.019863345 | R43: 1.039169602 | S43: 1.061003588 | T43: 1.084732163 | U43: 1.110224609 | V43: 1.136410014
D44: Forecast rate of change, Cumulative % incl base year movement | G44: % | P44: =P43-1 -> 0 | Q44: 0.01986334491 | R44: 0.03916960186 | S44: 0.06100358797 | T44: 0.0847321628 | U44: 0.1102246093 | V44: 0.1364100141
B46: Outputs (In Input $ real terms)
D48: BST Forecast | O48: =IF(O49=Opex_BaseYear,"Base Year","") ->  | P48: =IF(P49=Opex_BaseYear,"Base Year","") -> Base Year | Q48: =IF(Q49=Opex_BaseYear,"Base Year","") -> 
O49: =O8 -> 2023-24 | P49: =P8 -> 2024-25 | Q49: =Q8 -> 2025-26 | R49: =R$8 -> 2026-27 | S49: =S$8 -> 2027-28 | T49: =T$8 -> 2028-29 | U49: =U$8 -> 2029-30 | V49: =V$8 -> 2030-31
F50: Base | G50: ='Input | Meter-Opex BST'!$G$9 -> $millions | H50: =Basis_OpexForecast -> 2026-06-01 | R50: =INDEX($O$12:$Q$12,MATCH(Opex_BaseYear,$O$4:$Q$4,0)) -> 10.86654408 | S50: =INDEX($O$12:$Q$12,MATCH(Opex_BaseYear,'Input | Meter-Opex BST'!$O$5:$Q$5,0)) -> 10.86654408 | T50: =INDEX($O$12:$Q$12,MATCH(Opex_BaseYear,'Input | Meter-Opex BST'!$O$5:$Q$5,0)) -> 10.86654408 | U50: =INDEX($O$12:$Q$12,MATCH(Opex_BaseYear,'Input | Meter-Opex BST'!$O$5:$Q$5,0)) -> 10.86654408 | V50: =INDEX($O$12:$Q$12,MATCH(Opex_BaseYear,'Input | Meter-Opex BST'!$O$5:$Q$5,0)) -> 10.86654408
F51: Trend | G51: ='Input | Meter-Opex BST'!$G$9 -> $millions | H51: =Basis_OpexForecast -> 2026-06-01 | R51: =R50*R44 -> 0.4256382051 | S51: =S50*S44 -> 0.6628981776 | T51: =T50*T44 -> 0.9207457819 | U51: =U50*U44 -> 1.197760575 | V51: =V50*V44 -> 1.482305431
F52: Steps | G52: ='Input | Meter-Opex BST'!$G$9 -> $millions | H52: =Basis_OpexForecast -> 2026-06-01 | R52: =R17 -> 0 | S52: =S17 -> 0 | T52: =T17 -> 0.03164922851 | U52: =U17 -> 0.03164922851 | V52: =V17 -> 0.03164922851
F53: Forecast Opex | G53: ='Input | Meter-Opex BST'!$G$9 -> $millions | H53: =Basis_OpexForecast -> 2026-06-01 | O53: =SUM('Input | Meter-Opex BST'!O9,'Input | Meter-Opex BST'!O12:O15)*'Input| Prices'!J$32 -> 11.18557923 | P53: =SUM('Input | Meter-Opex BST'!P9,'Input | Meter-Opex BST'!P12:P15)*'Input| Prices'!K$32 -> 10.86654408 | Q53: =SUM('Input | Meter-Opex BST'!Q9,'Input | Meter-Opex BST'!Q12:Q15)*'Input| Prices'!L$32 -> 0 | R53: =SUM(R50:R52) -> 11.29218228 | S53: =SUM(S50:S52) -> 11.52944226 | T53: =SUM(T50:T52) -> 11.81893909 | U53: =SUM(U50:U52) -> 12.09595388 | V53: =SUM(V50:V52) -> 12.38049874

Sheet Capex Specific >

Sheet Input | Meters Vols & Costs
B1: ='Input|General'!B1&" v"&'Input|General'!$D$2 -> AER Metering Opex & Capex Forecasting Model v1.08
B2: =MID(CELL("filename",A1),FIND("]",CELL("filename",A1))+1,255) -> Input | Meters Vols & Costs | H2: Key: | I2: Input | J2: External Link | L2: Internal Link | N2: JEN - RP | P2: AER Addition
A4: =PRODUCT($A$5:$A$452) -> 1
B5: 1. Meter Types
F8: Meter Type | G8: RIN Subcategory 1 | H8: RIN Subcategory 2 | I8: AER Type | J8: RIN Subcategory 3 | K8: Meter Code
F9: AMI - Single Phase, single element | G9: Single Phase Meter Population | H9: Direct Connect Meter Population | I9: Meter Type 4 | J9: Single phase single element - AMI | K9: AMI 1ph 1e
F10: AMI - Single Phase, two elements with 31.5A load control | G10: Single Phase Meter Population | H10: Direct Connect Meter Population | I10: Meter Type 4 | J10: Single phase two element with contactor - AMI | K10: AMI 1ph 2e
F11: AMI - 3 Phase with no load control | G11: Multi Phase Meter Population | H11: Direct Connect Meter Population | I11: Meter Type 4 | J11: Three phase - AMI | K11: AMI 3ph
F12: AMI - Single Phase, single element, with 31.5A load control | G12: Single Phase Meter Population | H12: Direct Connect Meter Population | I12: Meter Type 4 | J12: Single phase single element with contactor - AMI | K12: AMI 1ph DC
F13: AMI - 3 Phase with 31.5A and 2A load control | G13: Multi Phase Meter Population | H13: Direct Connect Meter Population | I13: Meter Type 4 | J13: Three phase direct connected meter with contactor - AMI | K13: AMI 3ph DC
F14: AMI - 3 Phase CT connect | G14: Multi Phase Meter Population | H14: Current Transformer Connected Meter Population | I14: Meter Type 4 | J14: Three phase Current transformer connected meter - AMI | K14: AMI 3ph CT
F15: AMI - 3 Phase CT & VT connect | G15: Multi Phase Meter Population | H15: Current Transformer Connected Meter Population | I15: Meter Type 4 | J15: Three phase Current transformer connected meter - AMI | K15: AMI 3ph CT VT
F16: Non AMI - Type 5 Locally read Interval - Single Phase | G16: Single Phase Meter Population | H16: Direct Connect Meter Population | I16: Meter Type 5 | J16: Single phase non off peak - MRIM | K16: INT 1ph
F17: Non AMI - Type 6 Locally read Accumulation - Single Phase | G17: Single Phase Meter Population | H17: Direct Connect Meter Population | I17: Meter Type 6 | J17: Single phase non off peak - Accumulation | K17: ACC 1ph
F18: Non AMI - Type 5 Locally read Interval - 3 Phase | G18: Multi Phase Meter Population | H18: Direct Connect Meter Population | I18: Meter Type 5 | J18: Multi phase direct connect - MRIM | K18: INT 3ph
F19: Non AMI - Type 6 Locally read Accumulation - 3 Phase | G19: Multi Phase Meter Population | H19: Direct Connect Meter Population | I19: Meter Type 6 | J19: Multi phase direct connect - Accumulation | K19: ACC 3ph
B25: =LEFT(B5,1)+1&". Meter Actions" -> 2. Meter Actions
E28: # | F28: Action | G28: Action Name | H28: Impact on meter population | I28: Meter Equipment Cost? | J28: SCS Allocation | P28: (Calc) Impact on meter population | Q28: (Calc) Calc Equip Cost | R28: (Calc) Is New | S28: (Calc) Is Replacement | T28: (Calc) Is Other
A29: =IF(SUM(ICM_Vol1)<>0,(H29<>"")/1*(I29<>"")/1,1) -> 1 | E29: 1 | F29: New Connections (Permanent + Temporary) | G29: New Connections (Permanent + Temporary) - Growth | H29: Add | I29: Include | J29: 0 | P29: =IF(H29="Add",1,IF(H29="No Effect",0,IF(H29="Subtract",-1,IF(ISBLANK(H29),0)))) -> 1 | Q29: =IF(I29="Include",1,IF(I29="Exclude",0,IF(I29="Subtract",-1,IF(ISBLANK(I29),0)))) -> 1 | R29: =(P29=1)/1 -> 1 | S29: =ISNUMBER(SEARCH("Replacement",G29,1))/1 -> 0 | T29: =NOT(R29+S29)/1 -> 0
A30: =IF(SUM(ICM_Vol2)<>0,(H30<>"")/1,1) -> 1 | E30: 2 | F30: Alterations - Meters Installed | G30: Alterations - Meters Installed | H30: Add | I30: Include | J30: 0 | P30: =IF(H30="Add",1,IF(H30="No Effect",0,IF(H30="Subtract",-1,IF(ISBLANK(H30),0)))) -> 1 | Q30: =IF(I30="Include",1,IF(I30="Exclude",0,IF(I30="Subtract",-1,IF(ISBLANK(I30),0)))) -> 1 | R30: 1 | S30: 0 | T30: 0
A31: =IF(SUM(ICM_Vol3)<>0,(H31<>"")/1,1) -> 1 | E31: 3 | F31: Abolishment / Service Removed | G31: Abolishment / Service Removed | H31: Subtract | I31: Exclude | J31: 0 | P31: -1 | Q31: 0 | R31: 0 | S31: 0 | T31: 1
A32: =IF(SUM(ICM_Vol4)<>0,(H32<>"")/1,1) -> 1 | E32: 4 | F32: Alterations - Meters Removed | G32: Alterations - Meters Removed | H32: Subtract | I32: Exclude | J32: 0 | P32: -1 | Q32: 0 | R32: 0 | S32: 0 | T32: 1
A33: =IF(SUM(ICM_Vol5)<>0,(H33<>"")/1,1) -> 1 | E33: 5 | F33: Meters Exchanged - Non AMI to AMI | G33: Meters Exchanged - Non AMI to AMI | H33: No Effect | I33: Include | J33: 0 | P33: 0 | Q33: 1 | R33: 0 | S33: 0 | T33: 1
A34: =IF(SUM(ICM_Vol6)<>0,(H34<>"")/1,1) -> 1 | E34: 6 | F34: Failures / Faults | G34: Failures / Faults | H34: No Effect | I34: Include | J34: 0 | P34: 0 | Q34: 1 | R34: 0 | S34: 0 | T34: 1
A35: =IF(SUM(ICM_Vol7)<>0,(H35<>"")/1,1) -> 1 | E35: 7 | F35: Meters Refurbished | G35: Meters Refurbished | H35: No Effect | I35: Exclude | J35: 0 | P35: 0 | Q35: 0 | R35: 0 | S35: 0 | T35: 1
A36: =IF(SUM(ICM_Vol8)<>0,(H36<>"")/1,1) -> 1 | E36: 8 | F36: AMI Meter Replacement (Value Based Replacement) | G36: AMI Meter Replacement | H36: No Effect | I36: Include | J36: 0 | P36: 0 | Q36: 1 | R36: 0 | S36: 1 | T36: 0
A37: =IF(SUM(ICM_Vol9)<>0,(H37<>"")/1,1) -> 1 | E37: 9 | F37: Wasted Visits | G37: Wasted Visits | H37: No Effect | I37: Exclude | J37: 0 | P37: 0 | Q37: 0 | R37: 0 | S37: 0 | T37: 1
A38: =IF(SUM(ICM_Vol10)<>0,(H38<>"")/1,1) -> 1 | E38: 10 | F38: Meter Panel & Wiring Remediation | G38: Meter Panel & Wiring Remediation | H38: No Effect | I38: Exclude | J38: 0 | P38: 0 | Q38: 0 | R38: 0 | S38: 0 | T38: 1
B41: =LEFT(B25,1)+1&". Overheads and additional meter-related costs" -> 3. Overheads and additional meter-related costs
C44: b | D44: Meter Related Costs
K45: Additional Projects | L45: Units | M45: Basis | N45: =N$171 -> 2023-24 | O45: 2024-25 | P45: 2025-26 | Q45: 2026-27 | R45: 2027-28 | S45: 2028-29 | T45: 2029-30 | U45: 2030-31 | V45: Total
K46: Site scoping and outage notification | L46: $dollars | M46: =Basis_Capex -> 2024-06-01 | Q46: =SUM(Q327,Q347)*0.25*ICM_Rates*'Input| Prices'!M55 -> 154431.9612 | R46: =SUM(R327,R347)*0.25*ICM_Rates*'Input| Prices'!N55 -> 934535.8511 | S46: =SUM(S327,S347)*0.25*ICM_Rates*'Input| Prices'!O55 -> 1573176.777 | T46: =SUM(T327,T347)*0.25*ICM_Rates*'Input| Prices'!P55 -> 1909137.107 | U46: =SUM(U327,U347)*0.25*ICM_Rates*'Input| Prices'!Q55 -> 2252909.178 | V46: =SUM(P46:U46) -> 6824190.875
K47: Accelerated meter replacement | L47: =$L$46 -> $dollars | M47: =Basis_Capex -> 2024-06-01 | V47: =SUM(P47:U47) -> 0
K48: Meter Disposals | L48: =$L$46 -> $dollars | M48: =Basis_Capex -> 2024-06-01 | Q48: 164397.3171 | R48: 551380.4305 | S48: 868217.3852 | T48: 1042911.407 | U48: 1234616.114 | V48: =SUM(P48:U48) -> 3861522.654
K49: Meter Replacement Program | L49: =$L$46 -> $dollars | M49: =Basis_Capex -> 2024-06-01 | Q49: =3301847.23430558*0.5 -> 1650923.617 | R49: =3301847.23430558*0.5 -> 1650923.617 | S49: 1650923.617 | T49: 1650923.617 | U49: 1650923.617 | V49: =SUM(P49:U49) -> 8254618.086
K50: Total | L50: =$L$46 -> $dollars | M50: =Basis_Capex -> 2024-06-01 | N50: =SUM(N46:N49) -> 0 | O50: 0 | P50: 0 | Q50: 1969752.895 | R50: 3136839.899 | S50: 4092317.78 | T50: 4602972.132 | U50: 5138448.909 | V50: =SUM(Q50:U50) -> 18940331.61
C52: a | D52: Metering Overheads
K53: Overheads Method | L53: Units | M53: Basis | O53: Value | Q53: =Q$171 -> 2026-27 | R53: =R$171 -> 2027-28 | S53: =S$171 -> 2028-29 | T53: =T$171 -> 2029-30 | U53: =U$171 -> 2030-31 | V53: Total
K54: Entered Value | L54: =IF(K54="Fixed proportion","%","$dollars") -> $dollars | M54: =IF(L54="%","",Basis_Capex) -> 2024-06-01 | O54: 0.05 | Q54: 0 | R54: 0 | S54: 0 | T54: 0 | U54: 0
K55: Total | L55: =$L$46 -> $dollars | M55: =Basis_Capex -> 2024-06-01 | Q55: =IF('Input | Meters Vols & Costs'!$K54="Fixed proportion",SUM('Calc | Capex Meters'!Q$162:Q$163)*$O54, IF('Input | Meters Vols & Costs'!$K54="Fixed number",$O54,Q54 )) -> 0 | R55: =IF('Input | Meters Vols & Costs'!$K54="Fixed proportion",SUM('Calc | Capex Meters'!R$162:R$163)*$O54, IF('Input | Meters Vols & Costs'!$K54="Fixed number",$O54,R54 )) -> 0 | S55: =IF('Input | Meters Vols & Costs'!$K54="Fixed proportion",SUM('Calc | Capex Meters'!S$162:S$163)*$O54, IF('Input | Meters Vols & Costs'!$K54="Fixed number",$O54,S54 )) -> 0 | T55: =IF('Input | Meters Vols & Costs'!$K54="Fixed proportion",SUM('Calc | Capex Meters'!T$162:T$163)*$O54, IF('Input | Meters Vols & Costs'!$K54="Fixed number",$O54,T54 )) -> 0 | U55: =IF('Input | Meters Vols & Costs'!$K54="Fixed proportion",SUM('Calc | Capex Meters'!U$162:U$163)*$O54, IF('Input | Meters Vols & Costs'!$K54="Fixed number",$O54,U54 )) -> 0 | V55: =SUM(Q55:U55) -> 0
C57: c | D57: Asset Disposal
K58: =D57 -> Asset Disposal | L58: Units | M58: Basis | N58: =N$171 -> 2023-24 | O58: 2024-25 | P58: 2025-26 | Q58: 2026-27 | R58: 2027-28 | S58: 2028-29 | T58: 2029-30 | U58: 2030-31 | V58: Total
K59: Income from disposal of meters | L59: $dollars | M59: =Basis_Capex -> 2024-06-01 | V59: =SUM(P59:U59) -> 0
K60: Disposal 2 | L60: =$L$59 -> $dollars | M60: =Basis_Capex -> 2024-06-01 | V60: =SUM(P60:U60) -> 0
K61: Disposal 3 | L61: =$L$59 -> $dollars | M61: =Basis_Capex -> 2024-06-01 | V61: =SUM(P61:U61) -> 0
K62: Total | L62: =$L$59 -> $dollars | M62: =Basis_Capex -> 2024-06-01 | Q62: =SUM(Q59:Q61) -> 0 | R62: =SUM(R59:R61) -> 0 | S62: =SUM(S59:S61) -> 0 | T62: =SUM(T59:T61) -> 0 | U62: =SUM(U59:U61) -> 0 | V62: =SUM(Q62:U62) -> 0
C63: d | D63: Capital Contributions
K64: =D63 -> Capital Contributions | L64: Units | M64: Basis | N64: =N$171 -> 2023-24 | O64: 2024-25 | P64: 2025-26 | Q64: 2026-27 | R64: 2027-28 | S64: 2028-29 | T64: 2029-30 | U64: 2030-31 | V64: Total
K65: CapCon 1 | L65: $dollars | M65: =Basis_Capex -> 2024-06-01 | V65: =SUM(P65:U65) -> 0
K66: CapCon 2 | L66: =$L$65 -> $dollars | M66: =Basis_Capex -> 2024-06-01 | V66: =SUM(P66:U66) -> 0
K67: CapCon 3 | L67: =$L$65 -> $dollars | M67: =Basis_Capex -> 2024-06-01 | V67: =SUM(P67:U67) -> 0
K68: Total | L68: =$L$65 -> $dollars | M68: =Basis_Capex -> 2024-06-01 | Q68: =SUM(Q65:Q67) -> 0 | R68: =SUM(R65:R67) -> 0 | S68: =SUM(S65:S67) -> 0 | T68: =SUM(T65:T67) -> 0 | U68: =SUM(U65:U67) -> 0 | V68: =SUM(Q68:U68) -> 0
B71: =LEFT(B41,1)+1&". Labour Rates, Hours & Costs" -> 4. Labour Rates, Hours & Costs
C73: a | D73: Labour Rates
K75: Input | L75: Units | M75: Basis | P75: Value
K76: Labour Rate | L76: $dollars/hr | M76: =Basis_Capex -> 2024-06-01 | P76: 140.7682683
K77: Apply Labour Cost Escalation | L77: Y/N | P77: Yes
C79: b | D79: Labour Time Required
P81: 1 | Q81: 2 | R81: 3 | S81: 4 | T81: 5 | U81: 6 | V81: 7 | W81: 8 | X81: 9 | Y81: 10
F82: =I_MeterTypes[[#Headers],[Meter Type]] -> Meter Type | G82: =I_MeterTypes[[#Headers],[RIN Subcategory 1]] -> RIN Subcategory 1 | H82: =I_MeterTypes[[#Headers],[RIN Subcategory 2]] -> RIN Subcategory 2 | I82: =I_MeterTypes[[#Headers],[AER Type]] -> AER Type | J82: =I_MeterTypes[[#Headers],[RIN Subcategory 3]] -> RIN Subcategory 3 | K82: =I_MeterTypes[[#Headers],[Meter Code]] -> Meter Code | L82: Units | P82: =TRANSPOSE($G$29:$G$38) -> New Connections (Permanent + Temporary) - Growth | Q82: Alterations - Meters Installed | R82: Abolishment / Service Removed | S82: Alterations - Meters Removed | T82: Meters Exchanged - Non AMI to AMI | U82: Failures / Faults | V82: Meters Refurbished | W82: AMI Meter Replacement | X82: Wasted Visits | Y82: Meter Panel & Wiring Remediation
F83: =I_MeterTypes[Meter Type] -> AMI - Single Phase, single element | G83: =I_MeterTypes[RIN Subcategory 1] -> Single Phase Meter Population | H83: =I_MeterTypes[RIN Subcategory 2] -> Direct Connect Meter Population | I83: =I_MeterTypes[AER Type] -> Meter Type 4 | J83: =I_MeterTypes[RIN Subcategory 3] -> Single phase single element - AMI | K83: =I_MeterTypes[Meter Code] -> AMI 1ph 1e | L83: Hours | P83: 0 | Q83: 0 | R83: 2.5 | S83: 0 | T83: 5.333333333 | U83: 2.5 | V83: 0 | W83: 1.5 | X83: 1 | Y83: 8
F84: AMI - Single Phase, two elements with 31.5A load control | G84: Single Phase Meter Population | H84: Direct Connect Meter Population | I84: Meter Type 4 | J84: Single phase two element with contactor - AMI | K84: AMI 1ph 2e | L84: Hours | P84: 0 | Q84: 0 | R84: 2.5 | S84: 0 | T84: 5.333333333 | U84: 2.5 | V84: 0 | W84: 1.5 | X84: 1 | Y84: 8
F85: AMI - 3 Phase with no load control | G85: Multi Phase Meter Population | H85: Direct Connect Meter Population | I85: Meter Type 4 | J85: Three phase - AMI | K85: AMI 3ph | L85: Hours | P85: 0 | Q85: 0 | R85: 3.166666667 | S85: 0 | T85: 5.5 | U85: 2.666666667 | V85: 0 | W85: 1.6 | X85: 1 | Y85: 8
F86: AMI - Single Phase, single element, with 31.5A load control | G86: Single Phase Meter Population | H86: Direct Connect Meter Population | I86: Meter Type 4 | J86: Single phase single element with contactor - AMI | K86: AMI 1ph DC | L86: Hours | P86: 0 | Q86: 0 | R86: 2.5 | S86: 0 | T86: 5.333333333 | U86: 2.5 | V86: 0 | W86: 1.5 | X86: 1 | Y86: 8
F87: AMI - 3 Phase with 31.5A and 2A load control | G87: Multi Phase Meter Population | H87: Direct Connect Meter Population | I87: Meter Type 4 | J87: Three phase direct connected meter with contactor - AMI | K87: AMI 3ph DC | L87: Hours | P87: 0 | Q87: 0 | R87: 3.166666667 | S87: 0 | T87: 5.5 | U87: 2.833333333 | V87: 0 | W87: 1.7 | X87: 1 | Y87: 8
F88: AMI - 3 Phase CT connect | G88: Multi Phase Meter Population | H88: Current Transformer Connected Meter Population | I88: Meter Type 4 | J88: Three phase Current transformer connected meter - AMI | K88: AMI 3ph CT | L88: Hours | P88: 0 | Q88: 0 | R88: 3.833333333 | S88: 0 | T88: 6 | U88: 3.166666667 | V88: 0 | W88: 2.85 | X88: 1 | Y88: 8
F89: AMI - 3 Phase CT & VT connect | G89: Multi Phase Meter Population | H89: Current Transformer Connected Meter Population | I89: Meter Type 4 | J89: Three phase Current transformer connected meter - AMI | K89: AMI 3ph CT VT | L89: Hours | P89: 0 | Q89: 0 | R89: 5.833333333 | S89: 0 | T89: 10.66666667 | U89: 3.833333333 | V89: 0 | W89: 3.45 | X89: 1 | Y89: 8
F90: Non AMI - Type 5 Locally read Interval - Single Phase | G90: Single Phase Meter Population | H90: Direct Connect Meter Population | I90: Meter Type 5 | J90: Single phase non off peak - MRIM | K90: INT 1ph | L90: Hours | P90: 0 | Q90: 0 | R90: 2.5 | S90: 0 | T90: 5.333333333 | U90: 2.5 | V90: 0 | W90: 1.833333333 | X90: 1 | Y90: 8
F91: Non AMI - Type 6 Locally read Accumulation - Single Phase | G91: Single Phase Meter Population | H91: Direct Connect Meter Population | I91: Meter Type 6 | J91: Single phase non off peak - Accumulation | K91: ACC 1ph | L91: Hours | P91: 0 | Q91: 0 | R91: 2.5 | S91: 0 | T91: 5.333333333 | U91: 2.5 | V91: 0 | W91: 1.833333333 | X91: 1 | Y91: 8
F92: Non AMI - Type 5 Locally read Interval - 3 Phase | G92: Multi Phase Meter Population | H92: Direct Connect Meter Population | I92: Meter Type 5 | J92: Multi phase direct connect - MRIM | K92: INT 3ph | L92: Hours | P92: 0 | Q92: 0 | R92: 2.5 | S92: 0 | T92: 5.333333333 | U92: 2.5 | V92: 0 | W92: 1.833333333 | X92: 1 | Y92: 8
F93: Non AMI - Type 6 Locally read Accumulation - 3 Phase | G93: Multi Phase Meter Population | H93: Direct Connect Meter Population | I93: Meter Type 6 | J93: Multi phase direct connect - Accumulation | K93: ACC 3ph | L93: Hours | P93: 0 | Q93: 0 | R93: 2.5 | S93: 0 | T93: 5.333333333 | U93: 2.5 | V93: 0 | W93: 1.833333333 | X93: 1 | Y93: 8
L94: Hours
L95: Hours
L96: Hours
L97: Hours
C99: c | D99: Labour Costs
P101: 1 | Q101: 2 | R101: 3 | S101: 4 | T101: 5 | U101: 6 | V101: 7 | W101: 8 | X101: 9 | Y101: 10
F102: =I_MeterTypes[[#Headers],[Meter Type]] -> Meter Type | G102: =I_MeterTypes[[#Headers],[RIN Subcategory 1]] -> RIN Subcategory 1 | H102: =I_MeterTypes[[#Headers],[RIN Subcategory 2]] -> RIN Subcategory 2 | I102: =I_MeterTypes[[#Headers],[AER Type]] -> AER Type | J102: =I_MeterTypes[[#Headers],[RIN Subcategory 3]] -> RIN Subcategory 3 | K102: =I_MeterTypes[[#Headers],[Meter Code]] -> Meter Code | L102: Units | M102: Basis | P102: =P$82 -> New Connections (Permanent + Temporary) - Growth | Q102: =Q$82 -> Alterations - Meters Installed | R102: Abolishment / Service Removed | S102: Alterations - Meters Removed | T102: Meters Exchanged - Non AMI to AMI | U102: Failures / Faults | V102: Meters Refurbished | W102: AMI Meter Replacement | X102: Wasted Visits | Y102: Meter Panel & Wiring Remediation
F103: =I_MeterTypes[Meter Type] -> AMI - Single Phase, single element | G103: =I_MeterTypes[RIN Subcategory 1] -> Single Phase Meter Population | H103: =I_MeterTypes[RIN Subcategory 2] -> Direct Connect Meter Population | I103: =I_MeterTypes[AER Type] -> Meter Type 4 | J103: =I_MeterTypes[RIN Subcategory 3] -> Single phase single element - AMI | K103: =I_MeterTypes[Meter Code] -> AMI 1ph 1e | L103: $dollars | M103: =Basis_Capex -> 2024-06-01 | P103: =ICM_Rates*ICM_Hrs -> 0 | Q103: 0 | R103: 351.9206708 | S103: 0 | T103: 750.7640976 | U103: 351.9206708 | V103: 0 | W103: 211.1524025 | X103: 140.7682683 | Y103: 1126.146146
F104: AMI - Single Phase, two elements with 31.5A load control | G104: Single Phase Meter Population | H104: Direct Connect Meter Population | I104: Meter Type 4 | J104: Single phase two element with contactor - AMI | K104: AMI 1ph 2e | L104: $dollars | M104: 2024-06-01 | P104: 0 | Q104: 0 | R104: 351.9206708 | S104: 0 | T104: 750.7640976 | U104: 351.9206708 | V104: 0 | W104: 211.1524025 | X104: 140.7682683 | Y104: 1126.146146
F105: AMI - 3 Phase with no load control | G105: Multi Phase Meter Population | H105: Direct Connect Meter Population | I105: Meter Type 4 | J105: Three phase - AMI | K105: AMI 3ph | L105: $dollars | M105: 2024-06-01 | P105: 0 | Q105: 0 | R105: 445.766183 | S105: 0 | T105: 774.2254757 | U105: 375.3820488 | V105: 0 | W105: 225.2292293 | X105: 140.7682683 | Y105: 1126.146146
F106: AMI - Single Phase, single element, with 31.5A load control | G106: Single Phase Meter Population | H106: Direct Connect Meter Population | I106: Meter Type 4 | J106: Single phase single element with contactor - AMI | K106: AMI 1ph DC | L106: $dollars | M106: 2024-06-01 | P106: 0 | Q106: 0 | R106: 351.9206708 | S106: 0 | T106: 750.7640976 | U106: 351.9206708 | V106: 0 | W106: 211.1524025 | X106: 140.7682683 | Y106: 1126.146146
F107: AMI - 3 Phase with 31.5A and 2A load control | G107: Multi Phase Meter Population | H107: Direct Connect Meter Population | I107: Meter Type 4 | J107: Three phase direct connected meter with contactor - AMI | K107: AMI 3ph DC | L107: $dollars | M107: 2024-06-01 | P107: 0 | Q107: 0 | R107: 445.766183 | S107: 0 | T107: 774.2254757 | U107: 398.8434269 | V107: 0 | W107: 239.3060561 | X107: 140.7682683 | Y107: 1126.146146
F108: AMI - 3 Phase CT connect | G108: Multi Phase Meter Population | H108: Current Transformer Connected Meter Population | I108: Meter Type 4 | J108: Three phase Current transformer connected meter - AMI | K108: AMI 3ph CT | L108: $dollars | M108: 2024-06-01 | P108: 0 | Q108: 0 | R108: 539.6116952 | S108: 0 | T108: 844.6096098 | U108: 445.766183 | V108: 0 | W108: 401.1895647 | X108: 140.7682683 | Y108: 1126.146146
F109: AMI - 3 Phase CT & VT connect | G109: Multi Phase Meter Population | H109: Current Transformer Connected Meter Population | I109: Meter Type 4 | J109: Three phase Current transformer connected meter - AMI | K109: AMI 3ph CT VT | L109: $dollars | M109: 2024-06-01 | P109: 0 | Q109: 0 | R109: 821.1482318 | S109: 0 | T109: 1501.528195 | U109: 539.6116952 | V109: 0 | W109: 485.6505257 | X109: 140.7682683 | Y109: 1126.146146
F110: Non AMI - Type 5 Locally read Interval - Single Phase | G110: Single Phase Meter Population | H110: Direct Connect Meter Population | I110: Meter Type 5 | J110: Single phase non off peak - MRIM | K110: INT 1ph | L110: $dollars | M110: 2024-06-01 | P110: 0 | Q110: 0 | R110: 351.9206708 | S110: 0 | T110: 750.7640976 | U110: 351.9206708 | V110: 0 | W110: 258.0751586 | X110: 140.7682683 | Y110: 1126.146146
F111: Non AMI - Type 6 Locally read Accumulation - Single Phase | G111: Single Phase Meter Population | H111: Direct Connect Meter Population | I111: Meter Type 6 | J111: Single phase non off peak - Accumulation | K111: ACC 1ph | L111: $dollars | M111: 2024-06-01 | P111: 0 | Q111: 0 | R111: 351.9206708 | S111: 0 | T111: 750.7640976 | U111: 351.9206708 | V111: 0 | W111: 258.0751586 | X111: 140.7682683 | Y111: 1126.146146
F112: Non AMI - Type 5 Locally read Interval - 3 Phase | G112: Multi Phase Meter Population | H112: Direct Connect Meter Population | I112: Meter Type 5 | J112: Multi phase direct connect - MRIM | K112: INT 3ph | L112: $dollars | M112: 2024-06-01 | P112: 0 | Q112: 0 | R112: 351.9206708 | S112: 0 | T112: 750.7640976 | U112: 351.9206708 | V112: 0 | W112: 258.0751586 | X112: 140.7682683 | Y112: 1126.146146
F113: Non AMI - Type 6 Locally read Accumulation - 3 Phase | G113: Multi Phase Meter Population | H113: Direct Connect Meter Population | I113: Meter Type 6 | J113: Multi phase direct connect - Accumulation | K113: ACC 3ph | L113: $dollars | M113: 2024-06-01 | P113: 0 | Q113: 0 | R113: 351.9206708 | S113: 0 | T113: 750.7640976 | U113: 351.9206708 | V113: 0 | W113: 258.0751586 | X113: 140.7682683 | Y113: 1126.146146
L114: $dollars | M114: 2024-06-01 | P114: 0 | Q114: 0 | R114: 0 | S114: 0 | T114: 0 | U114: 0 | V114: 0 | W114: 0 | X114: 0 | Y114: 0
L115: $dollars | M115: 2024-06-01 | P115: 0 | Q115: 0 | R115: 0 | S115: 0 | T115: 0 | U115: 0 | V115: 0 | W115: 0 | X115: 0 | Y115: 0
L116: $dollars | M116: 2024-06-01 | P116: 0 | Q116: 0 | R116: 0 | S116: 0 | T116: 0 | U116: 0 | V116: 0 | W116: 0 | X116: 0 | Y116: 0
L117: $dollars | M117: 2024-06-01 | P117: 0 | Q117: 0 | R117: 0 | S117: 0 | T117: 0 | U117: 0 | V117: 0 | W117: 0 | X117: 0 | Y117: 0
B120: =LEFT(B71,1)+1&". Equipment Unit Cost" -> 5. Equipment Unit Cost
C122: a | D122: Equipment Unit Cost
P123: 1
F124: =I_MeterTypes[[#Headers],[Meter Type]] -> Meter Type | G124: =I_MeterTypes[[#Headers],[RIN Subcategory 1]] -> RIN Subcategory 1 | H124: =I_MeterTypes[[#Headers],[RIN Subcategory 2]] -> RIN Subcategory 2 | I124: =I_MeterTypes[[#Headers],[AER Type]] -> AER Type | J124: =I_MeterTypes[[#Headers],[RIN Subcategory 3]] -> RIN Subcategory 3 | K124: =I_MeterTypes[[#Headers],[Meter Code]] -> Meter Code | L124: Units | M124: Basis | P124: Meter Unit Cost
F125: =I_MeterTypes[Meter Type] -> AMI - Single Phase, single element | G125: =I_MeterTypes[RIN Subcategory 1] -> Single Phase Meter Population | H125: =I_MeterTypes[RIN Subcategory 2] -> Direct Connect Meter Population | I125: =I_MeterTypes[AER Type] -> Meter Type 4 | J125: =I_MeterTypes[RIN Subcategory 3] -> Single phase single element - AMI | K125: =I_MeterTypes[Meter Code] -> AMI 1ph 1e | L125: $dollars | M125: =Basis_Capex -> 2024-06-01 | P125: 223.82
F126: AMI - Single Phase, two elements with 31.5A load control | G126: Single Phase Meter Population | H126: Direct Connect Meter Population | I126: Meter Type 4 | J126: Single phase two element with contactor - AMI | K126: AMI 1ph 2e | L126: $dollars | M126: 2024-06-01 | P126: 261.36
F127: AMI - 3 Phase with no load control | G127: Multi Phase Meter Population | H127: Direct Connect Meter Population | I127: Meter Type 4 | J127: Three phase - AMI | K127: AMI 3ph | L127: $dollars | M127: 2024-06-01 | P127: 385.7
F128: AMI - Single Phase, single element, with 31.5A load control | G128: Single Phase Meter Population | H128: Direct Connect Meter Population | I128: Meter Type 4 | J128: Single phase single element with contactor - AMI | K128: AMI 1ph DC | L128: $dollars | M128: 2024-06-01 | P128: 241.18
F129: AMI - 3 Phase with 31.5A and 2A load control | G129: Multi Phase Meter Population | H129: Direct Connect Meter Population | I129: Meter Type 4 | J129: Three phase direct connected meter with contactor - AMI | K129: AMI 3ph DC | L129: $dollars | M129: 2024-06-01 | P129: 401.97
F130: AMI - 3 Phase CT connect | G130: Multi Phase Meter Population | H130: Current Transformer Connected Meter Population | I130: Meter Type 4 | J130: Three phase Current transformer connected meter - AMI | K130: AMI 3ph CT | L130: $dollars | M130: 2024-06-01 | P130: 502.94
F131: AMI - 3 Phase CT & VT connect | G131: Multi Phase Meter Population | H131: Current Transformer Connected Meter Population | I131: Meter Type 4 | J131: Three phase Current transformer connected meter - AMI | K131: AMI 3ph CT VT | L131: $dollars | M131: 2024-06-01 | P131: 0
F132: Non AMI - Type 5 Locally read Interval - Single Phase | G132: Single Phase Meter Population | H132: Direct Connect Meter Population | I132: Meter Type 5 | J132: Single phase non off peak - MRIM | K132: INT 1ph | L132: $dollars | M132: 2024-06-01 | P132: 0
F133: Non AMI - Type 6 Locally read Accumulation - Single Phase | G133: Single Phase Meter Population | H133: Direct Connect Meter Population | I133: Meter Type 6 | J133: Single phase non off peak - Accumulation | K133: ACC 1ph | L133: $dollars | M133: 2024-06-01 | P133: 0
F134: Non AMI - Type 5 Locally read Interval - 3 Phase | G134: Multi Phase Meter Population | H134: Direct Connect Meter Population | I134: Meter Type 5 | J134: Multi phase direct connect - MRIM | K134: INT 3ph | L134: $dollars | M134: 2024-06-01 | P134: 0
F135: Non AMI - Type 6 Locally read Accumulation - 3 Phase | G135: Multi Phase Meter Population | H135: Direct Connect Meter Population | I135: Meter Type 6 | J135: Multi phase direct connect - Accumulation | K135: ACC 3ph | L135: $dollars | M135: 2024-06-01 | P135: 0
L136: $dollars | M136: 2024-06-01
L137: $dollars | M137: 2024-06-01
L138: $dollars | M138: 2024-06-01
L139: $dollars | M139: 2024-06-01
K141: Input | L141: Units | M141: Basis | P141: Value
K142: Apply Non-Labour Cost Escalation | L142: Y/N | P142: Yes
B144: =LEFT(B120,1)+1&". Meter Population" -> 6. Meter Population
C147: a | D147: Base Year Population (Year End)
M148: =IF(M149=Capex_BaseYear,"Base Year","") -> Base Year
F149: =I_MeterTypes[[#Headers],[Meter Type]] -> Meter Type | G149: =I_MeterTypes[[#Headers],[RIN Subcategory 1]] -> RIN Subcategory 1 | H149: =I_MeterTypes[[#Headers],[RIN Subcategory 2]] -> RIN Subcategory 2 | I149: =I_MeterTypes[[#Headers],[AER Type]] -> AER Type | J149: =I_MeterTypes[[#Headers],[RIN Subcategory 3]] -> RIN Subcategory 3 | K149: =I_MeterTypes[[#Headers],[Meter Code]] -> Meter Code | L149: Units | M149: =Capex_BaseYear -> 2023-24
F150: =I_MeterTypes[Meter Type] -> AMI - Single Phase, single element | G150: =I_MeterTypes[RIN Subcategory 1] -> Single Phase Meter Population | H150: =I_MeterTypes[RIN Subcategory 2] -> Direct Connect Meter Population | I150: =I_MeterTypes[AER Type] -> Meter Type 4 | J150: =I_MeterTypes[RIN Subcategory 3] -> Single phase single element - AMI | K150: =I_MeterTypes[Meter Code] -> AMI 1ph 1e | L150: No. | M150: 298053.5051
F151: AMI - Single Phase, two elements with 31.5A load control | G151: Single Phase Meter Population | H151: Direct Connect Meter Population | I151: Meter Type 4 | J151: Single phase two element with contactor - AMI | K151: AMI 1ph 2e | L151: =L$150 -> No. | M151: 21268.97585
F152: AMI - 3 Phase with no load control | G152: Multi Phase Meter Population | H152: Direct Connect Meter Population | I152: Meter Type 4 | J152: Three phase - AMI | K152: AMI 3ph | L152: No. | M152: 49366.65102
F153: AMI - Single Phase, single element, with 31.5A load control | G153: Single Phase Meter Population | H153: Direct Connect Meter Population | I153: Meter Type 4 | J153: Single phase single element with contactor - AMI | K153: AMI 1ph DC | L153: No. | M153: 6762.519033
F154: AMI - 3 Phase with 31.5A and 2A load control | G154: Multi Phase Meter Population | H154: Direct Connect Meter Population | I154: Meter Type 4 | J154: Three phase direct connected meter with contactor - AMI | K154: AMI 3ph DC | L154: No. | M154: 4235.694334
F155: AMI - 3 Phase CT connect | G155: Multi Phase Meter Population | H155: Current Transformer Connected Meter Population | I155: Meter Type 4 | J155: Three phase Current transformer connected meter - AMI | K155: AMI 3ph CT | L155: No. | M155: 2324.654649
F156: AMI - 3 Phase CT & VT connect | G156: Multi Phase Meter Population | H156: Current Transformer Connected Meter Population | I156: Meter Type 4 | J156: Three phase Current transformer connected meter - AMI | K156: AMI 3ph CT VT | L156: No. | M156: 0
F157: Non AMI - Type 5 Locally read Interval - Single Phase | G157: Single Phase Meter Population | H157: Direct Connect Meter Population | I157: Meter Type 5 | J157: Single phase non off peak - MRIM | K157: INT 1ph | L157: No. | M157: 18
F158: Non AMI - Type 6 Locally read Accumulation - Single Phase | G158: Single Phase Meter Population | H158: Direct Connect Meter Population | I158: Meter Type 6 | J158: Single phase non off peak - Accumulation | K158: ACC 1ph | L158: No. | M158: 2681
F159: Non AMI - Type 5 Locally read Interval - 3 Phase | G159: Multi Phase Meter Population | H159: Direct Connect Meter Population | I159: Meter Type 5 | J159: Multi phase direct connect - MRIM | K159: INT 3ph | L159: No. | M159: 6
F160: Non AMI - Type 6 Locally read Accumulation - 3 Phase | G160: Multi Phase Meter Population | H160: Direct Connect Meter Population | I160: Meter Type 6 | J160: Multi phase direct connect - Accumulation | K160: ACC 3ph | L160: No. | M160: 1326
L161: No.
L162: No.
L163: No.
L164: No.
F165: Total | L165: No. | M165: =SUM(M150:M164) -> 386043
C167: b | D167: Meter Actions
D169: i | E169: =$G$29 -> New Connections (Permanent + Temporary) - Growth
N170: =IF(N171=Capex_BaseYear,"Base Year","") -> Base Year | O170: =IF(O171=Capex_BaseYear,"Base Year","") ->  | P170: =IF(P171=Capex_BaseYear,"Base Year","") ->  | Q170: Forecast RP
F171: =I_MeterTypes[[#Headers],[Meter Type]] -> Meter Type | G171: =I_MeterTypes[[#Headers],[RIN Subcategory 1]] -> RIN Subcategory 1 | H171: =I_MeterTypes[[#Headers],[RIN Subcategory 2]] -> RIN Subcategory 2 | I171: =I_MeterTypes[[#Headers],[AER Type]] -> AER Type | J171: =I_MeterTypes[[#Headers],[RIN Subcategory 3]] -> RIN Subcategory 3 | K171: =I_MeterTypes[[#Headers],[Meter Code]] -> Meter Code | L171: Units | N171: =(LEFT(O171,4)-1&IF(MID(O171,5,1)="","","-"&TEXT(MOD(MID(O171,6,2)-1,100),"00"))) -> 2023-24 | O171: =(LEFT(P171,4)-1&IF(MID(P171,5,1)="","","-"&TEXT(MOD(MID(P171,6,2)-1,100),"00"))) -> 2024-25 | P171: =(LEFT(Q171,4)-1&IF(MID(Q171,5,1)="","","-"&TEXT(MOD(MID(Q171,6,2)-1,100),"00"))) -> 2025-26 | Q171: =FPFirstYear -> 2026-27 | R171: =(LEFT(Q171,4)+1&IF(MID(Q171,5,1)="","","-"&TEXT(MOD(MID(Q171,6,2)+1,100),"00"))) -> 2027-28 | S171: =(LEFT(R171,4)+1&IF(MID(R171,5,1)="","","-"&TEXT(MOD(MID(R171,6,2)+1,100),"00"))) -> 2028-29 | T171: =(LEFT(S171,4)+1&IF(MID(S171,5,1)="","","-"&TEXT(MOD(MID(S171,6,2)+1,100),"00"))) -> 2029-30 | U171: =(LEFT(T171,4)+1&IF(MID(T171,5,1)="","","-"&TEXT(MOD(MID(T171,6,2)+1,100),"00"))) -> 2030-31 | V171: RP Total
F172: =I_MeterTypes[Meter Type] -> AMI - Single Phase, single element | G172: =I_MeterTypes[RIN Subcategory 1] -> Single Phase Meter Population | H172: =I_MeterTypes[RIN Subcategory 2] -> Direct Connect Meter Population | I172: =I_MeterTypes[AER Type] -> Meter Type 4 | J172: =I_MeterTypes[RIN Subcategory 3] -> Single phase single element - AMI | K172: =I_MeterTypes[Meter Code] -> AMI 1ph 1e | L172: No. | O172: 6410 | P172: 3245.148275 | Q172: 1642.851522 | R172: 831.581082 | S172: 841.7381872 | T172: 851.897013 | U172: 862.0576671 | V172: =SUM(Q172:U172) -> 5030.125471
F173: AMI - Single Phase, two elements with 31.5A load control | G173: Single Phase Meter Population | H173: Direct Connect Meter Population | I173: Meter Type 4 | J173: Single phase two element with contactor - AMI | K173: AMI 1ph 2e | L173: =L$150 -> No. | O173: 6 | P173: 6.075160577 | Q173: 6.15108214 | R173: 6.227128227 | S173: 6.303187673 | T173: 6.379260003 | U173: 6.455346025 | V173: =SUM(Q173:U173) -> 31.51600407
F174: AMI - 3 Phase with no load control | G174: Multi Phase Meter Population | H174: Direct Connect Meter Population | I174: Meter Type 4 | J174: Three phase - AMI | K174: AMI 3ph | L174: No. | O174: 3470 | P174: 6631.355425 | Q174: 8292.653753 | R174: 9194.146239 | S174: 9306.445463 | T174: 9418.763711 | U174: 9531.102173 | V174: 45743.11134
F175: AMI - Single Phase, single element, with 31.5A load control | G175: Single Phase Meter Population | H175: Direct Connect Meter Population | I175: Meter Type 4 | J175: Single phase single element with contactor - AMI | K175: AMI 1ph DC | L175: No. | O175: 4 | P175: 4.050107051 | Q175: 4.100721427 | R175: 4.151418818 | S175: 4.202125116 | T175: 4.252840002 | U175: 4.303564017 | V175: 21.01066938
F176: AMI - 3 Phase with 31.5A and 2A load control | G176: Multi Phase Meter Population | H176: Direct Connect Meter Population | I176: Meter Type 4 | J176: Three phase direct connected meter with contactor - AMI | K176: AMI 3ph DC | L176: No. | O176: 13 | P176: 13.16284792 | Q176: 13.32734464 | R176: 13.49211116 | S176: 13.65690663 | T176: 13.82173001 | U176: 13.98658305 | V176: 68.28467548
F177: AMI - 3 Phase CT connect | G177: Multi Phase Meter Population | H177: Current Transformer Connected Meter Population | I177: Meter Type 4 | J177: Three phase Current transformer connected meter - AMI | K177: AMI 3ph CT | L177: No. | O177: 125 | P177: 159.3451209 | Q177: 177.930924 | R177: 188.5305004 | S177: 190.8332514 | T177: 193.1363924 | U177: 195.4399479 | V177: 945.8710162
F178: AMI - 3 Phase CT & VT connect | G178: Multi Phase Meter Population | H178: Current Transformer Connected Meter Population | I178: Meter Type 4 | J178: Three phase Current transformer connected meter - AMI | K178: AMI 3ph CT VT | L178: No. | O178: 0 | P178: 0 | Q178: 0 | R178: 0 | S178: 0 | T178: 0 | U178: 0 | V178: 0
F179: Non AMI - Type 5 Locally read Interval - Single Phase | G179: Single Phase Meter Population | H179: Direct Connect Meter Population | I179: Meter Type 5 | J179: Single phase non off peak - MRIM | K179: INT 1ph | L179: No. | O179: 0 | P179: 0 | Q179: 0 | R179: 0 | S179: 0 | T179: 0 | U179: 0 | V179: 0
F180: Non AMI - Type 6 Locally read Accumulation - Single Phase | G180: Single Phase Meter Population | H180: Direct Connect Meter Population | I180: Meter Type 6 | J180: Single phase non off peak - Accumulation | K180: ACC 1ph | L180: No. | O180: 0 | P180: 0 | Q180: 0 | R180: 0 | S180: 0 | T180: 0 | U180: 0 | V180: 0
F181: Non AMI - Type 5 Locally read Interval - 3 Phase | G181: Multi Phase Meter Population | H181: Direct Connect Meter Population | I181: Meter Type 5 | J181: Multi phase direct connect - MRIM | K181: INT 3ph | L181: No. | O181: 0 | P181: 0 | Q181: 0 | R181: 0 | S181: 0 | T181: 0 | U181: 0 | V181: 0
F182: Non AMI - Type 6 Locally read Accumulation - 3 Phase | G182: Multi Phase Meter Population | H182: Direct Connect Meter Population | I182: Meter Type 6 | J182: Multi phase direct connect - Accumulation | K182: ACC 3ph | L182: No. | O182: 0 | P182: 0 | Q182: 0 | R182: 0 | S182: 0 | T182: 0 | U182: 0 | V182: 0
L183: No. | V183: 0
L184: No. | V184: 0
L185: No. | V185: 0
L186: No. | V186: 0
F187: Total | L187: No. | O187: =SUM(O172:O186) -> 10028 | P187: 10059.13694 | Q187: 10137.01535 | R187: 10238.12848 | S187: 10363.17912 | T187: 10488.25095 | U187: 10613.34528 | V187: =SUM(Q187:U187) -> 51839.91917
D189: ii | E189: =$G$30 -> Alterations - Meters Installed
F191: =I_MeterTypes[[#Headers],[Meter Type]] -> Meter Type | G191: =I_MeterTypes[[#Headers],[RIN Subcategory 1]] -> RIN Subcategory 1 | H191: =I_MeterTypes[[#Headers],[RIN Subcategory 2]] -> RIN Subcategory 2 | I191: =I_MeterTypes[[#Headers],[AER Type]] -> AER Type | J191: =I_MeterTypes[[#Headers],[RIN Subcategory 3]] -> RIN Subcategory 3 | K191: =I_MeterTypes[[#Headers],[Meter Code]] -> Meter Code | L191: Units | O191: =O$171 -> 2024-25 | P191: 2025-26 | Q191: 2026-27 | R191: 2027-28 | S191: 2028-29 | T191: 2029-30 | U191: 2030-31 | V191: RP Total
F192: =I_MeterTypes[Meter Type] -> AMI - Single Phase, single element | G192: =I_MeterTypes[RIN Subcategory 1] -> Single Phase Meter Population | H192: =I_MeterTypes[RIN Subcategory 2] -> Direct Connect Meter Population | I192: =I_MeterTypes[AER Type] -> Meter Type 4 | J192: =I_MeterTypes[RIN Subcategory 3] -> Single phase single element - AMI | K192: =I_MeterTypes[Meter Code] -> AMI 1ph 1e | L192: No. | O192: 11 | P192: 5.568897195 | Q192: 2.819245981 | R192: 1.427050219 | S192: 1.444480508 | T192: 1.461913751 | U192: 1.479350131 | V192: =SUM(Q192:U192) -> 8.632040589
F193: AMI - Single Phase, two elements with 31.5A load control | G193: Single Phase Meter Population | H193: Direct Connect Meter Population | I193: Meter Type 4 | J193: Single phase two element with contactor - AMI | K193: AMI 1ph 2e | L193: =L$150 -> No. | O193: 0 | P193: 0 | Q193: 0 | R193: 0 | S193: 0 | T193: 0 | U193: 0 | V193: =SUM(Q193:U193) -> 0
F194: AMI - 3 Phase with no load control | G194: Multi Phase Meter Population | H194: Direct Connect Meter Population | I194: Meter Type 4 | J194: Three phase - AMI | K194: AMI 3ph | L194: No. | O194: 437 | P194: 447.8247044 | Q194: 456.1298778 | R194: 463.1401181 | S194: 468.7970084 | T194: 474.4548568 | U194: 480.1137236 | V194: 2342.635585
F195: AMI - Single Phase, single element, with 31.5A load control | G195: Single Phase Meter Population | H195: Direct Connect Meter Population | I195: Meter Type 4 | J195: Single phase single element with contactor - AMI | K195: AMI 1ph DC | L195: No. | O195: 2 | P195: 2.025053526 | Q195: 2.050360713 | R195: 2.075709409 | S195: 2.101062558 | T195: 2.126420001 | U195: 2.151782008 | V195: 10.50533469
F196: AMI - 3 Phase with 31.5A and 2A load control | G196: Multi Phase Meter Population | H196: Direct Connect Meter Population | I196: Meter Type 4 | J196: Three phase direct connected meter with contactor - AMI | K196: AMI 3ph DC | L196: No. | O196: 6 | P196: 6.075160577 | Q196: 6.15108214 | R196: 6.227128227 | S196: 6.303187673 | T196: 6.379260003 | U196: 6.455346025 | V196: 31.51600407
F197: AMI - 3 Phase CT connect | G197: Multi Phase Meter Population | H197: Current Transformer Connected Meter Population | I197: Meter Type 4 | J197: Three phase Current transformer connected meter - AMI | K197: AMI 3ph CT | L197: No. | O197: 32 | P197: 32.4571079 | Q197: 32.89120311 | R197: 33.31225308 | S197: 33.71913591 | T197: 34.12608766 | U197: 34.53311265 | V197: 168.5817924
F198: AMI - 3 Phase CT & VT connect | G198: Multi Phase Meter Population | H198: Current Transformer Connected Meter Population | I198: Meter Type 4 | J198: Three phase Current transformer connected meter - AMI | K198: AMI 3ph CT VT | L198: No. | O198: 0 | P198: 0 | Q198: 0 | R198: 0 | S198: 0 | T198: 0 | U198: 0 | V198: 0
F199: Non AMI - Type 5 Locally read Interval - Single Phase | G199: Single Phase Meter Population | H199: Direct Connect Meter Population | I199: Meter Type 5 | J199: Single phase non off peak - MRIM | K199: INT 1ph | L199: No. | O199: 0 | P199: 0 | Q199: 0 | R199: 0 | S199: 0 | T199: 0 | U199: 0 | V199: 0
F200: Non AMI - Type 6 Locally read Accumulation - Single Phase | G200: Single Phase Meter Population | H200: Direct Connect Meter Population | I200: Meter Type 6 | J200: Single phase non off peak - Accumulation | K200: ACC 1ph | L200: No. | O200: 0 | P200: 0 | Q200: 0 | R200: 0 | S200: 0 | T200: 0 | U200: 0 | V200: 0
F201: Non AMI - Type 5 Locally read Interval - 3 Phase | G201: Multi Phase Meter Population | H201: Direct Connect Meter Population | I201: Meter Type 5 | J201: Multi phase direct connect - MRIM | K201: INT 3ph | L201: No. | O201: 0 | P201: 0 | Q201: 0 | R201: 0 | S201: 0 | T201: 0 | U201: 0 | V201: 0
F202: Non AMI - Type 6 Locally read Accumulation - 3 Phase | G202: Multi Phase Meter Population | H202: Direct Connect Meter Population | I202: Meter Type 6 | J202: Multi phase direct connect - Accumulation | K202: ACC 3ph | L202: No. | O202: 0 | P202: 0 | Q202: 0 | R202: 0 | S202: 0 | T202: 0 | U202: 0 | V202: 0
L203: No. | V203: 0
L204: No. | P204: 0 | Q204: 0 | R204: 0 | S204: 0 | T204: 0 | U204: 0 | V204: 0
L205: No. | P205: 0 | Q205: 0 | R205: 0 | S205: 0 | T205: 0 | U205: 0 | V205: 0
L206: No. | P206: 0 | Q206: 0 | R206: 0 | S206: 0 | T206: 0 | U206: 0 | V206: 0
F207: Total | L207: No. | O207: =SUM(O192:O206) -> 488 | P207: =SUM(P192:P206) -> 493.9509236 | Q207: 500.0417698 | R207: 506.1822591 | S207: 512.364875 | T207: 518.5485383 | U207: 524.7333144 | V207: =SUM(Q207:U207) -> 2561.870757
D209: iii | E209: =$G$31 -> Abolishment / Service Removed
F211: =I_MeterTypes[[#Headers],[Meter Type]] -> Meter Type | G211: =I_MeterTypes[[#Headers],[RIN Subcategory 1]] -> RIN Subcategory 1 | H211: =I_MeterTypes[[#Headers],[RIN Subcategory 2]] -> RIN Subcategory 2 | I211: =I_MeterTypes[[#Headers],[AER Type]] -> AER Type | J211: =I_MeterTypes[[#Headers],[RIN Subcategory 3]] -> RIN Subcategory 3 | K211: =I_MeterTypes[[#Headers],[Meter Code]] -> Meter Code | L211: Units | O211: =O$171 -> 2024-25 | P211: 2025-26 | Q211: 2026-27 | R211: 2027-28 | S211: 2028-29 | T211: 2029-30 | U211: 2030-31 | V211: RP Total
F212: =I_MeterTypes[Meter Type] -> AMI - Single Phase, single element | G212: =I_MeterTypes[RIN Subcategory 1] -> Single Phase Meter Population | H212: =I_MeterTypes[RIN Subcategory 2] -> Direct Connect Meter Population | I212: =I_MeterTypes[AER Type] -> Meter Type 4 | J212: =I_MeterTypes[RIN Subcategory 3] -> Single phase single element - AMI | K212: =I_MeterTypes[Meter Code] -> AMI 1ph 1e | L212: No. | O212: 1647 | P212: 1667.631578 | Q212: 1688.472047 | R212: 1709.346698 | S212: 1730.225016 | T212: 1751.106871 | U212: 1771.992484 | V212: =SUM(Q212:U212) -> 8651.143117
F213: AMI - Single Phase, two elements with 31.5A load control | G213: Single Phase Meter Population | H213: Direct Connect Meter Population | I213: Meter Type 4 | J213: Single phase two element with contactor - AMI | K213: AMI 1ph 2e | L213: =L$150 -> No. | O213: 217 | P213: 219.7183075 | Q213: 222.4641374 | R213: 225.2144709 | S213: 227.9652875 | T213: 230.7165701 | U213: 233.4683479 | V213: =SUM(Q213:U213) -> 1139.828814
F214: AMI - 3 Phase with no load control | G214: Multi Phase Meter Population | H214: Direct Connect Meter Population | I214: Meter Type 4 | J214: Three phase - AMI | K214: AMI 3ph | L214: No. | O214: 236 | P214: 238.956316 | Q214: 241.9425642 | R214: 244.9337103 | S214: 247.9253818 | T214: 250.9175601 | U214: 253.910277 | V214: 1239.629493
F215: AMI - Single Phase, single element, with 31.5A load control | G215: Single Phase Meter Population | H215: Direct Connect Meter Population | I215: Meter Type 4 | J215: Single phase single element with contactor - AMI | K215: AMI 1ph DC | L215: No. | O215: 31 | P215: 31.38832965 | Q215: 31.78059106 | R215: 32.17349584 | S215: 32.56646965 | T215: 32.95951002 | U215: 33.35262113 | V215: 162.8326877
F216: AMI - 3 Phase with 31.5A and 2A load control | G216: Multi Phase Meter Population | H216: Direct Connect Meter Population | I216: Meter Type 4 | J216: Three phase direct connected meter with contactor - AMI | K216: AMI 3ph DC | L216: No. | O216: 1 | P216: 1.012526763 | Q216: 1.025180357 | R216: 1.037854705 | S216: 1.050531279 | T216: 1.063210001 | U216: 1.075891004 | V216: 5.252667345
F217: AMI - 3 Phase CT connect | G217: Multi Phase Meter Population | H217: Current Transformer Connected Meter Population | I217: Meter Type 4 | J217: Three phase Current transformer connected meter - AMI | K217: AMI 3ph CT | L217: No. | O217: 14 | P217: 14.17537468 | Q217: 14.35252499 | R217: 14.52996586 | S217: 14.7074379 | T217: 14.88494001 | U217: 15.06247406 | V217: 73.53734283
F218: AMI - 3 Phase CT & VT connect | G218: Multi Phase Meter Population | H218: Current Transformer Connected Meter Population | I218: Meter Type 4 | J218: Three phase Current transformer connected meter - AMI | K218: AMI 3ph CT VT | L218: No. | O218: 0 | P218: 0 | Q218: 0 | R218: 0 | S218: 0 | T218: 0 | U218: 0 | V218: 0
F219: Non AMI - Type 5 Locally read Interval - Single Phase | G219: Single Phase Meter Population | H219: Direct Connect Meter Population | I219: Meter Type 5 | J219: Single phase non off peak - MRIM | K219: INT 1ph | L219: No. | O219: 0 | P219: 18 | Q219: 0 | R219: 0 | S219: 0 | T219: 0 | U219: 0 | V219: 0
F220: Non AMI - Type 6 Locally read Accumulation - Single Phase | G220: Single Phase Meter Population | H220: Direct Connect Meter Population | I220: Meter Type 6 | J220: Single phase non off peak - Accumulation | K220: ACC 1ph | L220: No. | O220: 78.34620348 | P220: 2602.653797 | Q220: 0 | R220: 0 | S220: 0 | T220: 0 | U220: 0 | V220: 0
F221: Non AMI - Type 5 Locally read Interval - 3 Phase | G221: Multi Phase Meter Population | H221: Direct Connect Meter Population | I221: Meter Type 5 | J221: Multi phase direct connect - MRIM | K221: INT 3ph | L221: No. | O221: 0 | P221: 6 | Q221: 0 | R221: 0 | S221: 0 | T221: 0 | U221: 0 | V221: 0
F222: Non AMI - Type 6 Locally read Accumulation - 3 Phase | G222: Multi Phase Meter Population | H222: Direct Connect Meter Population | I222: Meter Type 6 | J222: Multi phase direct connect - Accumulation | K222: ACC 3ph | L222: No. | O222: 40.75969358 | P222: 1285.240306 | Q222: 0 | R222: 0 | S222: 0 | T222: 0 | U222: 0 | V222: 0
L223: No. | V223: 0
L224: No. | V224: 0
L225: No. | V225: 0
L226: No. | V226: 0
F227: Total | L227: No. | O227: =SUM(O212:O226) -> 2265.105897 | P227: =SUM(P212:P226) -> 6084.776536 | Q227: =SUM(Q212:Q226) -> 2200.037045 | R227: 2227.236196 | S227: 2254.440124 | T227: 2281.648661 | U227: 2308.862095 | V227: =SUM(Q227:U227) -> 11272.22412
D229: iv | E229: =$G$32 -> Alterations - Meters Removed
F231: =I_MeterTypes[[#Headers],[Meter Type]] -> Meter Type | G231: =I_MeterTypes[[#Headers],[RIN Subcategory 1]] -> RIN Subcategory 1 | H231: =I_MeterTypes[[#Headers],[RIN Subcategory 2]] -> RIN Subcategory 2 | I231: =I_MeterTypes[[#Headers],[AER Type]] -> AER Type | J231: =I_MeterTypes[[#Headers],[RIN Subcategory 3]] -> RIN Subcategory 3 | K231: =I_MeterTypes[[#Headers],[Meter Code]] -> Meter Code | L231: Units | O231: =O$171 -> 2024-25 | P231: 2025-26 | Q231: 2026-27 | R231: 2027-28 | S231: 2028-29 | T231: 2029-30 | U231: 2030-31 | V231: Total
F232: =I_MeterTypes[Meter Type] -> AMI - Single Phase, single element | G232: =I_MeterTypes[RIN Subcategory 1] -> Single Phase Meter Population | H232: =I_MeterTypes[RIN Subcategory 2] -> Direct Connect Meter Population | I232: =I_MeterTypes[AER Type] -> Meter Type 4 | J232: =I_MeterTypes[RIN Subcategory 3] -> Single phase single element - AMI | K232: =I_MeterTypes[Meter Code] -> AMI 1ph 1e | L232: No. | O232: 418 | P232: 423.2361868 | Q232: 428.5253891 | R232: 433.8232665 | S232: 439.1220746 | T232: 444.4217802 | U232: 449.7224397 | V232: =SUM(N232:U232) -> 3036.851137
F233: AMI - Single Phase, two elements with 31.5A load control | G233: Single Phase Meter Population | H233: Direct Connect Meter Population | I233: Meter Type 4 | J233: Single phase two element with contactor - AMI | K233: AMI 1ph 2e | L233: =L$150 -> No. | O233: 49 | P233: 49.61381138 | Q233: 50.23383748 | R233: 50.85488052 | S233: 51.47603267 | T233: 52.09729003 | U233: 52.7186592 | V233: 355.9945113
F234: AMI - 3 Phase with no load control | G234: Multi Phase Meter Population | H234: Direct Connect Meter Population | I234: Meter Type 4 | J234: Three phase - AMI | K234: AMI 3ph | L234: No. | O234: 18 | P234: 18.22548173 | Q234: 18.45324642 | R234: 18.68138468 | S234: 18.90956302 | T234: 19.13778001 | U234: 19.36603807 | V234: 130.7734939
F235: AMI - Single Phase, single element, with 31.5A load control | G235: Single Phase Meter Population | H235: Direct Connect Meter Population | I235: Meter Type 4 | J235: Single phase single element with contactor - AMI | K235: AMI 1ph DC | L235: No. | O235: 18 | P235: 18.22548173 | Q235: 18.45324642 | R235: 18.68138468 | S235: 18.90956302 | T235: 19.13778001 | U235: 19.36603807 | V235: 130.7734939
F236: AMI - 3 Phase with 31.5A and 2A load control | G236: Multi Phase Meter Population | H236: Direct Connect Meter Population | I236: Meter Type 4 | J236: Three phase direct connected meter with contactor - AMI | K236: AMI 3ph DC | L236: No. | O236: 7 | P236: 7.08768734 | Q236: 7.176262497 | R236: 7.264982932 | S236: 7.353718952 | T236: 7.442470004 | U236: 7.531237029 | V236: 50.85635875
F237: AMI - 3 Phase CT connect | G237: Multi Phase Meter Population | H237: Current Transformer Connected Meter Population | I237: Meter Type 4 | J237: Three phase Current transformer connected meter - AMI | K237: AMI 3ph CT | L237: No. | O237: 5 | P237: 5.062633814 | Q237: 5.125901783 | R237: 5.189273523 | S237: 5.252656394 | T237: 5.316050003 | U237: 5.379455021 | V237: 36.32597054
F238: AMI - 3 Phase CT & VT connect | G238: Multi Phase Meter Population | H238: Current Transformer Connected Meter Population | I238: Meter Type 4 | J238: Three phase Current transformer connected meter - AMI | K238: AMI 3ph CT VT | L238: No. | O238: 0 | P238: 0 | Q238: 0 | R238: 0 | S238: 0 | T238: 0 | U238: 0 | V238: 0
F239: Non AMI - Type 5 Locally read Interval - Single Phase | G239: Single Phase Meter Population | H239: Direct Connect Meter Population | I239: Meter Type 5 | J239: Single phase non off peak - MRIM | K239: INT 1ph | L239: No. | O239: 0 | P239: 0 | Q239: 0 | R239: 0 | S239: 0 | T239: 0 | U239: 0 | V239: 0
... 190 more rows

Sheet Input | Comms, IT, Other
B1: ='Input|General'!B1&" v"&'Input|General'!$D$2 -> AER Metering Opex & Capex Forecasting Model v1.08
B2: =MID(CELL("filename",A1),FIND("]",CELL("filename",A1))+1,255) -> Input | Comms, IT, Other | H2: Key: | I2: Input | J2: External Link | L2: Internal Link | N2: JEN - RP | P2: AER Addition
A6: =LEFT('Input | Meters Vols & Costs'!B144,1)+1&". Comms Setup" -> 7. Comms Setup
B8: a | C8: Define equipment types and actions / drivers of volumes and unit costs
E10: Equipment Type
E11: Access Points
E12: Relays
E13: Micro AP
E14: Poles
E15: Batteries
E16: External Antenna in Buildings
E17: Antennas
E27: Action/Driver | F27: Impact on population | H27: (Calc) Impact on meter population
A28: =IF(E28<>"",(F28<>"")/1,1) -> 1 | E28: Growth | F28: Add | H28: =IFERROR(_xlfn.IFS(F28="Add",1,F28="No Effect",0,F28="Subtract",-1),0) -> 1
A29: =IF(E29<>"",(F29<>"")/1,1) -> 1 | E29: Maintenance (Failure/Faults) | F29: No Effect | H29: =IFERROR(_xlfn.IFS(F29="Add",1,F29="No Effect",0,F29="Subtract",-1),0) -> 0
A30: 1 | E30: End of life | F30: No Effect | H30: =IFERROR(_xlfn.IFS(F30="Add",1,F30="No Effect",0,F30="Subtract",-1),0) -> 0
A31: 1 | E31: Replacements | F31: No Effect | H31: =IFERROR(_xlfn.IFS(F31="Add",1,F31="No Effect",0,F31="Subtract",-1),0) -> 0
A32: 1 | H32: =IFERROR(_xlfn.IFS(F32="Add",1,F32="No Effect",0,F32="Subtract",-1),0) -> 0
A33: 1 | H33: =IFERROR(_xlfn.IFS(F33="Add",1,F33="No Effect",0,F33="Subtract",-1),0) -> 0
A34: 1 | H34: =IFERROR(_xlfn.IFS(F34="Add",1,F34="No Effect",0,F34="Subtract",-1),0) -> 0
A35: 1 | H35: =IFERROR(_xlfn.IFS(F35="Add",1,F35="No Effect",0,F35="Subtract",-1),0) -> 0
A36: 1 | H36: =IFERROR(_xlfn.IFS(F36="Add",1,F36="No Effect",0,F36="Subtract",-1),0) -> 0
A37: 1 | H37: =IFERROR(_xlfn.IFS(F37="Add",1,F37="No Effect",0,F37="Subtract",-1),0) -> 0
A39: =LEFT(A6,1)+1&". Unit Costs & Cost Allocation" -> 8. Unit Costs & Cost Allocation
B41: a | C41: Unit costs and cost allocation
G42: Unit Costs
E43: Equipment Type | F43: Action/Driver | G43: Equipment cost | J43: Installation cost | M43: Allocation to SCS | N43: Overheads rate | R43: Allocation to SCS
G44: Basis | H44: Apply Non-Labour Real Price Change? | I44: Unit Rate | J44: Basis | K44: Apply Labour Real Price Change? | L44: Unit Rate | R44: Previous Value
E45: Access Points | F45: Growth | G45: =Basis_Capex -> 2024-06-01 | H45: No | I45: 13518.44794 | J45: =Basis_Capex -> 2024-06-01 | K45: Yes | L45: 1314.970026 | M45: 0 | N45: 0 | R45: 0
E46: Access Points | F46: Maintenance (Failure/Faults) | G46: 2024-06-01 | H46: No | I46: 10461.98926 | J46: 2024-06-01 | K46: Yes | L46: 1189.734786 | M46: 0 | N46: 0 | R46: 0
E47: Access Points | F47: End of life | G47: 2024-06-01 | H47: No | I47: 10461.98926 | J47: 2024-06-01 | K47: Yes | L47: 1189.734786 | M47: 0 | N47: 0 | R47: 0
E48: Relays | F48: Growth | G48: 2024-06-01 | H48: No | I48: 5219.699511 | J48: 2024-06-01 | K48: Yes | L48: 1565.440508 | M48: 0 | N48: 0 | R48: 0
E49: Relays | F49: Maintenance (Failure/Faults) | G49: 2024-06-01 | H49: No | I49: 2779.954219 | J49: 2024-06-01 | K49: Yes | L49: 1283.661216 | M49: 0 | N49: 0 | R49: 0
E50: Relays | F50: End of life | G50: 2024-06-01 | H50: No | I50: 2779.954219 | J50: 2024-06-01 | K50: Yes | L50: 1283.661216 | M50: 0 | N50: 0 | R50: 0
E51: Micro AP | F51: Growth | G51: 2024-06-01 | H51: No | I51: 361.443747 | J51: 2024-06-01 | K51: Yes | L51: 422.668937 | M51: 0 | N51: 0 | R51: 0
E52: Micro AP | F52: Maintenance (Failure/Faults) | G52: 2024-06-01 | H52: No | I52: 361.443747 | J52: 2024-06-01 | K52: Yes | L52: 422.668937 | M52: 0 | N52: 0 | R52: 0
E53: Micro AP | F53: End of life | G53: 2024-06-01 | H53: No | I53: 361.443747 | J53: 2024-06-01 | K53: Yes | L53: 422.668937 | M53: 0 | N53: 0 | R53: 0
E54: Poles | F54: Growth | G54: 2024-06-01 | H54: No | I54: 1233.759284 | J54: 2024-06-01 | K54: Yes | L54: 7670.658487 | M54: 0 | N54: 0 | R54: 0
E55: Poles | F55: Replacements | G55: 2024-06-01 | H55: No | I55: 1233.759284 | J55: 2024-06-01 | K55: Yes | L55: 7670.658487 | M55: 0 | N55: 0 | R55: 0
E56: Batteries | F56: Growth | G56: 2024-06-01 | H56: No | I56: 2439.745292 | J56: 2024-06-01 | K56: Yes | L56: 939.2643045 | M56: 0 | N56: 0 | R56: 0
E57: Batteries | F57: Maintenance (Failure/Faults) | G57: 2024-06-01 | H57: No | I57: 2439.745292 | J57: 2024-06-01 | K57: Yes | L57: 939.2643045 | M57: 0 | N57: 0 | R57: 0
E58: Batteries | F58: End of life | G58: 2024-06-01 | H58: No | I58: 2439.745292 | J58: 2024-06-01 | K58: Yes | L58: 939.2643045 | M58: 0 | N58: 0 | R58: 0
E59: External Antenna in Buildings | F59: Growth | G59: 2024-06-01 | H59: No | I59: 306.9533639 | J59: 2024-06-01 | K59: Yes | L59: 3287.425066 | M59: 0 | N59: 0 | R59: 0
E60: External Antenna in Buildings | F60: Maintenance (Failure/Faults) | G60: 2024-06-01 | H60: No | I60: 306.9533639 | J60: 2024-06-01 | K60: Yes | L60: 3287.425066 | M60: 0 | N60: 0 | R60: 0
E61: External Antenna in Buildings | F61: End of life | G61: 2024-06-01 | H61: No | I61: 306.9533639 | J61: 2024-06-01 | K61: Yes | L61: 3287.425066 | M61: 0 | N61: 0 | R61: 0
E62: Antennas | F62: Growth | G62: 2024-06-01 | H62: No | I62: 23.50534404 | J62: 2024-06-01 | K62: Yes | L62: 673.1394182 | M62: 0 | N62: 0 | R62: 0
E63: Antennas | F63: Maintenance (Failure/Faults) | G63: 2024-06-01 | H63: No | I63: 23.50534404 | J63: 2024-06-01 | K63: Yes | L63: 673.1394182 | M63: 0 | N63: 0 | R63: 0
E64: Antennas | F64: End of life | G64: 2024-06-01 | H64: No | I64: 23.50534404 | J64: 2024-06-01 | K64: Yes | L64: 673.1394182 | M64: 0 | N64: 0 | R64: 0
B67: b | C67: Project Costs - Comms
E69: Project Name | G69: SCS Allocation | H69: Labour Cost Escalation | I69: Non-Labour Cost Escalation | J69: Labour Cost Weighting | K69: Overheads | Q69: Labour Cost Escalation | R69: Non-Labour Cost Escalation
Q70: =IF(H70="Yes",1,0) -> 0 | R70: =IF(I70="Yes",1,0) -> 0
Q71: 0 | R71: 0
Q72: 0 | R72: 0
Q73: 0 | R73: 0
Q74: 0 | R74: 0
Q75: 0 | R75: 0
Q76: 0 | R76: 0
Q77: 0 | R77: 0
Q78: 0 | R78: 0
Q79: 0 | R79: 0
M81: Forecast RP
E82: Project Name | G82: Units | H82: Basis | J82: =(LEFT(K82,4)-1&IF(MID(K82,5,1)="","","-"&TEXT(MOD(MID(K82,6,2)-1,100),"00"))) -> 2023-24 | K82: =(LEFT(L82,4)-1&IF(MID(L82,5,1)="","","-"&TEXT(MOD(MID(L82,6,2)-1,100),"00"))) -> 2024-25 | L82: =(LEFT(M82,4)-1&IF(MID(M82,5,1)="","","-"&TEXT(MOD(MID(M82,6,2)-1,100),"00"))) -> 2025-26 | M82: =FPFirstYear -> 2026-27 | N82: =(LEFT(M82,4)+1&IF(MID(M82,5,1)="","","-"&TEXT(MOD(MID(M82,6,2)+1,100),"00"))) -> 2027-28 | O82: =(LEFT(N82,4)+1&IF(MID(N82,5,1)="","","-"&TEXT(MOD(MID(N82,6,2)+1,100),"00"))) -> 2028-29 | P82: =(LEFT(O82,4)+1&IF(MID(O82,5,1)="","","-"&TEXT(MOD(MID(O82,6,2)+1,100),"00"))) -> 2029-30 | Q82: =(LEFT(P82,4)+1&IF(MID(P82,5,1)="","","-"&TEXT(MOD(MID(P82,6,2)+1,100),"00"))) -> 2030-31
G83: $dollars | H83: =Basis_Capex -> 2024-06-01
G84: =$G$83 -> $dollars | H84: 2024-06-01
G85: $dollars | H85: 2024-06-01
G86: $dollars | H86: 2024-06-01
G87: $dollars | H87: 2024-06-01
G88: $dollars | H88: 2024-06-01
G89: $dollars | H89: 2024-06-01
G90: $dollars | H90: 2024-06-01
G91: $dollars | H91: 2024-06-01
G92: $dollars | H92: 2024-06-01
J93: =SUM(J83:J92) -> 0 | K93: 0 | L93: 0 | M93: 0 | N93: 0 | O93: 0 | P93: 0 | Q93: 0 | R93: =SUM(J93:Q93) -> 0
B95: c | C95: Project Costs - IT
E96: Project Name | G96: SCS Allocation | H96: Labour Cost Escalation | I96: Non-Labour Cost Escalation | J96: Labour Cost Weighting | K96: Overheads | Q96: Labour Cost Escalation | R96: Non-Labour Cost Escalation
E97: Lifecycle upgrade | G97: 0 | H97: Yes | I97: Yes | J97: 0 | K97: 0 | Q97: =IF(H97="Yes",1,0) -> 1 | R97: =IF(I97="Yes",1,0) -> 1
E98: IT systems capacity enhancement (Changes to support meter inspections and replacements) | G98: 0 | H98: Yes | I98: Yes | J98: 0 | K98: 0 | Q98: 1 | R98: 1
E99: IT Flexible Trading arrangement | G99: 0 | H99: Yes | I99: Yes | J99: 0 | K99: 0 | Q99: 1 | R99: 1
G100: 0 | J100: 0 | K100: 0 | Q100: 0 | R100: 0
G101: 0 | J101: 0 | K101: 0 | Q101: 0 | R101: 0
G102: 0 | J102: 0 | K102: 0 | Q102: 0 | R102: 0
G103: 0 | J103: 0 | K103: 0 | Q103: 0 | R103: 0
G104: 0 | J104: 0 | K104: 0 | Q104: 0 | R104: 0
G105: 0 | J105: 0 | K105: 0 | Q105: 0 | R105: 0
G106: 0 | J106: 0 | K106: 0 | Q106: 0 | R106: 0
M108: Forecast RP
E109: Project Name | G109: Units | H109: Basis | J109: =J$82 -> 2023-24 | K109: 2024-25 | L109: 2025-26 | M109: 2026-27 | N109: 2027-28 | O109: 2028-29 | P109: 2029-30 | Q109: 2030-31
E110: =E97 -> Lifecycle upgrade | G110: $dollars | H110: =Basis_Capex -> 2024-06-01 | J110: 0 | K110: 0 | L110: 0 | M110: =4113980.43883792*0.5 -> 2056990.219 | N110: 0 | O110: 0 | P110: =4113980.43883792*0.5 -> 2056990.219 | Q110: 0
E111: =E98 -> IT systems capacity enhancement (Changes to support meter inspections and replacements) | G111: =$G$110 -> $dollars | H111: 2024-06-01 | J111: 0 | K111: 0 | L111: 0 | M111: 650000 | N111: 650000 | O111: 0 | P111: 0 | Q111: 0
E112: =E99 -> IT Flexible Trading arrangement | G112: $dollars | H112: 2024-06-01 | L112: 429095.7676 | M112: 27337.15925
G113: $dollars | H113: 2024-06-01
G114: $dollars | H114: 2024-06-01
G115: $dollars | H115: 2024-06-01
G116: $dollars | H116: 2024-06-01
G117: $dollars | H117: 2024-06-01
G118: $dollars | H118: 2024-06-01
G119: $dollars | H119: 2024-06-01
J120: =SUM(J110:J119) -> 0 | K120: =SUM(K110:K119) -> 0 | L120: 429095.7676 | M120: 2734327.379 | N120: 650000 | O120: 0 | P120: 2056990.219 | Q120: 0 | R120: =SUM(J120:Q120) -> 5870413.366
B122: d | C122: IT | M122: Forecast RP
E123: Project Name | F123: SCS Allocation | G123: Units | H123: Basis | J123: =J$82 -> 2023-24 | K123: =K$82 -> 2024-25 | L123: =L$82 -> 2025-26 | M123: 2026-27 | N123: 2027-28 | O123: 2028-29 | P123: 2029-30 | Q123: 2030-31 | R123: Overheads
E124: Meter Replacement Program | F124: 0 | G124: $dollars | H124: =Basis_Capex -> 2024-06-01 | J124: 0 | K124: 0 | L124: 0 | R124: 0
E125: Network Design & Assurance Studies | F125: 0 | G125: =$G$124 -> $dollars | H125: =Basis_Capex -> 2024-06-01 | M125: 0 | N125: 100000 | O125: 0 | P125: 0 | Q125: 0 | R125: 0
E126: Incremental data storage | F126: 0 | G126: =$G$124 -> $dollars | H126: =Basis_Capex -> 2024-06-01 | M126: 48816.35581 | N126: 48816.35581 | O126: 48816.35581 | P126: 48816.35581 | Q126: 48816.35581 | R126: 0
E127: Project 4 | F127: 0 | G127: =$G$124 -> $dollars | H127: =Basis_Capex -> 2024-06-01 | R127: 0
J128: =SUM(J124:J127) -> 0 | K128: 0 | L128: 0 | M128: 48816.35581 | N128: 148816.3558 | O128: 48816.35581 | P128: 48816.35581 | Q128: 48816.35581 | R128: =SUM(J128:Q128) -> 344081.7791
B129: e | C129: Other
E130: Project Name | F130: SCS Allocation | G130: Units | H130: Basis | J130: =J$82 -> 2023-24 | K130: =K$82 -> 2024-25 | L130: =L$82 -> 2025-26 | M130: 2026-27 | N130: 2027-28 | O130: 2028-29 | P130: 2029-30 | Q130: 2030-31 | R130: Overheads
E131: Access Points and Relays | F131: 0 | G131: $dollars | H131: =Basis_Capex -> 2024-06-01 | J131: 0 | K131: 0 | L131: 0 | M131: 0 | N131: 0 | O131: 0 | P131: 0 | Q131: 0 | R131: 0
E132: Project 2 | F132: 0 | G132: =$G$131 -> $dollars | H132: =Basis_Capex -> 2024-06-01 | R132: 0
E133: Project 3 | F133: 0 | G133: =$G$131 -> $dollars | H133: =Basis_Capex -> 2024-06-01 | R133: 0
E134: Project 4 | F134: 0 | G134: =$G$131 -> $dollars | H134: =Basis_Capex -> 2024-06-01 | R134: 0
J135: =SUM(J131:J134) -> 0 | K135: =SUM(K131:K134) -> 0 | L135: 0 | M135: 0 | N135: 0 | O135: 0 | P135: 0 | Q135: 0 | R135: =SUM(J135:Q135) -> 0
B136: f | C136: Other 3
E137: Project Name | F137: SCS Allocation | G137: Units | H137: Basis | J137: =J$82 -> 2023-24 | K137: =K$82 -> 2024-25 | L137: =L$82 -> 2025-26 | M137: 2026-27 | N137: 2027-28 | O137: 2028-29 | P137: 2029-30 | Q137: 2030-31 | R137: Overheads
E138: Project 1 | F138: 0 | G138: $dollars | H138: =Basis_Capex -> 2024-06-01 | R138: 0
E139: Project 2 | F139: 0 | G139: =$G$138 -> $dollars | H139: =Basis_Capex -> 2024-06-01 | R139: 0
E140: Project 3 | F140: 0 | G140: =$G$138 -> $dollars | H140: =Basis_Capex -> 2024-06-01 | R140: 0
E141: Project 4 | F141: 0 | G141: =$G$138 -> $dollars | H141: =Basis_Capex -> 2024-06-01 | R141: 0
J142: =SUM(J138:J141) -> 0 | K142: 0 | L142: 0 | M142: 0 | N142: 0 | O142: 0 | P142: 0 | Q142: 0 | R142: =SUM(J142:Q142) -> 0
B143: g | C143: Other 4
E144: Project Name | F144: SCS Allocation | G144: Units | H144: Basis | J144: =J$82 -> 2023-24 | K144: =K$82 -> 2024-25 | L144: =L$82 -> 2025-26 | M144: 2026-27 | N144: 2027-28 | O144: 2028-29 | P144: 2029-30 | Q144: 2030-31 | R144: Overheads
E145: Project 1 | F145: 0 | G145: $000 | H145: =Basis_Capex -> 2024-06-01 | R145: 0
E146: Project 2 | F146: 0 | G146: =$G$145 -> $000 | H146: =Basis_Capex -> 2024-06-01 | R146: 0
E147: Project 3 | F147: 0 | G147: =$G$145 -> $000 | H147: =Basis_Capex -> 2024-06-01 | R147: 0
E148: Project 4 | F148: 0 | G148: =$G$145 -> $000 | H148: =Basis_Capex -> 2024-06-01 | R148: 0
J149: =SUM(J145:J148) -> 0 | K149: 0 | L149: 0 | M149: 0 | N149: 0 | O149: 0 | P149: 0 | Q149: 0 | R149: =SUM(J149:Q149) -> 0
R151: =SUM(R149,R142,R135,R128,R120,R93) -> 6214495.145
A153: =LEFT(A39,1)+1&". Base Population" -> 9. Base Population
B155: a | C155: Population | G155: Base | I155: Multipliers
E156: Equipment Type | F156: Units | G156: =Capex_BaseYear -> 2023-24 | I156: Equipment Type | J156: Multiplier
D157: 1 | E157: =E11 -> Access Points | F157: No. | G157: 174 | I157: Acess Points | J157: 0.05
D158: 2 | E158: Relays | F158: No. | G158: 310 | I158: Relays | J158: 0.05
D159: 3 | E159: Micro AP | F159: No. | G159: 0 | I159: Micro AP | J159: =1/3 -> 0.3333333333
D160: 4 | E160: Poles | F160: No. | G160: 11
D161: 5 | E161: Batteries | F161: No. | G161: 484
D162: 6 | E162: External Antenna in Buildings | F162: No. | G162: 100
D163: 7 | E163: Antennas | F163: No. | G163: 10668
D164: 8 | F164: No.
D165: 9 | F165: No.
D166: 10 | F166: No.
D167: 11 | F167: No.
D168: 12 | F168: No.
D169: 13 | F169: No.
D170: 14 | F170: No.
D171: 15 | F171: No.
A173: =LEFT(A153,1)+1&". Forecast Volumes" -> 10. Forecast Volumes
B175: a | C175: Inputs | J175: =IF(J176=Capex_BaseYear,"Base Year","") -> Base Year | K175: =IF(K176=Capex_BaseYear,"Base Year","") ->  | L175: =IF(L176=Capex_BaseYear,"Base Year","") ->  | M175: Forecast RP
E176: Equipment Type | F176: Action/Driver | G176: Volume basis | H176: Volume factor | J176: =J$82 -> 2023-24 | K176: =K$82 -> 2024-25 | L176: =L$82 -> 2025-26 | M176: 2026-27 | N176: 2027-28 | O176: 2028-29 | P176: 2029-30 | Q176: 2030-31
E177: =ICC_AllocFields -> Access Points | F177: Growth | G177: Enter annual volume | I177: =IF(AND(G177<>"Enter annual volume",G177<>""),"Auto-Calculated in next table","") ->  | K177: 12 | L177: 37 | M177: 75 | N177: 78 | O177: 51 | P177: 54 | Q177: 57
E178: Access Points | F178: Maintenance (Failure/Faults) | G178: Enter annual volume | I178: =IF(AND(G178<>"Enter annual volume",G178<>""),"Auto-Calculated in next table","") ->  | K178: 4 | L178: 4 | M178: 4 | N178: 5 | O178: 5 | P178: 5 | Q178: 6
E179: Access Points | F179: End of life | G179: Enter annual volume | K179: 1 | L179: 1 | M179: =ROUND($J157*L248,0) -> 11 | N179: =ROUND($J157*M248,0) -> 15 | O179: 19 | P179: 21 | Q179: 24
E180: Relays | F180: Growth | G180: Enter annual volume | K180: 0 | L180: 0 | M180: 0 | N180: 0 | O180: 0 | P180: 0 | Q180: 0
E181: Relays | F181: Maintenance (Failure/Faults) | G181: Enter annual volume | K181: 6 | L181: 6 | M181: 6 | N181: 8 | O181: 8 | P181: 8 | Q181: 9
E182: Relays | F182: End of life | G182: Enter annual volume | K182: 0 | L182: 20 | M182: 50 | N182: 60 | O182: 65 | P182: 15 | Q182: 15
E183: Micro AP | F183: Growth | G183: Enter annual volume | K183: 40 | L183: 55 | M183: 60 | N183: 60 | O183: 52 | P183: 52 | Q183: 52
E184: Micro AP | F184: Maintenance (Failure/Faults) | G184: Enter annual volume | K184: 1 | L184: 1 | M184: 2 | N184: 2 | O184: 3 | P184: 3 | Q184: 3
E185: Micro AP | F185: End of life | G185: Enter annual volume | K185: 0 | L185: 0 | M185: 0 | N185: =ROUND($J$159*M250,0) -> 52 | O185: =ROUND($J$159*N250,0) -> 72 | P185: 89 | Q185: 106
E186: Poles | F186: Growth | G186: Enter annual volume | I186: =IF(AND(G186<>"Enter annual volume",G186<>""),"Auto-Calculated in next table","") ->  | K186: 12 | L186: 27 | M186: 30 | N186: 33 | O186: 36 | P186: 39 | Q186: 42
E187: Poles | F187: Replacements | G187: Enter annual volume | K187: 0 | L187: 0 | M187: 0 | N187: 0 | O187: 0 | P187: 0 | Q187: 0
E188: Batteries | F188: Growth | G188: Enter annual volume | K188: 12 | L188: 37 | M188: 75 | N188: 78 | O188: 51 | P188: 54 | Q188: 57
E189: Batteries | F189: Maintenance (Failure/Faults) | G189: Enter annual volume | K189: 7 | L189: 7 | M189: 7 | N189: 7 | O189: 7 | P189: 7 | Q189: 7
E190: Batteries | F190: End of life | G190: Enter annual volume | K190: 0 | L190: 20 | M190: 50 | N190: 60 | O190: 65 | P190: 15 | Q190: 15
E191: External Antenna in Buildings | F191: Growth | G191: Enter annual volume | K191: 10 | L191: 12 | M191: 15 | N191: 17 | O191: 19 | P191: 21 | Q191: 23
E192: External Antenna in Buildings | F192: Maintenance (Failure/Faults) | G192: Enter annual volume | K192: 2 | L192: 2 | M192: 5 | N192: 5 | O192: 7 | P192: 7 | Q192: 10
E193: External Antenna in Buildings | F193: End of life | G193: Enter annual volume | K193: 0 | L193: 0 | M193: 0 | N193: 0 | O193: 0 | P193: 20 | Q193: 30
E194: Antennas | F194: Growth | G194: Enter annual volume | K194: 250 | L194: 270 | M194: 290 | N194: 310 | O194: 330 | P194: 350 | Q194: 370
E195: Antennas | F195: Maintenance (Failure/Faults) | G195: Enter annual volume | K195: 10 | L195: 10 | M195: 15 | N195: 15 | O195: 20 | P195: 20 | Q195: 25
E196: Antennas | F196: End of life | G196: Enter annual volume | K196: 500 | L196: 1000 | M196: 668.52 | N196: 894.06 | O196: 1044.06 | P196: 1134.06 | Q196: 1249.92
B198: b | C198: Auto-filled tables
C200: i | D200: Inputs and Options | M200: Forecast RP
E201: Equipment Type | F201: Action/Driver | G201: Volume basis | H201: Volume factor | J201: =J$82 -> 2023-24 | K201: =K$82 -> 2024-25 | L201: =L$82 -> 2025-26 | M201: 2026-27 | N201: 2027-28 | O201: 2028-29 | P201: 2029-30 | Q201: 2030-31
E202: =ICC_AllocFields -> Access Points | F202: Growth | G202: =G177 -> Enter annual volume | H202: =IFERROR(IF(G202="Enter annual volume","N/A",H177),"") -> N/A | K202: =IF($G202="Proportionate to meter population",$H202*'Input | Meters Vols & Costs'!P$427, IF($G202="Proportionate to population of equipment type",$H202*INDEX(J$248:J$262,MATCH($E202,$E$157:$E$171,0)),K177)) -> 12 | L202: =IF($G202="Proportionate to meter population",$H202*'Input | Meters Vols & Costs'!Q$427, IF($G202="Proportionate to population of equipment type",$H202*INDEX(K$248:K$262,MATCH($E202,$E$157:$E$171,0)),L177)) -> 37 | M202: =IF($G202="Proportionate to meter population",$H202*'Input | Meters Vols & Costs'!R$427, IF($G202="Proportionate to population of equipment type",$H202*INDEX(L$248:L$262,MATCH($E202,$E$157:$E$171,0)),M177)) -> 75 | N202: =IF($G202="Proportionate to meter population",$H202*'Input | Meters Vols & Costs'!S$427, IF($G202="Proportionate to population of equipment type",$H202*INDEX(M$248:M$262,MATCH($E202,$E$157:$E$171,0)),N177)) -> 78 | O202: =IF($G202="Proportionate to meter population",$H202*'Input | Meters Vols & Costs'!T$427, IF($G202="Proportionate to population of equipment type",$H202*INDEX(N$248:N$262,MATCH($E202,$E$157:$E$171,0)),O177)) -> 51 | P202: =IF($G202="Proportionate to meter population",$H202*'Input | Meters Vols & Costs'!U$427, IF($G202="Proportionate to population of equipment type",$H202*INDEX(O$248:O$262,MATCH($E202,$E$157:$E$171,0)),P177)) -> 54 | Q202: =IF($G202="Proportionate to meter population",$H202*'Input | Meters Vols & Costs'!V$427, IF($G202="Proportionate to population of equipment type",$H202*INDEX(P$248:P$262,MATCH($E202,$E$157:$E$171,0)),Q177)) -> 57
E203: Access Points | F203: Maintenance (Failure/Faults) | G203: Enter annual volume | H203: N/A | K203: =IF($G203="Proportionate to meter population",$H203*'Input | Meters Vols & Costs'!P$427, IF($G203="Proportionate to population of equipment type",$H203*INDEX(J$248:J$262,MATCH($E203,$E$157:$E$171,0)),K178)) -> 4 | L203: =IF($G203="Proportionate to meter population",$H203*'Input | Meters Vols & Costs'!Q$427, IF($G203="Proportionate to population of equipment type",$H203*INDEX(K$248:K$262,MATCH($E203,$E$157:$E$171,0)),L178)) -> 4 | M203: =IF($G203="Proportionate to meter population",$H203*'Input | Meters Vols & Costs'!R$427, IF($G203="Proportionate to population of equipment type",$H203*INDEX(L$248:L$262,MATCH($E203,$E$157:$E$171,0)),M178)) -> 4 | N203: =IF($G203="Proportionate to meter population",$H203*'Input | Meters Vols & Costs'!S$427, IF($G203="Proportionate to population of equipment type",$H203*INDEX(M$248:M$262,MATCH($E203,$E$157:$E$171,0)),N178)) -> 5 | O203: =IF($G203="Proportionate to meter population",$H203*'Input | Meters Vols & Costs'!T$427, IF($G203="Proportionate to population of equipment type",$H203*INDEX(N$248:N$262,MATCH($E203,$E$157:$E$171,0)),O178)) -> 5 | P203: =IF($G203="Proportionate to meter population",$H203*'Input | Meters Vols & Costs'!U$427, IF($G203="Proportionate to population of equipment type",$H203*INDEX(O$248:O$262,MATCH($E203,$E$157:$E$171,0)),P178)) -> 5 | Q203: =IF($G203="Proportionate to meter population",$H203*'Input | Meters Vols & Costs'!V$427, IF($G203="Proportionate to population of equipment type",$H203*INDEX(P$248:P$262,MATCH($E203,$E$157:$E$171,0)),Q178)) -> 6
E204: Access Points | F204: End of life | G204: Enter annual volume | H204: N/A | K204: =IF($G204="Proportionate to meter population",$H204*'Input | Meters Vols & Costs'!P$427, IF($G204="Proportionate to population of equipment type",$H204*INDEX(J$248:J$262,MATCH($E204,$E$157:$E$171,0)),K179)) -> 1 | L204: =IF($G204="Proportionate to meter population",$H204*'Input | Meters Vols & Costs'!Q$427, IF($G204="Proportionate to population of equipment type",$H204*INDEX(K$248:K$262,MATCH($E204,$E$157:$E$171,0)),L179)) -> 1 | M204: =IF($G204="Proportionate to meter population",$H204*'Input | Meters Vols & Costs'!R$427, IF($G204="Proportionate to population of equipment type",$H204*INDEX(L$248:L$262,MATCH($E204,$E$157:$E$171,0)),M179)) -> 11 | N204: =IF($G204="Proportionate to meter population",$H204*'Input | Meters Vols & Costs'!S$427, IF($G204="Proportionate to population of equipment type",$H204*INDEX(M$248:M$262,MATCH($E204,$E$157:$E$171,0)),N179)) -> 15 | O204: =IF($G204="Proportionate to meter population",$H204*'Input | Meters Vols & Costs'!T$427, IF($G204="Proportionate to population of equipment type",$H204*INDEX(N$248:N$262,MATCH($E204,$E$157:$E$171,0)),O179)) -> 19 | P204: =IF($G204="Proportionate to meter population",$H204*'Input | Meters Vols & Costs'!U$427, IF($G204="Proportionate to population of equipment type",$H204*INDEX(O$248:O$262,MATCH($E204,$E$157:$E$171,0)),P179)) -> 21 | Q204: =IF($G204="Proportionate to meter population",$H204*'Input | Meters Vols & Costs'!V$427, IF($G204="Proportionate to population of equipment type",$H204*INDEX(P$248:P$262,MATCH($E204,$E$157:$E$171,0)),Q179)) -> 24
E205: Relays | F205: Growth | G205: Enter annual volume | H205: N/A | K205: =IF($G205="Proportionate to meter population",$H205*'Input | Meters Vols & Costs'!P$427, IF($G205="Proportionate to population of equipment type",$H205*INDEX(J$248:J$262,MATCH($E205,$E$157:$E$171,0)),K180)) -> 0 | L205: =IF($G205="Proportionate to meter population",$H205*'Input | Meters Vols & Costs'!Q$427, IF($G205="Proportionate to population of equipment type",$H205*INDEX(K$248:K$262,MATCH($E205,$E$157:$E$171,0)),L180)) -> 0 | M205: =IF($G205="Proportionate to meter population",$H205*'Input | Meters Vols & Costs'!R$427, IF($G205="Proportionate to population of equipment type",$H205*INDEX(L$248:L$262,MATCH($E205,$E$157:$E$171,0)),M180)) -> 0 | N205: =IF($G205="Proportionate to meter population",$H205*'Input | Meters Vols & Costs'!S$427, IF($G205="Proportionate to population of equipment type",$H205*INDEX(M$248:M$262,MATCH($E205,$E$157:$E$171,0)),N180)) -> 0 | O205: =IF($G205="Proportionate to meter population",$H205*'Input | Meters Vols & Costs'!T$427, IF($G205="Proportionate to population of equipment type",$H205*INDEX(N$248:N$262,MATCH($E205,$E$157:$E$171,0)),O180)) -> 0 | P205: =IF($G205="Proportionate to meter population",$H205*'Input | Meters Vols & Costs'!U$427, IF($G205="Proportionate to population of equipment type",$H205*INDEX(O$248:O$262,MATCH($E205,$E$157:$E$171,0)),P180)) -> 0 | Q205: =IF($G205="Proportionate to meter population",$H205*'Input | Meters Vols & Costs'!V$427, IF($G205="Proportionate to population of equipment type",$H205*INDEX(P$248:P$262,MATCH($E205,$E$157:$E$171,0)),Q180)) -> 0
E206: Relays | F206: Maintenance (Failure/Faults) | G206: Enter annual volume | H206: N/A | K206: =IF($G206="Proportionate to meter population",$H206*'Input | Meters Vols & Costs'!P$427, IF($G206="Proportionate to population of equipment type",$H206*INDEX(J$248:J$262,MATCH($E206,$E$157:$E$171,0)),K181)) -> 6 | L206: =IF($G206="Proportionate to meter population",$H206*'Input | Meters Vols & Costs'!Q$427, IF($G206="Proportionate to population of equipment type",$H206*INDEX(K$248:K$262,MATCH($E206,$E$157:$E$171,0)),L181)) -> 6 | M206: =IF($G206="Proportionate to meter population",$H206*'Input | Meters Vols & Costs'!R$427, IF($G206="Proportionate to population of equipment type",$H206*INDEX(L$248:L$262,MATCH($E206,$E$157:$E$171,0)),M181)) -> 6 | N206: =IF($G206="Proportionate to meter population",$H206*'Input | Meters Vols & Costs'!S$427, IF($G206="Proportionate to population of equipment type",$H206*INDEX(M$248:M$262,MATCH($E206,$E$157:$E$171,0)),N181)) -> 8 | O206: =IF($G206="Proportionate to meter population",$H206*'Input | Meters Vols & Costs'!T$427, IF($G206="Proportionate to population of equipment type",$H206*INDEX(N$248:N$262,MATCH($E206,$E$157:$E$171,0)),O181)) -> 8 | P206: =IF($G206="Proportionate to meter population",$H206*'Input | Meters Vols & Costs'!U$427, IF($G206="Proportionate to population of equipment type",$H206*INDEX(O$248:O$262,MATCH($E206,$E$157:$E$171,0)),P181)) -> 8 | Q206: =IF($G206="Proportionate to meter population",$H206*'Input | Meters Vols & Costs'!V$427, IF($G206="Proportionate to population of equipment type",$H206*INDEX(P$248:P$262,MATCH($E206,$E$157:$E$171,0)),Q181)) -> 9
E207: Relays | F207: End of life | G207: Enter annual volume | H207: N/A | K207: =IF($G207="Proportionate to meter population",$H207*'Input | Meters Vols & Costs'!P$427, IF($G207="Proportionate to population of equipment type",$H207*INDEX(J$248:J$262,MATCH($E207,$E$157:$E$171,0)),K182)) -> 0 | L207: =IF($G207="Proportionate to meter population",$H207*'Input | Meters Vols & Costs'!Q$427, IF($G207="Proportionate to population of equipment type",$H207*INDEX(K$248:K$262,MATCH($E207,$E$157:$E$171,0)),L182)) -> 20 | M207: =IF($G207="Proportionate to meter population",$H207*'Input | Meters Vols & Costs'!R$427, IF($G207="Proportionate to population of equipment type",$H207*INDEX(L$248:L$262,MATCH($E207,$E$157:$E$171,0)),M182)) -> 50 | N207: =IF($G207="Proportionate to meter population",$H207*'Input | Meters Vols & Costs'!S$427, IF($G207="Proportionate to population of equipment type",$H207*INDEX(M$248:M$262,MATCH($E207,$E$157:$E$171,0)),N182)) -> 60 | O207: =IF($G207="Proportionate to meter population",$H207*'Input | Meters Vols & Costs'!T$427, IF($G207="Proportionate to population of equipment type",$H207*INDEX(N$248:N$262,MATCH($E207,$E$157:$E$171,0)),O182)) -> 65 | P207: =IF($G207="Proportionate to meter population",$H207*'Input | Meters Vols & Costs'!U$427, IF($G207="Proportionate to population of equipment type",$H207*INDEX(O$248:O$262,MATCH($E207,$E$157:$E$171,0)),P182)) -> 15 | Q207: =IF($G207="Proportionate to meter population",$H207*'Input | Meters Vols & Costs'!V$427, IF($G207="Proportionate to population of equipment type",$H207*INDEX(P$248:P$262,MATCH($E207,$E$157:$E$171,0)),Q182)) -> 15
E208: Micro AP | F208: Growth | G208: Enter annual volume | H208: N/A | K208: =IF($G208="Proportionate to meter population",$H208*'Input | Meters Vols & Costs'!P$427, IF($G208="Proportionate to population of equipment type",$H208*INDEX(J$248:J$262,MATCH($E208,$E$157:$E$171,0)),K183)) -> 40 | L208: =IF($G208="Proportionate to meter population",$H208*'Input | Meters Vols & Costs'!Q$427, IF($G208="Proportionate to population of equipment type",$H208*INDEX(K$248:K$262,MATCH($E208,$E$157:$E$171,0)),L183)) -> 55 | M208: =IF($G208="Proportionate to meter population",$H208*'Input | Meters Vols & Costs'!R$427, IF($G208="Proportionate to population of equipment type",$H208*INDEX(L$248:L$262,MATCH($E208,$E$157:$E$171,0)),M183)) -> 60 | N208: =IF($G208="Proportionate to meter population",$H208*'Input | Meters Vols & Costs'!S$427, IF($G208="Proportionate to population of equipment type",$H208*INDEX(M$248:M$262,MATCH($E208,$E$157:$E$171,0)),N183)) -> 60 | O208: =IF($G208="Proportionate to meter population",$H208*'Input | Meters Vols & Costs'!T$427, IF($G208="Proportionate to population of equipment type",$H208*INDEX(N$248:N$262,MATCH($E208,$E$157:$E$171,0)),O183)) -> 52 | P208: =IF($G208="Proportionate to meter population",$H208*'Input | Meters Vols & Costs'!U$427, IF($G208="Proportionate to population of equipment type",$H208*INDEX(O$248:O$262,MATCH($E208,$E$157:$E$171,0)),P183)) -> 52 | Q208: =IF($G208="Proportionate to meter population",$H208*'Input | Meters Vols & Costs'!V$427, IF($G208="Proportionate to population of equipment type",$H208*INDEX(P$248:P$262,MATCH($E208,$E$157:$E$171,0)),Q183)) -> 52
E209: Micro AP | F209: Maintenance (Failure/Faults) | G209: Enter annual volume | H209: N/A | K209: =IF($G209="Proportionate to meter population",$H209*'Input | Meters Vols & Costs'!P$427, IF($G209="Proportionate to population of equipment type",$H209*INDEX(J$248:J$262,MATCH($E209,$E$157:$E$171,0)),K184)) -> 1 | L209: =IF($G209="Proportionate to meter population",$H209*'Input | Meters Vols & Costs'!Q$427, IF($G209="Proportionate to population of equipment type",$H209*INDEX(K$248:K$262,MATCH($E209,$E$157:$E$171,0)),L184)) -> 1 | M209: =IF($G209="Proportionate to meter population",$H209*'Input | Meters Vols & Costs'!R$427, IF($G209="Proportionate to population of equipment type",$H209*INDEX(L$248:L$262,MATCH($E209,$E$157:$E$171,0)),M184)) -> 2 | N209: =IF($G209="Proportionate to meter population",$H209*'Input | Meters Vols & Costs'!S$427, IF($G209="Proportionate to population of equipment type",$H209*INDEX(M$248:M$262,MATCH($E209,$E$157:$E$171,0)),N184)) -> 2 | O209: =IF($G209="Proportionate to meter population",$H209*'Input | Meters Vols & Costs'!T$427, IF($G209="Proportionate to population of equipment type",$H209*INDEX(N$248:N$262,MATCH($E209,$E$157:$E$171,0)),O184)) -> 3 | P209: =IF($G209="Proportionate to meter population",$H209*'Input | Meters Vols & Costs'!U$427, IF($G209="Proportionate to population of equipment type",$H209*INDEX(O$248:O$262,MATCH($E209,$E$157:$E$171,0)),P184)) -> 3 | Q209: =IF($G209="Proportionate to meter population",$H209*'Input | Meters Vols & Costs'!V$427, IF($G209="Proportionate to population of equipment type",$H209*INDEX(P$248:P$262,MATCH($E209,$E$157:$E$171,0)),Q184)) -> 3
E210: Micro AP | F210: End of life | G210: Enter annual volume | H210: N/A | K210: =IF($G210="Proportionate to meter population",$H210*'Input | Meters Vols & Costs'!P$427, IF($G210="Proportionate to population of equipment type",$H210*INDEX(J$248:J$262,MATCH($E210,$E$157:$E$171,0)),K185)) -> 0 | L210: =IF($G210="Proportionate to meter population",$H210*'Input | Meters Vols & Costs'!Q$427, IF($G210="Proportionate to population of equipment type",$H210*INDEX(K$248:K$262,MATCH($E210,$E$157:$E$171,0)),L185)) -> 0 | M210: =IF($G210="Proportionate to meter population",$H210*'Input | Meters Vols & Costs'!R$427, IF($G210="Proportionate to population of equipment type",$H210*INDEX(L$248:L$262,MATCH($E210,$E$157:$E$171,0)),M185)) -> 0 | N210: =IF($G210="Proportionate to meter population",$H210*'Input | Meters Vols & Costs'!S$427, IF($G210="Proportionate to population of equipment type",$H210*INDEX(M$248:M$262,MATCH($E210,$E$157:$E$171,0)),N185)) -> 52 | O210: =IF($G210="Proportionate to meter population",$H210*'Input | Meters Vols & Costs'!T$427, IF($G210="Proportionate to population of equipment type",$H210*INDEX(N$248:N$262,MATCH($E210,$E$157:$E$171,0)),O185)) -> 72 | P210: =IF($G210="Proportionate to meter population",$H210*'Input | Meters Vols & Costs'!U$427, IF($G210="Proportionate to population of equipment type",$H210*INDEX(O$248:O$262,MATCH($E210,$E$157:$E$171,0)),P185)) -> 89 | Q210: =IF($G210="Proportionate to meter population",$H210*'Input | Meters Vols & Costs'!V$427, IF($G210="Proportionate to population of equipment type",$H210*INDEX(P$248:P$262,MATCH($E210,$E$157:$E$171,0)),Q185)) -> 106
E211: Poles | F211: Growth | G211: Enter annual volume | H211: N/A | K211: =IF($G211="Proportionate to meter population",$H211*'Input | Meters Vols & Costs'!P$427, IF($G211="Proportionate to population of equipment type",$H211*INDEX(J$248:J$262,MATCH($E211,$E$157:$E$171,0)),K186)) -> 12 | L211: =IF($G211="Proportionate to meter population",$H211*'Input | Meters Vols & Costs'!Q$427, IF($G211="Proportionate to population of equipment type",$H211*INDEX(K$248:K$262,MATCH($E211,$E$157:$E$171,0)),L186)) -> 27 | M211: =IF($G211="Proportionate to meter population",$H211*'Input | Meters Vols & Costs'!R$427, IF($G211="Proportionate to population of equipment type",$H211*INDEX(L$248:L$262,MATCH($E211,$E$157:$E$171,0)),M186)) -> 30 | N211: =IF($G211="Proportionate to meter population",$H211*'Input | Meters Vols & Costs'!S$427, IF($G211="Proportionate to population of equipment type",$H211*INDEX(M$248:M$262,MATCH($E211,$E$157:$E$171,0)),N186)) -> 33 | O211: =IF($G211="Proportionate to meter population",$H211*'Input | Meters Vols & Costs'!T$427, IF($G211="Proportionate to population of equipment type",$H211*INDEX(N$248:N$262,MATCH($E211,$E$157:$E$171,0)),O186)) -> 36 | P211: =IF($G211="Proportionate to meter population",$H211*'Input | Meters Vols & Costs'!U$427, IF($G211="Proportionate to population of equipment type",$H211*INDEX(O$248:O$262,MATCH($E211,$E$157:$E$171,0)),P186)) -> 39 | Q211: =IF($G211="Proportionate to meter population",$H211*'Input | Meters Vols & Costs'!V$427, IF($G211="Proportionate to population of equipment type",$H211*INDEX(P$248:P$262,MATCH($E211,$E$157:$E$171,0)),Q186)) -> 42
E212: Poles | F212: Replacements | G212: Enter annual volume | H212: N/A | K212: =IF($G212="Proportionate to meter population",$H212*'Input | Meters Vols & Costs'!P$427, IF($G212="Proportionate to population of equipment type",$H212*INDEX(J$248:J$262,MATCH($E212,$E$157:$E$171,0)),K187)) -> 0 | L212: =IF($G212="Proportionate to meter population",$H212*'Input | Meters Vols & Costs'!Q$427, IF($G212="Proportionate to population of equipment type",$H212*INDEX(K$248:K$262,MATCH($E212,$E$157:$E$171,0)),L187)) -> 0 | M212: =IF($G212="Proportionate to meter population",$H212*'Input | Meters Vols & Costs'!R$427, IF($G212="Proportionate to population of equipment type",$H212*INDEX(L$248:L$262,MATCH($E212,$E$157:$E$171,0)),M187)) -> 0 | N212: =IF($G212="Proportionate to meter population",$H212*'Input | Meters Vols & Costs'!S$427, IF($G212="Proportionate to population of equipment type",$H212*INDEX(M$248:M$262,MATCH($E212,$E$157:$E$171,0)),N187)) -> 0 | O212: =IF($G212="Proportionate to meter population",$H212*'Input | Meters Vols & Costs'!T$427, IF($G212="Proportionate to population of equipment type",$H212*INDEX(N$248:N$262,MATCH($E212,$E$157:$E$171,0)),O187)) -> 0 | P212: =IF($G212="Proportionate to meter population",$H212*'Input | Meters Vols & Costs'!U$427, IF($G212="Proportionate to population of equipment type",$H212*INDEX(O$248:O$262,MATCH($E212,$E$157:$E$171,0)),P187)) -> 0 | Q212: =IF($G212="Proportionate to meter population",$H212*'Input | Meters Vols & Costs'!V$427, IF($G212="Proportionate to population of equipment type",$H212*INDEX(P$248:P$262,MATCH($E212,$E$157:$E$171,0)),Q187)) -> 0
E213: Batteries | F213: Growth | G213: Enter annual volume | H213: N/A | K213: =IF($G213="Proportionate to meter population",$H213*'Input | Meters Vols & Costs'!P$427, IF($G213="Proportionate to population of equipment type",$H213*INDEX(J$248:J$262,MATCH($E213,$E$157:$E$171,0)),K188)) -> 12 | L213: =IF($G213="Proportionate to meter population",$H213*'Input | Meters Vols & Costs'!Q$427, IF($G213="Proportionate to population of equipment type",$H213*INDEX(K$248:K$262,MATCH($E213,$E$157:$E$171,0)),L188)) -> 37 | M213: =IF($G213="Proportionate to meter population",$H213*'Input | Meters Vols & Costs'!R$427, IF($G213="Proportionate to population of equipment type",$H213*INDEX(L$248:L$262,MATCH($E213,$E$157:$E$171,0)),M188)) -> 75 | N213: =IF($G213="Proportionate to meter population",$H213*'Input | Meters Vols & Costs'!S$427, IF($G213="Proportionate to population of equipment type",$H213*INDEX(M$248:M$262,MATCH($E213,$E$157:$E$171,0)),N188)) -> 78 | O213: =IF($G213="Proportionate to meter population",$H213*'Input | Meters Vols & Costs'!T$427, IF($G213="Proportionate to population of equipment type",$H213*INDEX(N$248:N$262,MATCH($E213,$E$157:$E$171,0)),O188)) -> 51 | P213: =IF($G213="Proportionate to meter population",$H213*'Input | Meters Vols & Costs'!U$427, IF($G213="Proportionate to population of equipment type",$H213*INDEX(O$248:O$262,MATCH($E213,$E$157:$E$171,0)),P188)) -> 54 | Q213: =IF($G213="Proportionate to meter population",$H213*'Input | Meters Vols & Costs'!V$427, IF($G213="Proportionate to population of equipment type",$H213*INDEX(P$248:P$262,MATCH($E213,$E$157:$E$171,0)),Q188)) -> 57
E214: Batteries | F214: Maintenance (Failure/Faults) | G214: Enter annual volume | H214: N/A | K214: =IF($G214="Proportionate to meter population",$H214*'Input | Meters Vols & Costs'!P$427, IF($G214="Proportionate to population of equipment type",$H214*INDEX(J$248:J$262,MATCH($E214,$E$157:$E$171,0)),K189)) -> 7 | L214: =IF($G214="Proportionate to meter population",$H214*'Input | Meters Vols & Costs'!Q$427, IF($G214="Proportionate to population of equipment type",$H214*INDEX(K$248:K$262,MATCH($E214,$E$157:$E$171,0)),L189)) -> 7 | M214: =IF($G214="Proportionate to meter population",$H214*'Input | Meters Vols & Costs'!R$427, IF($G214="Proportionate to population of equipment type",$H214*INDEX(L$248:L$262,MATCH($E214,$E$157:$E$171,0)),M189)) -> 7 | N214: =IF($G214="Proportionate to meter population",$H214*'Input | Meters Vols & Costs'!S$427, IF($G214="Proportionate to population of equipment type",$H214*INDEX(M$248:M$262,MATCH($E214,$E$157:$E$171,0)),N189)) -> 7 | O214: =IF($G214="Proportionate to meter population",$H214*'Input | Meters Vols & Costs'!T$427, IF($G214="Proportionate to population of equipment type",$H214*INDEX(N$248:N$262,MATCH($E214,$E$157:$E$171,0)),O189)) -> 7 | P214: =IF($G214="Proportionate to meter population",$H214*'Input | Meters Vols & Costs'!U$427, IF($G214="Proportionate to population of equipment type",$H214*INDEX(O$248:O$262,MATCH($E214,$E$157:$E$171,0)),P189)) -> 7 | Q214: =IF($G214="Proportionate to meter population",$H214*'Input | Meters Vols & Costs'!V$427, IF($G214="Proportionate to population of equipment type",$H214*INDEX(P$248:P$262,MATCH($E214,$E$157:$E$171,0)),Q189)) -> 7
E215: Batteries | F215: End of life | G215: Enter annual volume | H215: N/A | K215: =IF($G215="Proportionate to meter population",$H215*'Input | Meters Vols & Costs'!P$427, IF($G215="Proportionate to population of equipment type",$H215*INDEX(J$248:J$262,MATCH($E215,$E$157:$E$171,0)),K190)) -> 0 | L215: =IF($G215="Proportionate to meter population",$H215*'Input | Meters Vols & Costs'!Q$427, IF($G215="Proportionate to population of equipment type",$H215*INDEX(K$248:K$262,MATCH($E215,$E$157:$E$171,0)),L190)) -> 20 | M215: =IF($G215="Proportionate to meter population",$H215*'Input | Meters Vols & Costs'!R$427, IF($G215="Proportionate to population of equipment type",$H215*INDEX(L$248:L$262,MATCH($E215,$E$157:$E$171,0)),M190)) -> 50 | N215: =IF($G215="Proportionate to meter population",$H215*'Input | Meters Vols & Costs'!S$427, IF($G215="Proportionate to population of equipment type",$H215*INDEX(M$248:M$262,MATCH($E215,$E$157:$E$171,0)),N190)) -> 60 | O215: =IF($G215="Proportionate to meter population",$H215*'Input | Meters Vols & Costs'!T$427, IF($G215="Proportionate to population of equipment type",$H215*INDEX(N$248:N$262,MATCH($E215,$E$157:$E$171,0)),O190)) -> 65 | P215: =IF($G215="Proportionate to meter population",$H215*'Input | Meters Vols & Costs'!U$427, IF($G215="Proportionate to population of equipment type",$H215*INDEX(O$248:O$262,MATCH($E215,$E$157:$E$171,0)),P190)) -> 15 | Q215: =IF($G215="Proportionate to meter population",$H215*'Input | Meters Vols & Costs'!V$427, IF($G215="Proportionate to population of equipment type",$H215*INDEX(P$248:P$262,MATCH($E215,$E$157:$E$171,0)),Q190)) -> 15
E216: External Antenna in Buildings | F216: Growth | G216: Enter annual volume | H216: N/A | K216: =IF($G216="Proportionate to meter population",$H216*'Input | Meters Vols & Costs'!P$427, IF($G216="Proportionate to population of equipment type",$H216*INDEX(J$248:J$262,MATCH($E216,$E$157:$E$171,0)),K191)) -> 10 | L216: =IF($G216="Proportionate to meter population",$H216*'Input | Meters Vols & Costs'!Q$427, IF($G216="Proportionate to population of equipment type",$H216*INDEX(K$248:K$262,MATCH($E216,$E$157:$E$171,0)),L191)) -> 12 | M216: =IF($G216="Proportionate to meter population",$H216*'Input | Meters Vols & Costs'!R$427, IF($G216="Proportionate to population of equipment type",$H216*INDEX(L$248:L$262,MATCH($E216,$E$157:$E$171,0)),M191)) -> 15 | N216: =IF($G216="Proportionate to meter population",$H216*'Input | Meters Vols & Costs'!S$427, IF($G216="Proportionate to population of equipment type",$H216*INDEX(M$248:M$262,MATCH($E216,$E$157:$E$171,0)),N191)) -> 17 | O216: =IF($G216="Proportionate to meter population",$H216*'Input | Meters Vols & Costs'!T$427, IF($G216="Proportionate to population of equipment type",$H216*INDEX(N$248:N$262,MATCH($E216,$E$157:$E$171,0)),O191)) -> 19 | P216: =IF($G216="Proportionate to meter population",$H216*'Input | Meters Vols & Costs'!U$427, IF($G216="Proportionate to population of equipment type",$H216*INDEX(O$248:O$262,MATCH($E216,$E$157:$E$171,0)),P191)) -> 21 | Q216: =IF($G216="Proportionate to meter population",$H216*'Input | Meters Vols & Costs'!V$427, IF($G216="Proportionate to population of equipment type",$H216*INDEX(P$248:P$262,MATCH($E216,$E$157:$E$171,0)),Q191)) -> 23
E217: External Antenna in Buildings | F217: Maintenance (Failure/Faults) | G217: Enter annual volume | H217: N/A | K217: =IF($G217="Proportionate to meter population",$H217*'Input | Meters Vols & Costs'!P$427, IF($G217="Proportionate to population of equipment type",$H217*INDEX(J$248:J$262,MATCH($E217,$E$157:$E$171,0)),K192)) -> 2 | L217: =IF($G217="Proportionate to meter population",$H217*'Input | Meters Vols & Costs'!Q$427, IF($G217="Proportionate to population of equipment type",$H217*INDEX(K$248:K$262,MATCH($E217,$E$157:$E$171,0)),L192)) -> 2 | M217: =IF($G217="Proportionate to meter population",$H217*'Input | Meters Vols & Costs'!R$427, IF($G217="Proportionate to population of equipment type",$H217*INDEX(L$248:L$262,MATCH($E217,$E$157:$E$171,0)),M192)) -> 5 | N217: =IF($G217="Proportionate to meter population",$H217*'Input | Meters Vols & Costs'!S$427, IF($G217="Proportionate to population of equipment type",$H217*INDEX(M$248:M$262,MATCH($E217,$E$157:$E$171,0)),N192)) -> 5 | O217: =IF($G217="Proportionate to meter population",$H217*'Input | Meters Vols & Costs'!T$427, IF($G217="Proportionate to population of equipment type",$H217*INDEX(N$248:N$262,MATCH($E217,$E$157:$E$171,0)),O192)) -> 7 | P217: =IF($G217="Proportionate to meter population",$H217*'Input | Meters Vols & Costs'!U$427, IF($G217="Proportionate to population of equipment type",$H217*INDEX(O$248:O$262,MATCH($E217,$E$157:$E$171,0)),P192)) -> 7 | Q217: =IF($G217="Proportionate to meter population",$H217*'Input | Meters Vols & Costs'!V$427, IF($G217="Proportionate to population of equipment type",$H217*INDEX(P$248:P$262,MATCH($E217,$E$157:$E$171,0)),Q192)) -> 10
E218: External Antenna in Buildings | F218: End of life | G218: Enter annual volume | H218: N/A | K218: =IF($G218="Proportionate to meter population",$H218*'Input | Meters Vols & Costs'!P$427, IF($G218="Proportionate to population of equipment type",$H218*INDEX(J$248:J$262,MATCH($E218,$E$157:$E$171,0)),K193)) -> 0 | L218: =IF($G218="Proportionate to meter population",$H218*'Input | Meters Vols & Costs'!Q$427, IF($G218="Proportionate to population of equipment type",$H218*INDEX(K$248:K$262,MATCH($E218,$E$157:$E$171,0)),L193)) -> 0 | M218: =IF($G218="Proportionate to meter population",$H218*'Input | Meters Vols & Costs'!R$427, IF($G218="Proportionate to population of equipment type",$H218*INDEX(L$248:L$262,MATCH($E218,$E$157:$E$171,0)),M193)) -> 0 | N218: =IF($G218="Proportionate to meter population",$H218*'Input | Meters Vols & Costs'!S$427, IF($G218="Proportionate to population of equipment type",$H218*INDEX(M$248:M$262,MATCH($E218,$E$157:$E$171,0)),N193)) -> 0 | O218: =IF($G218="Proportionate to meter population",$H218*'Input | Meters Vols & Costs'!T$427, IF($G218="Proportionate to population of equipment type",$H218*INDEX(N$248:N$262,MATCH($E218,$E$157:$E$171,0)),O193)) -> 0 | P218: =IF($G218="Proportionate to meter population",$H218*'Input | Meters Vols & Costs'!U$427, IF($G218="Proportionate to population of equipment type",$H218*INDEX(O$248:O$262,MATCH($E218,$E$157:$E$171,0)),P193)) -> 20 | Q218: =IF($G218="Proportionate to meter population",$H218*'Input | Meters Vols & Costs'!V$427, IF($G218="Proportionate to population of equipment type",$H218*INDEX(P$248:P$262,MATCH($E218,$E$157:$E$171,0)),Q193)) -> 30
E219: Antennas | F219: Growth | G219: Enter annual volume | H219: N/A | K219: =IF($G219="Proportionate to meter population",$H219*'Input | Meters Vols & Costs'!P$427, IF($G219="Proportionate to population of equipment type",$H219*INDEX(J$248:J$262,MATCH($E219,$E$157:$E$171,0)),K194)) -> 250 | L219: =IF($G219="Proportionate to meter population",$H219*'Input | Meters Vols & Costs'!Q$427, IF($G219="Proportionate to population of equipment type",$H219*INDEX(K$248:K$262,MATCH($E219,$E$157:$E$171,0)),L194)) -> 270 | M219: =IF($G219="Proportionate to meter population",$H219*'Input | Meters Vols & Costs'!R$427, IF($G219="Proportionate to population of equipment type",$H219*INDEX(L$248:L$262,MATCH($E219,$E$157:$E$171,0)),M194)) -> 290 | N219: =IF($G219="Proportionate to meter population",$H219*'Input | Meters Vols & Costs'!S$427, IF($G219="Proportionate to population of equipment type",$H219*INDEX(M$248:M$262,MATCH($E219,$E$157:$E$171,0)),N194)) -> 310 | O219: =IF($G219="Proportionate to meter population",$H219*'Input | Meters Vols & Costs'!T$427, IF($G219="Proportionate to population of equipment type",$H219*INDEX(N$248:N$262,MATCH($E219,$E$157:$E$171,0)),O194)) -> 330 | P219: =IF($G219="Proportionate to meter population",$H219*'Input | Meters Vols & Costs'!U$427, IF($G219="Proportionate to population of equipment type",$H219*INDEX(O$248:O$262,MATCH($E219,$E$157:$E$171,0)),P194)) -> 350 | Q219: =IF($G219="Proportionate to meter population",$H219*'Input | Meters Vols & Costs'!V$427, IF($G219="Proportionate to population of equipment type",$H219*INDEX(P$248:P$262,MATCH($E219,$E$157:$E$171,0)),Q194)) -> 370
E220: Antennas | F220: Maintenance (Failure/Faults) | G220: Enter annual volume | H220: N/A | K220: =IF($G220="Proportionate to meter population",$H220*'Input | Meters Vols & Costs'!P$427, IF($G220="Proportionate to population of equipment type",$H220*INDEX(J$248:J$262,MATCH($E220,$E$157:$E$171,0)),K195)) -> 10 | L220: =IF($G220="Proportionate to meter population",$H220*'Input | Meters Vols & Costs'!Q$427, IF($G220="Proportionate to population of equipment type",$H220*INDEX(K$248:K$262,MATCH($E220,$E$157:$E$171,0)),L195)) -> 10 | M220: =IF($G220="Proportionate to meter population",$H220*'Input | Meters Vols & Costs'!R$427, IF($G220="Proportionate to population of equipment type",$H220*INDEX(L$248:L$262,MATCH($E220,$E$157:$E$171,0)),M195)) -> 15 | N220: =IF($G220="Proportionate to meter population",$H220*'Input | Meters Vols & Costs'!S$427, IF($G220="Proportionate to population of equipment type",$H220*INDEX(M$248:M$262,MATCH($E220,$E$157:$E$171,0)),N195)) -> 15 | O220: =IF($G220="Proportionate to meter population",$H220*'Input | Meters Vols & Costs'!T$427, IF($G220="Proportionate to population of equipment type",$H220*INDEX(N$248:N$262,MATCH($E220,$E$157:$E$171,0)),O195)) -> 20 | P220: =IF($G220="Proportionate to meter population",$H220*'Input | Meters Vols & Costs'!U$427, IF($G220="Proportionate to population of equipment type",$H220*INDEX(O$248:O$262,MATCH($E220,$E$157:$E$171,0)),P195)) -> 20 | Q220: =IF($G220="Proportionate to meter population",$H220*'Input | Meters Vols & Costs'!V$427, IF($G220="Proportionate to population of equipment type",$H220*INDEX(P$248:P$262,MATCH($E220,$E$157:$E$171,0)),Q195)) -> 25
E221: Antennas | F221: End of life | G221: Enter annual volume | H221: N/A | K221: =IF($G221="Proportionate to meter population",$H221*'Input | Meters Vols & Costs'!P$427, IF($G221="Proportionate to population of equipment type",$H221*INDEX(J$248:J$262,MATCH($E221,$E$157:$E$171,0)),K196)) -> 500 | L221: =IF($G221="Proportionate to meter population",$H221*'Input | Meters Vols & Costs'!Q$427, IF($G221="Proportionate to population of equipment type",$H221*INDEX(K$248:K$262,MATCH($E221,$E$157:$E$171,0)),L196)) -> 1000 | M221: =IF($G221="Proportionate to meter population",$H221*'Input | Meters Vols & Costs'!R$427, IF($G221="Proportionate to population of equipment type",$H221*INDEX(L$248:L$262,MATCH($E221,$E$157:$E$171,0)),M196)) -> 668.52 | N221: =IF($G221="Proportionate to meter population",$H221*'Input | Meters Vols & Costs'!S$427, IF($G221="Proportionate to population of equipment type",$H221*INDEX(M$248:M$262,MATCH($E221,$E$157:$E$171,0)),N196)) -> 894.06 | O221: =IF($G221="Proportionate to meter population",$H221*'Input | Meters Vols & Costs'!T$427, IF($G221="Proportionate to population of equipment type",$H221*INDEX(N$248:N$262,MATCH($E221,$E$157:$E$171,0)),O196)) -> 1044.06 | P221: =IF($G221="Proportionate to meter population",$H221*'Input | Meters Vols & Costs'!U$427, IF($G221="Proportionate to population of equipment type",$H221*INDEX(O$248:O$262,MATCH($E221,$E$157:$E$171,0)),P196)) -> 1134.06 | Q221: =IF($G221="Proportionate to meter population",$H221*'Input | Meters Vols & Costs'!V$427, IF($G221="Proportionate to population of equipment type",$H221*INDEX(P$248:P$262,MATCH($E221,$E$157:$E$171,0)),Q196)) -> 1249.92
C223: ii | D223: Impact on Population | M223: Forecast RP
E224: Equipment Type | F224: Action/Driver | G224: Volume basis | H224: Volume factor | J224: =J$82 -> 2023-24 | K224: =K$82 -> 2024-25 | L224: =L$82 -> 2025-26 | M224: 2026-27 | N224: 2027-28 | O224: 2028-29 | P224: 2029-30 | Q224: 2030-31
E225: =ICC_AllocFields -> Access Points | F225: Growth | G225: =G202 -> Enter annual volume | H225: N/A | K225: =IFERROR(ROUNDUP(K202*INDEX(ICC_Calc_PopImpact,MATCH($F202,ICC_Action,0)),0),0) -> 12 | L225: 37 | M225: 75 | N225: 78 | O225: 51 | P225: 54 | Q225: 57
E226: Access Points | F226: Maintenance (Failure/Faults) | G226: Enter annual volume | H226: N/A | K226: =IFERROR(ROUNDUP(K203*INDEX(ICC_Calc_PopImpact,MATCH($F203,ICC_Action,0)),0),0) -> 0 | L226: 0 | M226: 0 | N226: 0 | O226: 0 | P226: 0 | Q226: 0
E227: Access Points | F227: End of life | G227: Enter annual volume | H227: N/A | K227: 0 | L227: 0 | M227: 0 | N227: 0 | O227: 0 | P227: 0 | Q227: 0
E228: Relays | F228: Growth | G228: Enter annual volume | H228: N/A | K228: 0 | L228: 0 | M228: 0 | N228: 0 | O228: 0 | P228: 0 | Q228: 0
E229: Relays | F229: Maintenance (Failure/Faults) | G229: Enter annual volume | H229: N/A | K229: 0 | L229: 0 | M229: 0 | N229: 0 | O229: 0 | P229: 0 | Q229: 0
E230: Relays | F230: End of life | G230: Enter annual volume | H230: N/A | K230: 0 | L230: 0 | M230: 0 | N230: 0 | O230: 0 | P230: 0 | Q230: 0
E231: Micro AP | F231: Growth | G231: Enter annual volume | H231: N/A | K231: =IFERROR(ROUNDUP(K208*INDEX(ICC_Calc_PopImpact,MATCH($F208,ICC_Action,0)),0),0) -> 40 | L231: 55 | M231: 60 | N231: 60 | O231: 52 | P231: 52 | Q231: 52
... 30 more rows

Sheet Calculations >

Sheet Calc | Capex Meters
B1: ='Input|General'!B1&" v"&'Input|General'!$D$2 -> AER Metering Opex & Capex Forecasting Model v1.08
B2: =MID(CELL("filename",A1),FIND("]",CELL("filename",A1))+1,255) -> Calc | Capex Meters | F2: Jemena modification | H2: Key: | I2: Input | J2: External Link | L2: Internal Link | N2: JEN - RP | P2: AER Addition
A4: =IF(SUM(X11:X164)<>0,1,0) -> 0 | C4: Sheet Check
B5: Summary: Yearly Meter Costs
C8: a | D8: Meter Costs by Labour/Non-Labour
D10: i | E10: Meters - Labour Component
E11: Unescalated
F12: =I_MeterTypes[[#Headers],[Meter Type]] -> Meter Type | G12: =I_MeterTypes[[#Headers],[RIN Subcategory 1]] -> RIN Subcategory 1 | H12: =I_MeterTypes[[#Headers],[RIN Subcategory 2]] -> RIN Subcategory 2 | I12: =I_MeterTypes[[#Headers],[AER Type]] -> AER Type | J12: =I_MeterTypes[[#Headers],[RIN Subcategory 3]] -> RIN Subcategory 3 | K12: =I_MeterTypes[[#Headers],[Meter Code]] -> Meter Code | L12: Units | M12: Basis | O12: ='Input | Meters Vols & Costs'!O$171 -> 2024-25 | P12: ='Input | Meters Vols & Costs'!P$171 -> 2025-26 | Q12: ='Input | Meters Vols & Costs'!Q$171 -> 2026-27 | R12: ='Input | Meters Vols & Costs'!R$171 -> 2027-28 | S12: ='Input | Meters Vols & Costs'!S$171 -> 2028-29 | T12: ='Input | Meters Vols & Costs'!T$171 -> 2029-30 | U12: ='Input | Meters Vols & Costs'!U$171 -> 2030-31 | V12: Total
F13: =I_MeterTypes[Meter Type] -> AMI - Single Phase, single element | G13: =I_MeterTypes[RIN Subcategory 1] -> Single Phase Meter Population | H13: =I_MeterTypes[RIN Subcategory 2] -> Direct Connect Meter Population | I13: =I_MeterTypes[AER Type] -> Meter Type 4 | J13: =I_MeterTypes[RIN Subcategory 3] -> Single phase single element - AMI | K13: =I_MeterTypes[Meter Code] -> AMI 1ph 1e | L13: $dollars | M13: =Basis_Capex -> 2024-06-01 | O13: =INDEX(ICM_LabourCost,,1)*ICM_Vol1+ INDEX(ICM_LabourCost,,2)*ICM_Vol2+ INDEX(ICM_LabourCost,,3)*ICM_Vol3+ INDEX(ICM_LabourCost,,4)*ICM_Vol4+ INDEX(ICM_LabourCost,,5)*ICM_Vol5+ INDEX(ICM_LabourCost,,6)*ICM_Vol6+ INDEX(ICM_LabourCost,,7)*ICM_Vol7+ INDEX(ICM_LabourCost,,8)*ICM_Vol8+ INDEX(ICM_LabourCost,,9)*ICM_Vol9+ INDEX(ICM_LabourCost,,10)*ICM_Vol10 -> 846769.8986 | P13: 2762698.091 | Q13: 1459095.672 | R13: 4680585.664 | S13: 7308408.469 | T13: 8736108.636 | U13: 10281353.41 | V13: =SUM(N13:U13) -> 36075019.84
F14: AMI - Single Phase, two elements with 31.5A load control | G14: Single Phase Meter Population | H14: Direct Connect Meter Population | I14: Meter Type 4 | J14: Single phase two element with contactor - AMI | K14: AMI 1ph 2e | L14: $dollars | M14: 2024-06-01 | O14: 84460.96098 | P14: 97382.33855 | Q14: 145790.8607 | R14: 377361.1608 | S14: 567544.4882 | T14: 673722.5203 | U14: 791218.239 | V14: 2737480.568
F15: AMI - 3 Phase with no load control | G15: Multi Phase Meter Population | H15: Direct Connect Meter Population | I15: Meter Type 4 | J15: Three phase - AMI | K15: AMI 3ph | L15: $dollars | M15: 2024-06-01 | O15: 196819.1401 | P15: 1216589.061 | Q15: 341099.5369 | R15: 920526.0259 | S15: 1410375.782 | T15: 1714298.213 | U15: 2080487.057 | V15: 7880194.816
F16: AMI - Single Phase, single element, with 31.5A load control | G16: Single Phase Meter Population | H16: Direct Connect Meter Population | I16: Meter Type 4 | J16: Single phase single element with contactor - AMI | K16: AMI 1ph DC | L16: $dollars | M16: 2024-06-01 | O16: 19355.63689 | P16: 50812.13984 | Q16: 69832.33656 | R16: 151280.0316 | S16: 225849.5 | T16: 284221.7421 | U16: 365030.4809 | V16: 1166381.868
F17: AMI - 3 Phase with 31.5A and 2A load control | G17: Multi Phase Meter Population | H17: Direct Connect Meter Population | I17: Meter Type 4 | J17: Three phase direct connected meter with contactor - AMI | K17: AMI 3ph DC | L17: $dollars | M17: 2024-06-01 | O17: 4833.043879 | P17: 32357.94336 | Q17: 45933.23885 | R17: 103275.1774 | S17: 156678.9106 | T17: 200247.8736 | U17: 261818.9626 | V17: 805145.1503
F18: AMI - 3 Phase CT connect | G18: Multi Phase Meter Population | H18: Current Transformer Connected Meter Population | I18: Meter Type 4 | J18: Three phase Current transformer connected meter - AMI | K18: AMI 3ph CT | L18: $dollars | M18: 2024-06-01 | O18: 14241.05648 | P18: 38851.96922 | Q18: 50939.85816 | R18: 100716.9862 | S18: 147920.8246 | T18: 188062.9072 | U18: 245810.0262 | V18: 786543.628
F19: AMI - 3 Phase CT & VT connect | G19: Multi Phase Meter Population | H19: Current Transformer Connected Meter Population | I19: Meter Type 4 | J19: Three phase Current transformer connected meter - AMI | K19: AMI 3ph CT VT | L19: $dollars | M19: 2024-06-01 | O19: 0 | P19: 0 | Q19: 0 | R19: 0 | S19: 0 | T19: 0 | U19: 0 | V19: 0
F20: Non AMI - Type 5 Locally read Interval - Single Phase | G20: Single Phase Meter Population | H20: Direct Connect Meter Population | I20: Meter Type 5 | J20: Single phase non off peak - MRIM | K20: INT 1ph | L20: $dollars | M20: 2024-06-01 | O20: 0 | P20: 6334.572074 | Q20: 0 | R20: 0 | S20: 0 | T20: 0 | U20: 0 | V20: 6334.572074
F21: Non AMI - Type 6 Locally read Accumulation - Single Phase | G21: Single Phase Meter Population | H21: Direct Connect Meter Population | I21: Meter Type 6 | J21: Single phase non off peak - Accumulation | K21: ACC 1ph | L21: $dollars | M21: 2024-06-01 | O21: 27571.64848 | P21: 915927.6698 | Q21: 0 | R21: 0 | S21: 0 | T21: 0 | U21: 0 | V21: 943499.3183
F22: Non AMI - Type 5 Locally read Interval - 3 Phase | G22: Multi Phase Meter Population | H22: Direct Connect Meter Population | I22: Meter Type 5 | J22: Multi phase direct connect - MRIM | K22: INT 3ph | L22: $dollars | M22: 2024-06-01 | O22: 0 | P22: 2111.524025 | Q22: 0 | R22: 0 | S22: 0 | T22: 0 | U22: 0 | V22: 2111.524025
F23: Non AMI - Type 6 Locally read Accumulation - 3 Phase | G23: Multi Phase Meter Population | H23: Direct Connect Meter Population | I23: Meter Type 6 | J23: Multi phase direct connect - Accumulation | K23: ACC 3ph | L23: $dollars | M23: 2024-06-01 | O23: 14344.17871 | P23: 452302.6307 | Q23: 0 | R23: 0 | S23: 0 | T23: 0 | U23: 0 | V23: 466646.8094
L24: $dollars | M24: 2024-06-01 | O24: 0 | P24: 0 | Q24: 0 | R24: 0 | S24: 0 | T24: 0 | U24: 0 | V24: 0
L25: $dollars | M25: 2024-06-01 | O25: 0 | P25: 0 | Q25: 0 | R25: 0 | S25: 0 | T25: 0 | U25: 0 | V25: 0
L26: $dollars | M26: 2024-06-01 | O26: 0 | P26: 0 | Q26: 0 | R26: 0 | S26: 0 | T26: 0 | U26: 0 | V26: 0
L27: $dollars | M27: 2024-06-01 | O27: 0 | P27: 0 | Q27: 0 | R27: 0 | S27: 0 | T27: 0 | U27: 0 | V27: 0
F28: Total | L28: $dollars | M28: 2024-06-01 | O28: =SUM(O13:O26) -> 1208395.564 | P28: =SUM(P13:P26) -> 5575367.939 | Q28: =SUM(Q13:Q27) -> 2112691.503 | R28: =SUM(R13:R27) -> 6333745.046 | S28: =SUM(S13:S27) -> 9816777.975 | T28: =SUM(T13:T27) -> 11796661.89 | U28: =SUM(U13:U27) -> 14025718.18 | V28: =SUM(Q28:U28) -> 44085594.59
E31: Incl Escalation of Labour Costs
F32: =I_MeterTypes[[#Headers],[Meter Type]] -> Meter Type | G32: =I_MeterTypes[[#Headers],[RIN Subcategory 1]] -> RIN Subcategory 1 | H32: =I_MeterTypes[[#Headers],[RIN Subcategory 2]] -> RIN Subcategory 2 | I32: =I_MeterTypes[[#Headers],[AER Type]] -> AER Type | J32: =I_MeterTypes[[#Headers],[RIN Subcategory 3]] -> RIN Subcategory 3 | K32: =I_MeterTypes[[#Headers],[Meter Code]] -> Meter Code | L32: Units | M32: Basis | O32: =O$12 -> 2024-25 | P32: =P$12 -> 2025-26 | Q32: 2026-27 | R32: 2027-28 | S32: 2028-29 | T32: 2029-30 | U32: 2030-31 | V32: Total
F33: =I_MeterTypes[Meter Type] -> AMI - Single Phase, single element | G33: =I_MeterTypes[RIN Subcategory 1] -> Single Phase Meter Population | H33: =I_MeterTypes[RIN Subcategory 2] -> Direct Connect Meter Population | I33: =I_MeterTypes[AER Type] -> Meter Type 4 | J33: =I_MeterTypes[RIN Subcategory 3] -> Single phase single element - AMI | K33: =I_MeterTypes[Meter Code] -> AMI 1ph 1e | L33: $dollars | M33: =Basis_Capex -> 2024-06-01 | O33: =IF('Input | Meters Vols & Costs'!$P$77="Yes",'Input| Prices'!K$55,1)*O13 -> 863282.0008 | P33: =IF('Input | Meters Vols & Costs'!$P$77="Yes",'Input| Prices'!L$55,1)*P13 -> 2837197.382 | Q33: =IF('Input | Meters Vols & Costs'!$P$77="Yes",'Input| Prices'!M$55,1)*Q13 -> 1508053.216 | R33: =IF('Input | Meters Vols & Costs'!$P$77="Yes",'Input| Prices'!N$55,1)*R13 -> 4879110.181 | S33: =IF('Input | Meters Vols & Costs'!$P$77="Yes",'Input| Prices'!O$55,1)*S13 -> 7694777.214 | T33: =IF('Input | Meters Vols & Costs'!$P$77="Yes",'Input| Prices'!P$55,1)*T13 -> 9301855.957 | U33: =IF('Input | Meters Vols & Costs'!$P$77="Yes",'Input| Prices'!Q$55,1)*U13 -> 11072906.88 | V33: =SUM(N33:U33) -> 38157182.83
F34: AMI - Single Phase, two elements with 31.5A load control | G34: Single Phase Meter Population | H34: Direct Connect Meter Population | I34: Meter Type 4 | J34: Single phase two element with contactor - AMI | K34: AMI 1ph 2e | L34: $dollars | M34: 2024-06-01 | O34: =IF('Input | Meters Vols & Costs'!$P$77="Yes",'Input| Prices'!K$55,1)*O14 -> 86107.95862 | P34: =IF('Input | Meters Vols & Costs'!$P$77="Yes",'Input| Prices'!L$55,1)*P14 -> 100008.3639 | Q34: =IF('Input | Meters Vols & Costs'!$P$77="Yes",'Input| Prices'!M$55,1)*Q14 -> 150682.6321 | R34: =IF('Input | Meters Vols & Costs'!$P$77="Yes",'Input| Prices'!N$55,1)*R14 -> 393366.7309 | S34: =IF('Input | Meters Vols & Costs'!$P$77="Yes",'Input| Prices'!O$55,1)*S14 -> 597548.4833 | T34: =IF('Input | Meters Vols & Costs'!$P$77="Yes",'Input| Prices'!P$55,1)*T14 -> 717352.5536 | U34: =IF('Input | Meters Vols & Costs'!$P$77="Yes",'Input| Prices'!Q$55,1)*U14 -> 852133.5207 | V34: 2897200.243
F35: AMI - 3 Phase with no load control | G35: Multi Phase Meter Population | H35: Direct Connect Meter Population | I35: Meter Type 4 | J35: Three phase - AMI | K35: AMI 3ph | L35: $dollars | M35: 2024-06-01 | O35: =IF('Input | Meters Vols & Costs'!$P$77="Yes",'Input| Prices'!K$55,1)*O15 -> 200657.1341 | P35: =IF('Input | Meters Vols & Costs'!$P$77="Yes",'Input| Prices'!L$55,1)*P15 -> 1249395.766 | Q35: =IF('Input | Meters Vols & Costs'!$P$77="Yes",'Input| Prices'!M$55,1)*Q15 -> 352544.5682 | R35: =IF('Input | Meters Vols & Costs'!$P$77="Yes",'Input| Prices'!N$55,1)*R15 -> 959569.6408 | S35: =IF('Input | Meters Vols & Costs'!$P$77="Yes",'Input| Prices'!O$55,1)*S15 -> 1484937.176 | T35: =IF('Input | Meters Vols & Costs'!$P$77="Yes",'Input| Prices'!P$55,1)*T15 -> 1825315.562 | U35: =IF('Input | Meters Vols & Costs'!$P$77="Yes",'Input| Prices'!Q$55,1)*U15 -> 2240662.15 | V35: 8313081.997
F36: AMI - Single Phase, single element, with 31.5A load control | G36: Single Phase Meter Population | H36: Direct Connect Meter Population | I36: Meter Type 4 | J36: Single phase single element with contactor - AMI | K36: AMI 1ph DC | L36: $dollars | M36: 2024-06-01 | O36: =IF('Input | Meters Vols & Costs'!$P$77="Yes",'Input| Prices'!K$55,1)*O16 -> 19733.07385 | P36: =IF('Input | Meters Vols & Costs'!$P$77="Yes",'Input| Prices'!L$55,1)*P16 -> 52182.34688 | Q36: =IF('Input | Meters Vols & Costs'!$P$77="Yes",'Input| Prices'!M$55,1)*Q16 -> 72175.44522 | R36: =IF('Input | Meters Vols & Costs'!$P$77="Yes",'Input| Prices'!N$55,1)*R16 -> 157696.4925 | S36: =IF('Input | Meters Vols & Costs'!$P$77="Yes",'Input| Prices'!O$55,1)*S16 -> 237789.3346 | T36: =IF('Input | Meters Vols & Costs'!$P$77="Yes",'Input| Prices'!P$55,1)*T16 -> 302627.8421 | U36: =IF('Input | Meters Vols & Costs'!$P$77="Yes",'Input| Prices'!Q$55,1)*U16 -> 393133.896 | V36: 1235338.431
F37: AMI - 3 Phase with 31.5A and 2A load control | G37: Multi Phase Meter Population | H37: Direct Connect Meter Population | I37: Meter Type 4 | J37: Three phase direct connected meter with contactor - AMI | K37: AMI 3ph DC | L37: $dollars | M37: 2024-06-01 | O37: =IF('Input | Meters Vols & Costs'!$P$77="Yes",'Input| Prices'!K$55,1)*O17 -> 4927.288743 | P37: =IF('Input | Meters Vols & Costs'!$P$77="Yes",'Input| Prices'!L$55,1)*P17 -> 33230.51204 | Q37: =IF('Input | Meters Vols & Costs'!$P$77="Yes",'Input| Prices'!M$55,1)*Q17 -> 47474.45278 | R37: =IF('Input | Meters Vols & Costs'!$P$77="Yes",'Input| Prices'!N$55,1)*R17 -> 107655.5383 | S37: =IF('Input | Meters Vols & Costs'!$P$77="Yes",'Input| Prices'!O$55,1)*S17 -> 164961.9498 | T37: =IF('Input | Meters Vols & Costs'!$P$77="Yes",'Input| Prices'!P$55,1)*T17 -> 213215.8555 | U37: =IF('Input | Meters Vols & Costs'!$P$77="Yes",'Input| Prices'!Q$55,1)*U17 -> 281976.2025 | V37: 853441.7997
F38: AMI - 3 Phase CT connect | G38: Multi Phase Meter Population | H38: Current Transformer Connected Meter Population | I38: Meter Type 4 | J38: Three phase Current transformer connected meter - AMI | K38: AMI 3ph CT | L38: $dollars | M38: 2024-06-01 | O38: =IF('Input | Meters Vols & Costs'!$P$77="Yes",'Input| Prices'!K$55,1)*O18 -> 14518.75858 | P38: =IF('Input | Meters Vols & Costs'!$P$77="Yes",'Input| Prices'!L$55,1)*P18 -> 39899.65669 | Q38: =IF('Input | Meters Vols & Costs'!$P$77="Yes",'Input| Prices'!M$55,1)*Q18 -> 52649.06092 | R38: =IF('Input | Meters Vols & Costs'!$P$77="Yes",'Input| Prices'!N$55,1)*R18 -> 104988.8428 | S38: =IF('Input | Meters Vols & Costs'!$P$77="Yes",'Input| Prices'!O$55,1)*S18 -> 155740.856 | T38: =IF('Input | Meters Vols & Costs'!$P$77="Yes",'Input| Prices'!P$55,1)*T18 -> 200241.7949 | U38: =IF('Input | Meters Vols & Costs'!$P$77="Yes",'Input| Prices'!Q$55,1)*U18 -> 264734.7504 | V38: 832773.7203
F39: AMI - 3 Phase CT & VT connect | G39: Multi Phase Meter Population | H39: Current Transformer Connected Meter Population | I39: Meter Type 4 | J39: Three phase Current transformer connected meter - AMI | K39: AMI 3ph CT VT | L39: $dollars | M39: 2024-06-01 | O39: =IF('Input | Meters Vols & Costs'!$P$77="Yes",'Input| Prices'!K$55,1)*O19 -> 0 | P39: =IF('Input | Meters Vols & Costs'!$P$77="Yes",'Input| Prices'!L$55,1)*P19 -> 0 | Q39: =IF('Input | Meters Vols & Costs'!$P$77="Yes",'Input| Prices'!M$55,1)*Q19 -> 0 | R39: =IF('Input | Meters Vols & Costs'!$P$77="Yes",'Input| Prices'!N$55,1)*R19 -> 0 | S39: =IF('Input | Meters Vols & Costs'!$P$77="Yes",'Input| Prices'!O$55,1)*S19 -> 0 | T39: =IF('Input | Meters Vols & Costs'!$P$77="Yes",'Input| Prices'!P$55,1)*T19 -> 0 | U39: =IF('Input | Meters Vols & Costs'!$P$77="Yes",'Input| Prices'!Q$55,1)*U19 -> 0 | V39: 0
F40: Non AMI - Type 5 Locally read Interval - Single Phase | G40: Single Phase Meter Population | H40: Direct Connect Meter Population | I40: Meter Type 5 | J40: Single phase non off peak - MRIM | K40: INT 1ph | L40: $dollars | M40: 2024-06-01 | O40: =IF('Input | Meters Vols & Costs'!$P$77="Yes",'Input| Prices'!K$55,1)*O20 -> 0 | P40: =IF('Input | Meters Vols & Costs'!$P$77="Yes",'Input| Prices'!L$55,1)*P20 -> 6505.391002 | Q40: =IF('Input | Meters Vols & Costs'!$P$77="Yes",'Input| Prices'!M$55,1)*Q20 -> 0 | R40: =IF('Input | Meters Vols & Costs'!$P$77="Yes",'Input| Prices'!N$55,1)*R20 -> 0 | S40: =IF('Input | Meters Vols & Costs'!$P$77="Yes",'Input| Prices'!O$55,1)*S20 -> 0 | T40: =IF('Input | Meters Vols & Costs'!$P$77="Yes",'Input| Prices'!P$55,1)*T20 -> 0 | U40: =IF('Input | Meters Vols & Costs'!$P$77="Yes",'Input| Prices'!Q$55,1)*U20 -> 0 | V40: 6505.391002
F41: Non AMI - Type 6 Locally read Accumulation - Single Phase | G41: Single Phase Meter Population | H41: Direct Connect Meter Population | I41: Meter Type 6 | J41: Single phase non off peak - Accumulation | K41: ACC 1ph | L41: $dollars | M41: 2024-06-01 | O41: =IF('Input | Meters Vols & Costs'!$P$77="Yes",'Input| Prices'!K$55,1)*O21 -> 28109.29853 | P41: =IF('Input | Meters Vols & Costs'!$P$77="Yes",'Input| Prices'!L$55,1)*P21 -> 940626.6994 | Q41: =IF('Input | Meters Vols & Costs'!$P$77="Yes",'Input| Prices'!M$55,1)*Q21 -> 0 | R41: =IF('Input | Meters Vols & Costs'!$P$77="Yes",'Input| Prices'!N$55,1)*R21 -> 0 | S41: =IF('Input | Meters Vols & Costs'!$P$77="Yes",'Input| Prices'!O$55,1)*S21 -> 0 | T41: =IF('Input | Meters Vols & Costs'!$P$77="Yes",'Input| Prices'!P$55,1)*T21 -> 0 | U41: =IF('Input | Meters Vols & Costs'!$P$77="Yes",'Input| Prices'!Q$55,1)*U21 -> 0 | V41: 968735.9979
F42: Non AMI - Type 5 Locally read Interval - 3 Phase | G42: Multi Phase Meter Population | H42: Direct Connect Meter Population | I42: Meter Type 5 | J42: Multi phase direct connect - MRIM | K42: INT 3ph | L42: $dollars | M42: 2024-06-01 | O42: =IF('Input | Meters Vols & Costs'!$P$77="Yes",'Input| Prices'!K$55,1)*O22 -> 0 | P42: =IF('Input | Meters Vols & Costs'!$P$77="Yes",'Input| Prices'!L$55,1)*P22 -> 2168.463667 | Q42: =IF('Input | Meters Vols & Costs'!$P$77="Yes",'Input| Prices'!M$55,1)*Q22 -> 0 | R42: =IF('Input | Meters Vols & Costs'!$P$77="Yes",'Input| Prices'!N$55,1)*R22 -> 0 | S42: =IF('Input | Meters Vols & Costs'!$P$77="Yes",'Input| Prices'!O$55,1)*S22 -> 0 | T42: =IF('Input | Meters Vols & Costs'!$P$77="Yes",'Input| Prices'!P$55,1)*T22 -> 0 | U42: =IF('Input | Meters Vols & Costs'!$P$77="Yes",'Input| Prices'!Q$55,1)*U22 -> 0 | V42: 2168.463667
F43: Non AMI - Type 6 Locally read Accumulation - 3 Phase | G43: Multi Phase Meter Population | H43: Direct Connect Meter Population | I43: Meter Type 6 | J43: Multi phase direct connect - Accumulation | K43: ACC 3ph | L43: $dollars | M43: 2024-06-01 | O43: =IF('Input | Meters Vols & Costs'!$P$77="Yes",'Input| Prices'!K$55,1)*O23 -> 14623.8917 | P43: =IF('Input | Meters Vols & Costs'!$P$77="Yes",'Input| Prices'!L$55,1)*P23 -> 464499.4847 | Q43: =IF('Input | Meters Vols & Costs'!$P$77="Yes",'Input| Prices'!M$55,1)*Q23 -> 0 | R43: =IF('Input | Meters Vols & Costs'!$P$77="Yes",'Input| Prices'!N$55,1)*R23 -> 0 | S43: =IF('Input | Meters Vols & Costs'!$P$77="Yes",'Input| Prices'!O$55,1)*S23 -> 0 | T43: =IF('Input | Meters Vols & Costs'!$P$77="Yes",'Input| Prices'!P$55,1)*T23 -> 0 | U43: =IF('Input | Meters Vols & Costs'!$P$77="Yes",'Input| Prices'!Q$55,1)*U23 -> 0 | V43: 479123.3764
L44: $dollars | M44: 2024-06-01 | O44: =IF('Input | Meters Vols & Costs'!$P$77="Yes",'Input| Prices'!K$55,1)*O24 -> 0 | P44: =IF('Input | Meters Vols & Costs'!$P$77="Yes",'Input| Prices'!L$55,1)*P24 -> 0 | Q44: =IF('Input | Meters Vols & Costs'!$P$77="Yes",'Input| Prices'!M$55,1)*Q24 -> 0 | R44: =IF('Input | Meters Vols & Costs'!$P$77="Yes",'Input| Prices'!N$55,1)*R24 -> 0 | S44: =IF('Input | Meters Vols & Costs'!$P$77="Yes",'Input| Prices'!O$55,1)*S24 -> 0 | T44: =IF('Input | Meters Vols & Costs'!$P$77="Yes",'Input| Prices'!P$55,1)*T24 -> 0 | U44: =IF('Input | Meters Vols & Costs'!$P$77="Yes",'Input| Prices'!Q$55,1)*U24 -> 0 | V44: 0
L45: $dollars | M45: 2024-06-01 | O45: =IF('Input | Meters Vols & Costs'!$P$77="Yes",'Input| Prices'!K$55,1)*O25 -> 0 | P45: =IF('Input | Meters Vols & Costs'!$P$77="Yes",'Input| Prices'!L$55,1)*P25 -> 0 | Q45: =IF('Input | Meters Vols & Costs'!$P$77="Yes",'Input| Prices'!M$55,1)*Q25 -> 0 | R45: =IF('Input | Meters Vols & Costs'!$P$77="Yes",'Input| Prices'!N$55,1)*R25 -> 0 | S45: =IF('Input | Meters Vols & Costs'!$P$77="Yes",'Input| Prices'!O$55,1)*S25 -> 0 | T45: =IF('Input | Meters Vols & Costs'!$P$77="Yes",'Input| Prices'!P$55,1)*T25 -> 0 | U45: =IF('Input | Meters Vols & Costs'!$P$77="Yes",'Input| Prices'!Q$55,1)*U25 -> 0 | V45: 0
L46: $dollars | M46: 2024-06-01 | O46: =IF('Input | Meters Vols & Costs'!$P$77="Yes",'Input| Prices'!K$55,1)*O26 -> 0 | P46: =IF('Input | Meters Vols & Costs'!$P$77="Yes",'Input| Prices'!L$55,1)*P26 -> 0 | Q46: =IF('Input | Meters Vols & Costs'!$P$77="Yes",'Input| Prices'!M$55,1)*Q26 -> 0 | R46: =IF('Input | Meters Vols & Costs'!$P$77="Yes",'Input| Prices'!N$55,1)*R26 -> 0 | S46: =IF('Input | Meters Vols & Costs'!$P$77="Yes",'Input| Prices'!O$55,1)*S26 -> 0 | T46: =IF('Input | Meters Vols & Costs'!$P$77="Yes",'Input| Prices'!P$55,1)*T26 -> 0 | U46: =IF('Input | Meters Vols & Costs'!$P$77="Yes",'Input| Prices'!Q$55,1)*U26 -> 0 | V46: 0
L47: $dollars | M47: 2024-06-01 | O47: =IF('Input | Meters Vols & Costs'!$P$77="Yes",'Input| Prices'!K$55,1)*O27 -> 0 | P47: =IF('Input | Meters Vols & Costs'!$P$77="Yes",'Input| Prices'!L$55,1)*P27 -> 0 | Q47: =IF('Input | Meters Vols & Costs'!$P$77="Yes",'Input| Prices'!M$55,1)*Q27 -> 0 | R47: =IF('Input | Meters Vols & Costs'!$P$77="Yes",'Input| Prices'!N$55,1)*R27 -> 0 | S47: =IF('Input | Meters Vols & Costs'!$P$77="Yes",'Input| Prices'!O$55,1)*S27 -> 0 | T47: =IF('Input | Meters Vols & Costs'!$P$77="Yes",'Input| Prices'!P$55,1)*T27 -> 0 | U47: =IF('Input | Meters Vols & Costs'!$P$77="Yes",'Input| Prices'!Q$55,1)*U27 -> 0 | V47: 0
F48: Total | L48: $dollars | M48: 2024-06-01 | O48: =SUM(O33:O47) -> 1231959.405 | P48: 5725714.066 | Q48: 2183579.375 | R48: 6602387.426 | S48: 10335755.01 | T48: 12560609.56 | U48: 15105547.4 | V48: =SUM(Q48:U48) -> 46787878.78 | X48: =IF((V48=SUM('Calc | Meters Detail'!V28,'Calc | Meters Detail'!V48,'Calc | Meters Detail'!V68,'Calc | Meters Detail'!V88,'Calc | Meters Detail'!V108,'Calc | Meters Detail'!V128,'Calc | Meters Detail'!V148,'Calc | Meters Detail'!V168,'Calc | Meters Detail'!V188,'Calc | Meters Detail'!V208)),0,1) -> 0
O49: =IF(ABS(O48-'Calc | Meters Detail'!O228)<0.000001,0,1) -> 0 | P49: =IF(ABS(P48-'Calc | Meters Detail'!P228)<0.000001,0,1) -> 0 | Q49: =IF(ABS(Q48-'Calc | Meters Detail'!Q228)<0.000001,0,1) -> 0 | R49: =IF(ABS(R48-'Calc | Meters Detail'!R228)<0.000001,0,1) -> 0 | S49: =IF(ABS(S48-'Calc | Meters Detail'!S228)<0.000001,0,1) -> 0 | T49: =IF(ABS(T48-'Calc | Meters Detail'!T228)<0.000001,0,1) -> 0 | U49: =IF(ABS(U48-'Calc | Meters Detail'!U228)<0.000001,0,1) -> 0 | V49: =IF(ABS(V48-'Calc | Meters Detail'!V228)<0.000001,0,1) -> 0 | X49: =IF(SUM(O49:V49)<>0,1,0) -> 0
D51: ii | E51: Meters - Non-Labour Component
E52: Unescalated
F53: =I_MeterTypes[[#Headers],[Meter Type]] -> Meter Type | G53: =I_MeterTypes[[#Headers],[RIN Subcategory 1]] -> RIN Subcategory 1 | H53: =I_MeterTypes[[#Headers],[RIN Subcategory 2]] -> RIN Subcategory 2 | I53: =I_MeterTypes[[#Headers],[AER Type]] -> AER Type | J53: =I_MeterTypes[[#Headers],[RIN Subcategory 3]] -> RIN Subcategory 3 | K53: =I_MeterTypes[[#Headers],[Meter Code]] -> Meter Code | L53: Units | M53: Basis | O53: =O$12 -> 2024-25 | P53: =P$12 -> 2025-26 | Q53: 2026-27 | R53: 2027-28 | S53: 2028-29 | T53: 2029-30 | U53: 2030-31 | V53: Total
F54: =I_MeterTypes[Meter Type] -> AMI - Single Phase, single element | G54: =I_MeterTypes[RIN Subcategory 1] -> Single Phase Meter Population | H54: =I_MeterTypes[RIN Subcategory 2] -> Direct Connect Meter Population | I54: =I_MeterTypes[AER Type] -> Meter Type 4 | J54: =I_MeterTypes[RIN Subcategory 3] -> Single phase single element - AMI | K54: =I_MeterTypes[Meter Code] -> AMI 1ph 1e | L54: $dollars | M54: =Basis_Capex -> 2024-06-01 | O54: =ICM_AddMetReq*ICM_UnitCost -> 1587185.107 | P54: 1446628.032 | Q54: 1045502.541 | R54: 3543313.146 | S54: 5720616.736 | T54: 6880439.418 | U54: 8115019.524 | V54: =SUM(N54:U54) -> 28338704.5
F55: AMI - Single Phase, two elements with 31.5A load control | G55: Single Phase Meter Population | H55: Direct Connect Meter Population | I55: Meter Type 4 | J55: Single phase two element with contactor - AMI | K55: AMI 1ph 2e | L55: $dollars | M55: 2024-06-01 | O55: 7579.44 | P55: 16484.91264 | Q55: 62329.8876 | R55: 286567.4035 | S55: 469476.6901 | T55: 568815.1618 | U55: 676558.7843 | V55: 2087812.28
F56: AMI - 3 Phase with no load control | G56: Multi Phase Meter Population | H56: Direct Connect Meter Population | I56: Meter Type 4 | J56: Three phase - AMI | K56: AMI 3ph | L56: $dollars | M56: 2024-06-01 | O56: 1584362.914 | P56: 3341863.831 | Q56: 3651856.874 | R56: 4785199.677 | S56: 5483799.447 | T56: 5915788.714 | U56: 6411763.825 | V56: 31174635.28
F57: AMI - Single Phase, single element, with 31.5A load control | G57: Single Phase Meter Population | H57: Direct Connect Meter Population | I57: Meter Type 4 | J57: Single phase single element with contactor - AMI | K57: AMI 1ph DC | L57: $dollars | M57: 2024-06-01 | O57: 7235.4 | P57: 28717.79475 | Q57: 44784.04565 | R57: 116063.4157 | S57: 179521.4211 | T57: 225663.9885 | U57: 287182.832 | V57: 889168.8976
F58: AMI - 3 Phase with 31.5A and 2A load control | G58: Multi Phase Meter Population | H58: Direct Connect Meter Population | I58: Meter Type 4 | J58: Three phase direct connected meter with contactor - AMI | K58: AMI 3ph DC | L58: $dollars | M58: 2024-06-01 | O58: 12059.1 | P58: 39889.81439 | Q58: 57160.94065 | R58: 132535.7763 | S58: 200443.094 | T58: 251441.6483 | U58: 320583.4653 | V58: 1014113.839
F59: AMI - 3 Phase CT connect | G59: Multi Phase Meter Population | H59: Current Transformer Connected Meter Population | I59: Meter Type 4 | J59: Three phase Current transformer connected meter - AMI | K59: AMI 3ph CT | L59: $dollars | M59: 2024-06-01 | O59: 86505.68 | P59: 131669.8409 | Q59: 154521.8768 | R59: 214896.8053 | S59: 268432.7015 | T59: 314489.8284 | U59: 380410.2334 | V59: 1550926.966
F60: AMI - 3 Phase CT & VT connect | G60: Multi Phase Meter Population | H60: Current Transformer Connected Meter Population | I60: Meter Type 4 | J60: Three phase Current transformer connected meter - AMI | K60: AMI 3ph CT VT | L60: $dollars | M60: 2024-06-01 | O60: 0 | P60: 0 | Q60: 0 | R60: 0 | S60: 0 | T60: 0 | U60: 0 | V60: 0
F61: Non AMI - Type 5 Locally read Interval - Single Phase | G61: Single Phase Meter Population | H61: Direct Connect Meter Population | I61: Meter Type 5 | J61: Single phase non off peak - MRIM | K61: INT 1ph | L61: $dollars | M61: 2024-06-01 | O61: 0 | P61: 0 | Q61: 0 | R61: 0 | S61: 0 | T61: 0 | U61: 0 | V61: 0
F62: Non AMI - Type 6 Locally read Accumulation - Single Phase | G62: Single Phase Meter Population | H62: Direct Connect Meter Population | I62: Meter Type 6 | J62: Single phase non off peak - Accumulation | K62: ACC 1ph | L62: $dollars | M62: 2024-06-01 | O62: 0 | P62: 0 | Q62: 0 | R62: 0 | S62: 0 | T62: 0 | U62: 0 | V62: 0
F63: Non AMI - Type 5 Locally read Interval - 3 Phase | G63: Multi Phase Meter Population | H63: Direct Connect Meter Population | I63: Meter Type 5 | J63: Multi phase direct connect - MRIM | K63: INT 3ph | L63: $dollars | M63: 2024-06-01 | O63: 0 | P63: 0 | Q63: 0 | R63: 0 | S63: 0 | T63: 0 | U63: 0 | V63: 0
F64: Non AMI - Type 6 Locally read Accumulation - 3 Phase | G64: Multi Phase Meter Population | H64: Direct Connect Meter Population | I64: Meter Type 6 | J64: Multi phase direct connect - Accumulation | K64: ACC 3ph | L64: $dollars | M64: 2024-06-01 | O64: 0 | P64: 0 | Q64: 0 | R64: 0 | S64: 0 | T64: 0 | U64: 0 | V64: 0
L65: $dollars | M65: 2024-06-01 | O65: 0 | P65: 0 | Q65: 0 | R65: 0 | S65: 0 | T65: 0 | U65: 0 | V65: 0
L66: $dollars | M66: 2024-06-01 | O66: 0 | P66: 0 | Q66: 0 | R66: 0 | S66: 0 | T66: 0 | U66: 0 | V66: 0
L67: $dollars | M67: 2024-06-01 | O67: 0 | P67: 0 | Q67: 0 | R67: 0 | S67: 0 | T67: 0 | U67: 0 | V67: 0
L68: $dollars | M68: 2024-06-01 | O68: 0 | P68: 0 | Q68: 0 | R68: 0 | S68: 0 | T68: 0 | U68: 0 | V68: 0
F69: Total | L69: $dollars | M69: 2024-06-01 | O69: =SUM(O54:O68) -> 3284927.641 | P69: 5005254.226 | Q69: 5016156.165 | R69: 9078576.224 | S69: 12322290.09 | T69: 14156638.76 | U69: 16191518.66 | V69: =SUM(Q69:U69) -> 56765179.9
D71: ii | E71: Meters - Non-Labour Component
E72: Incl Escalation of Non-Labour Costs
F73: =I_MeterTypes[[#Headers],[Meter Type]] -> Meter Type | G73: =I_MeterTypes[[#Headers],[RIN Subcategory 1]] -> RIN Subcategory 1 | H73: =I_MeterTypes[[#Headers],[RIN Subcategory 2]] -> RIN Subcategory 2 | I73: =I_MeterTypes[[#Headers],[AER Type]] -> AER Type | J73: =I_MeterTypes[[#Headers],[RIN Subcategory 3]] -> RIN Subcategory 3 | K73: =I_MeterTypes[[#Headers],[Meter Code]] -> Meter Code | L73: Units | M73: Basis | O73: =O$12 -> 2024-25 | P73: =P$12 -> 2025-26 | Q73: 2026-27 | R73: 2027-28 | S73: 2028-29 | T73: 2029-30 | U73: 2030-31 | V73: Total
F74: =I_MeterTypes[Meter Type] -> AMI - Single Phase, single element | G74: =I_MeterTypes[RIN Subcategory 1] -> Single Phase Meter Population | H74: =I_MeterTypes[RIN Subcategory 2] -> Direct Connect Meter Population | I74: =I_MeterTypes[AER Type] -> Meter Type 4 | J74: =I_MeterTypes[RIN Subcategory 3] -> Single phase single element - AMI | K74: =I_MeterTypes[Meter Code] -> AMI 1ph 1e | L74: $dollars | M74: =Basis_Capex -> 2024-06-01 | O74: =IF('Input | Meters Vols & Costs'!$P$142="Yes",'Input| Prices'!K$59,1)*O54 -> 1587185.107 | P74: =IF('Input | Meters Vols & Costs'!$P$142="Yes",'Input| Prices'!L$59,1)*P54 -> 1446628.032 | Q74: =IF('Input | Meters Vols & Costs'!$P$142="Yes",'Input| Prices'!M$59,1)*Q54 -> 1045502.541 | R74: =IF('Input | Meters Vols & Costs'!$P$142="Yes",'Input| Prices'!N$59,1)*R54 -> 3543313.146 | S74: =IF('Input | Meters Vols & Costs'!$P$142="Yes",'Input| Prices'!O$59,1)*S54 -> 5720616.736 | T74: =IF('Input | Meters Vols & Costs'!$P$142="Yes",'Input| Prices'!P$59,1)*T54 -> 6880439.418 | U74: =IF('Input | Meters Vols & Costs'!$P$142="Yes",'Input| Prices'!Q$59,1)*U54 -> 8115019.524 | V74: =SUM(N74:U74) -> 28338704.5
F75: AMI - Single Phase, two elements with 31.5A load control | G75: Single Phase Meter Population | H75: Direct Connect Meter Population | I75: Meter Type 4 | J75: Single phase two element with contactor - AMI | K75: AMI 1ph 2e | L75: $dollars | M75: 2024-06-01 | O75: =IF('Input | Meters Vols & Costs'!$P$142="Yes",'Input| Prices'!K$59,1)*O55 -> 7579.44 | P75: =IF('Input | Meters Vols & Costs'!$P$142="Yes",'Input| Prices'!L$59,1)*P55 -> 16484.91264 | Q75: =IF('Input | Meters Vols & Costs'!$P$142="Yes",'Input| Prices'!M$59,1)*Q55 -> 62329.8876 | R75: =IF('Input | Meters Vols & Costs'!$P$142="Yes",'Input| Prices'!N$59,1)*R55 -> 286567.4035 | S75: =IF('Input | Meters Vols & Costs'!$P$142="Yes",'Input| Prices'!O$59,1)*S55 -> 469476.6901 | T75: =IF('Input | Meters Vols & Costs'!$P$142="Yes",'Input| Prices'!P$59,1)*T55 -> 568815.1618 | U75: =IF('Input | Meters Vols & Costs'!$P$142="Yes",'Input| Prices'!Q$59,1)*U55 -> 676558.7843 | V75: 2087812.28
F76: AMI - 3 Phase with no load control | G76: Multi Phase Meter Population | H76: Direct Connect Meter Population | I76: Meter Type 4 | J76: Three phase - AMI | K76: AMI 3ph | L76: $dollars | M76: 2024-06-01 | O76: =IF('Input | Meters Vols & Costs'!$P$142="Yes",'Input| Prices'!K$59,1)*O56 -> 1584362.914 | P76: =IF('Input | Meters Vols & Costs'!$P$142="Yes",'Input| Prices'!L$59,1)*P56 -> 3341863.831 | Q76: =IF('Input | Meters Vols & Costs'!$P$142="Yes",'Input| Prices'!M$59,1)*Q56 -> 3651856.874 | R76: =IF('Input | Meters Vols & Costs'!$P$142="Yes",'Input| Prices'!N$59,1)*R56 -> 4785199.677 | S76: =IF('Input | Meters Vols & Costs'!$P$142="Yes",'Input| Prices'!O$59,1)*S56 -> 5483799.447 | T76: =IF('Input | Meters Vols & Costs'!$P$142="Yes",'Input| Prices'!P$59,1)*T56 -> 5915788.714 | U76: =IF('Input | Meters Vols & Costs'!$P$142="Yes",'Input| Prices'!Q$59,1)*U56 -> 6411763.825 | V76: 31174635.28
F77: AMI - Single Phase, single element, with 31.5A load control | G77: Single Phase Meter Population | H77: Direct Connect Meter Population | I77: Meter Type 4 | J77: Single phase single element with contactor - AMI | K77: AMI 1ph DC | L77: $dollars | M77: 2024-06-01 | O77: =IF('Input | Meters Vols & Costs'!$P$142="Yes",'Input| Prices'!K$59,1)*O57 -> 7235.4 | P77: =IF('Input | Meters Vols & Costs'!$P$142="Yes",'Input| Prices'!L$59,1)*P57 -> 28717.79475 | Q77: =IF('Input | Meters Vols & Costs'!$P$142="Yes",'Input| Prices'!M$59,1)*Q57 -> 44784.04565 | R77: =IF('Input | Meters Vols & Costs'!$P$142="Yes",'Input| Prices'!N$59,1)*R57 -> 116063.4157 | S77: =IF('Input | Meters Vols & Costs'!$P$142="Yes",'Input| Prices'!O$59,1)*S57 -> 179521.4211 | T77: =IF('Input | Meters Vols & Costs'!$P$142="Yes",'Input| Prices'!P$59,1)*T57 -> 225663.9885 | U77: =IF('Input | Meters Vols & Costs'!$P$142="Yes",'Input| Prices'!Q$59,1)*U57 -> 287182.832 | V77: 889168.8976
F78: AMI - 3 Phase with 31.5A and 2A load control | G78: Multi Phase Meter Population | H78: Direct Connect Meter Population | I78: Meter Type 4 | J78: Three phase direct connected meter with contactor - AMI | K78: AMI 3ph DC | L78: $dollars | M78: 2024-06-01 | O78: =IF('Input | Meters Vols & Costs'!$P$142="Yes",'Input| Prices'!K$59,1)*O58 -> 12059.1 | P78: =IF('Input | Meters Vols & Costs'!$P$142="Yes",'Input| Prices'!L$59,1)*P58 -> 39889.81439 | Q78: =IF('Input | Meters Vols & Costs'!$P$142="Yes",'Input| Prices'!M$59,1)*Q58 -> 57160.94065 | R78: =IF('Input | Meters Vols & Costs'!$P$142="Yes",'Input| Prices'!N$59,1)*R58 -> 132535.7763 | S78: =IF('Input | Meters Vols & Costs'!$P$142="Yes",'Input| Prices'!O$59,1)*S58 -> 200443.094 | T78: =IF('Input | Meters Vols & Costs'!$P$142="Yes",'Input| Prices'!P$59,1)*T58 -> 251441.6483 | U78: =IF('Input | Meters Vols & Costs'!$P$142="Yes",'Input| Prices'!Q$59,1)*U58 -> 320583.4653 | V78: 1014113.839
F79: AMI - 3 Phase CT connect | G79: Multi Phase Meter Population | H79: Current Transformer Connected Meter Population | I79: Meter Type 4 | J79: Three phase Current transformer connected meter - AMI | K79: AMI 3ph CT | L79: $dollars | M79: 2024-06-01 | O79: =IF('Input | Meters Vols & Costs'!$P$142="Yes",'Input| Prices'!K$59,1)*O59 -> 86505.68 | P79: =IF('Input | Meters Vols & Costs'!$P$142="Yes",'Input| Prices'!L$59,1)*P59 -> 131669.8409 | Q79: =IF('Input | Meters Vols & Costs'!$P$142="Yes",'Input| Prices'!M$59,1)*Q59 -> 154521.8768 | R79: =IF('Input | Meters Vols & Costs'!$P$142="Yes",'Input| Prices'!N$59,1)*R59 -> 214896.8053 | S79: =IF('Input | Meters Vols & Costs'!$P$142="Yes",'Input| Prices'!O$59,1)*S59 -> 268432.7015 | T79: =IF('Input | Meters Vols & Costs'!$P$142="Yes",'Input| Prices'!P$59,1)*T59 -> 314489.8284 | U79: =IF('Input | Meters Vols & Costs'!$P$142="Yes",'Input| Prices'!Q$59,1)*U59 -> 380410.2334 | V79: 1550926.966
F80: AMI - 3 Phase CT & VT connect | G80: Multi Phase Meter Population | H80: Current Transformer Connected Meter Population | I80: Meter Type 4 | J80: Three phase Current transformer connected meter - AMI | K80: AMI 3ph CT VT | L80: $dollars | M80: 2024-06-01 | O80: =IF('Input | Meters Vols & Costs'!$P$142="Yes",'Input| Prices'!K$59,1)*O60 -> 0 | P80: =IF('Input | Meters Vols & Costs'!$P$142="Yes",'Input| Prices'!L$59,1)*P60 -> 0 | Q80: =IF('Input | Meters Vols & Costs'!$P$142="Yes",'Input| Prices'!M$59,1)*Q60 -> 0 | R80: =IF('Input | Meters Vols & Costs'!$P$142="Yes",'Input| Prices'!N$59,1)*R60 -> 0 | S80: =IF('Input | Meters Vols & Costs'!$P$142="Yes",'Input| Prices'!O$59,1)*S60 -> 0 | T80: =IF('Input | Meters Vols & Costs'!$P$142="Yes",'Input| Prices'!P$59,1)*T60 -> 0 | U80: =IF('Input | Meters Vols & Costs'!$P$142="Yes",'Input| Prices'!Q$59,1)*U60 -> 0 | V80: 0
F81: Non AMI - Type 5 Locally read Interval - Single Phase | G81: Single Phase Meter Population | H81: Direct Connect Meter Population | I81: Meter Type 5 | J81: Single phase non off peak - MRIM | K81: INT 1ph | L81: $dollars | M81: 2024-06-01 | O81: =IF('Input | Meters Vols & Costs'!$P$142="Yes",'Input| Prices'!K$59,1)*O61 -> 0 | P81: =IF('Input | Meters Vols & Costs'!$P$142="Yes",'Input| Prices'!L$59,1)*P61 -> 0 | Q81: =IF('Input | Meters Vols & Costs'!$P$142="Yes",'Input| Prices'!M$59,1)*Q61 -> 0 | R81: =IF('Input | Meters Vols & Costs'!$P$142="Yes",'Input| Prices'!N$59,1)*R61 -> 0 | S81: =IF('Input | Meters Vols & Costs'!$P$142="Yes",'Input| Prices'!O$59,1)*S61 -> 0 | T81: =IF('Input | Meters Vols & Costs'!$P$142="Yes",'Input| Prices'!P$59,1)*T61 -> 0 | U81: =IF('Input | Meters Vols & Costs'!$P$142="Yes",'Input| Prices'!Q$59,1)*U61 -> 0 | V81: 0
F82: Non AMI - Type 6 Locally read Accumulation - Single Phase | G82: Single Phase Meter Population | H82: Direct Connect Meter Population | I82: Meter Type 6 | J82: Single phase non off peak - Accumulation | K82: ACC 1ph | L82: $dollars | M82: 2024-06-01 | O82: =IF('Input | Meters Vols & Costs'!$P$142="Yes",'Input| Prices'!K$59,1)*O62 -> 0 | P82: =IF('Input | Meters Vols & Costs'!$P$142="Yes",'Input| Prices'!L$59,1)*P62 -> 0 | Q82: =IF('Input | Meters Vols & Costs'!$P$142="Yes",'Input| Prices'!M$59,1)*Q62 -> 0 | R82: =IF('Input | Meters Vols & Costs'!$P$142="Yes",'Input| Prices'!N$59,1)*R62 -> 0 | S82: =IF('Input | Meters Vols & Costs'!$P$142="Yes",'Input| Prices'!O$59,1)*S62 -> 0 | T82: =IF('Input | Meters Vols & Costs'!$P$142="Yes",'Input| Prices'!P$59,1)*T62 -> 0 | U82: =IF('Input | Meters Vols & Costs'!$P$142="Yes",'Input| Prices'!Q$59,1)*U62 -> 0 | V82: 0
F83: Non AMI - Type 5 Locally read Interval - 3 Phase | G83: Multi Phase Meter Population | H83: Direct Connect Meter Population | I83: Meter Type 5 | J83: Multi phase direct connect - MRIM | K83: INT 3ph | L83: $dollars | M83: 2024-06-01 | O83: =IF('Input | Meters Vols & Costs'!$P$142="Yes",'Input| Prices'!K$59,1)*O63 -> 0 | P83: =IF('Input | Meters Vols & Costs'!$P$142="Yes",'Input| Prices'!L$59,1)*P63 -> 0 | Q83: =IF('Input | Meters Vols & Costs'!$P$142="Yes",'Input| Prices'!M$59,1)*Q63 -> 0 | R83: =IF('Input | Meters Vols & Costs'!$P$142="Yes",'Input| Prices'!N$59,1)*R63 -> 0 | S83: =IF('Input | Meters Vols & Costs'!$P$142="Yes",'Input| Prices'!O$59,1)*S63 -> 0 | T83: =IF('Input | Meters Vols & Costs'!$P$142="Yes",'Input| Prices'!P$59,1)*T63 -> 0 | U83: =IF('Input | Meters Vols & Costs'!$P$142="Yes",'Input| Prices'!Q$59,1)*U63 -> 0 | V83: 0
F84: Non AMI - Type 6 Locally read Accumulation - 3 Phase | G84: Multi Phase Meter Population | H84: Direct Connect Meter Population | I84: Meter Type 6 | J84: Multi phase direct connect - Accumulation | K84: ACC 3ph | L84: $dollars | M84: 2024-06-01 | O84: =IF('Input | Meters Vols & Costs'!$P$142="Yes",'Input| Prices'!K$59,1)*O64 -> 0 | P84: =IF('Input | Meters Vols & Costs'!$P$142="Yes",'Input| Prices'!L$59,1)*P64 -> 0 | Q84: =IF('Input | Meters Vols & Costs'!$P$142="Yes",'Input| Prices'!M$59,1)*Q64 -> 0 | R84: =IF('Input | Meters Vols & Costs'!$P$142="Yes",'Input| Prices'!N$59,1)*R64 -> 0 | S84: =IF('Input | Meters Vols & Costs'!$P$142="Yes",'Input| Prices'!O$59,1)*S64 -> 0 | T84: =IF('Input | Meters Vols & Costs'!$P$142="Yes",'Input| Prices'!P$59,1)*T64 -> 0 | U84: =IF('Input | Meters Vols & Costs'!$P$142="Yes",'Input| Prices'!Q$59,1)*U64 -> 0 | V84: 0
L85: $dollars | M85: 2024-06-01 | O85: =IF('Input | Meters Vols & Costs'!$P$142="Yes",'Input| Prices'!K$59,1)*O65 -> 0 | P85: =IF('Input | Meters Vols & Costs'!$P$142="Yes",'Input| Prices'!L$59,1)*P65 -> 0 | Q85: =IF('Input | Meters Vols & Costs'!$P$142="Yes",'Input| Prices'!M$59,1)*Q65 -> 0 | R85: =IF('Input | Meters Vols & Costs'!$P$142="Yes",'Input| Prices'!N$59,1)*R65 -> 0 | S85: =IF('Input | Meters Vols & Costs'!$P$142="Yes",'Input| Prices'!O$59,1)*S65 -> 0 | T85: =IF('Input | Meters Vols & Costs'!$P$142="Yes",'Input| Prices'!P$59,1)*T65 -> 0 | U85: =IF('Input | Meters Vols & Costs'!$P$142="Yes",'Input| Prices'!Q$59,1)*U65 -> 0 | V85: 0
L86: $dollars | M86: 2024-06-01 | O86: =IF('Input | Meters Vols & Costs'!$P$142="Yes",'Input| Prices'!K$59,1)*O66 -> 0 | P86: =IF('Input | Meters Vols & Costs'!$P$142="Yes",'Input| Prices'!L$59,1)*P66 -> 0 | Q86: =IF('Input | Meters Vols & Costs'!$P$142="Yes",'Input| Prices'!M$59,1)*Q66 -> 0 | R86: =IF('Input | Meters Vols & Costs'!$P$142="Yes",'Input| Prices'!N$59,1)*R66 -> 0 | S86: =IF('Input | Meters Vols & Costs'!$P$142="Yes",'Input| Prices'!O$59,1)*S66 -> 0 | T86: =IF('Input | Meters Vols & Costs'!$P$142="Yes",'Input| Prices'!P$59,1)*T66 -> 0 | U86: =IF('Input | Meters Vols & Costs'!$P$142="Yes",'Input| Prices'!Q$59,1)*U66 -> 0 | V86: 0
L87: $dollars | M87: 2024-06-01 | O87: =IF('Input | Meters Vols & Costs'!$P$142="Yes",'Input| Prices'!K$59,1)*O67 -> 0 | P87: =IF('Input | Meters Vols & Costs'!$P$142="Yes",'Input| Prices'!L$59,1)*P67 -> 0 | Q87: =IF('Input | Meters Vols & Costs'!$P$142="Yes",'Input| Prices'!M$59,1)*Q67 -> 0 | R87: =IF('Input | Meters Vols & Costs'!$P$142="Yes",'Input| Prices'!N$59,1)*R67 -> 0 | S87: =IF('Input | Meters Vols & Costs'!$P$142="Yes",'Input| Prices'!O$59,1)*S67 -> 0 | T87: =IF('Input | Meters Vols & Costs'!$P$142="Yes",'Input| Prices'!P$59,1)*T67 -> 0 | U87: =IF('Input | Meters Vols & Costs'!$P$142="Yes",'Input| Prices'!Q$59,1)*U67 -> 0 | V87: 0
L88: $dollars | M88: 2024-06-01 | O88: =IF('Input | Meters Vols & Costs'!$P$142="Yes",'Input| Prices'!K$59,1)*O68 -> 0 | P88: =IF('Input | Meters Vols & Costs'!$P$142="Yes",'Input| Prices'!L$59,1)*P68 -> 0 | Q88: =IF('Input | Meters Vols & Costs'!$P$142="Yes",'Input| Prices'!M$59,1)*Q68 -> 0 | R88: =IF('Input | Meters Vols & Costs'!$P$142="Yes",'Input| Prices'!N$59,1)*R68 -> 0 | S88: =IF('Input | Meters Vols & Costs'!$P$142="Yes",'Input| Prices'!O$59,1)*S68 -> 0 | T88: =IF('Input | Meters Vols & Costs'!$P$142="Yes",'Input| Prices'!P$59,1)*T68 -> 0 | U88: =IF('Input | Meters Vols & Costs'!$P$142="Yes",'Input| Prices'!Q$59,1)*U68 -> 0 | V88: 0
F89: Total | L89: $dollars | M89: 2024-06-01 | O89: =SUM(O74:O88) -> 3284927.641 | P89: 5005254.226 | Q89: 5016156.165 | R89: 9078576.224 | S89: 12322290.09 | T89: 14156638.76 | U89: 16191518.66 | V89: =SUM(Q89:U89) -> 56765179.9 | X89: =IF((V89=SUM('Calc | Meters Detail'!V259,'Calc | Meters Detail'!V279,'Calc | Meters Detail'!V299,'Calc | Meters Detail'!V319,'Calc | Meters Detail'!V339,'Calc | Meters Detail'!V359,'Calc | Meters Detail'!V379,'Calc | Meters Detail'!V399,'Calc | Meters Detail'!V419,'Calc | Meters Detail'!V439)),0,1) -> 0
O90: =IF(ABS(O69-'Calc | Meters Detail'!O459)<0.00001,0,1) -> 0 | P90: =IF(ABS(P69-'Calc | Meters Detail'!P459)<0.00001,0,1) -> 0 | Q90: =IF(ABS(Q69-'Calc | Meters Detail'!Q459)<0.00001,0,1) -> 0 | R90: =IF(ABS(R69-'Calc | Meters Detail'!R459)<0.00001,0,1) -> 0 | S90: =IF(ABS(S69-'Calc | Meters Detail'!S459)<0.00001,0,1) -> 0 | T90: =IF(ABS(T69-'Calc | Meters Detail'!T459)<0.00001,0,1) -> 0 | U90: =IF(ABS(U69-'Calc | Meters Detail'!U459)<0.00001,0,1) -> 0 | V90: =IF(ABS(V69-'Calc | Meters Detail'!V459)<0.00001,0,1) -> 0 | X90: =IF(SUM(O90:V90)<>0,1,0) -> 0
D93: iii | E93: Total Meter Costs (SCS & ACS)
F94: =I_MeterTypes[[#Headers],[Meter Type]] -> Meter Type | G94: =I_MeterTypes[[#Headers],[RIN Subcategory 1]] -> RIN Subcategory 1 | H94: =I_MeterTypes[[#Headers],[RIN Subcategory 2]] -> RIN Subcategory 2 | I94: =I_MeterTypes[[#Headers],[AER Type]] -> AER Type | J94: =I_MeterTypes[[#Headers],[RIN Subcategory 3]] -> RIN Subcategory 3 | K94: =I_MeterTypes[[#Headers],[Meter Code]] -> Meter Code | L94: Units | M94: Basis | O94: =O$12 -> 2024-25 | P94: =P$12 -> 2025-26 | Q94: 2026-27 | R94: 2027-28 | S94: 2028-29 | T94: 2029-30 | U94: 2030-31 | V94: Total
F95: =I_MeterTypes[Meter Type] -> AMI - Single Phase, single element | G95: =I_MeterTypes[RIN Subcategory 1] -> Single Phase Meter Population | H95: =I_MeterTypes[RIN Subcategory 2] -> Direct Connect Meter Population | I95: =I_MeterTypes[AER Type] -> Meter Type 4 | J95: =I_MeterTypes[RIN Subcategory 3] -> Single phase single element - AMI | K95: =I_MeterTypes[Meter Code] -> AMI 1ph 1e | L95: $dollars | M95: =Basis_Capex -> 2024-06-01 | O95: =O33+O74 -> 2450467.108 | P95: =P33+P74 -> 4283825.414 | Q95: 2553555.757 | R95: 8422423.327 | S95: 13415393.95 | T95: 16182295.37 | U95: 19187926.4 | V95: =SUM(N95:U95) -> 66495887.33
F96: AMI - Single Phase, two elements with 31.5A load control | G96: Single Phase Meter Population | H96: Direct Connect Meter Population | I96: Meter Type 4 | J96: Single phase two element with contactor - AMI | K96: AMI 1ph 2e | L96: $dollars | M96: 2024-06-01 | O96: =O34+O75 -> 93687.39862 | P96: =P34+P75 -> 116493.2765 | Q96: 213012.5197 | R96: 679934.1344 | S96: 1067025.173 | T96: 1286167.715 | U96: 1528692.305 | V96: 4985012.523
F97: AMI - 3 Phase with no load control | G97: Multi Phase Meter Population | H97: Direct Connect Meter Population | I97: Meter Type 4 | J97: Three phase - AMI | K97: AMI 3ph | L97: $dollars | M97: 2024-06-01 | O97: 1785020.048 | P97: =P35+P76 -> 4591259.597 | Q97: 4004401.442 | R97: 5744769.318 | S97: 6968736.623 | T97: 7741104.276 | U97: 8652425.976 | V97: 39487717.28
F98: AMI - Single Phase, single element, with 31.5A load control | G98: Single Phase Meter Population | H98: Direct Connect Meter Population | I98: Meter Type 4 | J98: Single phase single element with contactor - AMI | K98: AMI 1ph DC | L98: $dollars | M98: 2024-06-01 | O98: 26968.47385 | P98: =P36+P77 -> 80900.14163 | Q98: 116959.4909 | R98: 273759.9082 | S98: 417310.7557 | T98: 528291.8306 | U98: 680316.728 | V98: 2124507.329
F99: AMI - 3 Phase with 31.5A and 2A load control | G99: Multi Phase Meter Population | H99: Direct Connect Meter Population | I99: Meter Type 4 | J99: Three phase direct connected meter with contactor - AMI | K99: AMI 3ph DC | L99: $dollars | M99: 2024-06-01 | O99: 16986.38874 | P99: =P37+P78 -> 73120.32643 | Q99: 104635.3934 | R99: 240191.3146 | S99: 365405.0439 | T99: 464657.5038 | U99: 602559.6678 | V99: 1867555.639
F100: AMI - 3 Phase CT connect | G100: Multi Phase Meter Population | H100: Current Transformer Connected Meter Population | I100: Meter Type 4 | J100: Three phase Current transformer connected meter - AMI | K100: AMI 3ph CT | L100: $dollars | M100: 2024-06-01 | O100: 101024.4386 | P100: =P38+P79 -> 171569.4976 | Q100: 207170.9377 | R100: 319885.6481 | S100: 424173.5575 | T100: 514731.6233 | U100: 645144.9838 | V100: 2383700.687
F101: AMI - 3 Phase CT & VT connect | G101: Multi Phase Meter Population | H101: Current Transformer Connected Meter Population | I101: Meter Type 4 | J101: Three phase Current transformer connected meter - AMI | K101: AMI 3ph CT VT | L101: $dollars | M101: 2024-06-01 | O101: 0 | P101: =P39+P80 -> 0 | Q101: 0 | R101: 0 | S101: 0 | T101: 0 | U101: 0 | V101: 0
F102: Non AMI - Type 5 Locally read Interval - Single Phase | G102: Single Phase Meter Population | H102: Direct Connect Meter Population | I102: Meter Type 5 | J102: Single phase non off peak - MRIM | K102: INT 1ph | L102: $dollars | M102: 2024-06-01 | O102: 0 | P102: =P40+P81 -> 6505.391002 | Q102: 0 | R102: 0 | S102: 0 | T102: 0 | U102: 0 | V102: 6505.391002
F103: Non AMI - Type 6 Locally read Accumulation - Single Phase | G103: Single Phase Meter Population | H103: Direct Connect Meter Population | I103: Meter Type 6 | J103: Single phase non off peak - Accumulation | K103: ACC 1ph | L103: $dollars | M103: 2024-06-01 | O103: 28109.29853 | P103: =P41+P82 -> 940626.6994 | Q103: 0 | R103: 0 | S103: 0 | T103: 0 | U103: 0 | V103: 968735.9979
F104: Non AMI - Type 5 Locally read Interval - 3 Phase | G104: Multi Phase Meter Population | H104: Direct Connect Meter Population | I104: Meter Type 5 | J104: Multi phase direct connect - MRIM | K104: INT 3ph | L104: $dollars | M104: 2024-06-01 | O104: 0 | P104: =P42+P83 -> 2168.463667 | Q104: 0 | R104: 0 | S104: 0 | T104: 0 | U104: 0 | V104: 2168.463667
F105: Non AMI - Type 6 Locally read Accumulation - 3 Phase | G105: Multi Phase Meter Population | H105: Direct Connect Meter Population | I105: Meter Type 6 | J105: Multi phase direct connect - Accumulation | K105: ACC 3ph | L105: $dollars | M105: 2024-06-01 | O105: 14623.8917 | P105: =P43+P84 -> 464499.4847 | Q105: 0 | R105: 0 | S105: 0 | T105: 0 | U105: 0 | V105: 479123.3764
L106: $dollars | M106: 2024-06-01 | O106: 0 | P106: =P44+P85 -> 0 | Q106: 0 | R106: 0 | S106: 0 | T106: 0 | U106: 0 | V106: 0
L107: $dollars | M107: 2024-06-01 | O107: 0 | P107: =P45+P86 -> 0 | Q107: 0 | R107: 0 | S107: 0 | T107: 0 | U107: 0 | V107: 0
L108: $dollars | M108: 2024-06-01 | O108: 0 | P108: =P46+P87 -> 0 | Q108: 0 | R108: 0 | S108: 0 | T108: 0 | U108: 0 | V108: 0
L109: $dollars | M109: 2024-06-01 | O109: 0 | P109: =P47+P88 -> 0 | Q109: 0 | R109: 0 | S109: 0 | T109: 0 | U109: 0 | V109: 0
F110: Total | L110: $dollars | M110: 2024-06-01 | O110: =SUM(O95:O108) -> 4516887.046 | P110: 10730968.29 | Q110: 7199735.54 | R110: 15680963.65 | S110: 22658045.1 | T110: 26717248.32 | U110: 31297066.06 | V110: =SUM(Q110:U110) -> 103553058.7 | X110: =IF((V110=(V89+V48)),0,1) -> 0
C112: b | D112: Meter Costs by SCS/ACS
D114: i | E114: Meters - SCS
F115: =I_MeterTypes[[#Headers],[Meter Type]] -> Meter Type | G115: =I_MeterTypes[[#Headers],[RIN Subcategory 1]] -> RIN Subcategory 1 | H115: =I_MeterTypes[[#Headers],[RIN Subcategory 2]] -> RIN Subcategory 2 | I115: =I_MeterTypes[[#Headers],[AER Type]] -> AER Type | J115: =I_MeterTypes[[#Headers],[RIN Subcategory 3]] -> RIN Subcategory 3 | K115: =I_MeterTypes[[#Headers],[Meter Code]] -> Meter Code | L115: Units | M115: Basis | O115: =O$12 -> 2024-25 | P115: =P$12 -> 2025-26 | Q115: 2026-27 | R115: 2027-28 | S115: 2028-29 | T115: 2029-30 | U115: 2030-31 | V115: Total
F116: =I_MeterTypes[Meter Type] -> AMI - Single Phase, single element | G116: =I_MeterTypes[RIN Subcategory 1] -> Single Phase Meter Population | H116: =I_MeterTypes[RIN Subcategory 2] -> Direct Connect Meter Population | I116: =I_MeterTypes[AER Type] -> Meter Type 4 | J116: =I_MeterTypes[RIN Subcategory 3] -> Single phase single element - AMI | K116: =I_MeterTypes[Meter Code] -> AMI 1ph 1e | L116: $dollars | M116: =Basis_Capex -> 2024-06-01 | O116: ='Input | Meters Vols & Costs'!J29*ICM_D_TC1+ 'Input | Meters Vols & Costs'!J30*ICM_D_TC2+ 'Input | Meters Vols & Costs'!J31*ICM_D_TC3+ 'Input | Meters Vols & Costs'!J32*ICM_D_TC4+ 'Input | Meters Vols & Costs'!J33*ICM_D_TC5+ 'Input | Meters Vols & Costs'!J34*ICM_D_TC6+ 'Input | Meters Vols & Costs'!J35*ICM_D_TC7+ 'Input | Meters Vols & Costs'!J36*ICM_D_TC8+ 'Input | Meters Vols & Costs'!J37*ICM_D_TC9+ 'Input | Meters Vols & Costs'!J38*ICM_D_TC10 -> 0 | P116: 0 | Q116: 0 | R116: 0 | S116: 0 | T116: 0 | U116: 0 | V116: =SUM(N116:U116) -> 0
F117: AMI - Single Phase, two elements with 31.5A load control | G117: Single Phase Meter Population | H117: Direct Connect Meter Population | I117: Meter Type 4 | J117: Single phase two element with contactor - AMI | K117: AMI 1ph 2e | L117: $dollars | M117: 2024-06-01 | O117: 0 | P117: 0 | Q117: 0 | R117: 0 | S117: 0 | T117: 0 | U117: 0 | V117: 0
F118: AMI - 3 Phase with no load control | G118: Multi Phase Meter Population | H118: Direct Connect Meter Population | I118: Meter Type 4 | J118: Three phase - AMI | K118: AMI 3ph | L118: $dollars | M118: 2024-06-01 | O118: 0 | P118: 0 | Q118: 0 | R118: 0 | S118: 0 | T118: 0 | U118: 0 | V118: 0
F119: AMI - Single Phase, single element, with 31.5A load control | G119: Single Phase Meter Population | H119: Direct Connect Meter Population | I119: Meter Type 4 | J119: Single phase single element with contactor - AMI | K119: AMI 1ph DC | L119: $dollars | M119: 2024-06-01 | O119: 0 | P119: 0 | Q119: 0 | R119: 0 | S119: 0 | T119: 0 | U119: 0 | V119: 0
F120: AMI - 3 Phase with 31.5A and 2A load control | G120: Multi Phase Meter Population | H120: Direct Connect Meter Population | I120: Meter Type 4 | J120: Three phase direct connected meter with contactor - AMI | K120: AMI 3ph DC | L120: $dollars | M120: 2024-06-01 | O120: 0 | P120: 0 | Q120: 0 | R120: 0 | S120: 0 | T120: 0 | U120: 0 | V120: 0
F121: AMI - 3 Phase CT connect | G121: Multi Phase Meter Population | H121: Current Transformer Connected Meter Population | I121: Meter Type 4 | J121: Three phase Current transformer connected meter - AMI | K121: AMI 3ph CT | L121: $dollars | M121: 2024-06-01 | O121: 0 | P121: 0 | Q121: 0 | R121: 0 | S121: 0 | T121: 0 | U121: 0 | V121: 0
F122: AMI - 3 Phase CT & VT connect | G122: Multi Phase Meter Population | H122: Current Transformer Connected Meter Population | I122: Meter Type 4 | J122: Three phase Current transformer connected meter - AMI | K122: AMI 3ph CT VT | L122: $dollars | M122: 2024-06-01 | O122: 0 | P122: 0 | Q122: 0 | R122: 0 | S122: 0 | T122: 0 | U122: 0 | V122: 0
F123: Non AMI - Type 5 Locally read Interval - Single Phase | G123: Single Phase Meter Population | H123: Direct Connect Meter Population | I123: Meter Type 5 | J123: Single phase non off peak - MRIM | K123: INT 1ph | L123: $dollars | M123: 2024-06-01 | O123: 0 | P123: 0 | Q123: 0 | R123: 0 | S123: 0 | T123: 0 | U123: 0 | V123: 0
F124: Non AMI - Type 6 Locally read Accumulation - Single Phase | G124: Single Phase Meter Population | H124: Direct Connect Meter Population | I124: Meter Type 6 | J124: Single phase non off peak - Accumulation | K124: ACC 1ph | L124: $dollars | M124: 2024-06-01 | O124: 0 | P124: 0 | Q124: 0 | R124: 0 | S124: 0 | T124: 0 | U124: 0 | V124: 0
F125: Non AMI - Type 5 Locally read Interval - 3 Phase | G125: Multi Phase Meter Population | H125: Direct Connect Meter Population | I125: Meter Type 5 | J125: Multi phase direct connect - MRIM | K125: INT 3ph | L125: $dollars | M125: 2024-06-01 | O125: 0 | P125: 0 | Q125: 0 | R125: 0 | S125: 0 | T125: 0 | U125: 0 | V125: 0
F126: Non AMI - Type 6 Locally read Accumulation - 3 Phase | G126: Multi Phase Meter Population | H126: Direct Connect Meter Population | I126: Meter Type 6 | J126: Multi phase direct connect - Accumulation | K126: ACC 3ph | L126: $dollars | M126: 2024-06-01 | O126: 0 | P126: 0 | Q126: 0 | R126: 0 | S126: 0 | T126: 0 | U126: 0 | V126: 0
L127: $dollars | M127: 2024-06-01 | O127: 0 | P127: 0 | Q127: 0 | R127: 0 | S127: 0 | T127: 0 | U127: 0 | V127: 0
L128: $dollars | M128: 2024-06-01 | O128: 0 | P128: 0 | Q128: 0 | R128: 0 | S128: 0 | T128: 0 | U128: 0 | V128: 0
L129: $dollars | M129: 2024-06-01 | O129: 0 | P129: 0 | Q129: 0 | R129: 0 | S129: 0 | T129: 0 | U129: 0 | V129: 0
L130: $dollars | M130: 2024-06-01 | O130: 0 | P130: 0 | Q130: 0 | R130: 0 | S130: 0 | T130: 0 | U130: 0 | V130: 0
F131: Total | L131: $dollars | M131: 2024-06-01 | O131: =SUM(O116:O129) -> 0 | P131: 0 | Q131: 0 | R131: 0 | S131: 0 | T131: 0 | U131: 0 | V131: =SUM(O131:U131) -> 0
D134: ii | E134: Meters - ACS
F135: =I_MeterTypes[[#Headers],[Meter Type]] -> Meter Type | G135: =I_MeterTypes[[#Headers],[RIN Subcategory 1]] -> RIN Subcategory 1 | H135: =I_MeterTypes[[#Headers],[RIN Subcategory 2]] -> RIN Subcategory 2 | I135: =I_MeterTypes[[#Headers],[AER Type]] -> AER Type | J135: =I_MeterTypes[[#Headers],[RIN Subcategory 3]] -> RIN Subcategory 3 | K135: =I_MeterTypes[[#Headers],[Meter Code]] -> Meter Code | L135: Units | M135: Basis | O135: =O$12 -> 2024-25 | P135: =P$12 -> 2025-26 | Q135: 2026-27 | R135: 2027-28 | S135: 2028-29 | T135: 2029-30 | U135: 2030-31 | V135: Total
F136: =I_MeterTypes[Meter Type] -> AMI - Single Phase, single element | G136: =I_MeterTypes[RIN Subcategory 1] -> Single Phase Meter Population | H136: =I_MeterTypes[RIN Subcategory 2] -> Direct Connect Meter Population | I136: =I_MeterTypes[AER Type] -> Meter Type 4 | J136: =I_MeterTypes[RIN Subcategory 3] -> Single phase single element - AMI | K136: =I_MeterTypes[Meter Code] -> AMI 1ph 1e | L136: $dollars | M136: =Basis_Capex -> 2024-06-01 | O136: =(1-'Input | Meters Vols & Costs'!J29)*ICM_D_TC1+ (1-'Input | Meters Vols & Costs'!J30)*ICM_D_TC2+ (1-'Input | Meters Vols & Costs'!J31)*ICM_D_TC3+ (1-'Input | Meters Vols & Costs'!J32)*ICM_D_TC4+ (1-'Input | Meters Vols & Costs'!J33)*ICM_D_TC5+ (1-'Input | Meters Vols & Costs'!J34)*ICM_D_TC6+ (1-'Input | Meters Vols & Costs'!J35)*ICM_D_TC7+ (1-'Input | Meters Vols & Costs'!J36)*ICM_D_TC8+ (1-'Input | Meters Vols & Costs'!J37)*ICM_D_TC9+ (1-'Input | Meters Vols & Costs'!J38)*ICM_D_TC10 -> 2450467.108 | P136: 4283825.414 | Q136: 2553555.757 | R136: 8422423.327 | S136: 13415393.95 | T136: 16182295.37 | U136: 19187926.4 | V136: =SUM(N136:U136) -> 66495887.33
F137: AMI - Single Phase, two elements with 31.5A load control | G137: Single Phase Meter Population | H137: Direct Connect Meter Population | I137: Meter Type 4 | J137: Single phase two element with contactor - AMI | K137: AMI 1ph 2e | L137: $dollars | M137: 2024-06-01 | O137: 93687.39862 | P137: 116493.2765 | Q137: 213012.5197 | R137: 679934.1344 | S137: 1067025.173 | T137: 1286167.715 | U137: 1528692.305 | V137: =SUM(N137:U137) -> 4985012.523
F138: AMI - 3 Phase with no load control | G138: Multi Phase Meter Population | H138: Direct Connect Meter Population | I138: Meter Type 4 | J138: Three phase - AMI | K138: AMI 3ph | L138: $dollars | M138: 2024-06-01 | O138: 1785020.048 | P138: 4591259.597 | Q138: 4004401.442 | R138: 5744769.318 | S138: 6968736.623 | T138: 7741104.276 | U138: 8652425.976 | V138: 39487717.28
F139: AMI - Single Phase, single element, with 31.5A load control | G139: Single Phase Meter Population | H139: Direct Connect Meter Population | I139: Meter Type 4 | J139: Single phase single element with contactor - AMI | K139: AMI 1ph DC | L139: $dollars | M139: 2024-06-01 | O139: 26968.47385 | P139: 80900.14163 | Q139: 116959.4909 | R139: 273759.9082 | S139: 417310.7557 | T139: 528291.8306 | U139: 680316.728 | V139: 2124507.329
F140: AMI - 3 Phase with 31.5A and 2A load control | G140: Multi Phase Meter Population | H140: Direct Connect Meter Population | I140: Meter Type 4 | J140: Three phase direct connected meter with contactor - AMI | K140: AMI 3ph DC | L140: $dollars | M140: 2024-06-01 | O140: 16986.38874 | P140: 73120.32643 | Q140: 104635.3934 | R140: 240191.3146 | S140: 365405.0439 | T140: 464657.5038 | U140: 602559.6678 | V140: 1867555.639
F141: AMI - 3 Phase CT connect | G141: Multi Phase Meter Population | H141: Current Transformer Connected Meter Population | I141: Meter Type 4 | J141: Three phase Current transformer connected meter - AMI | K141: AMI 3ph CT | L141: $dollars | M141: 2024-06-01 | O141: 101024.4386 | P141: 171569.4976 | Q141: 207170.9377 | R141: 319885.6481 | S141: 424173.5575 | T141: 514731.6233 | U141: 645144.9838 | V141: 2383700.687
F142: AMI - 3 Phase CT & VT connect | G142: Multi Phase Meter Population | H142: Current Transformer Connected Meter Population | I142: Meter Type 4 | J142: Three phase Current transformer connected meter - AMI | K142: AMI 3ph CT VT | L142: $dollars | M142: 2024-06-01 | O142: 0 | P142: 0 | Q142: 0 | R142: 0 | S142: 0 | T142: 0 | U142: 0 | V142: 0
F143: Non AMI - Type 5 Locally read Interval - Single Phase | G143: Single Phase Meter Population | H143: Direct Connect Meter Population | I143: Meter Type 5 | J143: Single phase non off peak - MRIM | K143: INT 1ph | L143: $dollars | M143: 2024-06-01 | O143: 0 | P143: 6505.391002 | Q143: 0 | R143: 0 | S143: 0 | T143: 0 | U143: 0 | V143: 6505.391002
F144: Non AMI - Type 6 Locally read Accumulation - Single Phase | G144: Single Phase Meter Population | H144: Direct Connect Meter Population | I144: Meter Type 6 | J144: Single phase non off peak - Accumulation | K144: ACC 1ph | L144: $dollars | M144: 2024-06-01 | O144: 28109.29853 | P144: 940626.6994 | Q144: 0 | R144: 0 | S144: 0 | T144: 0 | U144: 0 | V144: 968735.9979
F145: Non AMI - Type 5 Locally read Interval - 3 Phase | G145: Multi Phase Meter Population | H145: Direct Connect Meter Population | I145: Meter Type 5 | J145: Multi phase direct connect - MRIM | K145: INT 3ph | L145: $dollars | M145: 2024-06-01 | O145: 0 | P145: 2168.463667 | Q145: 0 | R145: 0 | S145: 0 | T145: 0 | U145: 0 | V145: 2168.463667
F146: Non AMI - Type 6 Locally read Accumulation - 3 Phase | G146: Multi Phase Meter Population | H146: Direct Connect Meter Population | I146: Meter Type 6 | J146: Multi phase direct connect - Accumulation | K146: ACC 3ph | L146: $dollars | M146: 2024-06-01 | O146: 14623.8917 | P146: 464499.4847 | Q146: 0 | R146: 0 | S146: 0 | T146: 0 | U146: 0 | V146: 479123.3764
L147: $dollars | M147: 2024-06-01 | O147: 0 | P147: 0 | Q147: 0 | R147: 0 | S147: 0 | T147: 0 | U147: 0 | V147: 0
L148: $dollars | M148: 2024-06-01 | O148: 0 | P148: 0 | Q148: 0 | R148: 0 | S148: 0 | T148: 0 | U148: 0 | V148: 0
L149: $dollars | M149: 2024-06-01 | O149: 0 | P149: 0 | Q149: 0 | R149: 0 | S149: 0 | T149: 0 | U149: 0 | V149: 0
L150: $dollars | M150: 2024-06-01 | O150: 0 | P150: 0 | Q150: 0 | R150: 0 | S150: 0 | T150: 0 | U150: 0 | V150: 0
F151: Total | L151: $dollars | M151: 2024-06-01 | O151: =SUM(O136:O149) -> 4516887.046 | P151: =SUM(P136:P149) -> 10730968.29 | Q151: 7199735.54 | R151: 15680963.65 | S151: 22658045.1 | T151: 26717248.32 | U151: 31297066.06 | V151: =SUM(Q151:U151) -> 103553058.7 | X151: =IF((V151+V131=V110),0,1) -> 0
A156: Output - Meter Capex (ACS) to Metering RFM/PTRM
D159: Total (Including Overheads and Additional Costs)
F160: Total Metering ACS | L160: Units | M160: Basis | O160: =O$12 -> 2024-25 | P160: =P$12 -> 2025-26 | Q160: ='Input | Meters Vols & Costs'!Q$171 -> 2026-27 | R160: ='Input | Meters Vols & Costs'!R$171 -> 2027-28 | S160: ='Input | Meters Vols & Costs'!S$171 -> 2028-29 | T160: ='Input | Meters Vols & Costs'!T$171 -> 2029-30 | U160: ='Input | Meters Vols & Costs'!U$171 -> 2030-31 | V160: Total
F161: Overheads | L161: $dollars | M161: =Basis_Capex -> 2024-06-01 | O161: ='Input | Meters Vols & Costs'!O55* IF('Input | Meters Vols & Costs'!$L55="$millions",10^6,IF('Input | Meters Vols & Costs'!$L55="$000",10^3,1))/IF($L161="$millions",10^6,IF($L161="$000",10^3,1)) -> 0 | P161: ='Input | Meters Vols & Costs'!P55* IF('Input | Meters Vols & Costs'!$L55="$millions",10^6,IF('Input | Meters Vols & Costs'!$L55="$000",10^3,1))/IF($L161="$millions",10^6,IF($L161="$000",10^3,1)) -> 0 | Q161: ='Input | Meters Vols & Costs'!Q55* IF('Input | Meters Vols & Costs'!$L55="$millions",10^6,IF('Input | Meters Vols & Costs'!$L55="$000",10^3,1))/IF($L161="$millions",10^6,IF($L161="$000",10^3,1)) -> 0 | R161: ='Input | Meters Vols & Costs'!R55* IF('Input | Meters Vols & Costs'!$L55="$millions",10^6,IF('Input | Meters Vols & Costs'!$L55="$000",10^3,1))/IF($L161="$millions",10^6,IF($L161="$000",10^3,1)) -> 0 | S161: ='Input | Meters Vols & Costs'!S55* IF('Input | Meters Vols & Costs'!$L55="$millions",10^6,IF('Input | Meters Vols & Costs'!$L55="$000",10^3,1))/IF($L161="$millions",10^6,IF($L161="$000",10^3,1)) -> 0 | T161: ='Input | Meters Vols & Costs'!T55* IF('Input | Meters Vols & Costs'!$L55="$millions",10^6,IF('Input | Meters Vols & Costs'!$L55="$000",10^3,1))/IF($L161="$millions",10^6,IF($L161="$000",10^3,1)) -> 0 | U161: ='Input | Meters Vols & Costs'!U55* IF('Input | Meters Vols & Costs'!$L55="$millions",10^6,IF('Input | Meters Vols & Costs'!$L55="$000",10^3,1))/IF($L161="$millions",10^6,IF($L161="$000",10^3,1)) -> 0 | V161: =SUM(Q161:U161) -> 0
F162: Additional Projects | L162: $dollars | M162: =Basis_Capex -> 2024-06-01 | O162: 0 | P162: ='Input | Meters Vols & Costs'!P50* IF('Input | Meters Vols & Costs'!$L50="$millions",10^6,IF('Input | Meters Vols & Costs'!$L50="$000",10^3,1))/IF($L162="$millions",10^6,IF($L162="$000",10^3,1)) -> 0 | Q162: ='Input | Meters Vols & Costs'!Q50* IF('Input | Meters Vols & Costs'!$L50="$millions",10^6,IF('Input | Meters Vols & Costs'!$L50="$000",10^3,1))/IF($L162="$millions",10^6,IF($L162="$000",10^3,1)) -> 1969752.895 | R162: ='Input | Meters Vols & Costs'!R50* IF('Input | Meters Vols & Costs'!$L50="$millions",10^6,IF('Input | Meters Vols & Costs'!$L50="$000",10^3,1))/IF($L162="$millions",10^6,IF($L162="$000",10^3,1)) -> 3136839.899 | S162: ='Input | Meters Vols & Costs'!S50* IF('Input | Meters Vols & Costs'!$L50="$millions",10^6,IF('Input | Meters Vols & Costs'!$L50="$000",10^3,1))/IF($L162="$millions",10^6,IF($L162="$000",10^3,1)) -> 4092317.78 | T162: ='Input | Meters Vols & Costs'!T50* IF('Input | Meters Vols & Costs'!$L50="$millions",10^6,IF('Input | Meters Vols & Costs'!$L50="$000",10^3,1))/IF($L162="$millions",10^6,IF($L162="$000",10^3,1)) -> 4602972.132 | U162: ='Input | Meters Vols & Costs'!U50* IF('Input | Meters Vols & Costs'!$L50="$millions",10^6,IF('Input | Meters Vols & Costs'!$L50="$000",10^3,1))/IF($L162="$millions",10^6,IF($L162="$000",10^3,1)) -> 5138448.909 | V162: =SUM(Q162:U162) -> 18940331.61
F163: ACS Meter Costs | L163: $dollars | M163: =Basis_Capex -> 2024-06-01 | O163: ='Calc | Capex Meters'!O151 -> 4516887.046 | P163: ='Calc | Capex Meters'!P151 -> 10730968.29 | Q163: ='Calc | Capex Meters'!Q151 -> 7199735.54 | R163: ='Calc | Capex Meters'!R151 -> 15680963.65 | S163: ='Calc | Capex Meters'!S151 -> 22658045.1 | T163: ='Calc | Capex Meters'!T151 -> 26717248.32 | U163: ='Calc | Capex Meters'!U151 -> 31297066.06 | V163: =SUM(Q163:U163) -> 103553058.7 | X163: =IF((V163=V151),0,1) -> 0
F164: Total | L164: $dollars | M164: =Basis_Capex -> 2024-06-01 | O164: =SUM(O161:O163) -> 4516887.046 | P164: 10730968.29 | Q164: 9169488.436 | R164: 18817803.55 | S164: 26750362.88 | T164: 31320220.46 | U164: 36435514.97 | V164: =SUM(Q164:U164) -> 122493390.3

Sheet Calc | Meters Detail
B1: ='Input|General'!B1&" v"&'Input|General'!$D$2 -> AER Metering Opex & Capex Forecasting Model v1.08
B2: =MID(CELL("filename",A1),FIND("]",CELL("filename",A1))+1,255) -> Calc | Meters Detail | H2: Key: | I2: Input | J2: External Link | L2: Internal Link | N2: JEN - RP | P2: AER Addition
A6: Extra: Detailed Cost Tables - including real price escalation
O8: 1 | P8: 2 | Q8: 3 | R8: 4 | S8: 5 | T8: 6 | U8: 7
B9: a | C9: Labour Costs
D10: 1 | E10: ='Input | Meters Vols & Costs'!$G$29 -> New Connections (Permanent + Temporary) - Growth
F12: =I_MeterTypes[[#Headers],[Meter Type]] -> Meter Type | G12: =I_MeterTypes[[#Headers],[RIN Subcategory 1]] -> RIN Subcategory 1 | H12: =I_MeterTypes[[#Headers],[RIN Subcategory 2]] -> RIN Subcategory 2 | I12: =I_MeterTypes[[#Headers],[AER Type]] -> AER Type | J12: =I_MeterTypes[[#Headers],[RIN Subcategory 3]] -> RIN Subcategory 3 | K12: =I_MeterTypes[[#Headers],[Meter Code]] -> Meter Code | L12: Units | M12: Basis | O12: ='Input | Meters Vols & Costs'!O$171 -> 2024-25 | P12: ='Input | Meters Vols & Costs'!P$171 -> 2025-26 | Q12: ='Input | Meters Vols & Costs'!Q$171 -> 2026-27 | R12: ='Input | Meters Vols & Costs'!R$171 -> 2027-28 | S12: ='Input | Meters Vols & Costs'!S$171 -> 2028-29 | T12: ='Input | Meters Vols & Costs'!T$171 -> 2029-30 | U12: ='Input | Meters Vols & Costs'!U$171 -> 2030-31 | V12: Total
F13: =I_MeterTypes[Meter Type] -> AMI - Single Phase, single element | G13: =I_MeterTypes[RIN Subcategory 1] -> Single Phase Meter Population | H13: =I_MeterTypes[RIN Subcategory 2] -> Direct Connect Meter Population | I13: =I_MeterTypes[AER Type] -> Meter Type 4 | J13: =I_MeterTypes[RIN Subcategory 3] -> Single phase single element - AMI | K13: =I_MeterTypes[Meter Code] -> AMI 1ph 1e | L13: $dollars | M13: =Basis_Capex -> 2024-06-01 | O13: =IF('Input | Meters Vols & Costs'!$P$77="Yes",'Input| Prices'!K$55,1)*INDEX(ICM_LabourCost,,$D10)*INDEX(ICM_Vol1,,O$8) -> 0 | P13: ='Input| Prices'!L$55*INDEX(ICM_LabourCost,,$D10)*INDEX(ICM_Vol1,,P$8) -> 0 | Q13: ='Input| Prices'!M$55*INDEX(ICM_LabourCost,,$D10)*INDEX(ICM_Vol1,,Q$8) -> 0 | R13: ='Input| Prices'!N$55*INDEX(ICM_LabourCost,,$D10)*INDEX(ICM_Vol1,,R$8) -> 0 | S13: ='Input| Prices'!O$55*INDEX(ICM_LabourCost,,$D10)*INDEX(ICM_Vol1,,S$8) -> 0 | T13: ='Input| Prices'!P$55*INDEX(ICM_LabourCost,,$D10)*INDEX(ICM_Vol1,,T$8) -> 0 | U13: ='Input| Prices'!Q$55*INDEX(ICM_LabourCost,,$D10)*INDEX(ICM_Vol1,,U$8) -> 0 | V13: =SUM(N13:U13) -> 0
F14: AMI - Single Phase, two elements with 31.5A load control | G14: Single Phase Meter Population | H14: Direct Connect Meter Population | I14: Meter Type 4 | J14: Single phase two element with contactor - AMI | K14: AMI 1ph 2e | L14: $dollars | M14: 2024-06-01 | O14: 0 | P14: 0 | Q14: 0 | R14: 0 | S14: 0 | T14: 0 | U14: 0 | V14: 0
F15: AMI - 3 Phase with no load control | G15: Multi Phase Meter Population | H15: Direct Connect Meter Population | I15: Meter Type 4 | J15: Three phase - AMI | K15: AMI 3ph | L15: $dollars | M15: 2024-06-01 | O15: 0 | P15: 0 | Q15: 0 | R15: 0 | S15: 0 | T15: 0 | U15: 0 | V15: 0
F16: AMI - Single Phase, single element, with 31.5A load control | G16: Single Phase Meter Population | H16: Direct Connect Meter Population | I16: Meter Type 4 | J16: Single phase single element with contactor - AMI | K16: AMI 1ph DC | L16: $dollars | M16: 2024-06-01 | O16: 0 | P16: 0 | Q16: 0 | R16: 0 | S16: 0 | T16: 0 | U16: 0 | V16: 0
F17: AMI - 3 Phase with 31.5A and 2A load control | G17: Multi Phase Meter Population | H17: Direct Connect Meter Population | I17: Meter Type 4 | J17: Three phase direct connected meter with contactor - AMI | K17: AMI 3ph DC | L17: $dollars | M17: 2024-06-01 | O17: 0 | P17: 0 | Q17: 0 | R17: 0 | S17: 0 | T17: 0 | U17: 0 | V17: 0
F18: AMI - 3 Phase CT connect | G18: Multi Phase Meter Population | H18: Current Transformer Connected Meter Population | I18: Meter Type 4 | J18: Three phase Current transformer connected meter - AMI | K18: AMI 3ph CT | L18: $dollars | M18: 2024-06-01 | O18: 0 | P18: 0 | Q18: 0 | R18: 0 | S18: 0 | T18: 0 | U18: 0 | V18: 0
F19: AMI - 3 Phase CT & VT connect | G19: Multi Phase Meter Population | H19: Current Transformer Connected Meter Population | I19: Meter Type 4 | J19: Three phase Current transformer connected meter - AMI | K19: AMI 3ph CT VT | L19: $dollars | M19: 2024-06-01 | O19: 0 | P19: 0 | Q19: 0 | R19: 0 | S19: 0 | T19: 0 | U19: 0 | V19: 0
F20: Non AMI - Type 5 Locally read Interval - Single Phase | G20: Single Phase Meter Population | H20: Direct Connect Meter Population | I20: Meter Type 5 | J20: Single phase non off peak - MRIM | K20: INT 1ph | L20: $dollars | M20: 2024-06-01 | O20: 0 | P20: 0 | Q20: 0 | R20: 0 | S20: 0 | T20: 0 | U20: 0 | V20: 0
F21: Non AMI - Type 6 Locally read Accumulation - Single Phase | G21: Single Phase Meter Population | H21: Direct Connect Meter Population | I21: Meter Type 6 | J21: Single phase non off peak - Accumulation | K21: ACC 1ph | L21: $dollars | M21: 2024-06-01 | O21: 0 | P21: 0 | Q21: 0 | R21: 0 | S21: 0 | T21: 0 | U21: 0 | V21: 0
F22: Non AMI - Type 5 Locally read Interval - 3 Phase | G22: Multi Phase Meter Population | H22: Direct Connect Meter Population | I22: Meter Type 5 | J22: Multi phase direct connect - MRIM | K22: INT 3ph | L22: $dollars | M22: 2024-06-01 | O22: 0 | P22: 0 | Q22: 0 | R22: 0 | S22: 0 | T22: 0 | U22: 0 | V22: 0
F23: Non AMI - Type 6 Locally read Accumulation - 3 Phase | G23: Multi Phase Meter Population | H23: Direct Connect Meter Population | I23: Meter Type 6 | J23: Multi phase direct connect - Accumulation | K23: ACC 3ph | L23: $dollars | M23: 2024-06-01 | O23: 0 | P23: 0 | Q23: 0 | R23: 0 | S23: 0 | T23: 0 | U23: 0 | V23: 0
L24: $dollars | M24: 2024-06-01 | O24: 0 | P24: 0 | Q24: 0 | R24: 0 | S24: 0 | T24: 0 | U24: 0 | V24: 0
L25: $dollars | M25: 2024-06-01 | O25: 0 | P25: 0 | Q25: 0 | R25: 0 | S25: 0 | T25: 0 | U25: 0 | V25: 0
L26: $dollars | M26: 2024-06-01 | O26: 0 | P26: 0 | Q26: 0 | R26: 0 | S26: 0 | T26: 0 | U26: 0 | V26: 0
L27: $dollars | M27: 2024-06-01 | O27: 0 | P27: 0 | Q27: 0 | R27: 0 | S27: 0 | T27: 0 | U27: 0 | V27: 0
F28: Total | L28: $dollars | M28: 2024-06-01 | O28: =SUM(O13:O27) -> 0 | P28: =SUM(P13:P27) -> 0 | Q28: 0 | R28: 0 | S28: 0 | T28: 0 | U28: 0 | V28: =SUM(Q28:U28) -> 0
D30: 2 | E30: ='Input | Meters Vols & Costs'!$G$30 -> Alterations - Meters Installed
F32: =I_MeterTypes[[#Headers],[Meter Type]] -> Meter Type | G32: =I_MeterTypes[[#Headers],[RIN Subcategory 1]] -> RIN Subcategory 1 | H32: =I_MeterTypes[[#Headers],[RIN Subcategory 2]] -> RIN Subcategory 2 | I32: =I_MeterTypes[[#Headers],[AER Type]] -> AER Type | J32: =I_MeterTypes[[#Headers],[RIN Subcategory 3]] -> RIN Subcategory 3 | K32: =I_MeterTypes[[#Headers],[Meter Code]] -> Meter Code | L32: Units | M32: Basis | O32: =O$12 -> 2024-25 | P32: =P$12 -> 2025-26 | Q32: 2026-27 | R32: 2027-28 | S32: 2028-29 | T32: 2029-30 | U32: 2030-31 | V32: Total
F33: =I_MeterTypes[Meter Type] -> AMI - Single Phase, single element | G33: =I_MeterTypes[RIN Subcategory 1] -> Single Phase Meter Population | H33: =I_MeterTypes[RIN Subcategory 2] -> Direct Connect Meter Population | I33: =I_MeterTypes[AER Type] -> Meter Type 4 | J33: =I_MeterTypes[RIN Subcategory 3] -> Single phase single element - AMI | K33: =I_MeterTypes[Meter Code] -> AMI 1ph 1e | L33: $dollars | M33: =Basis_Capex -> 2024-06-01 | O33: =IF('Input | Meters Vols & Costs'!$P$77="Yes",'Input| Prices'!K$55,1)*INDEX(ICM_LabourCost,,$D30)*INDEX(ICM_Vol2,,O$8) -> 0 | P33: =IF('Input | Meters Vols & Costs'!$P$77="Yes",'Input| Prices'!L$55,1)*INDEX(ICM_LabourCost,,$D30)*INDEX(ICM_Vol2,,P$8) -> 0 | Q33: =IF('Input | Meters Vols & Costs'!$P$77="Yes",'Input| Prices'!M$55,1)*INDEX(ICM_LabourCost,,$D30)*INDEX(ICM_Vol2,,Q$8) -> 0 | R33: =IF('Input | Meters Vols & Costs'!$P$77="Yes",'Input| Prices'!N$55,1)*INDEX(ICM_LabourCost,,$D30)*INDEX(ICM_Vol2,,R$8) -> 0 | S33: =IF('Input | Meters Vols & Costs'!$P$77="Yes",'Input| Prices'!O$55,1)*INDEX(ICM_LabourCost,,$D30)*INDEX(ICM_Vol2,,S$8) -> 0 | T33: =IF('Input | Meters Vols & Costs'!$P$77="Yes",'Input| Prices'!P$55,1)*INDEX(ICM_LabourCost,,$D30)*INDEX(ICM_Vol2,,T$8) -> 0 | U33: =IF('Input | Meters Vols & Costs'!$P$77="Yes",'Input| Prices'!Q$55,1)*INDEX(ICM_LabourCost,,$D30)*INDEX(ICM_Vol2,,U$8) -> 0 | V33: =SUM(N33:U33) -> 0
F34: AMI - Single Phase, two elements with 31.5A load control | G34: Single Phase Meter Population | H34: Direct Connect Meter Population | I34: Meter Type 4 | J34: Single phase two element with contactor - AMI | K34: AMI 1ph 2e | L34: $dollars | M34: 2024-06-01 | O34: 0 | P34: 0 | Q34: 0 | R34: 0 | S34: 0 | T34: 0 | U34: 0 | V34: 0
F35: AMI - 3 Phase with no load control | G35: Multi Phase Meter Population | H35: Direct Connect Meter Population | I35: Meter Type 4 | J35: Three phase - AMI | K35: AMI 3ph | L35: $dollars | M35: 2024-06-01 | O35: 0 | P35: 0 | Q35: 0 | R35: 0 | S35: 0 | T35: 0 | U35: 0 | V35: 0
F36: AMI - Single Phase, single element, with 31.5A load control | G36: Single Phase Meter Population | H36: Direct Connect Meter Population | I36: Meter Type 4 | J36: Single phase single element with contactor - AMI | K36: AMI 1ph DC | L36: $dollars | M36: 2024-06-01 | O36: 0 | P36: 0 | Q36: 0 | R36: 0 | S36: 0 | T36: 0 | U36: 0 | V36: 0
F37: AMI - 3 Phase with 31.5A and 2A load control | G37: Multi Phase Meter Population | H37: Direct Connect Meter Population | I37: Meter Type 4 | J37: Three phase direct connected meter with contactor - AMI | K37: AMI 3ph DC | L37: $dollars | M37: 2024-06-01 | O37: 0 | P37: 0 | Q37: 0 | R37: 0 | S37: 0 | T37: 0 | U37: 0 | V37: 0
F38: AMI - 3 Phase CT connect | G38: Multi Phase Meter Population | H38: Current Transformer Connected Meter Population | I38: Meter Type 4 | J38: Three phase Current transformer connected meter - AMI | K38: AMI 3ph CT | L38: $dollars | M38: 2024-06-01 | O38: 0 | P38: 0 | Q38: 0 | R38: 0 | S38: 0 | T38: 0 | U38: 0 | V38: 0
F39: AMI - 3 Phase CT & VT connect | G39: Multi Phase Meter Population | H39: Current Transformer Connected Meter Population | I39: Meter Type 4 | J39: Three phase Current transformer connected meter - AMI | K39: AMI 3ph CT VT | L39: $dollars | M39: 2024-06-01 | O39: 0 | P39: 0 | Q39: 0 | R39: 0 | S39: 0 | T39: 0 | U39: 0 | V39: 0
F40: Non AMI - Type 5 Locally read Interval - Single Phase | G40: Single Phase Meter Population | H40: Direct Connect Meter Population | I40: Meter Type 5 | J40: Single phase non off peak - MRIM | K40: INT 1ph | L40: $dollars | M40: 2024-06-01 | O40: 0 | P40: 0 | Q40: 0 | R40: 0 | S40: 0 | T40: 0 | U40: 0 | V40: 0
F41: Non AMI - Type 6 Locally read Accumulation - Single Phase | G41: Single Phase Meter Population | H41: Direct Connect Meter Population | I41: Meter Type 6 | J41: Single phase non off peak - Accumulation | K41: ACC 1ph | L41: $dollars | M41: 2024-06-01 | O41: 0 | P41: 0 | Q41: 0 | R41: 0 | S41: 0 | T41: 0 | U41: 0 | V41: 0
F42: Non AMI - Type 5 Locally read Interval - 3 Phase | G42: Multi Phase Meter Population | H42: Direct Connect Meter Population | I42: Meter Type 5 | J42: Multi phase direct connect - MRIM | K42: INT 3ph | L42: $dollars | M42: 2024-06-01 | O42: 0 | P42: 0 | Q42: 0 | R42: 0 | S42: 0 | T42: 0 | U42: 0 | V42: 0
F43: Non AMI - Type 6 Locally read Accumulation - 3 Phase | G43: Multi Phase Meter Population | H43: Direct Connect Meter Population | I43: Meter Type 6 | J43: Multi phase direct connect - Accumulation | K43: ACC 3ph | L43: $dollars | M43: 2024-06-01 | O43: 0 | P43: 0 | Q43: 0 | R43: 0 | S43: 0 | T43: 0 | U43: 0 | V43: 0
L44: $dollars | M44: 2024-06-01 | O44: 0 | P44: 0 | Q44: 0 | R44: 0 | S44: 0 | T44: 0 | U44: 0 | V44: 0
L45: $dollars | M45: 2024-06-01 | O45: 0 | P45: 0 | Q45: 0 | R45: 0 | S45: 0 | T45: 0 | U45: 0 | V45: 0
L46: $dollars | M46: 2024-06-01 | O46: 0 | P46: 0 | Q46: 0 | R46: 0 | S46: 0 | T46: 0 | U46: 0 | V46: 0
L47: $dollars | M47: 2024-06-01 | O47: 0 | P47: 0 | Q47: 0 | R47: 0 | S47: 0 | T47: 0 | U47: 0 | V47: 0
F48: Total | L48: $dollars | M48: 2024-06-01 | O48: =SUM(O33:O47) -> 0 | P48: =SUM(P33:P47) -> 0 | Q48: 0 | R48: 0 | S48: 0 | T48: 0 | U48: 0 | V48: =SUM(Q48:U48) -> 0
D50: 3 | E50: ='Input | Meters Vols & Costs'!$G$31 -> Abolishment / Service Removed
F52: =I_MeterTypes[[#Headers],[Meter Type]] -> Meter Type | G52: =I_MeterTypes[[#Headers],[RIN Subcategory 1]] -> RIN Subcategory 1 | H52: =I_MeterTypes[[#Headers],[RIN Subcategory 2]] -> RIN Subcategory 2 | I52: =I_MeterTypes[[#Headers],[AER Type]] -> AER Type | J52: =I_MeterTypes[[#Headers],[RIN Subcategory 3]] -> RIN Subcategory 3 | K52: =I_MeterTypes[[#Headers],[Meter Code]] -> Meter Code | L52: Units | M52: Basis | O52: =O$12 -> 2024-25 | P52: =P$12 -> 2025-26 | Q52: 2026-27 | R52: 2027-28 | S52: 2028-29 | T52: 2029-30 | U52: 2030-31 | V52: Total
F53: =I_MeterTypes[Meter Type] -> AMI - Single Phase, single element | G53: =I_MeterTypes[RIN Subcategory 1] -> Single Phase Meter Population | H53: =I_MeterTypes[RIN Subcategory 2] -> Direct Connect Meter Population | I53: =I_MeterTypes[AER Type] -> Meter Type 4 | J53: =I_MeterTypes[RIN Subcategory 3] -> Single phase single element - AMI | K53: =I_MeterTypes[Meter Code] -> AMI 1ph 1e | L53: $dollars | M53: =Basis_Capex -> 2024-06-01 | O53: =IF('Input | Meters Vols & Costs'!$P$77="Yes",'Input| Prices'!K$55,1)*INDEX(ICM_LabourCost,,$D50)*INDEX(ICM_Vol3,,O$8) -> 590915.866 | P53: =IF('Input | Meters Vols & Costs'!$P$77="Yes",'Input| Prices'!L$55,1)*INDEX(ICM_LabourCost,,$D50)*INDEX(ICM_Vol3,,P$8) -> 602699.748 | Q53: =IF('Input | Meters Vols & Costs'!$P$77="Yes",'Input| Prices'!M$55,1)*INDEX(ICM_LabourCost,,$D50)*INDEX(ICM_Vol3,,Q$8) -> 614145.8903 | R53: =IF('Input | Meters Vols & Costs'!$P$77="Yes",'Input| Prices'!N$55,1)*INDEX(ICM_LabourCost,,$D50)*INDEX(ICM_Vol3,,R$8) -> 627069.0437 | S53: =IF('Input | Meters Vols & Costs'!$P$77="Yes",'Input| Prices'!O$55,1)*INDEX(ICM_LabourCost,,$D50)*INDEX(ICM_Vol3,,S$8) -> 641092.3606 | T53: =IF('Input | Meters Vols & Costs'!$P$77="Yes",'Input| Prices'!P$55,1)*INDEX(ICM_LabourCost,,$D50)*INDEX(ICM_Vol3,,T$8) -> 656158.8834 | U53: =IF('Input | Meters Vols & Costs'!$P$77="Yes",'Input| Prices'!Q$55,1)*INDEX(ICM_LabourCost,,$D50)*INDEX(ICM_Vol3,,U$8) -> 671611.3267 | V53: =SUM(N53:U53) -> 4403693.119
F54: AMI - Single Phase, two elements with 31.5A load control | G54: Single Phase Meter Population | H54: Direct Connect Meter Population | I54: Meter Type 4 | J54: Single phase two element with contactor - AMI | K54: AMI 1ph 2e | L54: $dollars | M54: 2024-06-01 | O54: 77855.94592 | P54: 79408.52782 | Q54: 80916.61092 | R54: 82619.29719 | S54: 84466.93518 | T54: 86452.02045 | U54: 88487.95257 | V54: 580207.2901
F55: AMI - 3 Phase with no load control | G55: Multi Phase Meter Population | H55: Direct Connect Meter Population | I55: Meter Type 4 | J55: Three phase - AMI | K55: AMI 3ph | L55: $dollars | M55: 2024-06-01 | O55: 107252.2462 | P55: 109391.0411 | Q55: 111468.5356 | R55: 113814.1102 | S55: 116359.3663 | T55: 119093.9661 | U55: 121898.6112 | V55: 799277.8767
F56: AMI - Single Phase, single element, with 31.5A load control | G56: Single Phase Meter Population | H56: Direct Connect Meter Population | I56: Meter Type 4 | J56: Single phase single element with contactor - AMI | K56: AMI 1ph DC | L56: $dollars | M56: 2024-06-01 | O56: 11122.27799 | P56: 11344.0754 | Q56: 11559.51585 | R56: 11802.75674 | S56: 12066.70503 | T56: 12350.28864 | U56: 12641.13608 | V56: 82886.75572
F57: AMI - 3 Phase with 31.5A and 2A load control | G57: Multi Phase Meter Population | H57: Direct Connect Meter Population | I57: Meter Type 4 | J57: Three phase direct connected meter with contactor - AMI | K57: AMI 3ph DC | L57: $dollars | M57: 2024-06-01 | O57: 454.4586705 | P57: 463.5213605 | Q57: 472.3243034 | R57: 482.2631787 | S57: 493.0481624 | T57: 504.6354497 | U57: 516.5195388 | V57: 3386.770664
F58: AMI - 3 Phase CT connect | G58: Multi Phase Meter Population | H58: Current Transformer Connected Meter Population | I58: Meter Type 4 | J58: Three phase Current transformer connected meter - AMI | K58: AMI 3ph CT | L58: $dollars | M58: 2024-06-01 | O58: 7701.878521 | P58: 7855.467268 | Q58: 8004.653984 | R58: 8173.091765 | S58: 8355.868857 | T58: 8552.242884 | U58: 8753.646921 | V58: 57396.8502
F59: AMI - 3 Phase CT & VT connect | G59: Multi Phase Meter Population | H59: Current Transformer Connected Meter Population | I59: Meter Type 4 | J59: Three phase Current transformer connected meter - AMI | K59: AMI 3ph CT VT | L59: $dollars | M59: 2024-06-01 | O59: 0 | P59: 0 | Q59: 0 | R59: 0 | S59: 0 | T59: 0 | U59: 0 | V59: 0
F60: Non AMI - Type 5 Locally read Interval - Single Phase | G60: Single Phase Meter Population | H60: Direct Connect Meter Population | I60: Meter Type 5 | J60: Single phase non off peak - MRIM | K60: INT 1ph | L60: $dollars | M60: 2024-06-01 | O60: 0 | P60: 6505.391002 | Q60: 0 | R60: 0 | S60: 0 | T60: 0 | U60: 0 | V60: 6505.391002
F61: Non AMI - Type 6 Locally read Accumulation - Single Phase | G61: Single Phase Meter Population | H61: Direct Connect Meter Population | I61: Meter Type 6 | J61: Single phase non off peak - Accumulation | K61: ACC 1ph | L61: $dollars | M61: 2024-06-01 | O61: 28109.29853 | P61: 940626.6994 | Q61: 0 | R61: 0 | S61: 0 | T61: 0 | U61: 0 | V61: 968735.9979
F62: Non AMI - Type 5 Locally read Interval - 3 Phase | G62: Multi Phase Meter Population | H62: Direct Connect Meter Population | I62: Meter Type 5 | J62: Multi phase direct connect - MRIM | K62: INT 3ph | L62: $dollars | M62: 2024-06-01 | O62: 0 | P62: 2168.463667 | Q62: 0 | R62: 0 | S62: 0 | T62: 0 | U62: 0 | V62: 2168.463667
F63: Non AMI - Type 6 Locally read Accumulation - 3 Phase | G63: Multi Phase Meter Population | H63: Direct Connect Meter Population | I63: Meter Type 6 | J63: Multi phase direct connect - Accumulation | K63: ACC 3ph | L63: $dollars | M63: 2024-06-01 | O63: 14623.8917 | P63: 464499.4847 | Q63: 0 | R63: 0 | S63: 0 | T63: 0 | U63: 0 | V63: 479123.3764
L64: $dollars | M64: 2024-06-01 | O64: 0 | P64: 0 | Q64: 0 | R64: 0 | S64: 0 | T64: 0 | U64: 0 | V64: 0
L65: $dollars | M65: 2024-06-01 | O65: 0 | P65: 0 | Q65: 0 | R65: 0 | S65: 0 | T65: 0 | U65: 0 | V65: 0
L66: $dollars | M66: 2024-06-01 | O66: 0 | P66: 0 | Q66: 0 | R66: 0 | S66: 0 | T66: 0 | U66: 0 | V66: 0
L67: $dollars | M67: 2024-06-01 | O67: 0 | P67: 0 | Q67: 0 | R67: 0 | S67: 0 | T67: 0 | U67: 0 | V67: 0
F68: Total | L68: $dollars | M68: 2024-06-01 | O68: =SUM(O53:O60) -> 795302.6734 | P68: =SUM(P53:P60) -> 817667.772 | Q68: 826567.5309 | R68: 843960.5627 | S68: 862834.2841 | T68: 883112.0369 | U68: 903909.1929 | V68: =SUM(Q68:U68) -> 4320383.608
D70: 4 | E70: ='Input | Meters Vols & Costs'!$G$32 -> Alterations - Meters Removed
F72: =I_MeterTypes[[#Headers],[Meter Type]] -> Meter Type | G72: =I_MeterTypes[[#Headers],[RIN Subcategory 1]] -> RIN Subcategory 1 | H72: =I_MeterTypes[[#Headers],[RIN Subcategory 2]] -> RIN Subcategory 2 | I72: =I_MeterTypes[[#Headers],[AER Type]] -> AER Type | J72: =I_MeterTypes[[#Headers],[RIN Subcategory 3]] -> RIN Subcategory 3 | K72: =I_MeterTypes[[#Headers],[Meter Code]] -> Meter Code | L72: Units | M72: Basis | O72: =O$12 -> 2024-25 | P72: =P$12 -> 2025-26 | Q72: 2026-27 | R72: 2027-28 | S72: 2028-29 | T72: 2029-30 | U72: 2030-31 | V72: Total
F73: =I_MeterTypes[Meter Type] -> AMI - Single Phase, single element | G73: =I_MeterTypes[RIN Subcategory 1] -> Single Phase Meter Population | H73: =I_MeterTypes[RIN Subcategory 2] -> Direct Connect Meter Population | I73: =I_MeterTypes[AER Type] -> Meter Type 4 | J73: =I_MeterTypes[RIN Subcategory 3] -> Single phase single element - AMI | K73: =I_MeterTypes[Meter Code] -> AMI 1ph 1e | L73: $dollars | M73: =Basis_Capex -> 2024-06-01 | O73: =IF('Input | Meters Vols & Costs'!$P$77="Yes",'Input| Prices'!K$55,1)*INDEX(ICM_LabourCost,,$D70)*INDEX(ICM_Vol4,,O$8) -> 0 | P73: =IF('Input | Meters Vols & Costs'!$P$77="Yes",'Input| Prices'!L$55,1)*INDEX(ICM_LabourCost,,$D70)*INDEX(ICM_Vol4,,P$8) -> 0 | Q73: =IF('Input | Meters Vols & Costs'!$P$77="Yes",'Input| Prices'!M$55,1)*INDEX(ICM_LabourCost,,$D70)*INDEX(ICM_Vol4,,Q$8) -> 0 | R73: =IF('Input | Meters Vols & Costs'!$P$77="Yes",'Input| Prices'!N$55,1)*INDEX(ICM_LabourCost,,$D70)*INDEX(ICM_Vol4,,R$8) -> 0 | S73: =IF('Input | Meters Vols & Costs'!$P$77="Yes",'Input| Prices'!O$55,1)*INDEX(ICM_LabourCost,,$D70)*INDEX(ICM_Vol4,,S$8) -> 0 | T73: =IF('Input | Meters Vols & Costs'!$P$77="Yes",'Input| Prices'!P$55,1)*INDEX(ICM_LabourCost,,$D70)*INDEX(ICM_Vol4,,T$8) -> 0 | U73: =IF('Input | Meters Vols & Costs'!$P$77="Yes",'Input| Prices'!Q$55,1)*INDEX(ICM_LabourCost,,$D70)*INDEX(ICM_Vol4,,U$8) -> 0 | V73: =SUM(N73:U73) -> 0
F74: AMI - Single Phase, two elements with 31.5A load control | G74: Single Phase Meter Population | H74: Direct Connect Meter Population | I74: Meter Type 4 | J74: Single phase two element with contactor - AMI | K74: AMI 1ph 2e | L74: $dollars | M74: 2024-06-01 | O74: 0 | P74: 0 | Q74: 0 | R74: 0 | S74: 0 | T74: 0 | U74: 0 | V74: 0
F75: AMI - 3 Phase with no load control | G75: Multi Phase Meter Population | H75: Direct Connect Meter Population | I75: Meter Type 4 | J75: Three phase - AMI | K75: AMI 3ph | L75: $dollars | M75: 2024-06-01 | O75: 0 | P75: 0 | Q75: 0 | R75: 0 | S75: 0 | T75: 0 | U75: 0 | V75: 0
F76: AMI - Single Phase, single element, with 31.5A load control | G76: Single Phase Meter Population | H76: Direct Connect Meter Population | I76: Meter Type 4 | J76: Single phase single element with contactor - AMI | K76: AMI 1ph DC | L76: $dollars | M76: 2024-06-01 | O76: 0 | P76: 0 | Q76: 0 | R76: 0 | S76: 0 | T76: 0 | U76: 0 | V76: 0
F77: AMI - 3 Phase with 31.5A and 2A load control | G77: Multi Phase Meter Population | H77: Direct Connect Meter Population | I77: Meter Type 4 | J77: Three phase direct connected meter with contactor - AMI | K77: AMI 3ph DC | L77: $dollars | M77: 2024-06-01 | O77: 0 | P77: 0 | Q77: 0 | R77: 0 | S77: 0 | T77: 0 | U77: 0 | V77: 0
F78: AMI - 3 Phase CT connect | G78: Multi Phase Meter Population | H78: Current Transformer Connected Meter Population | I78: Meter Type 4 | J78: Three phase Current transformer connected meter - AMI | K78: AMI 3ph CT | L78: $dollars | M78: 2024-06-01 | O78: 0 | P78: 0 | Q78: 0 | R78: 0 | S78: 0 | T78: 0 | U78: 0 | V78: 0
F79: AMI - 3 Phase CT & VT connect | G79: Multi Phase Meter Population | H79: Current Transformer Connected Meter Population | I79: Meter Type 4 | J79: Three phase Current transformer connected meter - AMI | K79: AMI 3ph CT VT | L79: $dollars | M79: 2024-06-01 | O79: 0 | P79: 0 | Q79: 0 | R79: 0 | S79: 0 | T79: 0 | U79: 0 | V79: 0
F80: Non AMI - Type 5 Locally read Interval - Single Phase | G80: Single Phase Meter Population | H80: Direct Connect Meter Population | I80: Meter Type 5 | J80: Single phase non off peak - MRIM | K80: INT 1ph | L80: $dollars | M80: 2024-06-01 | O80: 0 | P80: 0 | Q80: 0 | R80: 0 | S80: 0 | T80: 0 | U80: 0 | V80: 0
F81: Non AMI - Type 6 Locally read Accumulation - Single Phase | G81: Single Phase Meter Population | H81: Direct Connect Meter Population | I81: Meter Type 6 | J81: Single phase non off peak - Accumulation | K81: ACC 1ph | L81: $dollars | M81: 2024-06-01 | O81: 0 | P81: 0 | Q81: 0 | R81: 0 | S81: 0 | T81: 0 | U81: 0 | V81: 0
F82: Non AMI - Type 5 Locally read Interval - 3 Phase | G82: Multi Phase Meter Population | H82: Direct Connect Meter Population | I82: Meter Type 5 | J82: Multi phase direct connect - MRIM | K82: INT 3ph | L82: $dollars | M82: 2024-06-01 | O82: 0 | P82: 0 | Q82: 0 | R82: 0 | S82: 0 | T82: 0 | U82: 0 | V82: 0
F83: Non AMI - Type 6 Locally read Accumulation - 3 Phase | G83: Multi Phase Meter Population | H83: Direct Connect Meter Population | I83: Meter Type 6 | J83: Multi phase direct connect - Accumulation | K83: ACC 3ph | L83: $dollars | M83: 2024-06-01 | O83: 0 | P83: 0 | Q83: 0 | R83: 0 | S83: 0 | T83: 0 | U83: 0 | V83: 0
L84: $dollars | M84: 2024-06-01 | O84: 0 | P84: 0 | Q84: 0 | R84: 0 | S84: 0 | T84: 0 | U84: 0 | V84: 0
L85: $dollars | M85: 2024-06-01 | O85: 0 | P85: 0 | Q85: 0 | R85: 0 | S85: 0 | T85: 0 | U85: 0 | V85: 0
L86: $dollars | M86: 2024-06-01 | O86: 0 | P86: 0 | Q86: 0 | R86: 0 | S86: 0 | T86: 0 | U86: 0 | V86: 0
L87: $dollars | M87: 2024-06-01 | O87: 0 | P87: 0 | Q87: 0 | R87: 0 | S87: 0 | T87: 0 | U87: 0 | V87: 0
F88: Total | L88: $dollars | M88: 2024-06-01 | O88: =SUM(O73:O87) -> 0 | P88: =SUM(P73:P87) -> 0 | Q88: 0 | R88: 0 | S88: 0 | T88: 0 | U88: 0 | V88: =SUM(Q88:U88) -> 0
D90: 5 | E90: ='Input | Meters Vols & Costs'!$G$33 -> Meters Exchanged - Non AMI to AMI
F92: =I_MeterTypes[[#Headers],[Meter Type]] -> Meter Type | G92: =I_MeterTypes[[#Headers],[RIN Subcategory 1]] -> RIN Subcategory 1 | H92: =I_MeterTypes[[#Headers],[RIN Subcategory 2]] -> RIN Subcategory 2 | I92: =I_MeterTypes[[#Headers],[AER Type]] -> AER Type | J92: =I_MeterTypes[[#Headers],[RIN Subcategory 3]] -> RIN Subcategory 3 | K92: =I_MeterTypes[[#Headers],[Meter Code]] -> Meter Code | L92: Units | M92: Basis | O92: =O$12 -> 2024-25 | P92: =P$12 -> 2025-26 | Q92: 2026-27 | R92: 2027-28 | S92: 2028-29 | T92: 2029-30 | U92: 2030-31 | V92: Total
F93: =I_MeterTypes[Meter Type] -> AMI - Single Phase, single element | G93: =I_MeterTypes[RIN Subcategory 1] -> Single Phase Meter Population | H93: =I_MeterTypes[RIN Subcategory 2] -> Direct Connect Meter Population | I93: =I_MeterTypes[AER Type] -> Meter Type 4 | J93: =I_MeterTypes[RIN Subcategory 3] -> Single phase single element - AMI | K93: =I_MeterTypes[Meter Code] -> AMI 1ph 1e | L93: $dollars | M93: =Basis_Capex -> 2024-06-01 | O93: =IF('Input | Meters Vols & Costs'!$P$77="Yes",'Input| Prices'!K$55,1)*INDEX(ICM_LabourCost,,$D90)*INDEX(ICM_Vol5,,O$8) -> 59966.50353 | P93: =IF('Input | Meters Vols & Costs'!$P$77="Yes",'Input| Prices'!L$55,1)*INDEX(ICM_LabourCost,,$D90)*INDEX(ICM_Vol5,,P$8) -> 2020548.46 | Q93: =IF('Input | Meters Vols & Costs'!$P$77="Yes",'Input| Prices'!M$55,1)*INDEX(ICM_LabourCost,,$D90)*INDEX(ICM_Vol5,,Q$8) -> 0 | R93: =IF('Input | Meters Vols & Costs'!$P$77="Yes",'Input| Prices'!N$55,1)*INDEX(ICM_LabourCost,,$D90)*INDEX(ICM_Vol5,,R$8) -> 0 | S93: =IF('Input | Meters Vols & Costs'!$P$77="Yes",'Input| Prices'!O$55,1)*INDEX(ICM_LabourCost,,$D90)*INDEX(ICM_Vol5,,S$8) -> 0 | T93: =IF('Input | Meters Vols & Costs'!$P$77="Yes",'Input| Prices'!P$55,1)*INDEX(ICM_LabourCost,,$D90)*INDEX(ICM_Vol5,,T$8) -> 0 | U93: =IF('Input | Meters Vols & Costs'!$P$77="Yes",'Input| Prices'!Q$55,1)*INDEX(ICM_LabourCost,,$D90)*INDEX(ICM_Vol5,,U$8) -> 0 | V93: =SUM(N93:U93) -> 2080514.963
F94: AMI - Single Phase, two elements with 31.5A load control | G94: Single Phase Meter Population | H94: Direct Connect Meter Population | I94: Meter Type 4 | J94: Single phase two element with contactor - AMI | K94: AMI 1ph 2e | L94: $dollars | M94: 2024-06-01 | O94: 0 | P94: 0 | Q94: 0 | R94: 0 | S94: 0 | T94: 0 | U94: 0 | V94: 0
F95: AMI - 3 Phase with no load control | G95: Multi Phase Meter Population | H95: Direct Connect Meter Population | I95: Meter Type 4 | J95: Three phase - AMI | K95: AMI 3ph | L95: $dollars | M95: 2024-06-01 | O95: 32172.56174 | P95: 1026669.486 | Q95: 0 | R95: 0 | S95: 0 | T95: 0 | U95: 0 | V95: 1058842.048
F96: AMI - Single Phase, single element, with 31.5A load control | G96: Single Phase Meter Population | H96: Direct Connect Meter Population | I96: Meter Type 4 | J96: Single phase single element with contactor - AMI | K96: AMI 1ph DC | L96: $dollars | M96: 2024-06-01 | O96: 0 | P96: 0 | Q96: 0 | R96: 0 | S96: 0 | T96: 0 | U96: 0 | V96: 0
F97: AMI - 3 Phase with 31.5A and 2A load control | G97: Multi Phase Meter Population | H97: Direct Connect Meter Population | I97: Meter Type 4 | J97: Three phase direct connected meter with contactor - AMI | K97: AMI 3ph DC | L97: $dollars | M97: 2024-06-01 | O97: 0 | P97: 0 | Q97: 0 | R97: 0 | S97: 0 | T97: 0 | U97: 0 | V97: 0
F98: AMI - 3 Phase CT connect | G98: Multi Phase Meter Population | H98: Current Transformer Connected Meter Population | I98: Meter Type 4 | J98: Three phase Current transformer connected meter - AMI | K98: AMI 3ph CT | L98: $dollars | M98: 2024-06-01 | O98: 0 | P98: 0 | Q98: 0 | R98: 0 | S98: 0 | T98: 0 | U98: 0 | V98: 0
F99: AMI - 3 Phase CT & VT connect | G99: Multi Phase Meter Population | H99: Current Transformer Connected Meter Population | I99: Meter Type 4 | J99: Three phase Current transformer connected meter - AMI | K99: AMI 3ph CT VT | L99: $dollars | M99: 2024-06-01 | O99: 0 | P99: 0 | Q99: 0 | R99: 0 | S99: 0 | T99: 0 | U99: 0 | V99: 0
F100: Non AMI - Type 5 Locally read Interval - Single Phase | G100: Single Phase Meter Population | H100: Direct Connect Meter Population | I100: Meter Type 5 | J100: Single phase non off peak - MRIM | K100: INT 1ph | L100: $dollars | M100: 2024-06-01 | O100: 0 | P100: 0 | Q100: 0 | R100: 0 | S100: 0 | T100: 0 | U100: 0 | V100: 0
F101: Non AMI - Type 6 Locally read Accumulation - Single Phase | G101: Single Phase Meter Population | H101: Direct Connect Meter Population | I101: Meter Type 6 | J101: Single phase non off peak - Accumulation | K101: ACC 1ph | L101: $dollars | M101: 2024-06-01 | O101: 0 | P101: 0 | Q101: 0 | R101: 0 | S101: 0 | T101: 0 | U101: 0 | V101: 0
F102: Non AMI - Type 5 Locally read Interval - 3 Phase | G102: Multi Phase Meter Population | H102: Direct Connect Meter Population | I102: Meter Type 5 | J102: Multi phase direct connect - MRIM | K102: INT 3ph | L102: $dollars | M102: 2024-06-01 | O102: 0 | P102: 0 | Q102: 0 | R102: 0 | S102: 0 | T102: 0 | U102: 0 | V102: 0
F103: Non AMI - Type 6 Locally read Accumulation - 3 Phase | G103: Multi Phase Meter Population | H103: Direct Connect Meter Population | I103: Meter Type 6 | J103: Multi phase direct connect - Accumulation | K103: ACC 3ph | L103: $dollars | M103: 2024-06-01 | O103: 0 | P103: 0 | Q103: 0 | R103: 0 | S103: 0 | T103: 0 | U103: 0 | V103: 0
L104: $dollars | M104: 2024-06-01 | O104: 0 | P104: 0 | Q104: 0 | R104: 0 | S104: 0 | T104: 0 | U104: 0 | V104: 0
L105: $dollars | M105: 2024-06-01 | O105: 0 | P105: 0 | Q105: 0 | R105: 0 | S105: 0 | T105: 0 | U105: 0 | V105: 0
L106: $dollars | M106: 2024-06-01 | O106: 0 | P106: 0 | Q106: 0 | R106: 0 | S106: 0 | T106: 0 | U106: 0 | V106: 0
L107: $dollars | M107: 2024-06-01 | O107: 0 | P107: 0 | Q107: 0 | R107: 0 | S107: 0 | T107: 0 | U107: 0 | V107: 0
F108: Total | L108: $dollars | M108: 2024-06-01 | O108: =SUM(O93:O107) -> 92139.06527 | P108: =SUM(P93:P107) -> 3047217.946 | Q108: 0 | R108: 0 | S108: 0 | T108: 0 | U108: 0 | V108: =SUM(Q108:U108) -> 0
D110: 6 | E110: ='Input | Meters Vols & Costs'!$G$34 -> Failures / Faults
F112: =I_MeterTypes[[#Headers],[Meter Type]] -> Meter Type | G112: =I_MeterTypes[[#Headers],[RIN Subcategory 1]] -> RIN Subcategory 1 | H112: =I_MeterTypes[[#Headers],[RIN Subcategory 2]] -> RIN Subcategory 2 | I112: =I_MeterTypes[[#Headers],[AER Type]] -> AER Type | J112: =I_MeterTypes[[#Headers],[RIN Subcategory 3]] -> RIN Subcategory 3 | K112: =I_MeterTypes[[#Headers],[Meter Code]] -> Meter Code | L112: Units | M112: Basis | O112: =O$12 -> 2024-25 | P112: =P$12 -> 2025-26 | Q112: 2026-27 | R112: 2027-28 | S112: 2028-29 | T112: 2029-30 | U112: 2030-31 | V112: Total
F113: =I_MeterTypes[Meter Type] -> AMI - Single Phase, single element | G113: =I_MeterTypes[RIN Subcategory 1] -> Single Phase Meter Population | H113: =I_MeterTypes[RIN Subcategory 2] -> Direct Connect Meter Population | I113: =I_MeterTypes[AER Type] -> Meter Type 4 | J113: =I_MeterTypes[RIN Subcategory 3] -> Single phase single element - AMI | K113: =I_MeterTypes[Meter Code] -> AMI 1ph 1e | L113: $dollars | M113: =Basis_Capex -> 2024-06-01 | O113: =IF('Input | Meters Vols & Costs'!$P$77="Yes",'Input| Prices'!K$55,1)*INDEX(ICM_LabourCost,,$D110)*INDEX(ICM_Vol6,,O$8) -> 212399.6313 | P113: =IF('Input | Meters Vols & Costs'!$P$77="Yes",'Input| Prices'!L$55,1)*INDEX(ICM_LabourCost,,$D110)*INDEX(ICM_Vol6,,P$8) -> 213949.1745 | Q113: =IF('Input | Meters Vols & Costs'!$P$77="Yes",'Input| Prices'!M$55,1)*INDEX(ICM_LabourCost,,$D110)*INDEX(ICM_Vol6,,Q$8) -> 239813.6175 | R113: =IF('Input | Meters Vols & Costs'!$P$77="Yes",'Input| Prices'!N$55,1)*INDEX(ICM_LabourCost,,$D110)*INDEX(ICM_Vol6,,R$8) -> 293831.8693 | S113: =IF('Input | Meters Vols & Costs'!$P$77="Yes",'Input| Prices'!O$55,1)*INDEX(ICM_LabourCost,,$D110)*INDEX(ICM_Vol6,,S$8) -> 390523.7855 | T113: =IF('Input | Meters Vols & Costs'!$P$77="Yes",'Input| Prices'!P$55,1)*INDEX(ICM_LabourCost,,$D110)*INDEX(ICM_Vol6,,T$8) -> 559582.2591 | U113: =IF('Input | Meters Vols & Costs'!$P$77="Yes",'Input| Prices'!Q$55,1)*INDEX(ICM_LabourCost,,$D110)*INDEX(ICM_Vol6,,U$8) -> 859140.506 | V113: =SUM(N113:U113) -> 2769240.843
F114: AMI - Single Phase, two elements with 31.5A load control | G114: Single Phase Meter Population | H114: Direct Connect Meter Population | I114: Meter Type 4 | J114: Single phase two element with contactor - AMI | K114: AMI 1ph 2e | L114: $dollars | M114: 2024-06-01 | O114: 8252.012701 | P114: 20599.83605 | Q114: 23090.1625 | R114: 28291.24417 | S114: 37601.10772 | T114: 53878.69724 | U114: 82721.29872 | V114: 254434.3591
F115: AMI - 3 Phase with no load control | G115: Multi Phase Meter Population | H115: Direct Connect Meter Population | I115: Meter Type 4 | J115: Three phase - AMI | K115: AMI 3ph | L115: $dollars | M115: 2024-06-01 | O115: 61232.32613 | P115: 113335.2384 | Q115: 127036.4028 | R115: 155651.4767 | S115: 206872.0593 | T115: 296427.3589 | U115: 455112.2681 | V115: 1415667.13
F116: AMI - Single Phase, single element, with 31.5A load control | G116: Single Phase Meter Population | H116: Direct Connect Meter Population | I116: Meter Type 4 | J116: Single phase single element with contactor - AMI | K116: AMI 1ph DC | L116: $dollars | M116: 2024-06-01 | O116: 8610.795862 | P116: 40838.27148 | Q116: 45775.23442 | R116: 56086.15072 | S116: 74542.54689 | T116: 106812.1542 | U116: 163991.3466 | V116: 496656.5001
F117: AMI - 3 Phase with 31.5A and 2A load control | G117: Multi Phase Meter Population | H117: Direct Connect Meter Population | I117: Meter Type 4 | J117: Three phase direct connected meter with contactor - AMI | K117: AMI 3ph DC | L117: $dollars | M117: 2024-06-01 | O117: 4472.830073 | P117: 32766.99068 | Q117: 36728.21169 | R117: 45001.27728 | S117: 59809.94913 | T117: 85701.78743 | U117: 131580.0775 | V117: 396061.1238
F118: AMI - 3 Phase CT connect | G118: Multi Phase Meter Population | H118: Current Transformer Connected Meter Population | I118: Meter Type 4 | J118: Three phase Current transformer connected meter - AMI | K118: AMI 3ph CT | L118: $dollars | M118: 2024-06-01 | O118: 6816.880057 | P118: 32044.18942 | Q118: 35918.03055 | R118: 44008.60204 | S118: 58490.61201 | T118: 83811.30682 | U118: 128677.5758 | V118: 389767.1967
F119: AMI - 3 Phase CT & VT connect | G119: Multi Phase Meter Population | H119: Current Transformer Connected Meter Population | I119: Meter Type 4 | J119: Three phase Current transformer connected meter - AMI | K119: AMI 3ph CT VT | L119: $dollars | M119: 2024-06-01 | O119: 0 | P119: 0 | Q119: 0 | R119: 0 | S119: 0 | T119: 0 | U119: 0 | V119: 0
F120: Non AMI - Type 5 Locally read Interval - Single Phase | G120: Single Phase Meter Population | H120: Direct Connect Meter Population | I120: Meter Type 5 | J120: Single phase non off peak - MRIM | K120: INT 1ph | L120: $dollars | M120: 2024-06-01 | O120: 0 | P120: 0 | Q120: 0 | R120: 0 | S120: 0 | T120: 0 | U120: 0 | V120: 0
F121: Non AMI - Type 6 Locally read Accumulation - Single Phase | G121: Single Phase Meter Population | H121: Direct Connect Meter Population | I121: Meter Type 6 | J121: Single phase non off peak - Accumulation | K121: ACC 1ph | L121: $dollars | M121: 2024-06-01 | O121: 0 | P121: 0 | Q121: 0 | R121: 0 | S121: 0 | T121: 0 | U121: 0 | V121: 0
F122: Non AMI - Type 5 Locally read Interval - 3 Phase | G122: Multi Phase Meter Population | H122: Direct Connect Meter Population | I122: Meter Type 5 | J122: Multi phase direct connect - MRIM | K122: INT 3ph | L122: $dollars | M122: 2024-06-01 | O122: 0 | P122: 0 | Q122: 0 | R122: 0 | S122: 0 | T122: 0 | U122: 0 | V122: 0
F123: Non AMI - Type 6 Locally read Accumulation - 3 Phase | G123: Multi Phase Meter Population | H123: Direct Connect Meter Population | I123: Meter Type 6 | J123: Multi phase direct connect - Accumulation | K123: ACC 3ph | L123: $dollars | M123: 2024-06-01 | O123: 0 | P123: 0 | Q123: 0 | R123: 0 | S123: 0 | T123: 0 | U123: 0 | V123: 0
L124: $dollars | M124: 2024-06-01 | O124: 0 | P124: 0 | Q124: 0 | R124: 0 | S124: 0 | T124: 0 | U124: 0 | V124: 0
L125: $dollars | M125: 2024-06-01 | O125: 0 | P125: 0 | Q125: 0 | R125: 0 | S125: 0 | T125: 0 | U125: 0 | V125: 0
L126: $dollars | M126: 2024-06-01 | O126: 0 | P126: 0 | Q126: 0 | R126: 0 | S126: 0 | T126: 0 | U126: 0 | V126: 0
L127: $dollars | M127: 2024-06-01 | O127: 0 | P127: 0 | Q127: 0 | R127: 0 | S127: 0 | T127: 0 | U127: 0 | V127: 0
F128: Total | L128: $dollars | M128: 2024-06-01 | O128: =SUM(O113:O127) -> 301784.4761 | P128: =SUM(P113:P127) -> 453533.7004 | Q128: 508361.6595 | R128: 622870.6202 | S128: 827840.0606 | T128: 1186213.564 | U128: 1821223.073 | V128: =SUM(Q128:U128) -> 4966508.977
D130: 7 | E130: ='Input | Meters Vols & Costs'!$G$35 -> Meters Refurbished
F132: =I_MeterTypes[[#Headers],[Meter Type]] -> Meter Type | G132: =I_MeterTypes[[#Headers],[RIN Subcategory 1]] -> RIN Subcategory 1 | H132: =I_MeterTypes[[#Headers],[RIN Subcategory 2]] -> RIN Subcategory 2 | I132: =I_MeterTypes[[#Headers],[AER Type]] -> AER Type | J132: =I_MeterTypes[[#Headers],[RIN Subcategory 3]] -> RIN Subcategory 3 | K132: =I_MeterTypes[[#Headers],[Meter Code]] -> Meter Code | L132: Units | M132: Basis | O132: =O$12 -> 2024-25 | P132: =P$12 -> 2025-26 | Q132: 2026-27 | R132: 2027-28 | S132: 2028-29 | T132: 2029-30 | U132: 2030-31 | V132: Total
F133: =I_MeterTypes[Meter Type] -> AMI - Single Phase, single element | G133: =I_MeterTypes[RIN Subcategory 1] -> Single Phase Meter Population | H133: =I_MeterTypes[RIN Subcategory 2] -> Direct Connect Meter Population | I133: =I_MeterTypes[AER Type] -> Meter Type 4 | J133: =I_MeterTypes[RIN Subcategory 3] -> Single phase single element - AMI | K133: =I_MeterTypes[Meter Code] -> AMI 1ph 1e | L133: $dollars | M133: =Basis_Capex -> 2024-06-01 | O133: =IF('Input | Meters Vols & Costs'!$P$77="Yes",'Input| Prices'!K$55,1)*INDEX(ICM_LabourCost,,$D130)*INDEX(ICM_Vol7,,O$8) -> 0 | P133: =IF('Input | Meters Vols & Costs'!$P$77="Yes",'Input| Prices'!L$55,1)*INDEX(ICM_LabourCost,,$D130)*INDEX(ICM_Vol7,,P$8) -> 0 | Q133: =IF('Input | Meters Vols & Costs'!$P$77="Yes",'Input| Prices'!M$55,1)*INDEX(ICM_LabourCost,,$D130)*INDEX(ICM_Vol7,,Q$8) -> 0 | R133: =IF('Input | Meters Vols & Costs'!$P$77="Yes",'Input| Prices'!N$55,1)*INDEX(ICM_LabourCost,,$D130)*INDEX(ICM_Vol7,,R$8) -> 0 | S133: =IF('Input | Meters Vols & Costs'!$P$77="Yes",'Input| Prices'!O$55,1)*INDEX(ICM_LabourCost,,$D130)*INDEX(ICM_Vol7,,S$8) -> 0 | T133: =IF('Input | Meters Vols & Costs'!$P$77="Yes",'Input| Prices'!P$55,1)*INDEX(ICM_LabourCost,,$D130)*INDEX(ICM_Vol7,,T$8) -> 0 | U133: =IF('Input | Meters Vols & Costs'!$P$77="Yes",'Input| Prices'!Q$55,1)*INDEX(ICM_LabourCost,,$D130)*INDEX(ICM_Vol7,,U$8) -> 0 | V133: =SUM(N133:U133) -> 0
F134: AMI - Single Phase, two elements with 31.5A load control | G134: Single Phase Meter Population | H134: Direct Connect Meter Population | I134: Meter Type 4 | J134: Single phase two element with contactor - AMI | K134: AMI 1ph 2e | L134: $dollars | M134: 2024-06-01 | O134: 0 | P134: 0 | Q134: 0 | R134: 0 | S134: 0 | T134: 0 | U134: 0 | V134: 0
F135: AMI - 3 Phase with no load control | G135: Multi Phase Meter Population | H135: Direct Connect Meter Population | I135: Meter Type 4 | J135: Three phase - AMI | K135: AMI 3ph | L135: $dollars | M135: 2024-06-01 | O135: 0 | P135: 0 | Q135: 0 | R135: 0 | S135: 0 | T135: 0 | U135: 0 | V135: 0
F136: AMI - Single Phase, single element, with 31.5A load control | G136: Single Phase Meter Population | H136: Direct Connect Meter Population | I136: Meter Type 4 | J136: Single phase single element with contactor - AMI | K136: AMI 1ph DC | L136: $dollars | M136: 2024-06-01 | O136: 0 | P136: 0 | Q136: 0 | R136: 0 | S136: 0 | T136: 0 | U136: 0 | V136: 0
F137: AMI - 3 Phase with 31.5A and 2A load control | G137: Multi Phase Meter Population | H137: Direct Connect Meter Population | I137: Meter Type 4 | J137: Three phase direct connected meter with contactor - AMI | K137: AMI 3ph DC | L137: $dollars | M137: 2024-06-01 | O137: 0 | P137: 0 | Q137: 0 | R137: 0 | S137: 0 | T137: 0 | U137: 0 | V137: 0
F138: AMI - 3 Phase CT connect | G138: Multi Phase Meter Population | H138: Current Transformer Connected Meter Population | I138: Meter Type 4 | J138: Three phase Current transformer connected meter - AMI | K138: AMI 3ph CT | L138: $dollars | M138: 2024-06-01 | O138: 0 | P138: 0 | Q138: 0 | R138: 0 | S138: 0 | T138: 0 | U138: 0 | V138: 0
F139: AMI - 3 Phase CT & VT connect | G139: Multi Phase Meter Population | H139: Current Transformer Connected Meter Population | I139: Meter Type 4 | J139: Three phase Current transformer connected meter - AMI | K139: AMI 3ph CT VT | L139: $dollars | M139: 2024-06-01 | O139: 0 | P139: 0 | Q139: 0 | R139: 0 | S139: 0 | T139: 0 | U139: 0 | V139: 0
F140: Non AMI - Type 5 Locally read Interval - Single Phase | G140: Single Phase Meter Population | H140: Direct Connect Meter Population | I140: Meter Type 5 | J140: Single phase non off peak - MRIM | K140: INT 1ph | L140: $dollars | M140: 2024-06-01 | O140: 0 | P140: 0 | Q140: 0 | R140: 0 | S140: 0 | T140: 0 | U140: 0 | V140: 0
F141: Non AMI - Type 6 Locally read Accumulation - Single Phase | G141: Single Phase Meter Population | H141: Direct Connect Meter Population | I141: Meter Type 6 | J141: Single phase non off peak - Accumulation | K141: ACC 1ph | L141: $dollars | M141: 2024-06-01 | O141: 0 | P141: 0 | Q141: 0 | R141: 0 | S141: 0 | T141: 0 | U141: 0 | V141: 0
F142: Non AMI - Type 5 Locally read Interval - 3 Phase | G142: Multi Phase Meter Population | H142: Direct Connect Meter Population | I142: Meter Type 5 | J142: Multi phase direct connect - MRIM | K142: INT 3ph | L142: $dollars | M142: 2024-06-01 | O142: 0 | P142: 0 | Q142: 0 | R142: 0 | S142: 0 | T142: 0 | U142: 0 | V142: 0
F143: Non AMI - Type 6 Locally read Accumulation - 3 Phase | G143: Multi Phase Meter Population | H143: Direct Connect Meter Population | I143: Meter Type 6 | J143: Multi phase direct connect - Accumulation | K143: ACC 3ph | L143: $dollars | M143: 2024-06-01 | O143: 0 | P143: 0 | Q143: 0 | R143: 0 | S143: 0 | T143: 0 | U143: 0 | V143: 0
L144: $dollars | M144: 2024-06-01 | O144: 0 | P144: 0 | Q144: 0 | R144: 0 | S144: 0 | T144: 0 | U144: 0 | V144: 0
L145: $dollars | M145: 2024-06-01 | O145: 0 | P145: 0 | Q145: 0 | R145: 0 | S145: 0 | T145: 0 | U145: 0 | V145: 0
L146: $dollars | M146: 2024-06-01 | O146: 0 | P146: 0 | Q146: 0 | R146: 0 | S146: 0 | T146: 0 | U146: 0 | V146: 0
L147: $dollars | M147: 2024-06-01 | O147: 0 | P147: 0 | Q147: 0 | R147: 0 | S147: 0 | T147: 0 | U147: 0 | V147: 0
F148: Total | L148: $dollars | M148: 2024-06-01 | O148: =SUM(O133:O147) -> 0 | P148: =SUM(P133:P147) -> 0 | Q148: 0 | R148: 0 | S148: 0 | T148: 0 | U148: 0 | V148: =SUM(Q148:U148) -> 0
D150: 8 | E150: ='Input | Meters Vols & Costs'!$G$36 -> AMI Meter Replacement
F152: =I_MeterTypes[[#Headers],[Meter Type]] -> Meter Type | G152: =I_MeterTypes[[#Headers],[RIN Subcategory 1]] -> RIN Subcategory 1 | H152: =I_MeterTypes[[#Headers],[RIN Subcategory 2]] -> RIN Subcategory 2 | I152: =I_MeterTypes[[#Headers],[AER Type]] -> AER Type | J152: =I_MeterTypes[[#Headers],[RIN Subcategory 3]] -> RIN Subcategory 3 | K152: =I_MeterTypes[[#Headers],[Meter Code]] -> Meter Code | L152: Units | M152: Basis | O152: =O$12 -> 2024-25 | P152: =P$12 -> 2025-26 | Q152: 2026-27 | R152: 2027-28 | S152: 2028-29 | T152: 2029-30 | U152: 2030-31 | V152: Total
F153: =I_MeterTypes[Meter Type] -> AMI - Single Phase, single element | G153: =I_MeterTypes[RIN Subcategory 1] -> Single Phase Meter Population | H153: =I_MeterTypes[RIN Subcategory 2] -> Direct Connect Meter Population | I153: =I_MeterTypes[AER Type] -> Meter Type 4 | J153: =I_MeterTypes[RIN Subcategory 3] -> Single phase single element - AMI | K153: =I_MeterTypes[Meter Code] -> AMI 1ph 1e | L153: $dollars | M153: =Basis_Capex -> 2024-06-01 | O153: =IF('Input | Meters Vols & Costs'!$P$77="Yes",'Input| Prices'!K$55,1)*INDEX(ICM_LabourCost,,$D150)*INDEX(ICM_Vol8,,O$8) -> 0 | P153: =IF('Input | Meters Vols & Costs'!$P$77="Yes",'Input| Prices'!L$55,1)*INDEX(ICM_LabourCost,,$D150)*INDEX(ICM_Vol8,,P$8) -> 0 | Q153: =IF('Input | Meters Vols & Costs'!$P$77="Yes",'Input| Prices'!M$55,1)*INDEX(ICM_LabourCost,,$D150)*INDEX(ICM_Vol8,,Q$8) -> 516389.7694 | R153: =IF('Input | Meters Vols & Costs'!$P$77="Yes",'Input| Prices'!N$55,1)*INDEX(ICM_LabourCost,,$D150)*INDEX(ICM_Vol8,,R$8) -> 3124902.053 | S153: =IF('Input | Meters Vols & Costs'!$P$77="Yes",'Input| Prices'!O$55,1)*INDEX(ICM_LabourCost,,$D150)*INDEX(ICM_Vol8,,S$8) -> 5260390.317 | T153: =IF('Input | Meters Vols & Costs'!$P$77="Yes",'Input| Prices'!P$55,1)*INDEX(ICM_LabourCost,,$D150)*INDEX(ICM_Vol8,,T$8) -> 6383774.853 | U153: =IF('Input | Meters Vols & Costs'!$P$77="Yes",'Input| Prices'!Q$55,1)*INDEX(ICM_LabourCost,,$D150)*INDEX(ICM_Vol8,,U$8) -> 7533280.298 | V153: =SUM(N153:U153) -> 22818737.29
F154: AMI - Single Phase, two elements with 31.5A load control | G154: Single Phase Meter Population | H154: Direct Connect Meter Population | I154: Meter Type 4 | J154: Single phase two element with contactor - AMI | K154: AMI 1ph 2e | L154: $dollars | M154: 2024-06-01 | O154: 0 | P154: 0 | Q154: 36849.3621 | R154: 222991.7286 | S154: 375379.295 | T154: 455543.5547 | U154: 537571.7917 | V154: 1628335.732
F155: AMI - 3 Phase with no load control | G155: Multi Phase Meter Population | H155: Direct Connect Meter Population | I155: Meter Type 4 | J155: Three phase - AMI | K155: AMI 3ph | L155: $dollars | M155: 2024-06-01 | O155: 0 | P155: 0 | Q155: 91231.70383 | R155: 552083.2432 | S155: 929364.5999 | T155: 1127835.39 | U155: 1330921.017 | V155: 4031435.953
F156: AMI - Single Phase, single element, with 31.5A load control | G156: Single Phase Meter Population | H156: Direct Connect Meter Population | I156: Meter Type 4 | J156: Single phase single element with contactor - AMI | K156: AMI 1ph DC | L156: $dollars | M156: 2024-06-01 | O156: 0 | P156: 0 | Q156: 11716.33812 | R156: 70900.72504 | S156: 119352.6968 | T156: 144841.1047 | U156: 170922.1684 | V156: 517733.0331
F157: AMI - 3 Phase with 31.5A and 2A load control | G157: Multi Phase Meter Population | H157: Direct Connect Meter Population | I157: Meter Type 4 | J157: Three phase direct connected meter with contactor - AMI | K157: AMI 3ph DC | L157: $dollars | M157: 2024-06-01 | O157: 0 | P157: 0 | Q157: 8316.980253 | R157: 50329.71257 | S157: 84723.91395 | T157: 102817.1597 | U157: 121331.1092 | V157: 367518.8757
F158: AMI - 3 Phase CT connect | G158: Multi Phase Meter Population | H158: Current Transformer Connected Meter Population | I158: Meter Type 4 | J158: Three phase Current transformer connected meter - AMI | K158: AMI 3ph CT | L158: $dollars | M158: 2024-06-01 | O158: 0 | P158: 0 | Q158: 7652.360834 | R158: 46307.80759 | S158: 77953.52893 | T158: 94600.9227 | U158: 111635.4012 | V158: 338150.0213
F159: AMI - 3 Phase CT & VT connect | G159: Multi Phase Meter Population | H159: Current Transformer Connected Meter Population | I159: Meter Type 4 | J159: Three phase Current transformer connected meter - AMI | K159: AMI 3ph CT VT | L159: $dollars | M159: 2024-06-01 | O159: 0 | P159: 0 | Q159: 0 | R159: 0 | S159: 0 | T159: 0 | U159: 0 | V159: 0
F160: Non AMI - Type 5 Locally read Interval - Single Phase | G160: Single Phase Meter Population | H160: Direct Connect Meter Population | I160: Meter Type 5 | J160: Single phase non off peak - MRIM | K160: INT 1ph | L160: $dollars | M160: 2024-06-01 | O160: 0 | P160: 0 | Q160: 0 | R160: 0 | S160: 0 | T160: 0 | U160: 0 | V160: 0
F161: Non AMI - Type 6 Locally read Accumulation - Single Phase | G161: Single Phase Meter Population | H161: Direct Connect Meter Population | I161: Meter Type 6 | J161: Single phase non off peak - Accumulation | K161: ACC 1ph | L161: $dollars | M161: 2024-06-01 | O161: 0 | P161: 0 | Q161: 0 | R161: 0 | S161: 0 | T161: 0 | U161: 0 | V161: 0
F162: Non AMI - Type 5 Locally read Interval - 3 Phase | G162: Multi Phase Meter Population | H162: Direct Connect Meter Population | I162: Meter Type 5 | J162: Multi phase direct connect - MRIM | K162: INT 3ph | L162: $dollars | M162: 2024-06-01 | O162: 0 | P162: 0 | Q162: 0 | R162: 0 | S162: 0 | T162: 0 | U162: 0 | V162: 0
F163: Non AMI - Type 6 Locally read Accumulation - 3 Phase | G163: Multi Phase Meter Population | H163: Direct Connect Meter Population | I163: Meter Type 6 | J163: Multi phase direct connect - Accumulation | K163: ACC 3ph | L163: $dollars | M163: 2024-06-01 | O163: 0 | P163: 0 | Q163: 0 | R163: 0 | S163: 0 | T163: 0 | U163: 0 | V163: 0
L164: $dollars | M164: 2024-06-01 | O164: 0 | P164: 0 | Q164: 0 | R164: 0 | S164: 0 | T164: 0 | U164: 0 | V164: 0
L165: $dollars | M165: 2024-06-01 | O165: 0 | P165: 0 | Q165: 0 | R165: 0 | S165: 0 | T165: 0 | U165: 0 | V165: 0
L166: $dollars | M166: 2024-06-01 | O166: 0 | P166: 0 | Q166: 0 | R166: 0 | S166: 0 | T166: 0 | U166: 0 | V166: 0
L167: $dollars | M167: 2024-06-01 | O167: 0 | P167: 0 | Q167: 0 | R167: 0 | S167: 0 | T167: 0 | U167: 0 | V167: 0
F168: Total | L168: $dollars | M168: 2024-06-01 | O168: =SUM(O153:O167) -> 0 | P168: =SUM(P153:P167) -> 0 | Q168: 672156.5146 | R168: 4067515.27 | S168: 6847164.352 | T168: 8309412.985 | U168: 9805661.786 | V168: =SUM(Q168:U168) -> 29701910.91
D170: 9 | E170: ='Input | Meters Vols & Costs'!$G$37 -> Wasted Visits
F172: =I_MeterTypes[[#Headers],[Meter Type]] -> Meter Type | G172: =I_MeterTypes[[#Headers],[RIN Subcategory 1]] -> RIN Subcategory 1 | H172: =I_MeterTypes[[#Headers],[RIN Subcategory 2]] -> RIN Subcategory 2 | I172: =I_MeterTypes[[#Headers],[AER Type]] -> AER Type | J172: =I_MeterTypes[[#Headers],[RIN Subcategory 3]] -> RIN Subcategory 3 | K172: =I_MeterTypes[[#Headers],[Meter Code]] -> Meter Code | L172: Units | M172: Basis | O172: =O$12 -> 2024-25 | P172: =P$12 -> 2025-26 | Q172: 2026-27 | R172: 2027-28 | S172: 2028-29 | T172: 2029-30 | U172: 2030-31 | V172: Total
F173: =I_MeterTypes[Meter Type] -> AMI - Single Phase, single element | G173: =I_MeterTypes[RIN Subcategory 1] -> Single Phase Meter Population | H173: =I_MeterTypes[RIN Subcategory 2] -> Direct Connect Meter Population | I173: =I_MeterTypes[AER Type] -> Meter Type 4 | J173: =I_MeterTypes[RIN Subcategory 3] -> Single phase single element - AMI | K173: =I_MeterTypes[Meter Code] -> AMI 1ph 1e | L173: $dollars | M173: =Basis_Capex -> 2024-06-01 | O173: =IF('Input | Meters Vols & Costs'!$P$77="Yes",'Input| Prices'!K$55,1)*INDEX(ICM_LabourCost,,$D170)*INDEX(ICM_Vol9,,O$8) -> 0 | P173: =IF('Input | Meters Vols & Costs'!$P$77="Yes",'Input| Prices'!L$55,1)*INDEX(ICM_LabourCost,,$D170)*INDEX(ICM_Vol9,,P$8) -> 0 | Q173: =IF('Input | Meters Vols & Costs'!$P$77="Yes",'Input| Prices'!M$55,1)*INDEX(ICM_LabourCost,,$D170)*INDEX(ICM_Vol9,,Q$8) -> 137703.9385 | R173: =IF('Input | Meters Vols & Costs'!$P$77="Yes",'Input| Prices'!N$55,1)*INDEX(ICM_LabourCost,,$D170)*INDEX(ICM_Vol9,,R$8) -> 833307.2143 | S173: =IF('Input | Meters Vols & Costs'!$P$77="Yes",'Input| Prices'!O$55,1)*INDEX(ICM_LabourCost,,$D170)*INDEX(ICM_Vol9,,S$8) -> 1402770.751 | T173: =IF('Input | Meters Vols & Costs'!$P$77="Yes",'Input| Prices'!P$55,1)*INDEX(ICM_LabourCost,,$D170)*INDEX(ICM_Vol9,,T$8) -> 1702339.961 | U173: =IF('Input | Meters Vols & Costs'!$P$77="Yes",'Input| Prices'!Q$55,1)*INDEX(ICM_LabourCost,,$D170)*INDEX(ICM_Vol9,,U$8) -> 2008874.746 | V173: =SUM(N173:U173) -> 6084996.611
F174: AMI - Single Phase, two elements with 31.5A load control | G174: Single Phase Meter Population | H174: Direct Connect Meter Population | I174: Meter Type 4 | J174: Single phase two element with contactor - AMI | K174: AMI 1ph 2e | L174: $dollars | M174: 2024-06-01 | O174: 0 | P174: 0 | Q174: 9826.496561 | R174: 59464.46095 | S174: 100101.1453 | T174: 121478.2812 | U174: 143352.4778 | V174: 434222.8619
F175: AMI - 3 Phase with no load control | G175: Multi Phase Meter Population | H175: Direct Connect Meter Population | I175: Meter Type 4 | J175: Three phase - AMI | K175: AMI 3ph | L175: $dollars | M175: 2024-06-01 | O175: 0 | P175: 0 | Q175: 22807.92596 | R175: 138020.8108 | S175: 232341.15 | T175: 281958.8474 | U175: 332730.2542 | V175: 1007858.988
F176: AMI - Single Phase, single element, with 31.5A load control | G176: Single Phase Meter Population | H176: Direct Connect Meter Population | I176: Meter Type 4 | J176: Single phase single element with contactor - AMI | K176: AMI 1ph DC | L176: $dollars | M176: 2024-06-01 | O176: 0 | P176: 0 | Q176: 3124.356832 | R176: 18906.86001 | S176: 31827.38582 | T176: 38624.29459 | U176: 45579.24491 | V176: 138062.1422
F177: AMI - 3 Phase with 31.5A and 2A load control | G177: Multi Phase Meter Population | H177: Direct Connect Meter Population | I177: Meter Type 4 | J177: Three phase direct connected meter with contactor - AMI | K177: AMI 3ph DC | L177: $dollars | M177: 2024-06-01 | O177: 0 | P177: 0 | Q177: 1956.93653 | R177: 11842.28531 | S177: 19935.03858 | T177: 24192.27287 | U177: 28548.49627 | V177: 86475.02957
F178: AMI - 3 Phase CT connect | G178: Multi Phase Meter Population | H178: Current Transformer Connected Meter Population | I178: Meter Type 4 | J178: Three phase Current transformer connected meter - AMI | K178: AMI 3ph CT | L178: $dollars | M178: 2024-06-01 | O178: 0 | P178: 0 | Q178: 1074.015556 | R178: 6499.341416 | S178: 10940.84617 | T178: 13277.32248 | U178: 15668.12649 | V178: 47459.65211
F179: AMI - 3 Phase CT & VT connect | G179: Multi Phase Meter Population | H179: Current Transformer Connected Meter Population | I179: Meter Type 4 | J179: Three phase Current transformer connected meter - AMI | K179: AMI 3ph CT VT | L179: $dollars | M179: 2024-06-01 | O179: 0 | P179: 0 | Q179: 0 | R179: 0 | S179: 0 | T179: 0 | U179: 0 | V179: 0
F180: Non AMI - Type 5 Locally read Interval - Single Phase | G180: Single Phase Meter Population | H180: Direct Connect Meter Population | I180: Meter Type 5 | J180: Single phase non off peak - MRIM | K180: INT 1ph | L180: $dollars | M180: 2024-06-01 | O180: 0 | P180: 0 | Q180: 0 | R180: 0 | S180: 0 | T180: 0 | U180: 0 | V180: 0
F181: Non AMI - Type 6 Locally read Accumulation - Single Phase | G181: Single Phase Meter Population | H181: Direct Connect Meter Population | I181: Meter Type 6 | J181: Single phase non off peak - Accumulation | K181: ACC 1ph | L181: $dollars | M181: 2024-06-01 | O181: 0 | P181: 0 | Q181: 0 | R181: 0 | S181: 0 | T181: 0 | U181: 0 | V181: 0
F182: Non AMI - Type 5 Locally read Interval - 3 Phase | G182: Multi Phase Meter Population | H182: Direct Connect Meter Population | I182: Meter Type 5 | J182: Multi phase direct connect - MRIM | K182: INT 3ph | L182: $dollars | M182: 2024-06-01 | O182: 0 | P182: 0 | Q182: 0 | R182: 0 | S182: 0 | T182: 0 | U182: 0 | V182: 0
F183: Non AMI - Type 6 Locally read Accumulation - 3 Phase | G183: Multi Phase Meter Population | H183: Direct Connect Meter Population | I183: Meter Type 6 | J183: Multi phase direct connect - Accumulation | K183: ACC 3ph | L183: $dollars | M183: 2024-06-01 | O183: 0 | P183: 0 | Q183: 0 | R183: 0 | S183: 0 | T183: 0 | U183: 0 | V183: 0
L184: $dollars | M184: 2024-06-01 | O184: 0 | P184: 0 | Q184: 0 | R184: 0 | S184: 0 | T184: 0 | U184: 0 | V184: 0
L185: $dollars | M185: 2024-06-01 | O185: 0 | P185: 0 | Q185: 0 | R185: 0 | S185: 0 | T185: 0 | U185: 0 | V185: 0
L186: $dollars | M186: 2024-06-01 | O186: 0 | P186: 0 | Q186: 0 | R186: 0 | S186: 0 | T186: 0 | U186: 0 | V186: 0
L187: $dollars | M187: 2024-06-01 | O187: 0 | P187: 0 | Q187: 0 | R187: 0 | S187: 0 | T187: 0 | U187: 0 | V187: 0
F188: Total | L188: $dollars | M188: 2024-06-01 | O188: =SUM(O173:O187) -> 0 | P188: =SUM(P173:P187) -> 0 | Q188: 176493.67 | R188: 1068040.973 | S188: 1797916.317 | T188: 2181870.98 | U188: 2574753.346 | V188: =SUM(Q188:U188) -> 7799075.285
D190: 10 | E190: ='Input | Meters Vols & Costs'!$G$38 -> Meter Panel & Wiring Remediation
F192: =I_MeterTypes[[#Headers],[Meter Type]] -> Meter Type | G192: =I_MeterTypes[[#Headers],[RIN Subcategory 1]] -> RIN Subcategory 1 | H192: =I_MeterTypes[[#Headers],[RIN Subcategory 2]] -> RIN Subcategory 2 | I192: =I_MeterTypes[[#Headers],[AER Type]] -> AER Type | J192: =I_MeterTypes[[#Headers],[RIN Subcategory 3]] -> RIN Subcategory 3 | K192: =I_MeterTypes[[#Headers],[Meter Code]] -> Meter Code | L192: Units | M192: Basis | O192: =O$12 -> 2024-25 | P192: =P$12 -> 2025-26 | Q192: 2026-27 | R192: 2027-28 | S192: 2028-29 | T192: 2029-30 | U192: 2030-31 | V192: Total
F193: =I_MeterTypes[Meter Type] -> AMI - Single Phase, single element | G193: =I_MeterTypes[RIN Subcategory 1] -> Single Phase Meter Population | H193: =I_MeterTypes[RIN Subcategory 2] -> Direct Connect Meter Population | I193: =I_MeterTypes[AER Type] -> Meter Type 4 | J193: =I_MeterTypes[RIN Subcategory 3] -> Single phase single element - AMI | K193: =I_MeterTypes[Meter Code] -> AMI 1ph 1e | L193: $dollars | M193: =Basis_Capex -> 2024-06-01 | O193: =IF('Input | Meters Vols & Costs'!$P$77="Yes",'Input| Prices'!K$55,1)*INDEX(ICM_LabourCost,,$D190)*INDEX(ICM_Vol10,,O$8) -> 0 | P193: =IF('Input | Meters Vols & Costs'!$P$77="Yes",'Input| Prices'!L$55,1)*INDEX(ICM_LabourCost,,$D190)*INDEX(ICM_Vol10,,P$8) -> 0 | Q193: =IF('Input | Meters Vols & Costs'!$P$77="Yes",'Input| Prices'!M$55,1)*INDEX(ICM_LabourCost,,$D190)*INDEX(ICM_Vol10,,Q$8) -> 0 | R193: =IF('Input | Meters Vols & Costs'!$P$77="Yes",'Input| Prices'!N$55,1)*INDEX(ICM_LabourCost,,$D190)*INDEX(ICM_Vol10,,R$8) -> 0 | S193: =IF('Input | Meters Vols & Costs'!$P$77="Yes",'Input| Prices'!O$55,1)*INDEX(ICM_LabourCost,,$D190)*INDEX(ICM_Vol10,,S$8) -> 0 | T193: =IF('Input | Meters Vols & Costs'!$P$77="Yes",'Input| Prices'!P$55,1)*INDEX(ICM_LabourCost,,$D190)*INDEX(ICM_Vol10,,T$8) -> 0 | U193: =IF('Input | Meters Vols & Costs'!$P$77="Yes",'Input| Prices'!Q$55,1)*INDEX(ICM_LabourCost,,$D190)*INDEX(ICM_Vol10,,U$8) -> 0 | V193: =SUM(N193:U193) -> 0
F194: AMI - Single Phase, two elements with 31.5A load control | G194: Single Phase Meter Population | H194: Direct Connect Meter Population | I194: Meter Type 4 | J194: Single phase two element with contactor - AMI | K194: AMI 1ph 2e | L194: $dollars | M194: 2024-06-01 | O194: 0 | P194: 0 | Q194: 0 | R194: 0 | S194: 0 | T194: 0 | U194: 0 | V194: 0
F195: AMI - 3 Phase with no load control | G195: Multi Phase Meter Population | H195: Direct Connect Meter Population | I195: Meter Type 4 | J195: Three phase - AMI | K195: AMI 3ph | L195: $dollars | M195: 2024-06-01 | O195: 0 | P195: 0 | Q195: 0 | R195: 0 | S195: 0 | T195: 0 | U195: 0 | V195: 0
F196: AMI - Single Phase, single element, with 31.5A load control | G196: Single Phase Meter Population | H196: Direct Connect Meter Population | I196: Meter Type 4 | J196: Single phase single element with contactor - AMI | K196: AMI 1ph DC | L196: $dollars | M196: 2024-06-01 | O196: 0 | P196: 0 | Q196: 0 | R196: 0 | S196: 0 | T196: 0 | U196: 0 | V196: 0
F197: AMI - 3 Phase with 31.5A and 2A load control | G197: Multi Phase Meter Population | H197: Direct Connect Meter Population | I197: Meter Type 4 | J197: Three phase direct connected meter with contactor - AMI | K197: AMI 3ph DC | L197: $dollars | M197: 2024-06-01 | O197: 0 | P197: 0 | Q197: 0 | R197: 0 | S197: 0 | T197: 0 | U197: 0 | V197: 0
F198: AMI - 3 Phase CT connect | G198: Multi Phase Meter Population | H198: Current Transformer Connected Meter Population | I198: Meter Type 4 | J198: Three phase Current transformer connected meter - AMI | K198: AMI 3ph CT | L198: $dollars | M198: 2024-06-01 | O198: 0 | P198: 0 | Q198: 0 | R198: 0 | S198: 0 | T198: 0 | U198: 0 | V198: 0
F199: AMI - 3 Phase CT & VT connect | G199: Multi Phase Meter Population | H199: Current Transformer Connected Meter Population | I199: Meter Type 4 | J199: Three phase Current transformer connected meter - AMI | K199: AMI 3ph CT VT | L199: $dollars | M199: 2024-06-01 | O199: 0 | P199: 0 | Q199: 0 | R199: 0 | S199: 0 | T199: 0 | U199: 0 | V199: 0
F200: Non AMI - Type 5 Locally read Interval - Single Phase | G200: Single Phase Meter Population | H200: Direct Connect Meter Population | I200: Meter Type 5 | J200: Single phase non off peak - MRIM | K200: INT 1ph | L200: $dollars | M200: 2024-06-01 | O200: 0 | P200: 0 | Q200: 0 | R200: 0 | S200: 0 | T200: 0 | U200: 0 | V200: 0
F201: Non AMI - Type 6 Locally read Accumulation - Single Phase | G201: Single Phase Meter Population | H201: Direct Connect Meter Population | I201: Meter Type 6 | J201: Single phase non off peak - Accumulation | K201: ACC 1ph | L201: $dollars | M201: 2024-06-01 | O201: 0 | P201: 0 | Q201: 0 | R201: 0 | S201: 0 | T201: 0 | U201: 0 | V201: 0
F202: Non AMI - Type 5 Locally read Interval - 3 Phase | G202: Multi Phase Meter Population | H202: Direct Connect Meter Population | I202: Meter Type 5 | J202: Multi phase direct connect - MRIM | K202: INT 3ph | L202: $dollars | M202: 2024-06-01 | O202: 0 | P202: 0 | Q202: 0 | R202: 0 | S202: 0 | T202: 0 | U202: 0 | V202: 0
F203: Non AMI - Type 6 Locally read Accumulation - 3 Phase | G203: Multi Phase Meter Population | H203: Direct Connect Meter Population | I203: Meter Type 6 | J203: Multi phase direct connect - Accumulation | K203: ACC 3ph | L203: $dollars | M203: 2024-06-01 | O203: 0 | P203: 0 | Q203: 0 | R203: 0 | S203: 0 | T203: 0 | U203: 0 | V203: 0
L204: $dollars | M204: 2024-06-01 | O204: 0 | P204: 0 | Q204: 0 | R204: 0 | S204: 0 | T204: 0 | U204: 0 | V204: 0
L205: $dollars | M205: 2024-06-01 | O205: 0 | P205: 0 | Q205: 0 | R205: 0 | S205: 0 | T205: 0 | U205: 0 | V205: 0
L206: $dollars | M206: 2024-06-01 | O206: 0 | P206: 0 | Q206: 0 | R206: 0 | S206: 0 | T206: 0 | U206: 0 | V206: 0
L207: $dollars | M207: 2024-06-01 | O207: 0 | P207: 0 | Q207: 0 | R207: 0 | S207: 0 | T207: 0 | U207: 0 | V207: 0
F208: Total | L208: $dollars | M208: 2024-06-01 | O208: =SUM(O193:O207) -> 0 | P208: =SUM(P193:P207) -> 0 | Q208: 0 | R208: 0 | S208: 0 | T208: 0 | U208: 0 | V208: =SUM(Q208:U208) -> 0
D210: TOTAL LABOUR COST
F212: =I_MeterTypes[[#Headers],[Meter Type]] -> Meter Type | G212: =I_MeterTypes[[#Headers],[RIN Subcategory 1]] -> RIN Subcategory 1 | H212: =I_MeterTypes[[#Headers],[RIN Subcategory 2]] -> RIN Subcategory 2 | I212: =I_MeterTypes[[#Headers],[AER Type]] -> AER Type | J212: =I_MeterTypes[[#Headers],[RIN Subcategory 3]] -> RIN Subcategory 3 | K212: =I_MeterTypes[[#Headers],[Meter Code]] -> Meter Code | L212: Units | M212: Basis | O212: =O$12 -> 2024-25 | P212: =P$12 -> 2025-26 | Q212: 2026-27 | R212: 2027-28 | S212: 2028-29 | T212: 2029-30 | U212: 2030-31 | V212: Total
F213: =I_MeterTypes[Meter Type] -> AMI - Single Phase, single element | G213: =I_MeterTypes[RIN Subcategory 1] -> Single Phase Meter Population | H213: =I_MeterTypes[RIN Subcategory 2] -> Direct Connect Meter Population | I213: =I_MeterTypes[AER Type] -> Meter Type 4 | J213: =I_MeterTypes[RIN Subcategory 3] -> Single phase single element - AMI | K213: =I_MeterTypes[Meter Code] -> AMI 1ph 1e | L213: $dollars | M213: =Basis_Capex -> 2024-06-01 | O213: =O13+O33+O53+O73+O93+O113+O133+O153+O173+O193 -> 863282.0008 | P213: =P13+P33+P53+P73+P93+P113+P133+P153+P173+P193 -> 2837197.382 | Q213: 1508053.216 | R213: 4879110.181 | S213: 7694777.214 | T213: 9301855.957 | U213: 11072906.88 | V213: =SUM(N213:U213) -> 38157182.83
F214: AMI - Single Phase, two elements with 31.5A load control | G214: Single Phase Meter Population | H214: Direct Connect Meter Population | I214: Meter Type 4 | J214: Single phase two element with contactor - AMI | K214: AMI 1ph 2e | L214: $dollars | M214: 2024-06-01 | O214: =O14+O34+O54+O74+O94+O114+O134+O154+O174+O194 -> 86107.95862 | P214: 100008.3639 | Q214: 150682.6321 | R214: 393366.7309 | S214: 597548.4833 | T214: 717352.5536 | U214: 852133.5207 | V214: 2897200.243
F215: AMI - 3 Phase with no load control | G215: Multi Phase Meter Population | H215: Direct Connect Meter Population | I215: Meter Type 4 | J215: Three phase - AMI | K215: AMI 3ph | L215: $dollars | M215: 2024-06-01 | O215: =O15+O35+O55+O75+O95+O115+O135+O155+O175+O195 -> 200657.1341 | P215: 1249395.766 | Q215: 352544.5682 | R215: 959569.6408 | S215: 1484937.176 | T215: 1825315.562 | U215: 2240662.15 | V215: 8313081.997
F216: AMI - Single Phase, single element, with 31.5A load control | G216: Single Phase Meter Population | H216: Direct Connect Meter Population | I216: Meter Type 4 | J216: Single phase single element with contactor - AMI | K216: AMI 1ph DC | L216: $dollars | M216: 2024-06-01 | O216: =O16+O36+O56+O76+O96+O116+O136+O156+O176+O196 -> 19733.07385 | P216: 52182.34688 | Q216: 72175.44522 | R216: 157696.4925 | S216: 237789.3346 | T216: 302627.8421 | U216: 393133.896 | V216: 1235338.431
F217: AMI - 3 Phase with 31.5A and 2A load control | G217: Multi Phase Meter Population | H217: Direct Connect Meter Population | I217: Meter Type 4 | J217: Three phase direct connected meter with contactor - AMI | K217: AMI 3ph DC | L217: $dollars | M217: 2024-06-01 | O217: =O17+O37+O57+O77+O97+O117+O137+O157+O177+O197 -> 4927.288743 | P217: 33230.51204 | Q217: 47474.45278 | R217: 107655.5383 | S217: 164961.9498 | T217: 213215.8555 | U217: 281976.2025 | V217: 853441.7997
F218: AMI - 3 Phase CT connect | G218: Multi Phase Meter Population | H218: Current Transformer Connected Meter Population | I218: Meter Type 4 | J218: Three phase Current transformer connected meter - AMI | K218: AMI 3ph CT | L218: $dollars | M218: 2024-06-01 | O218: =O18+O38+O58+O78+O98+O118+O138+O158+O178+O198 -> 14518.75858 | P218: 39899.65669 | Q218: 52649.06092 | R218: 104988.8428 | S218: 155740.856 | T218: 200241.7949 | U218: 264734.7504 | V218: 832773.7203
F219: AMI - 3 Phase CT & VT connect | G219: Multi Phase Meter Population | H219: Current Transformer Connected Meter Population | I219: Meter Type 4 | J219: Three phase Current transformer connected meter - AMI | K219: AMI 3ph CT VT | L219: $dollars | M219: 2024-06-01 | O219: =O19+O39+O59+O79+O99+O119+O139+O159+O179+O199 -> 0 | P219: 0 | Q219: 0 | R219: 0 | S219: 0 | T219: 0 | U219: 0 | V219: 0
F220: Non AMI - Type 5 Locally read Interval - Single Phase | G220: Single Phase Meter Population | H220: Direct Connect Meter Population | I220: Meter Type 5 | J220: Single phase non off peak - MRIM | K220: INT 1ph | L220: $dollars | M220: 2024-06-01 | O220: =O20+O40+O60+O80+O100+O120+O140+O160+O180+O200 -> 0 | P220: 6505.391002 | Q220: 0 | R220: 0 | S220: 0 | T220: 0 | U220: 0 | V220: 6505.391002
F221: Non AMI - Type 6 Locally read Accumulation - Single Phase | G221: Single Phase Meter Population | H221: Direct Connect Meter Population | I221: Meter Type 6 | J221: Single phase non off peak - Accumulation | K221: ACC 1ph | L221: $dollars | M221: 2024-06-01 | O221: =O21+O41+O61+O81+O101+O121+O141+O161+O181+O201 -> 28109.29853 | P221: 940626.6994 | Q221: 0 | R221: 0 | S221: 0 | T221: 0 | U221: 0 | V221: 968735.9979
F222: Non AMI - Type 5 Locally read Interval - 3 Phase | G222: Multi Phase Meter Population | H222: Direct Connect Meter Population | I222: Meter Type 5 | J222: Multi phase direct connect - MRIM | K222: INT 3ph | L222: $dollars | M222: 2024-06-01 | O222: =O22+O42+O62+O82+O102+O122+O142+O162+O182+O202 -> 0 | P222: 2168.463667 | Q222: 0 | R222: 0 | S222: 0 | T222: 0 | U222: 0 | V222: 2168.463667
F223: Non AMI - Type 6 Locally read Accumulation - 3 Phase | G223: Multi Phase Meter Population | H223: Direct Connect Meter Population | I223: Meter Type 6 | J223: Multi phase direct connect - Accumulation | K223: ACC 3ph | L223: $dollars | M223: 2024-06-01 | O223: =O23+O43+O63+O83+O103+O123+O143+O163+O183+O203 -> 14623.8917 | P223: 464499.4847 | Q223: 0 | R223: 0 | S223: 0 | T223: 0 | U223: 0 | V223: 479123.3764
L224: $dollars | M224: 2024-06-01 | O224: =O24+O44+O64+O84+O104+O124+O144+O164+O184+O204 -> 0 | P224: 0 | Q224: 0 | R224: 0 | S224: 0 | T224: 0 | U224: 0 | V224: 0
L225: $dollars | M225: 2024-06-01 | O225: =O25+O45+O65+O85+O105+O125+O145+O165+O185+O205 -> 0 | P225: 0 | Q225: 0 | R225: 0 | S225: 0 | T225: 0 | U225: 0 | V225: 0
... 383 more rows

Sheet Calc | Capex Comm, IT, Other
B1: ='Input|General'!B1&" v"&'Input|General'!$D$2 -> AER Metering Opex & Capex Forecasting Model v1.08
B2: =MID(CELL("filename",A1),FIND("]",CELL("filename",A1))+1,255) -> Calc | Capex Comm, IT, Other | H2: Key: | I2: Input | J2: External Link | L2: Internal Link | N2: JEN - RP | P2: AER Addition
A7: CALC | Comms
B10: a | C10: Equipment cost
E11: Equipment Type | F11: Action/Driver | G11: Units | H11: Basis | J11: ='Input | Comms, IT, Other'!J$82 -> 2023-24 | K11: ='Input | Comms, IT, Other'!K$82 -> 2024-25 | L11: ='Input | Comms, IT, Other'!L$82 -> 2025-26 | M11: ='Input | Comms, IT, Other'!M$82 -> 2026-27 | N11: ='Input | Comms, IT, Other'!N$82 -> 2027-28 | O11: ='Input | Comms, IT, Other'!O$82 -> 2028-29 | P11: ='Input | Comms, IT, Other'!P$82 -> 2029-30 | Q11: ='Input | Comms, IT, Other'!Q$82 -> 2030-31
E12: =ICC_AllocFields -> Access Points | F12: Growth | G12: $dollars | H12: =Basis_Capex -> 2024-06-01 | J12: ='Input | Comms, IT, Other'!J202*'Input | Comms, IT, Other'!$I45*IF('Input | Comms, IT, Other'!$H45="Yes",'Input| Prices'!J$59,1) -> 0 | K12: ='Input | Comms, IT, Other'!K202*'Input | Comms, IT, Other'!$I45*IF('Input | Comms, IT, Other'!$H45="Yes",'Input| Prices'!K$59,1) -> 162221.3753 | L12: ='Input | Comms, IT, Other'!L202*'Input | Comms, IT, Other'!$I45*IF('Input | Comms, IT, Other'!$H45="Yes",'Input| Prices'!L$59,1) -> 500182.5738 | M12: ='Input | Comms, IT, Other'!M202*'Input | Comms, IT, Other'!$I45*IF('Input | Comms, IT, Other'!$H45="Yes",'Input| Prices'!M$59,1) -> 1013883.596 | N12: ='Input | Comms, IT, Other'!N202*'Input | Comms, IT, Other'!$I45*IF('Input | Comms, IT, Other'!$H45="Yes",'Input| Prices'!N$59,1) -> 1054438.939 | O12: ='Input | Comms, IT, Other'!O202*'Input | Comms, IT, Other'!$I45*IF('Input | Comms, IT, Other'!$H45="Yes",'Input| Prices'!O$59,1) -> 689440.845 | P12: ='Input | Comms, IT, Other'!P202*'Input | Comms, IT, Other'!$I45*IF('Input | Comms, IT, Other'!$H45="Yes",'Input| Prices'!P$59,1) -> 729996.1889 | Q12: ='Input | Comms, IT, Other'!Q202*'Input | Comms, IT, Other'!$I45*IF('Input | Comms, IT, Other'!$H45="Yes",'Input| Prices'!Q$59,1) -> 770551.5327
E13: Access Points | F13: Maintenance (Failure/Faults) | G13: $dollars | H13: 2024-06-01 | J13: ='Input | Comms, IT, Other'!J203*'Input | Comms, IT, Other'!$I46*IF('Input | Comms, IT, Other'!$H46="Yes",'Input| Prices'!J$59,1) -> 0 | K13: ='Input | Comms, IT, Other'!K203*'Input | Comms, IT, Other'!$I46*IF('Input | Comms, IT, Other'!$H46="Yes",'Input| Prices'!K$59,1) -> 41847.95703 | L13: ='Input | Comms, IT, Other'!L203*'Input | Comms, IT, Other'!$I46*IF('Input | Comms, IT, Other'!$H46="Yes",'Input| Prices'!L$59,1) -> 41847.95703 | M13: ='Input | Comms, IT, Other'!M203*'Input | Comms, IT, Other'!$I46*IF('Input | Comms, IT, Other'!$H46="Yes",'Input| Prices'!M$59,1) -> 41847.95703 | N13: ='Input | Comms, IT, Other'!N203*'Input | Comms, IT, Other'!$I46*IF('Input | Comms, IT, Other'!$H46="Yes",'Input| Prices'!N$59,1) -> 52309.94628 | O13: ='Input | Comms, IT, Other'!O203*'Input | Comms, IT, Other'!$I46*IF('Input | Comms, IT, Other'!$H46="Yes",'Input| Prices'!O$59,1) -> 52309.94628 | P13: ='Input | Comms, IT, Other'!P203*'Input | Comms, IT, Other'!$I46*IF('Input | Comms, IT, Other'!$H46="Yes",'Input| Prices'!P$59,1) -> 52309.94628 | Q13: ='Input | Comms, IT, Other'!Q203*'Input | Comms, IT, Other'!$I46*IF('Input | Comms, IT, Other'!$H46="Yes",'Input| Prices'!Q$59,1) -> 62771.93554
E14: Access Points | F14: End of life | G14: $dollars | H14: 2024-06-01 | J14: ='Input | Comms, IT, Other'!J204*'Input | Comms, IT, Other'!$I47*IF('Input | Comms, IT, Other'!$H47="Yes",'Input| Prices'!J$59,1) -> 0 | K14: ='Input | Comms, IT, Other'!K204*'Input | Comms, IT, Other'!$I47*IF('Input | Comms, IT, Other'!$H47="Yes",'Input| Prices'!K$59,1) -> 10461.98926 | L14: ='Input | Comms, IT, Other'!L204*'Input | Comms, IT, Other'!$I47*IF('Input | Comms, IT, Other'!$H47="Yes",'Input| Prices'!L$59,1) -> 10461.98926 | M14: ='Input | Comms, IT, Other'!M204*'Input | Comms, IT, Other'!$I47*IF('Input | Comms, IT, Other'!$H47="Yes",'Input| Prices'!M$59,1) -> 115081.8818 | N14: ='Input | Comms, IT, Other'!N204*'Input | Comms, IT, Other'!$I47*IF('Input | Comms, IT, Other'!$H47="Yes",'Input| Prices'!N$59,1) -> 156929.8388 | O14: ='Input | Comms, IT, Other'!O204*'Input | Comms, IT, Other'!$I47*IF('Input | Comms, IT, Other'!$H47="Yes",'Input| Prices'!O$59,1) -> 198777.7959 | P14: ='Input | Comms, IT, Other'!P204*'Input | Comms, IT, Other'!$I47*IF('Input | Comms, IT, Other'!$H47="Yes",'Input| Prices'!P$59,1) -> 219701.7744 | Q14: ='Input | Comms, IT, Other'!Q204*'Input | Comms, IT, Other'!$I47*IF('Input | Comms, IT, Other'!$H47="Yes",'Input| Prices'!Q$59,1) -> 251087.7422
E15: Relays | F15: Growth | G15: $dollars | H15: 2024-06-01 | J15: ='Input | Comms, IT, Other'!J205*'Input | Comms, IT, Other'!$I48*IF('Input | Comms, IT, Other'!$H48="Yes",'Input| Prices'!J$59,1) -> 0 | K15: ='Input | Comms, IT, Other'!K205*'Input | Comms, IT, Other'!$I48*IF('Input | Comms, IT, Other'!$H48="Yes",'Input| Prices'!K$59,1) -> 0 | L15: ='Input | Comms, IT, Other'!L205*'Input | Comms, IT, Other'!$I48*IF('Input | Comms, IT, Other'!$H48="Yes",'Input| Prices'!L$59,1) -> 0 | M15: ='Input | Comms, IT, Other'!M205*'Input | Comms, IT, Other'!$I48*IF('Input | Comms, IT, Other'!$H48="Yes",'Input| Prices'!M$59,1) -> 0 | N15: ='Input | Comms, IT, Other'!N205*'Input | Comms, IT, Other'!$I48*IF('Input | Comms, IT, Other'!$H48="Yes",'Input| Prices'!N$59,1) -> 0 | O15: ='Input | Comms, IT, Other'!O205*'Input | Comms, IT, Other'!$I48*IF('Input | Comms, IT, Other'!$H48="Yes",'Input| Prices'!O$59,1) -> 0 | P15: ='Input | Comms, IT, Other'!P205*'Input | Comms, IT, Other'!$I48*IF('Input | Comms, IT, Other'!$H48="Yes",'Input| Prices'!P$59,1) -> 0 | Q15: ='Input | Comms, IT, Other'!Q205*'Input | Comms, IT, Other'!$I48*IF('Input | Comms, IT, Other'!$H48="Yes",'Input| Prices'!Q$59,1) -> 0
E16: Relays | F16: Maintenance (Failure/Faults) | G16: $dollars | H16: 2024-06-01 | J16: ='Input | Comms, IT, Other'!J206*'Input | Comms, IT, Other'!$I49*IF('Input | Comms, IT, Other'!$H49="Yes",'Input| Prices'!J$59,1) -> 0 | K16: ='Input | Comms, IT, Other'!K206*'Input | Comms, IT, Other'!$I49*IF('Input | Comms, IT, Other'!$H49="Yes",'Input| Prices'!K$59,1) -> 16679.72531 | L16: ='Input | Comms, IT, Other'!L206*'Input | Comms, IT, Other'!$I49*IF('Input | Comms, IT, Other'!$H49="Yes",'Input| Prices'!L$59,1) -> 16679.72531 | M16: ='Input | Comms, IT, Other'!M206*'Input | Comms, IT, Other'!$I49*IF('Input | Comms, IT, Other'!$H49="Yes",'Input| Prices'!M$59,1) -> 16679.72531 | N16: ='Input | Comms, IT, Other'!N206*'Input | Comms, IT, Other'!$I49*IF('Input | Comms, IT, Other'!$H49="Yes",'Input| Prices'!N$59,1) -> 22239.63375 | O16: ='Input | Comms, IT, Other'!O206*'Input | Comms, IT, Other'!$I49*IF('Input | Comms, IT, Other'!$H49="Yes",'Input| Prices'!O$59,1) -> 22239.63375 | P16: ='Input | Comms, IT, Other'!P206*'Input | Comms, IT, Other'!$I49*IF('Input | Comms, IT, Other'!$H49="Yes",'Input| Prices'!P$59,1) -> 22239.63375 | Q16: ='Input | Comms, IT, Other'!Q206*'Input | Comms, IT, Other'!$I49*IF('Input | Comms, IT, Other'!$H49="Yes",'Input| Prices'!Q$59,1) -> 25019.58797
E17: Relays | F17: End of life | G17: $dollars | H17: 2024-06-01 | J17: ='Input | Comms, IT, Other'!J207*'Input | Comms, IT, Other'!$I50*IF('Input | Comms, IT, Other'!$H50="Yes",'Input| Prices'!J$59,1) -> 0 | K17: ='Input | Comms, IT, Other'!K207*'Input | Comms, IT, Other'!$I50*IF('Input | Comms, IT, Other'!$H50="Yes",'Input| Prices'!K$59,1) -> 0 | L17: ='Input | Comms, IT, Other'!L207*'Input | Comms, IT, Other'!$I50*IF('Input | Comms, IT, Other'!$H50="Yes",'Input| Prices'!L$59,1) -> 55599.08438 | M17: ='Input | Comms, IT, Other'!M207*'Input | Comms, IT, Other'!$I50*IF('Input | Comms, IT, Other'!$H50="Yes",'Input| Prices'!M$59,1) -> 138997.7109 | N17: ='Input | Comms, IT, Other'!N207*'Input | Comms, IT, Other'!$I50*IF('Input | Comms, IT, Other'!$H50="Yes",'Input| Prices'!N$59,1) -> 166797.2531 | O17: ='Input | Comms, IT, Other'!O207*'Input | Comms, IT, Other'!$I50*IF('Input | Comms, IT, Other'!$H50="Yes",'Input| Prices'!O$59,1) -> 180697.0242 | P17: ='Input | Comms, IT, Other'!P207*'Input | Comms, IT, Other'!$I50*IF('Input | Comms, IT, Other'!$H50="Yes",'Input| Prices'!P$59,1) -> 41699.31328 | Q17: ='Input | Comms, IT, Other'!Q207*'Input | Comms, IT, Other'!$I50*IF('Input | Comms, IT, Other'!$H50="Yes",'Input| Prices'!Q$59,1) -> 41699.31328
E18: Micro AP | F18: Growth | G18: $dollars | H18: 2024-06-01 | J18: ='Input | Comms, IT, Other'!J208*'Input | Comms, IT, Other'!$I51*IF('Input | Comms, IT, Other'!$H51="Yes",'Input| Prices'!J$59,1) -> 0 | K18: ='Input | Comms, IT, Other'!K208*'Input | Comms, IT, Other'!$I51*IF('Input | Comms, IT, Other'!$H51="Yes",'Input| Prices'!K$59,1) -> 14457.74988 | L18: ='Input | Comms, IT, Other'!L208*'Input | Comms, IT, Other'!$I51*IF('Input | Comms, IT, Other'!$H51="Yes",'Input| Prices'!L$59,1) -> 19879.40608 | M18: ='Input | Comms, IT, Other'!M208*'Input | Comms, IT, Other'!$I51*IF('Input | Comms, IT, Other'!$H51="Yes",'Input| Prices'!M$59,1) -> 21686.62482 | N18: ='Input | Comms, IT, Other'!N208*'Input | Comms, IT, Other'!$I51*IF('Input | Comms, IT, Other'!$H51="Yes",'Input| Prices'!N$59,1) -> 21686.62482 | O18: ='Input | Comms, IT, Other'!O208*'Input | Comms, IT, Other'!$I51*IF('Input | Comms, IT, Other'!$H51="Yes",'Input| Prices'!O$59,1) -> 18795.07484 | P18: ='Input | Comms, IT, Other'!P208*'Input | Comms, IT, Other'!$I51*IF('Input | Comms, IT, Other'!$H51="Yes",'Input| Prices'!P$59,1) -> 18795.07484 | Q18: ='Input | Comms, IT, Other'!Q208*'Input | Comms, IT, Other'!$I51*IF('Input | Comms, IT, Other'!$H51="Yes",'Input| Prices'!Q$59,1) -> 18795.07484
E19: Micro AP | F19: Maintenance (Failure/Faults) | G19: $dollars | H19: 2024-06-01 | J19: ='Input | Comms, IT, Other'!J209*'Input | Comms, IT, Other'!$I52*IF('Input | Comms, IT, Other'!$H52="Yes",'Input| Prices'!J$59,1) -> 0 | K19: ='Input | Comms, IT, Other'!K209*'Input | Comms, IT, Other'!$I52*IF('Input | Comms, IT, Other'!$H52="Yes",'Input| Prices'!K$59,1) -> 361.443747 | L19: ='Input | Comms, IT, Other'!L209*'Input | Comms, IT, Other'!$I52*IF('Input | Comms, IT, Other'!$H52="Yes",'Input| Prices'!L$59,1) -> 361.443747 | M19: ='Input | Comms, IT, Other'!M209*'Input | Comms, IT, Other'!$I52*IF('Input | Comms, IT, Other'!$H52="Yes",'Input| Prices'!M$59,1) -> 722.887494 | N19: ='Input | Comms, IT, Other'!N209*'Input | Comms, IT, Other'!$I52*IF('Input | Comms, IT, Other'!$H52="Yes",'Input| Prices'!N$59,1) -> 722.887494 | O19: ='Input | Comms, IT, Other'!O209*'Input | Comms, IT, Other'!$I52*IF('Input | Comms, IT, Other'!$H52="Yes",'Input| Prices'!O$59,1) -> 1084.331241 | P19: ='Input | Comms, IT, Other'!P209*'Input | Comms, IT, Other'!$I52*IF('Input | Comms, IT, Other'!$H52="Yes",'Input| Prices'!P$59,1) -> 1084.331241 | Q19: ='Input | Comms, IT, Other'!Q209*'Input | Comms, IT, Other'!$I52*IF('Input | Comms, IT, Other'!$H52="Yes",'Input| Prices'!Q$59,1) -> 1084.331241
E20: Micro AP | F20: End of life | G20: $dollars | H20: 2024-06-01 | J20: ='Input | Comms, IT, Other'!J210*'Input | Comms, IT, Other'!$I53*IF('Input | Comms, IT, Other'!$H53="Yes",'Input| Prices'!J$59,1) -> 0 | K20: ='Input | Comms, IT, Other'!K210*'Input | Comms, IT, Other'!$I53*IF('Input | Comms, IT, Other'!$H53="Yes",'Input| Prices'!K$59,1) -> 0 | L20: ='Input | Comms, IT, Other'!L210*'Input | Comms, IT, Other'!$I53*IF('Input | Comms, IT, Other'!$H53="Yes",'Input| Prices'!L$59,1) -> 0 | M20: ='Input | Comms, IT, Other'!M210*'Input | Comms, IT, Other'!$I53*IF('Input | Comms, IT, Other'!$H53="Yes",'Input| Prices'!M$59,1) -> 0 | N20: ='Input | Comms, IT, Other'!N210*'Input | Comms, IT, Other'!$I53*IF('Input | Comms, IT, Other'!$H53="Yes",'Input| Prices'!N$59,1) -> 18795.07484 | O20: ='Input | Comms, IT, Other'!O210*'Input | Comms, IT, Other'!$I53*IF('Input | Comms, IT, Other'!$H53="Yes",'Input| Prices'!O$59,1) -> 26023.94978 | P20: ='Input | Comms, IT, Other'!P210*'Input | Comms, IT, Other'!$I53*IF('Input | Comms, IT, Other'!$H53="Yes",'Input| Prices'!P$59,1) -> 32168.49348 | Q20: ='Input | Comms, IT, Other'!Q210*'Input | Comms, IT, Other'!$I53*IF('Input | Comms, IT, Other'!$H53="Yes",'Input| Prices'!Q$59,1) -> 38313.03718
E21: Poles | F21: Growth | G21: $dollars | H21: 2024-06-01 | J21: ='Input | Comms, IT, Other'!J211*'Input | Comms, IT, Other'!$I54*IF(('Input | Comms, IT, Other'!$H54)="Yes",'Input| Prices'!J$59,1) -> 0 | K21: ='Input | Comms, IT, Other'!K211*'Input | Comms, IT, Other'!$I54*IF('Input | Comms, IT, Other'!$H54="Yes",'Input| Prices'!K$59,1) -> 14805.1114 | L21: ='Input | Comms, IT, Other'!L211*'Input | Comms, IT, Other'!$I54*IF('Input | Comms, IT, Other'!$H54="Yes",'Input| Prices'!L$59,1) -> 33311.50066 | M21: ='Input | Comms, IT, Other'!M211*'Input | Comms, IT, Other'!$I54*IF('Input | Comms, IT, Other'!$H54="Yes",'Input| Prices'!M$59,1) -> 37012.77851 | N21: ='Input | Comms, IT, Other'!N211*'Input | Comms, IT, Other'!$I54*IF('Input | Comms, IT, Other'!$H54="Yes",'Input| Prices'!N$59,1) -> 40714.05636 | O21: ='Input | Comms, IT, Other'!O211*'Input | Comms, IT, Other'!$I54*IF('Input | Comms, IT, Other'!$H54="Yes",'Input| Prices'!O$59,1) -> 44415.33421 | P21: ='Input | Comms, IT, Other'!P211*'Input | Comms, IT, Other'!$I54*IF('Input | Comms, IT, Other'!$H54="Yes",'Input| Prices'!P$59,1) -> 48116.61206 | Q21: ='Input | Comms, IT, Other'!Q211*'Input | Comms, IT, Other'!$I54*IF('Input | Comms, IT, Other'!$H54="Yes",'Input| Prices'!Q$59,1) -> 51817.88991
E22: Poles | F22: Replacements | G22: $dollars | H22: 2024-06-01 | J22: ='Input | Comms, IT, Other'!J212*'Input | Comms, IT, Other'!$I55*IF('Input | Comms, IT, Other'!$H55="Yes",'Input| Prices'!J$59,1) -> 0 | K22: ='Input | Comms, IT, Other'!K212*'Input | Comms, IT, Other'!$I55*IF('Input | Comms, IT, Other'!$H55="Yes",'Input| Prices'!K$59,1) -> 0 | L22: ='Input | Comms, IT, Other'!L212*'Input | Comms, IT, Other'!$I55*IF('Input | Comms, IT, Other'!$H55="Yes",'Input| Prices'!L$59,1) -> 0 | M22: ='Input | Comms, IT, Other'!M212*'Input | Comms, IT, Other'!$I55*IF('Input | Comms, IT, Other'!$H55="Yes",'Input| Prices'!M$59,1) -> 0 | N22: ='Input | Comms, IT, Other'!N212*'Input | Comms, IT, Other'!$I55*IF('Input | Comms, IT, Other'!$H55="Yes",'Input| Prices'!N$59,1) -> 0 | O22: ='Input | Comms, IT, Other'!O212*'Input | Comms, IT, Other'!$I55*IF('Input | Comms, IT, Other'!$H55="Yes",'Input| Prices'!O$59,1) -> 0 | P22: ='Input | Comms, IT, Other'!P212*'Input | Comms, IT, Other'!$I55*IF('Input | Comms, IT, Other'!$H55="Yes",'Input| Prices'!P$59,1) -> 0 | Q22: ='Input | Comms, IT, Other'!Q212*'Input | Comms, IT, Other'!$I55*IF('Input | Comms, IT, Other'!$H55="Yes",'Input| Prices'!Q$59,1) -> 0
